Workbook

Sheet Function
E1: =H114 -> UTAH | F1: =+H114 -> UTAH | G1: =C109 -> 2010 PROTOCOL | R1: UNADJUSTED RESULTS OF OPERATIONS
R2: =Variables!AE27 -> 2010 PROTOCOL
E3: Function | F3: Description | I3: Production | J3: Transmission | K3: Distribution | L3: Poles & Wires | M3: Customer | N3: Misc | O3: Total | R3: =Variables!AE28 ->  | AN3: JAMLINKjars
E4: ACCMDIT | F4: Deferred Income Tax - Balance | I4: =T61 -> 0.7515662397 | J4: 0.1245876437 | K4: 0.1238461167 | L4: 0.1200477621 | M4: 0.003798354579 | N4: 0 | O4: =SUM(I4:K4) -> 1 | P4: =K4-L4-M4-N4 -> 1.301042607e-17 | AN4: =+I4 -> 0.7515662397 | AO4: 0.1245876437 | AP4: 0.1238461167 | AQ4: 0.1200477621 | AR4: 0.003798354579 | AS4: 0 | AT4: =Report!P192 -> 742487158.5
E5: BOOKDEPR | F5: Book Depreciation | I5: 0.5333088308 | J5: 0.1666185282 | K5: =L5+M5+N5 -> 0.300072641 | L5: 0.296637073 | M5: 0.003435567996 | N5: 0 | O5: 1 | P5: -1.734723476e-17 | U5: PACIFICORP | V5: PACIFICORP | AN5: 0.5333088308 | AO5: 0.1666185282 | AP5: 0.300072641 | AQ5: 0.296637073 | AR5: 0.003435567996 | AS5: 0 | AT5: =Report!P193 -> 0
C6: N/A | E6: COM_EQ | F6: Communication Equipment Acct 397 | I6: 0 | J6: 0 | K6: =L6+M6+N6 -> 0 | L6: 0 | M6: 0 | N6: 0 | O6: 0 | P6: 0 | R6: FERC | S6: DESCRIPTION | U6: LABOR | V6: O&M | AN6: 0 | AO6: 0 | AP6: 0 | AQ6: 0 | AR6: 0 | AS6: 0 | AT6: =Report!P194 -> 742487158.5
E7: CUST | F7: Distribution Retail | I7: 0 | J7: 0 | K7: =L7+M7+N7 -> 1 | L7: 0 | M7: 1 | N7: 0 | O7: 1 | P7: 0 | R7: ACCT | U7: ONLY | V7: TOTAL | W7: =Variables!X24 -> UTAH | AN7: 0 | AO7: 0 | AP7: 1 | AQ7: 0 | AR7: 1 | AS7: 0 | AT7: =Report!P195 -> 0
E8: CWC | F8: Cash Working Capital | I8: =T58/$S58 -> 0.6995696911 | J8: =U58/$S58 -> 0.1026886585 | K8: =SUM(L8:N8) -> 0.1977416504 | L8: =W58/$S58 -> 0.1553356558 | M8: =X58/$S58 -> 0.05412067813 | N8: =Y58/$S58 -> -0.01171468354 | O8: 1 | P8: 0 | AN8: 0.6995696911 | AO8: 0.1026886585 | AP8: 0.1977416504 | AQ8: 0.1553356558 | AR8: 0.05412067813 | AS8: -0.01171468354 | AT8: =Report!P196 -> 0
E9: DDS2 | F9: Deferred Debits - Situs | I9: 0.8654170763 | J9: 0.01134440937 | K9: =L9+M9+N9 -> 0.1232385143 | L9: 0.007189450857 | M9: 0.1453915654 | N9: -0.02934250188 | O9: 1 | P9: 0 | AN9: 0.8654170763 | AO9: 0.01134440937 | AP9: 0.1232385143 | AQ9: 0.007189450857 | AR9: 0.1453915654 | AS9: -0.02934250188 | AT9: =Report!P197 -> 1220620282
E10: DDS6 | F10: Deferred Debits - Situs | I10: 0 | J10: 0 | K10: =L10+M10+N10 -> 0 | L10: 0 | M10: 0 | N10: 0 | O10: 0 | P10: 0 | R10: NET PRODUCTION EXPENSE | U10: 90698845 | V10: =URO!I656 -> 2118492929 | W10: =IF(Variables!AO3=12,URO!N656+URO!Q656,CHOOSE(Variables!AO3,URO!J656,URO!K656,URO!L656,URO!M656,URO!N656,URO!O656,URO!P656,URO!Q656,URO!R656,URO!S656,URO!T656)) -> 917033686 | AN10: 0 | AO10: 0 | AP10: 0 | AQ10: 0 | AR10: 0 | AS10: 0 | AT10: =Report!P198 -> 0
E11: DDSO2 | F11: Deferred Debits - System Overhead | I11: 0.1117746861 | J11: 0.03725822871 | K11: =L11+M11+N11 -> 0.8509670852 | L11: 0.2235493722 | M11: 0 | N11: 0.6274177129 | O11: 1 | P11: 0 | R11: NET TRANSMISSION EXPENSE | U11: 10748429 | V11: =URO!I755 -> 215664452.3 | W11: =IF(Variables!AO3=12,URO!N755+URO!Q755,CHOOSE(Variables!AO3,URO!J755,URO!K755,URO!L755,URO!M755,URO!N755,URO!O755,URO!P755,URO!Q755,URO!R755,URO!S755,URO!T755)) -> 94304103.9 | AN11: 0.1117746861 | AO11: 0.03725822871 | AP11: 0.8509670852 | AQ11: 0.2235493722 | AR11: 0 | AS11: 0.6274177129 | AT11: =Report!P199 -> 0
E12: DDSO6 | F12: Deferred Debits - System Overhead | I12: 0 | J12: 0 | K12: =L12+M12+N12 -> 0 | L12: 0 | M12: 0 | N12: 0 | O12: 0 | P12: 0 | R12: TOTAL DISTRIBUTION EXPENSE | U12: =U18 -> 82047328 | V12: =V18 -> 311045816.2 | W12: =W18 -> 124224025.6 | AN12: 0 | AO12: 0 | AP12: 0 | AQ12: 0 | AR12: 0 | AS12: 0 | AT12: =Report!P200 -> 0
E13: DEFSG | F13: Deferred Debit - System Generation | I13: 0.6346481617 | J13: 0.3653518383 | K13: =L13+M13+N13 -> 0 | L13: 0 | M13: 0 | N13: 0 | O13: 1 | P13: 0 | R13: TOTAL | U13: =SUM(U10:U12) -> 183494602 | V13: =SUM(V10:V12) -> 2645203198 | W13: =SUM(W10:W12) -> 1135561815 | AN13: 0.6346481617 | AO13: 0.3653518383 | AP13: 0 | AQ13: 0 | AR13: 0 | AS13: 0 | AT13: =Report!P201 -> 0
C14: N/A | E14: DITEXP | F14: Deferred Income Tax - Expense | I14: 0 | J14: 0 | K14: 0 | L14: 0 | M14: 0 | N14: 0 | O14: 0 | P14: 0 | AN14: 0 | AO14: 0 | AP14: 0 | AQ14: 0 | AR14: 0 | AS14: 0 | AT14: =Report!P202 -> 1220620282
E15: DMSC | F15: Distribution Miscellaneous | I15: 0 | J15: 0 | K15: =L15+M15+N15 -> 1 | L15: 0 | M15: 0 | N15: 1 | O15: =SUM(I15:K15) -> 1 | P15: 0 | R15: POLES & WIRES | U15: 45597212 | V15: =URO!I856 -> 207035424.8 | W15: =IF(Variables!AO3=12,URO!N856+URO!Q856,CHOOSE(Variables!AO3,URO!J856,URO!K856,URO!L856,URO!M856,URO!N856,URO!O856,URO!P856,URO!Q856,URO!R856,URO!S856,URO!T856)) -> 85903034.44 | AN15: 0 | AO15: 0 | AP15: 1 | AQ15: 0 | AR15: 0 | AS15: 1 | AT15: =Report!P203 -> 0
E16: DPW | F16: Distribution Poles & Wires | I16: 0 | J16: 0 | K16: =L16+M16+N16 -> 1 | L16: 1 | M16: 0 | N16: 0 | O16: 1 | P16: 0 | R16: Customers | U16: 36450116 | V16: =URO!I891+URO!I960 -> 104010391.4 | W16: =IF(Variables!AO3=12,URO!N891+URO!N960+URO!Q891+URO!Q960,CHOOSE(Variables!AO3,URO!J891+URO!J960,URO!K891+URO!K960,URO!L891+URO!L960,URO!M891+URO!M960,URO!N891+URO!N960,URO!O891+URO!O960,URO!P891+URO!P960,URO!Q891+URO!Q960,URO!R891+URO!R960,URO!S891+URO!S960,URO!T891+URO!T960)) -> 38320991.16 | AN16: 0 | AO16: 0 | AP16: 1 | AQ16: 1 | AR16: 0 | AS16: 0 | AT16: =Report!P204 -> 0
E17: ESD | F17: Environmental Services Department | I17: 0.3 | J17: 0.1 | K17: =L17+M17+N17 -> 0.6 | L17: 0.6 | M17: 0 | N17: 0 | O17: 1 | P17: 0 | R17: MISC | U17: 0 | V17: 0 | W17: 0 | AN17: 0.3 | AO17: 0.1 | AP17: 0.6 | AQ17: 0.6 | AR17: 0 | AS17: 0 | AT17: =Report!P205 -> 9123413.117
E18: FERC | F18: FERC Fees | I18: 0.5372886628 | J18: 0.4627113372 | K18: =L18+M18+N18 -> 0 | L18: 0 | M18: 0 | N18: 0 | O18: 1 | P18: 0 | R18: TOTAL DISTRIBUTION | U18: =SUM(U15:U17) -> 82047328 | V18: =SUM(V15:V17) -> 311045816.2 | W18: =SUM(W15:W17) -> 124224025.6 | AN18: 0.5372886628 | AO18: 0.4627113372 | AP18: 0 | AQ18: 0 | AR18: 0 | AS18: 0 | AT18: =Report!P206 -> 0
E19: FIT | F19: Federal Income Taxes | I19: =I1443/$H1443 -> -3.069623468 | J19: =J1443/$H1443 -> -0.05957920059 | K19: =SUM(L19:N19) -> 1.177058927 | L19: =L1443/$H1443 -> 1.114759747 | M19: =M1443/$H1443 -> 0.4224010389 | N19: =N1443/$H1443 -> -0.3601018591 | O19: -1.952143742 | P19: 0 | AN19: -3.069623468 | AO19: -0.05957920059 | AP19: 1.177058927 | AQ19: 1.114759747 | AR19: 0.4224010389 | AS19: -0.3601018591 | AT19: =Report!P207 -> 9123413.117
E20: G | F20: General Plant | I20: 0.2328424472 | J20: 0.2990202444 | K20: =L20+M20+N20 -> 0.4681373084 | L20: 0.4419311617 | M20: 0.02620614672 | N20: 0 | O20: 1 | P20: 3.469446952e-18 | AN20: =+I20 -> 0.2328424472 | AO20: 0.2990202444 | AP20: 0.4681373084 | AQ20: 0.4419311617 | AR20: 0.02620614672 | AS20: 0 | AT20: =Report!P208 -> 0
E21: G-DGP | F21: General Plant - DGP Factor | I21: 0.6855986064 | J21: 0.3144013936 | K21: =L21+M21+N21 -> 0 | L21: 0 | M21: 0 | N21: 0 | O21: 1 | P21: 0 | R21: LABOR/O&M | AN21: 0.6855986064 | AO21: 0.3144013936 | AP21: 0 | AQ21: 0 | AR21: 0 | AS21: 0 | AT21: =Report!P209 -> 0
E22: G-DGU | F22: General Plant - DGU Factor | I22: 0.6855986064 | J22: 0.3144013936 | K22: =L22+M22+N22 -> 0 | L22: 0 | M22: 0 | N22: 0 | O22: 1 | P22: 0 | R22: NET PRODUCTION EXPENSE | U22: =U10/U$13 -> 0.4942861752 | V22: 0.80088098 | W22: =W10/W$13 -> 0.8075594595 | AN22: 0.6855986064 | AO22: 0.3144013936 | AP22: 0 | AQ22: 0 | AR22: 0 | AS22: 0 | AT22: =Report!P210 -> 16329652.59
E23: GP | F23: Total Plant | I23: 0.5092664563 | J23: 0.2157600698 | K23: 0.2749734739 | L23: 0.268675091 | M23: 0.006298382938 | N23: 0 | O23: 1 | P23: 2.255140519e-17 | R23: NET TRANSMISSION EXPENSE | U23: 0.05857626809 | V23: 0.08153039151 | W23: =W11/W$13 -> 0.08304620904 | AN23: 0.5092664563 | AO23: 0.2157600698 | AP23: 0.2749734739 | AQ23: 0.268675091 | AR23: 0.006298382938 | AS23: 0 | AT23: =Report!P211 -> 0
E24: G-SG | F24: General Plant - SG Factor | I24: 0.4715666024 | J24: 0.5284333976 | K24: 0 | L24: 0 | M24: 0 | N24: 0 | O24: =SUM(I24:K24) -> 1 | P24: 0 | R24: TOTAL DISTRIBUTION EXPENSE | U24: 0.4471375567 | V24: 0.1175886285 | W24: =W12/W$13 -> 0.1093943314 | AN24: 0.4715666024 | AO24: 0.5284333976 | AP24: 0 | AQ24: 0 | AR24: 0 | AS24: 0 | AT24: =Report!P212 -> 16329652.59
E25: G-SITUS | F25: General Plant - SITUS Factor | I25: 0 | J25: 0.2571292981 | K25: 0.7428707019 | L25: 0.7428707019 | M25: 0 | N25: 0 | O25: 1 | P25: 0 | R25: TOTAL | U25: 1 | V25: 1 | W25: =W13/W$13 -> 1 | AN25: 0 | AO25: 0.2571292981 | AP25: 0.7428707019 | AQ25: 0.7428707019 | AR25: 0 | AS25: 0 | AT25: =Report!P213 -> 0
E26: I | F26: Intangible Plant | I26: 0.5565693786 | J26: 0.1476908877 | K26: 0.2957397337 | L26: 0.1412390394 | M26: 0.1545006943 | N26: 0 | O26: 1 | P26: 0 | AN26: 0.5565693786 | AO26: 0.1476908877 | AP26: 0.2957397337 | AQ26: 0.1412390394 | AR26: 0.1545006943 | AS26: 0 | AT26: =Report!P214 -> 0
E27: IBT | F27: Income Before Taxes | I27: =I1428/$H1428 -> -1.824638252 | J27: =J1428/$H1428 -> -0.04276091421 | K27: =SUM(L27:N27) -> 0.8447934063 | L27: =L1428/$H1428 -> 0.8000803209 | M27: =M1428/$H1428 -> 0.303163762 | N27: =N1428/$H1428 -> -0.2584506766 | O27: -1.02260576 | P27: 0 | R27: POLES & WIRES | U27: =U15/U$13 -> 0.2484934788 | V27: 0.07826824984 | W27: =W15/W$13 -> 0.07564804775 | AN27: -1.824638252 | AO27: -0.04276091421 | AP27: 0.8447934063 | AQ27: 0.8000803209 | AR27: 0.303163762 | AS27: -0.2584506766 | AT27: =Report!P215 -> 0
E28: I-DGP | F28: Intangible Plant - DGP Factor | I28: 1 | J28: 0 | K28: =L28+M28+N28 -> 0 | L28: 0 | M28: 0 | N28: 0 | O28: 1 | P28: 0 | R28: RETAIL | U28: 0.1986440778 | V28: 0.03932037867 | W28: =W16/W$13 -> 0.03374628368 | AN28: 1 | AO28: 0 | AP28: 0 | AQ28: 0 | AR28: 0 | AS28: 0 | AT28: =Report!P216 -> 0
E29: I-DGU | F29: Intangible Plant - DGU Factor | I29: 1 | J29: 0 | K29: 0 | L29: 0 | M29: 0 | N29: 0 | O29: 1 | P29: 0 | R29: MISC | U29: 0 | V29: 0 | W29: =W17/W$13 -> 0 | AN29: 1 | AO29: 0 | AP29: 0 | AQ29: 0 | AR29: 0 | AS29: 0 | AT29: =Report!P217 -> 0
E30: I-SG | F30: Intangible Plant - SG Factor | I30: 0.8545976251 | J30: 0.1454023749 | K30: 0 | L30: 0 | M30: 0 | N30: 0 | O30: 1 | P30: 0 | R30: TOTAL DISTRIBUTION | U30: =U18/U13 -> 0.4471375567 | V30: =V18/V13 -> 0.1175886285 | W30: =W18/W13 -> 0.1093943314 | AN30: 0.8545976251 | AO30: 0.1454023749 | AP30: 0 | AQ30: 0 | AR30: 0 | AS30: 0 | AT30: =Report!P218 -> 0
E31: I-SITUS | F31: Intangible Plant - SITUS Factor | I31: 0.0276342919 | J31: 0.4679663045 | K31: 0.5043994036 | L31: 0.5043994036 | M31: 0 | N31: 0 | O31: 1 | P31: 0 | AN31: 0.0276342919 | AO31: 0.4679663045 | AP31: 0.5043994036 | AQ31: 0.5043994036 | AR31: 0 | AS31: 0 | AT31: =Report!P219 -> 1988560506
E32: LABOR | F32: Direct Labor Expense | I32: 0.4271290455 | J32: 0.06855059318 | K32: 0.5043203613 | L32: 0.3553382213 | M32: 0.14898214 | N32: 0 | O32: 1 | P32: 5.551115123e-17 | AN32: 0.4271290455 | AO32: 0.06855059318 | AP32: 0.5043203613 | AQ32: 0.3553382213 | AR32: 0.14898214 | AS32: 0 | AT32: =Report!P220 -> 0
E33: MSS | F33: Materials & Supplies | I33: 0.8430955205 | J33: 0.00648440484 | K33: 0.1504200747 | L33: 0.1504200747 | M33: 0 | N33: 0 | O33: 1 | P33: 0 | R33: TOTAL PRODUCTION PLANT | V33: =URO!I1701 -> 1.196099682e+10 | W33: =IF(Variables!AO3=12,URO!N1701+URO!Q1701,CHOOSE(Variables!AO3,URO!J1701,URO!K1701,URO!L1701,URO!M1701,URO!N1701,URO!O1701,URO!P1701,URO!Q1701,URO!R1701,URO!S1701,URO!T1701)) -> 5232155946 | AN33: 0.8430955205 | AO33: 0.00648440484 | AP33: 0.1504200747 | AQ33: 0.1504200747 | AR33: 0 | AS33: 0 | AT33: =Report!P221 -> 0
E34: NONE | F34: Not Functionalized | I34: 0 | J34: 0 | K34: =L34+M34+N34 -> 0 | L34: 0 | M34: 0 | N34: 0 | O34: 0 | P34: 0 | R34: TOTAL TRANSMISSION PLANT | V34: =URO!I1765 -> 5681635112 | W34: =IF(Variables!AO3=12,URO!N1765+URO!Q1765,CHOOSE(Variables!AO3,URO!J1765,URO!K1765,URO!L1765,URO!M1765,URO!N1765,URO!O1765,URO!P1765,URO!Q1765,URO!R1765,URO!S1765,URO!T1765)) -> 2485360355 | AN34: 0 | AO34: 0 | AP34: 0 | AQ34: 0 | AR34: 0 | AS34: 0 | AT34: =Report!P222 -> 0
E35: NUTIL | F35: Non-Regulated | I35: 0 | J35: 0 | K35: =L35+M35+N35 -> 0 | L35: 0 | M35: 0 | N35: 0 | O35: 0 | P35: 0 | R35: TOTAL DISTRIBUTION PLANT | V35: =URO!I1839 -> 6282882317 | W35: =IF(Variables!AO3=12,URO!N1839+URO!Q1839,CHOOSE(Variables!AO3,URO!J1839,URO!K1839,URO!L1839,URO!M1839,URO!N1839,URO!O1839,URO!P1839,URO!Q1839,URO!R1839,URO!S1839,URO!T1839)) -> 2671100942 | AN35: 0 | AO35: 0 | AP35: 0 | AQ35: 0 | AR35: 0 | AS35: 0 | AT35: =Report!P223 -> 0
E36: OTHDGP | F36: Other Revenues - DGP Factor | I36: 0.6577867594 | J36: 0.3422132406 | K36: =L36+M36+N36 -> 0 | L36: 0 | M36: 0 | N36: 0 | O36: 1 | P36: 0 | R36: TOTAL | V36: =SUM(V33:V35) -> 2.392551425e+10 | W36: =SUM(W33:W35) -> 1.038861724e+10 | AN36: 0.6577867594 | AO36: 0.3422132406 | AP36: 0 | AQ36: 0 | AR36: 0 | AS36: 0 | AT36: =Report!P224 -> 0
E37: OTHDGU | F37: Other Revenues - DGU Factor | I37: 0.6577867594 | J37: 0.3422132406 | K37: 0 | L37: 0 | M37: 0 | N37: 0 | O37: 1 | P37: 0 | AN37: 0.6577867594 | AO37: 0.3422132406 | AP37: 0 | AQ37: 0 | AR37: 0 | AS37: 0 | AT37: =Report!P225 -> 0
E38: OTHSE | F38: Other Revenues - SE Factor | I38: 0 | J38: 1 | K38: 0 | L38: 0 | M38: 0 | N38: 0 | O38: 1 | P38: 0 | R38: PTD | AN38: 0 | AO38: 1 | AP38: 0 | AQ38: 0 | AR38: 0 | AS38: 0 | AT38: =Report!P226 -> 0
E39: OTHSG | F39: Other Revenues - SG Factor | I39: 0.6577867594 | J39: 0.3422132406 | K39: 0 | L39: 0 | M39: 0 | N39: 0 | O39: 1 | P39: 0 | R39: TOTAL PRODUCTION PLANT | V39: =V33/V$36 -> 0.4999264256 | W39: 0.5036431532 | AN39: 0.6577867594 | AO39: 0.3422132406 | AP39: 0 | AQ39: 0 | AR39: 0 | AS39: 0 | AT39: =Report!P227 -> 0
E40: OTHSGR | F40: Other Revenues - Rolled-In SG Factor | I40: 0.6577867594 | J40: 0.3422132406 | K40: 0 | L40: 0 | M40: 0 | N40: 0 | O40: 1 | P40: 0 | R40: TOTAL TRANSMISSION PLANT | V40: 0.2374718074 | W40: 0.2392388031 | AN40: 0.6577867594 | AO40: 0.3422132406 | AP40: 0 | AQ40: 0 | AR40: 0 | AS40: 0 | AT40: =Report!P228 -> 115082019.4
E41: OTHSITUS | F41: Other Revenues - Situs | I41: 0 | J41: 0 | K41: 1 | L41: 0 | M41: 0 | N41: 1 | O41: 1 | P41: 0 | R41: TOTAL DISTRIBUTION PLANT | V41: 0.262601767 | W41: 0.2571180437 | AN41: 0 | AO41: 0 | AP41: 1 | AQ41: 0 | AR41: 0 | AS41: 1 | AT41: =Report!P229 -> 0
E42: OTHSO | F42: Other Revenues - SO Factor | I42: 0 | J42: 0 | K42: 1 | L42: 0 | M42: 0 | N42: 1 | O42: 1 | P42: 0 | R42: TOTAL | V42: =SUM(V39:V41) -> 1 | W42: =W36/W$36 -> 1 | AN42: 0 | AO42: 0 | AP42: 1 | AQ42: 0 | AR42: 0 | AS42: 1 | AT42: =Report!P230 -> 0
E43: P | F43: Production | I43: 1 | J43: 0 | K43: 0 | L43: 0 | M43: 0 | N43: 0 | O43: 1 | P43: 0 | AN43: 1 | AO43: 0 | AP43: 0 | AQ43: 0 | AR43: 0 | AS43: 0 | AT43: =Report!P231 -> 115082019.4
E44: PT | F44: Production / Transmission | I44: =IF(Variables!Y23=1,Function!V45,Function!W45) -> 0.6779585221 | J44: =IF(Variables!Y23=1,Function!V46,Function!W46) -> 0.3220414779 | K44: =SUM(L44:N44) -> 0 | L44: 0 | M44: 0 | N44: 0 | O44: 1 | P44: 0 | R44: PT | AN44: 0.6779585221 | AO44: 0.3220414779 | AP44: 0 | AQ44: 0 | AR44: 0 | AS44: 0 | AT44: =Report!P232 -> 0
E45: PTD | F45: Prod, Trans, Dist Plant | I45: =IF(Variables!Y23=1,Function!V39,Function!W39) -> 0.5036431532 | J45: =IF(Variables!Y23=1,Function!V40,Function!W40) -> 0.2392388031 | K45: =SUM(L45:N45) -> 0.2571180437 | L45: =IF(Variables!Y23=1,Function!V41,Function!W41) -> 0.2571180437 | M45: 0 | N45: 0 | O45: 1 | P45: 0 | R45: TOTAL PRODUCTION PLANT | V45: =V33/(V$33+V$34) -> 0.6779598909 | W45: =W33/(W$33+W$34) -> 0.6779585221 | AN45: 0.5036431532 | AO45: 0.2392388031 | AP45: 0.2571180437 | AQ45: 0.2571180437 | AR45: 0 | AS45: 0 | AT45: =Report!P233 -> 115082019.4
E46: REVREQ | F46: Revenue Requirement | I46: =+I122/$H$122 -> 0.5189074787 | J46: =+J122/$H$122 -> 0.1108573174 | K46: =SUM(L46:N46) -> 0.1795323303 | L46: =+L122/$H$122 -> 0.1529883931 | M46: =+M122/$H$122 -> 0.04838365508 | N46: =+N122/$H$122 -> -0.02183971779 | O46: 0.8092971264 | P46: 0 | R46: TOTAL TRANSMISSION PLANT | V46: =V34/(V$33+V$34) -> 0.3220401091 | W46: =W34/(W$33+W$34) -> 0.3220414779 | AN46: 0.5189074787 | AO46: 0.1108573174 | AP46: 0.1795323303 | AQ46: 0.1529883931 | AR46: 0.04838365508 | AS46: -0.02183971779 | AT46: =Report!P234 -> 0
E47: SCHMA | F47: Schedule M Additions | I47: 0.5259273579 | J47: 0.1774923045 | K47: =L47+M47+N47 -> 0.2965803376 | L47: 0.2797551698 | M47: 0.01209048408 | N47: 0.004734683748 | O47: 1 | P47: 1.387778781e-17 | R47: TOTAL | V47: =SUM(V45:V46) -> 1 | W47: =SUM(W45:W46) -> 1 | AN47: 0.5259273579 | AO47: 0.1774923045 | AP47: 0.2965803376 | AQ47: 0.2797551698 | AR47: 0.01209048408 | AS47: 0.004734683748 | AT47: =Report!P235 -> 0
E48: SCHMAF | F48: Schedule M Additions - Flow Through | I48: 1 | J48: 0 | K48: 0 | L48: 0 | M48: 0 | N48: 0 | O48: 1 | P48: 0 | AN48: 1 | AO48: 0 | AP48: 0 | AQ48: 0 | AR48: 0 | AS48: 0 | AT48: =Report!P236 -> 0.1
E49: SCHMAP | F49: Schedule M Additions - Permanent | I49: 0.4395609841 | J49: 0.07868996996 | K49: 0.4817490459 | L49: 0.345274554 | M49: 0.136474492 | N49: 0 | O49: 1 | P49: 0 | R49: TD | AN49: 0.4395609841 | AO49: 0.07868996996 | AP49: 0.4817490459 | AQ49: 0.345274554 | AR49: 0.136474492 | AS49: 0 | AT49: =Report!P237 -> 0
E50: SCHMAP-SO | F50: Schedule M Additions - Permanent-SO | I50: 0.4328192325 | J50: 0.0791881397 | K50: 0.4879926278 | L50: 0.3495187311 | M50: 0.1384738967 | N50: 0 | O50: 1 | P50: 0 | R50: TOTAL TRANSMISSION PLANT | V50: =V34/(V$34+V$35) -> 0.4748737377 | W50: =W34/(W$34+W$35) -> 0.4819895296 | AN50: 0.4328192325 | AO50: 0.0791881397 | AP50: 0.4879926278 | AQ50: 0.3495187311 | AR50: 0.1384738967 | AS50: 0 | AT50: =Report!P238 -> 0
E51: SCHMAT | F51: Schedule M Additions - Temporary | I51: 0.5274051795 | J51: 0.1791829187 | K51: 0.2934119019 | L51: 0.2786340627 | M51: 0.009962139945 | N51: 0.004815699279 | O51: 1 | P51: -3.816391647e-17 | R51: TOTAL DISTRIBUTION PLANT | V51: =V35/(V$34+V$35) -> 0.5251262623 | W51: =W35/(W$34+W$35) -> 0.5180104704 | AN51: 0.5274051795 | AO51: 0.1791829187 | AP51: 0.2934119019 | AQ51: 0.2786340627 | AR51: 0.009962139945 | AS51: 0.004815699279 | AT51: =Report!P239 -> 0
E52: SCHMAT-GPS | F52: Schedule M Additions - Temporary-GPS | I52: 0 | J52: 0 | K52: 0 | L52: 0 | M52: 0 | N52: 0 | O52: 0 | P52: 0 | R52: TOTAL | V52: =SUM(V50:V51) -> 1 | W52: =SUM(W50:W51) -> 1 | AN52: 0 | AO52: 0 | AP52: 0 | AQ52: 0 | AR52: 0 | AS52: 0 | AT52: =Report!P240 -> 0.1
E53: SCHMAT-SE | F53: Schedule M Additions - Temporary-SE | I53: 0.9997027317 | J53: 3.557156631e-05 | K53: 0.0002616967169 | L53: 0.0001843884424 | M53: 7.730827448e-05 | N53: 0 | O53: 1 | P53: 2.710505431e-20 | AN53: 0.9997027317 | AO53: 3.557156631e-05 | AP53: 0.0002616967169 | AQ53: 0.0001843884424 | AR53: 7.730827448e-05 | AS53: 0 | AT53: =Report!P241 -> 0
E54: SCHMAT-SITUS | F54: Schedule M Additions - Temporary-SITUS | I54: 0.5617108356 | J54: 0.04522194091 | K54: 0.3930672234 | L54: 0.2292405844 | M54: 0.03586322665 | N54: 0.1279634124 | O54: 1 | P54: 0 | AN54: 0.5617108356 | AO54: 0.04522194091 | AP54: 0.3930672234 | AQ54: 0.2292405844 | AR54: 0.03586322665 | AS54: 0.1279634124 | AT54: =Report!P242 -> 2103642525
E55: SCHMAT-SNP | F55: Schedule M Additions - Temporary-SNP | I55: 0.5078698338 | J55: 0.219200088 | K55: 0.2729300782 | L55: 0.2726403702 | M55: 0.0002897079667 | N55: 0 | O55: 1 | P55: 1.864827737e-17 | T55: Prod | U55: Trans | V55: Dist | W55: DPW | X55: CUST | Y55: DMSC | AN55: 0.5078698338 | AO55: 0.219200088 | AP55: 0.2729300782 | AQ55: 0.2726403702 | AR55: 0.0002897079667 | AS55: 0 | AT55: =Report!P243 -> 0
E56: SCHMAT-SO | F56: Schedule M Additions - Temporary-SO | I56: 0.4795353426 | J56: 0.166521788 | K56: 0.3539428695 | L56: 0.301741049 | M56: 0.05220182049 | N56: 0 | O56: =SUM(I56:K56) -> 1 | P56: -2.775557562e-17 | R56: (O&M + Taxes) / 365 | T56: =((I1046+I1234+I1410+I1443)/365) -> 2210929.296 | U56: 324538.5935 | V56: 624945.325 | W56: 490924.8593 | X56: 171043.7064 | Y56: -37023.24067 | AN56: 0.4795353426 | AO56: 0.166521788 | AP56: 0.3539428695 | AQ56: 0.301741049 | AR56: 0.05220182049 | AS56: 0 | AT56: =Report!P244 -> 3479500.68
E57: SCHMD | F57: Schedule M Deductions | I57: 0.588862778 | J57: 0.1828931507 | K57: 0.2282440713 | L57: 0.2068982353 | M57: 0.005299510458 | N57: 0.01604632562 | O57: 1 | P57: 0 | R57: Net LAG Days | T57: =IF(Variables!$AO$3=12,Variables!$J20,IF(Variables!$Y23=2,CHOOSE(Variables!$AO3,Variables!$F20,Variables!$G20,Variables!$H20,Variables!$I20,Variables!$J20,Variables!$K20,Variables!$L20,Variables!$M20,Variables!$N20),Variables!$O20)) -> 5.985371458 | U57: =IF(Variables!$AO$3=12,Variables!$J20,IF(Variables!$Y23=2,CHOOSE(Variables!$AO3,Variables!$F20,Variables!$G20,Variables!$H20,Variables!$I20,Variables!$J20,Variables!$K20,Variables!$L20,Variables!$M20,Variables!$N20),Variables!$O20)) -> 5.985371458 | V57: =IF(Variables!$AO$3=12,Variables!$J20,IF(Variables!$Y23=2,CHOOSE(Variables!$AO3,Variables!$F20,Variables!$G20,Variables!$H20,Variables!$I20,Variables!$J20,Variables!$K20,Variables!$L20,Variables!$M20,Variables!$N20),Variables!$O20)) -> 5.985371458 | W57: =IF(Variables!$AO$3=12,Variables!$J20,IF(Variables!$Y23=2,CHOOSE(Variables!$AO3,Variables!$F20,Variables!$G20,Variables!$H20,Variables!$I20,Variables!$J20,Variables!$K20,Variables!$L20,Variables!$M20,Variables!$N20),Variables!$O20)) -> 5.985371458 | X57: =IF(Variables!$AO$3=12,Variables!$J20,IF(Variables!$Y23=2,CHOOSE(Variables!$AO3,Variables!$F20,Variables!$G20,Variables!$H20,Variables!$I20,Variables!$J20,Variables!$K20,Variables!$L20,Variables!$M20,Variables!$N20),Variables!$O20)) -> 5.985371458 | Y57: =IF(Variables!$AO$3=12,Variables!$J20,IF(Variables!$Y23=2,CHOOSE(Variables!$AO3,Variables!$F20,Variables!$G20,Variables!$H20,Variables!$I20,Variables!$J20,Variables!$K20,Variables!$L20,Variables!$M20,Variables!$N20),Variables!$O20)) -> 5.985371458 | AN57: 0.588862778 | AO57: 0.1828931507 | AP57: 0.2282440713 | AQ57: 0.2068982353 | AR57: 0.005299510458 | AS57: 0.01604632562 | AT57: =Report!P245 -> 0
E58: SCHMDF | F58: Schedule M Deductions - Flow Through | I58: 1 | J58: 0 | K58: 0 | L58: 0 | M58: 0 | N58: 0 | O58: 1 | P58: 0 | R58: CWC | S58: =SUM(T58:V58) -> 18916247.05 | T58: =T56*T57 -> 13233233.11 | U58: 1942484.034 | V58: 3740529.911 | W58: 2938367.641 | X58: 1023760.118 | Y58: -221597.848 | AN58: 1 | AO58: 0 | AP58: 0 | AQ58: 0 | AR58: 0 | AS58: 0 | AT58: =Report!P246 -> 3479500.68
E59: SCHMDP | F59: Schedule M Deductions - Permanent | I59: 0.443506747 | J59: 0.06924130981 | K59: 0.4872519432 | L59: 0.3446432613 | M59: 0.1426086819 | N59: 0 | O59: 1 | P59: 0 | AN59: 0.443506747 | AO59: 0.06924130981 | AP59: 0.4872519432 | AQ59: 0.3446432613 | AR59: 0.1426086819 | AS59: 0 | AT59: =Report!P247 -> 0
E60: SCHMDP-SO | F60: Schedule M Deductions - Permanent- SO | I60: 0.4271290455 | J60: 0.06855059318 | K60: 0.5043203613 | L60: 0.3553382213 | M60: 0.14898214 | N60: 0 | O60: 1 | P60: 5.551115123e-17 | AN60: 0.4271290455 | AO60: 0.06855059318 | AP60: 0.5043203613 | AQ60: 0.3553382213 | AR60: 0.14898214 | AS60: 0 | AT60: =Report!P248 -> 0
E61: SCHMDT | F61: Schedule M Deductions - Temporary | I61: 0.5898361662 | J61: 0.1836542292 | K61: 0.2265096046 | L61: 0.2059758148 | M61: 0.004380008739 | N61: 0.0161537811 | O61: 1 | P61: 0 | R61: ACCUMDIT | S61: =Variables!AE27 -> 2010 PROTOCOL | T61: =IF(Variables!$AD$24=2,Function!V98,Function!AG98) -> 0.7515662397 | U61: =IF(Variables!$AD$24=2,Function!W98,Function!AH98) -> 0.1245876437 | V61: =IF(Variables!$AD$24=2,Function!X98,Function!AI98) -> 0.1238461167 | W61: =IF(Variables!$AD$24=2,Function!Y98,Function!AJ98) -> 0.1200477621 | X61: =IF(Variables!$AD$24=2,Function!Z98,Function!AK98) -> 0.003798354579 | Y61: =IF(Variables!$AD$24=2,Function!AA98,Function!AL98) -> 0 | AN61: 0.5898361662 | AO61: 0.1836542292 | AP61: 0.2265096046 | AQ61: 0.2059758148 | AR61: 0.004380008739 | AS61: 0.0161537811 | AT61: =Report!P249 -> 3596319.8
E62: SCHMDT-GPS | F62: Schedule M Deductions - Temporary-GPS | I62: 0.5079072977 | J62: 0.2191078108 | K62: 0.2729848916 | L62: 0.2725340031 | M62: 0.0004508884824 | N62: 0 | O62: 1 | P62: 2.32561366e-17 | R62: DITEXP | S62: =Variables!AE27 -> 2010 PROTOCOL | T62: =IF(Variables!$AD$24=2,Function!V133,Function!AG133) ->  | U62: =IF(Variables!$AD$24=2,Function!W133,Function!AH133) ->  | V62: =IF(Variables!$AD$24=2,Function!X133,Function!AI133) ->  | W62: =IF(Variables!$AD$24=2,Function!Y133,Function!AJ133) ->  | X62: =IF(Variables!$AD$24=2,Function!Z133,Function!AK133) ->  | Y62: =IF(Variables!$AD$24=2,Function!AA133,Function!AL133) ->  | AN62: 0.5079072977 | AO62: 0.2191078108 | AP62: 0.2729848916 | AQ62: =+L62 -> 0.2725340031 | AR62: 0.0004508884824 | AS62: 0 | AT62: =Report!P250 -> 0
E63: SCHMDT-SG | F63: Schedule M Deductions - Temporary-SG | I63: 1 | J63: 0 | K63: 0 | L63: 0 | M63: 0 | N63: 0 | O63: 1 | P63: 0 | AN63: =+I63 -> 1 | AO63: 0 | AP63: 0 | AQ63: 0 | AR63: 0 | AS63: 0 | AT63: =Report!P251 -> 4070.87401
E64: SCHMDT-SITUS | F64: Schedule M Deductions - Temporary-SITUS | I64: 0.8344666423 | J64: 0.01183861175 | K64: 0.1536947459 | L64: 0.06331607949 | M64: 0.02943826634 | N64: 0.06094040008 | O64: 1 | P64: 0 | AN64: 0.8344666423 | AO64: 0.01183861175 | AP64: 0.1536947459 | AQ64: 0.06331607949 | AR64: 0.02943826634 | AS64: 0.06094040008 | AT64: =Report!P252 -> 3600390.674
E65: SCHMDT-SNP | F65: Schedule M Deductions - Temporary-SNP | I65: 0.5078024957 | J65: 0.2193659483 | K65: 0.272831556 | L65: 0.272831556 | M65: 0 | N65: 0 | O65: 1 | P65: 0 | R65: DITBALRL | AC65: DITBALMA | AN65: 0.5078024957 | AO65: 0.2193659483 | AP65: 0.272831556 | AQ65: 0.272831556 | AR65: 0 | AS65: 0 | AT65: =Report!P253 -> 0
E66: SCHMDT-SO | F66: Schedule M Deductions - Temporary-SO | I66: 0.4477732506 | J66: 0.1816132325 | K66: 0.3706135169 | L66: 0.365968925 | M66: 0.004644591842 | N66: 0 | O66: 1 | P66: -2.341876693e-17 | R66: Pacific Division | T66: Total | U66: =Variables!X24 -> UTAH | V66: Production | W66: Transmission | X66: Distribution | Y66: DPW | Z66: CUST | AA66: DMSC | AC66: Pacific Division | AE66: Total | AF66: =Variables!X24 -> UTAH | AG66: Production | AH66: Transmission | AI66: Distribution | AJ66: DPW | AK66: CUST | AL66: DMSC | AN66: =+I66 -> 0.4477732506 | AO66: 0.1816132325 | AP66: 0.3706135169 | AQ66: 0.365968925 | AR66: 0.004644591842 | AS66: 0 | AT66: =Report!P254 -> 0
E67: SIT | F67: State Income Tax | I67: =+I1410/$H$1410 -> 1.784302733 | J67: =+J1410/$H$1410 -> 0.04181563989 | K67: -0.8261183727 | L67: =+L1410/$H$1410 -> -0.7823937164 | M67: =+M1410/$H$1410 -> -0.2964620129 | N67: =+N1410/$H$1410 -> 0.2527373566 | O67: 1 | P67: 0 | R67: Pacific Division | AC67: Pacific Division | AN67: 1.784302733 | AO67: 0.04181563989 | AP67: -0.8261183727 | AQ67: -0.7823937164 | AR67: -0.2964620129 | AS67: 0.2527373566 | AT67: =Report!P255 -> 0
E68: T | F68: Transmission | I68: 0 | J68: 1 | K68: 0 | L68: 0 | M68: 0 | N68: 0 | O68: 1 | P68: =K68-L68-M68-N68 -> 0 | R68: Production | S68: P | T68: =Factors!C433 -> 42724405 | U68: =IF(Variables!$AO$3=12,Factors!H433+Factors!K433,CHOOSE(Variables!AO$3,Factors!D433,Factors!E433,Factors!F433,Factors!G433,Factors!H433,Factors!I433,Factors!J433,Factors!K433,Factors!L433,Factors!M433,Factors!N433)) -> 1644458 | V68: =VLOOKUP($S68,$E$4:$O$71,5,FALSE)*IF(Variables!$Y$23=1,$T68,$U68) -> 1644458 | W68: =VLOOKUP($S68,$E$4:$O$71,6,FALSE)*IF(Variables!$Y$23=1,$T68,$U68) -> 0 | X68: =VLOOKUP($S68,$E$4:$O$71,7,FALSE)*IF(Variables!$Y$23=1,$T68,$U68) -> 0 | Y68: =VLOOKUP($S68,$E$4:$O$71,8,FALSE)*IF(Variables!$Y$23=1,$T68,$U68) -> 0 | Z68: =VLOOKUP($S68,$E$4:$O$71,9,FALSE)*IF(Variables!$Y$23=1,$T68,$U68) -> 0 | AA68: =VLOOKUP($S68,$E$4:$O$71,10,FALSE)*IF(Variables!$Y$23=1,$T68,$U68) -> 0 | AC68: Production | AD68: P | AE68: =T68 -> 42724405 | AF68: 1644458 | AG68: =VLOOKUP($AD68,$E$4:$O$71,5,FALSE)*IF(Variables!$Y$23=1,$AE68,$AF68) -> 1644458 | AH68: =VLOOKUP($AD68,$E$4:$O$71,6,FALSE)*IF(Variables!$Y$23=1,$AE68,$AF68) -> 0 | AI68: =VLOOKUP($AD68,$E$4:$O$71,7,FALSE)*IF(Variables!$Y$23=1,$AE68,$AF68) -> 0 | AJ68: =VLOOKUP($AD68,$E$4:$O$71,8,FALSE)*IF(Variables!$Y$23=1,$AE68,$AF68) -> 0 | AK68: =VLOOKUP($AD68,$E$4:$O$71,9,FALSE)*IF(Variables!$Y$23=1,$AE68,$AF68) -> 0 | AL68: =VLOOKUP($AD68,$E$4:$O$71,10,FALSE)*IF(Variables!$Y$23=1,$AE68,$AF68) -> 0 | AN68: 0 | AO68: 1 | AP68: 0 | AQ68: 0 | AR68: 0 | AS68: 0 | AT68: =Report!P256 -> 0
E69: TAXDEPR | F69: Tax Depreciation | I69: 0.5835074932 | J69: 0.19492994 | K69: =L69+M69+N69 -> 0.2215625668 | L69: 0.2170587656 | M69: 0.00450380126 | N69: 0 | O69: =SUM(I69:K69) -> 1 | P69: =K69-L69-M69-N69 -> 1.127570259e-17 | R69: Transmission | S69: T | T69: =Factors!C434 -> 17577756 | U69: =IF(Variables!$AO$3=12,Factors!H434+Factors!K434,CHOOSE(Variables!AO$3,Factors!D434,Factors!E434,Factors!F434,Factors!G434,Factors!H434,Factors!I434,Factors!J434,Factors!K434,Factors!L434,Factors!M434,Factors!N434)) -> 768591 | V69: =VLOOKUP($S69,$E$4:$O$71,5,FALSE)*IF(Variables!$Y$23=1,$T69,$U69) -> 0 | W69: =VLOOKUP($S69,$E$4:$O$71,6,FALSE)*IF(Variables!$Y$23=1,$T69,$U69) -> 768591 | X69: =VLOOKUP($S69,$E$4:$O$71,7,FALSE)*IF(Variables!$Y$23=1,$T69,$U69) -> 0 | Y69: =VLOOKUP($S69,$E$4:$O$71,8,FALSE)*IF(Variables!$Y$23=1,$T69,$U69) -> 0 | Z69: =VLOOKUP($S69,$E$4:$O$71,9,FALSE)*IF(Variables!$Y$23=1,$T69,$U69) -> 0 | AA69: =VLOOKUP($S69,$E$4:$O$71,10,FALSE)*IF(Variables!$Y$23=1,$T69,$U69) -> 0 | AC69: Transmission | AD69: T | AE69: 17577756 | AF69: 768591 | AG69: =VLOOKUP($AD69,$E$4:$O$71,5,FALSE)*IF(Variables!$Y$23=1,$AE69,$AF69) -> 0 | AH69: =VLOOKUP($AD69,$E$4:$O$71,6,FALSE)*IF(Variables!$Y$23=1,$AE69,$AF69) -> 768591 | AI69: =VLOOKUP($AD69,$E$4:$O$71,7,FALSE)*IF(Variables!$Y$23=1,$AE69,$AF69) -> 0 | AJ69: =VLOOKUP($AD69,$E$4:$O$71,8,FALSE)*IF(Variables!$Y$23=1,$AE69,$AF69) -> 0 | AK69: =VLOOKUP($AD69,$E$4:$O$71,9,FALSE)*IF(Variables!$Y$23=1,$AE69,$AF69) -> 0 | AL69: =VLOOKUP($AD69,$E$4:$O$71,10,FALSE)*IF(Variables!$Y$23=1,$AE69,$AF69) -> 0 | AN69: 0.5835074932 | AO69: 0.19492994 | AP69: 0.2215625668 | AQ69: 0.2170587656 | AR69: 0.00450380126 | AS69: 0 | AT69: =Report!P257 -> 0
E70: TD | F70: Transmission / Distribution | I70: 0 | J70: 0.4456868359 | K70: =SUM(L70:N70) -> 0.5543131641 | L70: 0.5543131641 | M70: 0 | N70: 0 | O70: =SUM(I70:K70) -> 1 | P70: =K69-L69-M69-N69 -> 1.127570259e-17 | R70: Distribution | S70: DPW | T70: =Factors!C435 -> 20834796 | U70: =IF(Variables!$AO$3=12,Factors!H435+Factors!K435,CHOOSE(Variables!AO$3,Factors!D435,Factors!E435,Factors!F435,Factors!G435,Factors!H435,Factors!I435,Factors!J435,Factors!K435,Factors!L435,Factors!M435,Factors!N435)) -> 0 | V70: =VLOOKUP($S70,$E$4:$O$71,5,FALSE)*IF(Variables!$Y$23=1,$T70,$U70) -> 0 | W70: =VLOOKUP($S70,$E$4:$O$71,6,FALSE)*IF(Variables!$Y$23=1,$T70,$U70) -> 0 | X70: =VLOOKUP($S70,$E$4:$O$71,7,FALSE)*IF(Variables!$Y$23=1,$T70,$U70) -> 0 | Y70: =VLOOKUP($S70,$E$4:$O$71,8,FALSE)*IF(Variables!$Y$23=1,$T70,$U70) -> 0 | Z70: =VLOOKUP($S70,$E$4:$O$71,9,FALSE)*IF(Variables!$Y$23=1,$T70,$U70) -> 0 | AA70: =VLOOKUP($S70,$E$4:$O$71,10,FALSE)*IF(Variables!$Y$23=1,$T70,$U70) -> 0 | AC70: Distribution | AD70: DPW | AE70: 20834796 | AF70: 0 | AG70: =VLOOKUP($AD70,$E$4:$O$71,5,FALSE)*IF(Variables!$Y$23=1,$AE70,$AF70) -> 0 | AH70: =VLOOKUP($AD70,$E$4:$O$71,6,FALSE)*IF(Variables!$Y$23=1,$AE70,$AF70) -> 0 | AI70: =VLOOKUP($AD70,$E$4:$O$71,7,FALSE)*IF(Variables!$Y$23=1,$AE70,$AF70) -> 0 | AJ70: =VLOOKUP($AD70,$E$4:$O$71,8,FALSE)*IF(Variables!$Y$23=1,$AE70,$AF70) -> 0 | AK70: =VLOOKUP($AD70,$E$4:$O$71,9,FALSE)*IF(Variables!$Y$23=1,$AE70,$AF70) -> 0 | AL70: =VLOOKUP($AD70,$E$4:$O$71,10,FALSE)*IF(Variables!$Y$23=1,$AE70,$AF70) -> 0 | AN70: 0 | AO70: 0.4456868359 | AP70: 0.5543131641 | AQ70: 0.5543131641 | AR70: 0 | AS70: 0 | AT70: =Report!P258 -> 0
P71: =K70-L70-M70-N70 -> 0 | R71: General | S71: G | T71: =Factors!C436 -> -340826 | U71: =IF(Variables!$AO$3=12,Factors!H436+Factors!K436,CHOOSE(Variables!AO$3,Factors!D436,Factors!E436,Factors!F436,Factors!G436,Factors!H436,Factors!I436,Factors!J436,Factors!K436,Factors!L436,Factors!M436,Factors!N436)) -> -39874 | V71: =VLOOKUP($S71,$E$4:$O$71,5,FALSE)*IF(Variables!$Y$23=1,$T71,$U71) -> -9284.359741 | W71: =VLOOKUP($S71,$E$4:$O$71,6,FALSE)*IF(Variables!$Y$23=1,$T71,$U71) -> -11923.13322 | X71: =VLOOKUP($S71,$E$4:$O$71,7,FALSE)*IF(Variables!$Y$23=1,$T71,$U71) -> -18666.50703 | Y71: =VLOOKUP($S71,$E$4:$O$71,8,FALSE)*IF(Variables!$Y$23=1,$T71,$U71) -> -17621.56314 | Z71: =VLOOKUP($S71,$E$4:$O$71,9,FALSE)*IF(Variables!$Y$23=1,$T71,$U71) -> -1044.943894 | AA71: =VLOOKUP($S71,$E$4:$O$71,10,FALSE)*IF(Variables!$Y$23=1,$T71,$U71) -> 0 | AC71: General | AD71: G | AE71: -340826 | AF71: -39874 | AG71: =VLOOKUP($AD71,$E$4:$O$71,5,FALSE)*IF(Variables!$Y$23=1,$AE71,$AF71) -> -9284.359741 | AH71: =VLOOKUP($AD71,$E$4:$O$71,6,FALSE)*IF(Variables!$Y$23=1,$AE71,$AF71) -> -11923.13322 | AI71: =VLOOKUP($AD71,$E$4:$O$71,7,FALSE)*IF(Variables!$Y$23=1,$AE71,$AF71) -> -18666.50703 | AJ71: =VLOOKUP($AD71,$E$4:$O$71,8,FALSE)*IF(Variables!$Y$23=1,$AE71,$AF71) -> -17621.56314 | AK71: =VLOOKUP($AD71,$E$4:$O$71,9,FALSE)*IF(Variables!$Y$23=1,$AE71,$AF71) -> -1044.943894 | AL71: =VLOOKUP($AD71,$E$4:$O$71,10,FALSE)*IF(Variables!$Y$23=1,$AE71,$AF71) -> 0 | AN71: 0 | AO71: 0 | AP71: 0 | AQ71: 0 | AR71: 0 | AS71: 0 | AT71: =Report!P259 -> 2963721.24
P72: =K71-L71-M71-N71 -> 0 | R72: Mining Plant | S72: P | T72: =Factors!C437 -> 3474 | U72: =IF(Variables!$AO$3=12,Factors!H437+Factors!K437,CHOOSE(Variables!AO$3,Factors!D437,Factors!E437,Factors!F437,Factors!G437,Factors!H437,Factors!I437,Factors!J437,Factors!K437,Factors!L437,Factors!M437,Factors!N437)) -> 1447 | V72: =VLOOKUP($S72,$E$4:$O$71,5,FALSE)*IF(Variables!$Y$23=1,$T72,$U72) -> 1447 | W72: =VLOOKUP($S72,$E$4:$O$71,6,FALSE)*IF(Variables!$Y$23=1,$T72,$U72) -> 0 | X72: =VLOOKUP($S72,$E$4:$O$71,7,FALSE)*IF(Variables!$Y$23=1,$T72,$U72) -> 0 | Y72: =VLOOKUP($S72,$E$4:$O$71,8,FALSE)*IF(Variables!$Y$23=1,$T72,$U72) -> 0 | Z72: =VLOOKUP($S72,$E$4:$O$71,9,FALSE)*IF(Variables!$Y$23=1,$T72,$U72) -> 0 | AA72: =VLOOKUP($S72,$E$4:$O$71,10,FALSE)*IF(Variables!$Y$23=1,$T72,$U72) -> 0 | AC72: Mining Plant | AD72: P | AE72: 3474 | AF72: 1447 | AG72: =VLOOKUP($AD72,$E$4:$O$71,5,FALSE)*IF(Variables!$Y$23=1,$AE72,$AF72) -> 1447 | AH72: =VLOOKUP($AD72,$E$4:$O$71,6,FALSE)*IF(Variables!$Y$23=1,$AE72,$AF72) -> 0 | AI72: =VLOOKUP($AD72,$E$4:$O$71,7,FALSE)*IF(Variables!$Y$23=1,$AE72,$AF72) -> 0 | AJ72: =VLOOKUP($AD72,$E$4:$O$71,8,FALSE)*IF(Variables!$Y$23=1,$AE72,$AF72) -> 0 | AK72: =VLOOKUP($AD72,$E$4:$O$71,9,FALSE)*IF(Variables!$Y$23=1,$AE72,$AF72) -> 0 | AL72: =VLOOKUP($AD72,$E$4:$O$71,10,FALSE)*IF(Variables!$Y$23=1,$AE72,$AF72) -> 0 | AT72: =Report!P260 -> 2702576.196
AT73: =Report!P262 -> 1928059.549
R74: Total Pacific Division | T74: =SUM(T68:T73) -> 80799605 | U74: 2374622 | V74: 1636620.64 | W74: 756667.8668 | X74: -18666.50703 | Y74: -17621.56314 | Z74: -1044.943894 | AA74: 0 | AC74: Total Pacific Division | AE74: =SUM(AE68:AE73) -> 80799605 | AF74: 2374622 | AG74: 1636620.64 | AH74: 756667.8668 | AI74: -18666.50703 | AJ74: -17621.56314 | AK74: -1044.943894 | AL74: 0 | AT74: =Report!P263 -> 7602230.86
AT75: =Report!P264 -> 0
R76: Utah Division | AC76: Utah Division | AT76: =Report!P265 -> 0
R77: Production | S77: P | T77: =Factors!C443 -> 65261524 | U77: =IF(Variables!$AO$3=12,Factors!H443+Factors!K443,CHOOSE(Variables!AO$3,Factors!D443,Factors!E443,Factors!F443,Factors!G443,Factors!H443,Factors!I443,Factors!J443,Factors!K443,Factors!L443,Factors!M443,Factors!N443)) -> 51345382 | V77: =VLOOKUP($S77,$E$4:$O$71,5,FALSE)*IF(Variables!$Y$23=1,$T77,$U77) -> 51345382 | W77: =VLOOKUP($S77,$E$4:$O$71,6,FALSE)*IF(Variables!$Y$23=1,$T77,$U77) -> 0 | X77: =VLOOKUP($S77,$E$4:$O$71,7,FALSE)*IF(Variables!$Y$23=1,$T77,$U77) -> 0 | Y77: =VLOOKUP($S77,$E$4:$O$71,8,FALSE)*IF(Variables!$Y$23=1,$T77,$U77) -> 0 | Z77: =VLOOKUP($S77,$E$4:$O$71,9,FALSE)*IF(Variables!$Y$23=1,$T77,$U77) -> 0 | AA77: =VLOOKUP($S77,$E$4:$O$71,10,FALSE)*IF(Variables!$Y$23=1,$T77,$U77) -> 0 | AC77: Production | AD77: P | AE77: =T77 -> 65261524 | AF77: 51345382 | AG77: =VLOOKUP($AD77,$E$4:$O$71,5,FALSE)*IF(Variables!$Y$23=1,$AE77,$AF77) -> 51345382 | AH77: =VLOOKUP($AD77,$E$4:$O$71,6,FALSE)*IF(Variables!$Y$23=1,$AE77,$AF77) -> 0 | AI77: =VLOOKUP($AD77,$E$4:$O$71,7,FALSE)*IF(Variables!$Y$23=1,$AE77,$AF77) -> 0 | AJ77: =VLOOKUP($AD77,$E$4:$O$71,8,FALSE)*IF(Variables!$Y$23=1,$AE77,$AF77) -> 0 | AK77: =VLOOKUP($AD77,$E$4:$O$71,9,FALSE)*IF(Variables!$Y$23=1,$AE77,$AF77) -> 0 | AL77: =VLOOKUP($AD77,$E$4:$O$71,10,FALSE)*IF(Variables!$Y$23=1,$AE77,$AF77) -> 0 | AT77: =Report!P266 -> 0
R78: Transmission | S78: T | T78: =Factors!C444 -> 41175577 | U78: =IF(Variables!$AO$3=12,Factors!H444+Factors!K444,CHOOSE(Variables!AO$3,Factors!D444,Factors!E444,Factors!F444,Factors!G444,Factors!H444,Factors!I444,Factors!J444,Factors!K444,Factors!L444,Factors!M444,Factors!N444)) -> 34732978 | V78: =VLOOKUP($S78,$E$4:$O$71,5,FALSE)*IF(Variables!$Y$23=1,$T78,$U78) -> 0 | W78: =VLOOKUP($S78,$E$4:$O$71,6,FALSE)*IF(Variables!$Y$23=1,$T78,$U78) -> 34732978 | X78: =VLOOKUP($S78,$E$4:$O$71,7,FALSE)*IF(Variables!$Y$23=1,$T78,$U78) -> 0 | Y78: =VLOOKUP($S78,$E$4:$O$71,8,FALSE)*IF(Variables!$Y$23=1,$T78,$U78) -> 0 | Z78: =VLOOKUP($S78,$E$4:$O$71,9,FALSE)*IF(Variables!$Y$23=1,$T78,$U78) -> 0 | AA78: =VLOOKUP($S78,$E$4:$O$71,10,FALSE)*IF(Variables!$Y$23=1,$T78,$U78) -> 0 | AC78: Transmission | AD78: T | AE78: 41175577 | AF78: 34732978 | AG78: =VLOOKUP($AD78,$E$4:$O$71,5,FALSE)*IF(Variables!$Y$23=1,$AE78,$AF78) -> 0 | AH78: =VLOOKUP($AD78,$E$4:$O$71,6,FALSE)*IF(Variables!$Y$23=1,$AE78,$AF78) -> 34732978 | AI78: =VLOOKUP($AD78,$E$4:$O$71,7,FALSE)*IF(Variables!$Y$23=1,$AE78,$AF78) -> 0 | AJ78: =VLOOKUP($AD78,$E$4:$O$71,8,FALSE)*IF(Variables!$Y$23=1,$AE78,$AF78) -> 0 | AK78: =VLOOKUP($AD78,$E$4:$O$71,9,FALSE)*IF(Variables!$Y$23=1,$AE78,$AF78) -> 0 | AL78: =VLOOKUP($AD78,$E$4:$O$71,10,FALSE)*IF(Variables!$Y$23=1,$AE78,$AF78) -> 0 | AN78: JAM Factors | AT78: =Report!P267 -> 0
R79: Distribution | S79: DPW | T79: =Factors!C445 -> 30022827 | U79: =IF(Variables!$AO$3=12,Factors!H445+Factors!K445,CHOOSE(Variables!AO$3,Factors!D445,Factors!E445,Factors!F445,Factors!G445,Factors!H445,Factors!I445,Factors!J445,Factors!K445,Factors!L445,Factors!M445,Factors!N445)) -> 24466833 | V79: =VLOOKUP($S79,$E$4:$O$71,5,FALSE)*IF(Variables!$Y$23=1,$T79,$U79) -> 0 | W79: =VLOOKUP($S79,$E$4:$O$71,6,FALSE)*IF(Variables!$Y$23=1,$T79,$U79) -> 0 | X79: =VLOOKUP($S79,$E$4:$O$71,7,FALSE)*IF(Variables!$Y$23=1,$T79,$U79) -> 24466833 | Y79: =VLOOKUP($S79,$E$4:$O$71,8,FALSE)*IF(Variables!$Y$23=1,$T79,$U79) -> 24466833 | Z79: =VLOOKUP($S79,$E$4:$O$71,9,FALSE)*IF(Variables!$Y$23=1,$T79,$U79) -> 0 | AA79: =VLOOKUP($S79,$E$4:$O$71,10,FALSE)*IF(Variables!$Y$23=1,$T79,$U79) -> 0 | AC79: Distribution | AD79: DPW | AE79: 30022827 | AF79: 24466833 | AG79: =VLOOKUP($AD79,$E$4:$O$71,5,FALSE)*IF(Variables!$Y$23=1,$AE79,$AF79) -> 0 | AH79: =VLOOKUP($AD79,$E$4:$O$71,6,FALSE)*IF(Variables!$Y$23=1,$AE79,$AF79) -> 0 | AI79: =VLOOKUP($AD79,$E$4:$O$71,7,FALSE)*IF(Variables!$Y$23=1,$AE79,$AF79) -> 24466833 | AJ79: =VLOOKUP($AD79,$E$4:$O$71,8,FALSE)*IF(Variables!$Y$23=1,$AE79,$AF79) -> 24466833 | AK79: =VLOOKUP($AD79,$E$4:$O$71,9,FALSE)*IF(Variables!$Y$23=1,$AE79,$AF79) -> 0 | AL79: =VLOOKUP($AD79,$E$4:$O$71,10,FALSE)*IF(Variables!$Y$23=1,$AE79,$AF79) -> 0 | AN79: SG | AO79: =+Factors!H4 -> 0.4374375169 | AT79: =Report!P268 -> -1838779.113
R80: General | S80: G | T80: =Factors!C446 -> -717525 | U80: =IF(Variables!$AO$3=12,Factors!H446+Factors!K446,CHOOSE(Variables!AO$3,Factors!D446,Factors!E446,Factors!F446,Factors!G446,Factors!H446,Factors!I446,Factors!J446,Factors!K446,Factors!L446,Factors!M446,Factors!N446)) -> -273621 | V80: =VLOOKUP($S80,$E$4:$O$71,5,FALSE)*IF(Variables!$Y$23=1,$T80,$U80) -> -63710.58325 | W80: =VLOOKUP($S80,$E$4:$O$71,6,FALSE)*IF(Variables!$Y$23=1,$T80,$U80) -> -81818.21829 | X80: =VLOOKUP($S80,$E$4:$O$71,7,FALSE)*IF(Variables!$Y$23=1,$T80,$U80) -> -128092.1985 | Y80: =VLOOKUP($S80,$E$4:$O$71,8,FALSE)*IF(Variables!$Y$23=1,$T80,$U80) -> -120921.6464 | Z80: =VLOOKUP($S80,$E$4:$O$71,9,FALSE)*IF(Variables!$Y$23=1,$T80,$U80) -> -7170.552071 | AA80: =VLOOKUP($S80,$E$4:$O$71,10,FALSE)*IF(Variables!$Y$23=1,$T80,$U80) -> 0 | AC80: General | AD80: G | AE80: -717525 | AF80: -273621 | AG80: =VLOOKUP($AD80,$E$4:$O$71,5,FALSE)*IF(Variables!$Y$23=1,$AE80,$AF80) -> -63710.58325 | AH80: =VLOOKUP($AD80,$E$4:$O$71,6,FALSE)*IF(Variables!$Y$23=1,$AE80,$AF80) -> -81818.21829 | AI80: =VLOOKUP($AD80,$E$4:$O$71,7,FALSE)*IF(Variables!$Y$23=1,$AE80,$AF80) -> -128092.1985 | AJ80: =VLOOKUP($AD80,$E$4:$O$71,8,FALSE)*IF(Variables!$Y$23=1,$AE80,$AF80) -> -120921.6464 | AK80: =VLOOKUP($AD80,$E$4:$O$71,9,FALSE)*IF(Variables!$Y$23=1,$AE80,$AF80) -> -7170.552071 | AL80: =VLOOKUP($AD80,$E$4:$O$71,10,FALSE)*IF(Variables!$Y$23=1,$AE80,$AF80) -> 0 | AN80: SE | AO80: =+Factors!H10 -> 0.4295549134 | AT80: =Report!P269 -> 0
R81: Mining Plant | S81: P | T81: =Factors!C447 -> 8895 | U81: =IF(Variables!$AO$3=12,Factors!H447+Factors!K447,CHOOSE(Variables!AO$3,Factors!D447,Factors!E447,Factors!F447,Factors!G447,Factors!H447,Factors!I447,Factors!J447,Factors!K447,Factors!L447,Factors!M447,Factors!N447)) -> 3703 | V81: =VLOOKUP($S81,$E$4:$O$71,5,FALSE)*IF(Variables!$Y$23=1,$T81,$U81) -> 3703 | W81: =VLOOKUP($S81,$E$4:$O$71,6,FALSE)*IF(Variables!$Y$23=1,$T81,$U81) -> 0 | X81: =VLOOKUP($S81,$E$4:$O$71,7,FALSE)*IF(Variables!$Y$23=1,$T81,$U81) -> 0 | Y81: =VLOOKUP($S81,$E$4:$O$71,8,FALSE)*IF(Variables!$Y$23=1,$T81,$U81) -> 0 | Z81: =VLOOKUP($S81,$E$4:$O$71,9,FALSE)*IF(Variables!$Y$23=1,$T81,$U81) -> 0 | AA81: =VLOOKUP($S81,$E$4:$O$71,10,FALSE)*IF(Variables!$Y$23=1,$T81,$U81) -> 0 | AC81: Mining Plant | AD81: P | AE81: 8895 | AF81: 3703 | AG81: =VLOOKUP($AD81,$E$4:$O$71,5,FALSE)*IF(Variables!$Y$23=1,$AE81,$AF81) -> 3703 | AH81: =VLOOKUP($AD81,$E$4:$O$71,6,FALSE)*IF(Variables!$Y$23=1,$AE81,$AF81) -> 0 | AI81: =VLOOKUP($AD81,$E$4:$O$71,7,FALSE)*IF(Variables!$Y$23=1,$AE81,$AF81) -> 0 | AJ81: =VLOOKUP($AD81,$E$4:$O$71,8,FALSE)*IF(Variables!$Y$23=1,$AE81,$AF81) -> 0 | AK81: =VLOOKUP($AD81,$E$4:$O$71,9,FALSE)*IF(Variables!$Y$23=1,$AE81,$AF81) -> 0 | AL81: =VLOOKUP($AD81,$E$4:$O$71,10,FALSE)*IF(Variables!$Y$23=1,$AE81,$AF81) -> 0 | AN81: SSGC | AO81: =+Factors!H31 -> 0 | AT81: =Report!P270 -> 3575969.778
AN82: SSECH | AO82: =+Factors!H27 -> 0.4295549134 | AT82: =Report!P271 -> 637812.089
R83: Total Utah Division | T83: =SUM(T77:T82) -> 135751298 | U83: 110275275 | V83: 51285374.42 | W83: 34651159.78 | X83: 24338740.8 | Y83: 24345911.35 | Z83: -7170.552071 | AA83: 0 | AC83: Total Utah Division | AE83: =SUM(AE77:AE82) -> 135751298 | AF83: 110275275 | AG83: 51285374.42 | AH83: 34651159.78 | AI83: 24338740.8 | AJ83: 24345911.35 | AK83: -7170.552071 | AL83: 0 | AN83: SSECT | AO83: =+Factors!H25 -> 0.4367484141 | AT83: =Report!P272 -> 51905165.24
AT84: =Report!P273 -> 0
R85: PACIFICORP | AC85: PACIFICORP | AT85: =Report!P274 -> 0
R86: Production | S86: P | T86: =Factors!C453 -> 479644261 | U86: =IF(Variables!$AO$3=12,Factors!H453+Factors!K453,CHOOSE(Variables!AO$3,Factors!D453,Factors!E453,Factors!F453,Factors!G453,Factors!H453,Factors!I453,Factors!J453,Factors!K453,Factors!L453,Factors!M453,Factors!N453)) -> 195634290 | V86: =VLOOKUP($S86,$E$4:$O$71,5,FALSE)*IF(Variables!$Y$23=1,$T86,$U86) -> 195634290 | W86: =VLOOKUP($S86,$E$4:$O$71,6,FALSE)*IF(Variables!$Y$23=1,$T86,$U86) -> 0 | X86: =VLOOKUP($S86,$E$4:$O$71,7,FALSE)*IF(Variables!$Y$23=1,$T86,$U86) -> 0 | Y86: =VLOOKUP($S86,$E$4:$O$71,8,FALSE)*IF(Variables!$Y$23=1,$T86,$U86) -> 0 | Z86: =VLOOKUP($S86,$E$4:$O$71,9,FALSE)*IF(Variables!$Y$23=1,$T86,$U86) -> 0 | AA86: =VLOOKUP($S86,$E$4:$O$71,10,FALSE)*IF(Variables!$Y$23=1,$T86,$U86) -> 0 | AC86: Production | AD86: P | AE86: =T86 -> 479644261 | AF86: =U86 -> 195634290 | AG86: =VLOOKUP($AD86,$E$4:$O$71,5,FALSE)*IF(Variables!$Y$23=1,$AE86,$AF86) -> 195634290 | AH86: =VLOOKUP($AD86,$E$4:$O$71,6,FALSE)*IF(Variables!$Y$23=1,$AE86,$AF86) -> 0 | AI86: =VLOOKUP($AD86,$E$4:$O$71,7,FALSE)*IF(Variables!$Y$23=1,$AE86,$AF86) -> 0 | AJ86: =VLOOKUP($AD86,$E$4:$O$71,8,FALSE)*IF(Variables!$Y$23=1,$AE86,$AF86) -> 0 | AK86: =VLOOKUP($AD86,$E$4:$O$71,9,FALSE)*IF(Variables!$Y$23=1,$AE86,$AF86) -> 0 | AL86: =VLOOKUP($AD86,$E$4:$O$71,10,FALSE)*IF(Variables!$Y$23=1,$AE86,$AF86) -> 0 | AT86: =Report!P275 -> 54280168
R87: Hydro - P | S87: P | T87: =Factors!C454 -> 30793696 | U87: =IF(Variables!$AO$3=12,Factors!H454+Factors!K454,CHOOSE(Variables!AO$3,Factors!D454,Factors!E454,Factors!F454,Factors!G454,Factors!H454,Factors!I454,Factors!J454,Factors!K454,Factors!L454,Factors!M454,Factors!N454)) -> 12494496 | V87: =VLOOKUP($S87,$E$4:$O$71,5,FALSE)*IF(Variables!$Y$23=1,$T87,$U87) -> 12494496 | W87: =VLOOKUP($S87,$E$4:$O$71,6,FALSE)*IF(Variables!$Y$23=1,$T87,$U87) -> 0 | X87: =VLOOKUP($S87,$E$4:$O$71,7,FALSE)*IF(Variables!$Y$23=1,$T87,$U87) -> 0 | Y87: =VLOOKUP($S87,$E$4:$O$71,8,FALSE)*IF(Variables!$Y$23=1,$T87,$U87) -> 0 | Z87: =VLOOKUP($S87,$E$4:$O$71,9,FALSE)*IF(Variables!$Y$23=1,$T87,$U87) -> 0 | AA87: =VLOOKUP($S87,$E$4:$O$71,10,FALSE)*IF(Variables!$Y$23=1,$T87,$U87) -> 0 | AC87: Hydro - P | AD87: P | AE87: 30793696 | AF87: 12494496 | AG87: =VLOOKUP($AD87,$E$4:$O$71,5,FALSE)*IF(Variables!$Y$23=1,$AE87,$AF87) -> 12494496 | AH87: =VLOOKUP($AD87,$E$4:$O$71,6,FALSE)*IF(Variables!$Y$23=1,$AE87,$AF87) -> 0 | AI87: =VLOOKUP($AD87,$E$4:$O$71,7,FALSE)*IF(Variables!$Y$23=1,$AE87,$AF87) -> 0 | AJ87: =VLOOKUP($AD87,$E$4:$O$71,8,FALSE)*IF(Variables!$Y$23=1,$AE87,$AF87) -> 0 | AK87: =VLOOKUP($AD87,$E$4:$O$71,9,FALSE)*IF(Variables!$Y$23=1,$AE87,$AF87) -> 0 | AL87: =VLOOKUP($AD87,$E$4:$O$71,10,FALSE)*IF(Variables!$Y$23=1,$AE87,$AF87) -> 0 | AT87: =Report!P276 -> 0
R88: Hydro - U | S88: P | T88: =Factors!C455 -> 5816168 | U88: =IF(Variables!$AO$3=12,Factors!H455+Factors!K455,CHOOSE(Variables!AO$3,Factors!D455,Factors!E455,Factors!F455,Factors!G455,Factors!H455,Factors!I455,Factors!J455,Factors!K455,Factors!L455,Factors!M455,Factors!N455)) -> 2526251 | V88: =VLOOKUP($S88,$E$4:$O$71,5,FALSE)*IF(Variables!$Y$23=1,$T88,$U88) -> 2526251 | W88: =VLOOKUP($S88,$E$4:$O$71,6,FALSE)*IF(Variables!$Y$23=1,$T88,$U88) -> 0 | X88: =VLOOKUP($S88,$E$4:$O$71,7,FALSE)*IF(Variables!$Y$23=1,$T88,$U88) -> 0 | Y88: =VLOOKUP($S88,$E$4:$O$71,8,FALSE)*IF(Variables!$Y$23=1,$T88,$U88) -> 0 | Z88: =VLOOKUP($S88,$E$4:$O$71,9,FALSE)*IF(Variables!$Y$23=1,$T88,$U88) -> 0 | AA88: =VLOOKUP($S88,$E$4:$O$71,10,FALSE)*IF(Variables!$Y$23=1,$T88,$U88) -> 0 | AC88: Hydro - U | AD88: P | AE88: 5816168 | AF88: 2526251 | AG88: =VLOOKUP($AD88,$E$4:$O$71,5,FALSE)*IF(Variables!$Y$23=1,$AE88,$AF88) -> 2526251 | AH88: =VLOOKUP($AD88,$E$4:$O$71,6,FALSE)*IF(Variables!$Y$23=1,$AE88,$AF88) -> 0 | AI88: =VLOOKUP($AD88,$E$4:$O$71,7,FALSE)*IF(Variables!$Y$23=1,$AE88,$AF88) -> 0 | AJ88: =VLOOKUP($AD88,$E$4:$O$71,8,FALSE)*IF(Variables!$Y$23=1,$AE88,$AF88) -> 0 | AK88: =VLOOKUP($AD88,$E$4:$O$71,9,FALSE)*IF(Variables!$Y$23=1,$AE88,$AF88) -> 0 | AL88: =VLOOKUP($AD88,$E$4:$O$71,10,FALSE)*IF(Variables!$Y$23=1,$AE88,$AF88) -> 0 | AT88: =Report!P277 -> 68962290.21
R89: Transmission | S89: T | T89: =Factors!C465 -> 0 | U89: =IF(Variables!$AO$3=12,Factors!H465+Factors!K465,CHOOSE(Variables!AO$3,Factors!D465,Factors!E465,Factors!F465,Factors!G465,Factors!H465,Factors!I465,Factors!J465,Factors!K465,Factors!L465,Factors!M465,Factors!N465)) -> 0 | V89: =VLOOKUP($S89,$E$4:$O$71,5,FALSE)*IF(Variables!$Y$23=1,$T89,$U89) -> 0 | W89: =VLOOKUP($S89,$E$4:$O$71,6,FALSE)*IF(Variables!$Y$23=1,$T89,$U89) -> 0 | X89: =VLOOKUP($S89,$E$4:$O$71,7,FALSE)*IF(Variables!$Y$23=1,$T89,$U89) -> 0 | Y89: =VLOOKUP($S89,$E$4:$O$71,8,FALSE)*IF(Variables!$Y$23=1,$T89,$U89) -> 0 | Z89: =VLOOKUP($S89,$E$4:$O$71,9,FALSE)*IF(Variables!$Y$23=1,$T89,$U89) -> 0 | AA89: =VLOOKUP($S89,$E$4:$O$71,10,FALSE)*IF(Variables!$Y$23=1,$T89,$U89) -> 0 | AC89: Transmission | AD89: T | AE89: 0 | AF89: 0 | AG89: =VLOOKUP($AD89,$E$4:$O$71,5,FALSE)*IF(Variables!$Y$23=1,$AE89,$AF89) -> 0 | AH89: =VLOOKUP($AD89,$E$4:$O$71,6,FALSE)*IF(Variables!$Y$23=1,$AE89,$AF89) -> 0 | AI89: =VLOOKUP($AD89,$E$4:$O$71,7,FALSE)*IF(Variables!$Y$23=1,$AE89,$AF89) -> 0 | AJ89: =VLOOKUP($AD89,$E$4:$O$71,8,FALSE)*IF(Variables!$Y$23=1,$AE89,$AF89) -> 0 | AK89: =VLOOKUP($AD89,$E$4:$O$71,9,FALSE)*IF(Variables!$Y$23=1,$AE89,$AF89) -> 0 | AL89: =VLOOKUP($AD89,$E$4:$O$71,10,FALSE)*IF(Variables!$Y$23=1,$AE89,$AF89) -> 0 | AT89: =Report!P278 -> 0
R90: Distribution | S90: DPW | T90: =Factors!C466 -> 0 | U90: =IF(Variables!$AO$3=12,Factors!H466+Factors!K466,CHOOSE(Variables!AO$3,Factors!D466,Factors!E466,Factors!F466,Factors!G466,Factors!H466,Factors!I466,Factors!J466,Factors!K466,Factors!L466,Factors!M466,Factors!N466)) -> 0 | V90: =VLOOKUP($S90,$E$4:$O$71,5,FALSE)*IF(Variables!$Y$23=1,$T90,$U90) -> 0 | W90: =VLOOKUP($S90,$E$4:$O$71,6,FALSE)*IF(Variables!$Y$23=1,$T90,$U90) -> 0 | X90: =VLOOKUP($S90,$E$4:$O$71,7,FALSE)*IF(Variables!$Y$23=1,$T90,$U90) -> 0 | Y90: =VLOOKUP($S90,$E$4:$O$71,8,FALSE)*IF(Variables!$Y$23=1,$T90,$U90) -> 0 | Z90: =VLOOKUP($S90,$E$4:$O$71,9,FALSE)*IF(Variables!$Y$23=1,$T90,$U90) -> 0 | AA90: =VLOOKUP($S90,$E$4:$O$71,10,FALSE)*IF(Variables!$Y$23=1,$T90,$U90) -> 0 | AC90: Distribution | AD90: DPW | AE90: 0 | AF90: 0 | AG90: =VLOOKUP($AD90,$E$4:$O$71,5,FALSE)*IF(Variables!$Y$23=1,$AE90,$AF90) -> 0 | AH90: =VLOOKUP($AD90,$E$4:$O$71,6,FALSE)*IF(Variables!$Y$23=1,$AE90,$AF90) -> 0 | AI90: =VLOOKUP($AD90,$E$4:$O$71,7,FALSE)*IF(Variables!$Y$23=1,$AE90,$AF90) -> 0 | AJ90: =VLOOKUP($AD90,$E$4:$O$71,8,FALSE)*IF(Variables!$Y$23=1,$AE90,$AF90) -> 0 | AK90: =VLOOKUP($AD90,$E$4:$O$71,9,FALSE)*IF(Variables!$Y$23=1,$AE90,$AF90) -> 0 | AL90: =VLOOKUP($AD90,$E$4:$O$71,10,FALSE)*IF(Variables!$Y$23=1,$AE90,$AF90) -> 0 | AT90: =Report!P279 -> 2172604816
R91: General | S91: G | T91: =Factors!C467 -> 153090545 | U91: =IF(Variables!$AO$3=12,Factors!H467+Factors!K467,CHOOSE(Variables!AO$3,Factors!D467,Factors!E467,Factors!F467,Factors!G467,Factors!H467,Factors!I467,Factors!J467,Factors!K467,Factors!L467,Factors!M467,Factors!N467)) -> 63646669 | V91: =VLOOKUP($S91,$E$4:$O$71,5,FALSE)*IF(Variables!$Y$23=1,$T91,$U91) -> 14819646.17 | W91: =VLOOKUP($S91,$E$4:$O$71,6,FALSE)*IF(Variables!$Y$23=1,$T91,$U91) -> 19031642.52 | X91: =VLOOKUP($S91,$E$4:$O$71,7,FALSE)*IF(Variables!$Y$23=1,$T91,$U91) -> 29795380.31 | Y91: =VLOOKUP($S91,$E$4:$O$71,8,FALSE)*IF(Variables!$Y$23=1,$T91,$U91) -> 28127446.37 | Z91: =VLOOKUP($S91,$E$4:$O$71,9,FALSE)*IF(Variables!$Y$23=1,$T91,$U91) -> 1667933.946 | AA91: =VLOOKUP($S91,$E$4:$O$71,10,FALSE)*IF(Variables!$Y$23=1,$T91,$U91) -> 0 | AC91: General | AD91: G | AE91: 153090545 | AF91: 63646669 | AG91: =VLOOKUP($AD91,$E$4:$O$71,5,FALSE)*IF(Variables!$Y$23=1,$AE91,$AF91) -> 14819646.17 | AH91: =VLOOKUP($AD91,$E$4:$O$71,6,FALSE)*IF(Variables!$Y$23=1,$AE91,$AF91) -> 19031642.52 | AI91: =VLOOKUP($AD91,$E$4:$O$71,7,FALSE)*IF(Variables!$Y$23=1,$AE91,$AF91) -> 29795380.31 | AJ91: =VLOOKUP($AD91,$E$4:$O$71,8,FALSE)*IF(Variables!$Y$23=1,$AE91,$AF91) -> 28127446.37 | AK91: =VLOOKUP($AD91,$E$4:$O$71,9,FALSE)*IF(Variables!$Y$23=1,$AE91,$AF91) -> 1667933.946 | AL91: =VLOOKUP($AD91,$E$4:$O$71,10,FALSE)*IF(Variables!$Y$23=1,$AE91,$AF91) -> 0 | AT91: =Report!P280 -> 0
R92: Mining Plant | S92: P | T92: =Factors!C468 -> 116578868 | U92: =IF(Variables!$AO$3=12,Factors!H468+Factors!K468,CHOOSE(Variables!AO$3,Factors!D468,Factors!E468,Factors!F468,Factors!G468,Factors!H468,Factors!I468,Factors!J468,Factors!K468,Factors!L468,Factors!M468,Factors!N468)) -> 50005615 | V92: =VLOOKUP($S92,$E$4:$O$71,5,FALSE)*IF(Variables!$Y$23=1,$T92,$U92) -> 50005615 | W92: =VLOOKUP($S92,$E$4:$O$71,6,FALSE)*IF(Variables!$Y$23=1,$T92,$U92) -> 0 | X92: =VLOOKUP($S92,$E$4:$O$71,7,FALSE)*IF(Variables!$Y$23=1,$T92,$U92) -> 0 | Y92: =VLOOKUP($S92,$E$4:$O$71,8,FALSE)*IF(Variables!$Y$23=1,$T92,$U92) -> 0 | Z92: =VLOOKUP($S92,$E$4:$O$71,9,FALSE)*IF(Variables!$Y$23=1,$T92,$U92) -> 0 | AA92: =VLOOKUP($S92,$E$4:$O$71,10,FALSE)*IF(Variables!$Y$23=1,$T92,$U92) -> 0 | AC92: Mining Plant | AD92: P | AE92: 116578868 | AF92: 50005615 | AG92: =VLOOKUP($AD92,$E$4:$O$71,5,FALSE)*IF(Variables!$Y$23=1,$AE92,$AF92) -> 50005615 | AH92: =VLOOKUP($AD92,$E$4:$O$71,6,FALSE)*IF(Variables!$Y$23=1,$AE92,$AF92) -> 0 | AI92: =VLOOKUP($AD92,$E$4:$O$71,7,FALSE)*IF(Variables!$Y$23=1,$AE92,$AF92) -> 0 | AJ92: =VLOOKUP($AD92,$E$4:$O$71,8,FALSE)*IF(Variables!$Y$23=1,$AE92,$AF92) -> 0 | AK92: =VLOOKUP($AD92,$E$4:$O$71,9,FALSE)*IF(Variables!$Y$23=1,$AE92,$AF92) -> 0 | AL92: =VLOOKUP($AD92,$E$4:$O$71,10,FALSE)*IF(Variables!$Y$23=1,$AE92,$AF92) -> 0 | AT92: =Report!P281 -> 0
AT93: =Report!P282 -> 1996761269
R94: Total PC (Post Merger) | T94: =SUM(T86:T93) -> 785923538 | U94: 324307321 | V94: 275480298.2 | W94: 19031642.52 | X94: 29795380.31 | Y94: 28127446.37 | Z94: 1667933.946 | AA94: 0 | AC94: Total PC (Post Merger) | AE94: =SUM(AE86:AE93) -> 785923538 | AF94: 324307321 | AG94: 275480298.2 | AH94: 19031642.52 | AI94: 29795380.31 | AJ94: 28127446.37 | AK94: 1667933.946 | AL94: 0 | AT94: =Report!P283 -> 0
AT95: =Report!P284 -> 3575969.778
R96: Total Deferred Taxes | T96: =T74+T83+T94 -> 1002474441 | U96: 436957218 | V96: 328402293.2 | W96: 54439470.17 | X96: 54115454.61 | Y96: 52455736.16 | Z96: 1659718.45 | AA96: 0 | AC96: Total Deferred Taxes | AE96: =AE74+AE83+AE94 -> 1002474441 | AF96: 436957218 | AG96: 328402293.2 | AH96: 54439470.17 | AI96: 54115454.61 | AJ96: 52455736.16 | AK96: 1659718.45 | AL96: 0 | AT96: =Report!P285 -> 2569942.512
AT97: =Report!P286 -> 169697634.7
R98: ACCMDITRL FACTOR | T98: =T96/$T96 -> 1 | U98: =U96/$U96 -> 1 | V98: =V96/IF(Variables!$Y$23=2,$U96,$T96) -> 0.7515662397 | W98: =W96/IF(Variables!$Y23=2,$U96,$T96) -> 0.1245876437 | X98: =X96/IF(Variables!$Y23=2,$U96,$T96) -> 0.1238461167 | Y98: =Y96/IF(Variables!$Y23=2,$U96,$T96) -> 0.1200477621 | Z98: =Z96/IF(Variables!$Y23=2,$U96,$T96) -> 0.003798354579 | AA98: =AA96/IF(Variables!$Y23=2,$U96,$T96) -> 0 | AC98: ACCMDITMA FACTOR | AE98: =AE96/$AE96 -> 1 | AF98: =AF96/$AF96 -> 1 | AG98: =AG96/IF(Variables!$Y23=2,$AF96,$AE96) -> 0.7515662397 | AH98: =AH96/IF(Variables!$Y23=2,$AF96,$AE96) -> 0.1245876437 | AI98: =AI96/IF(Variables!$Y23=2,$AF96,$AE96) -> 0.1238461167 | AJ98: =AJ96/IF(Variables!$Y23=2,$AF96,$AE96) -> 0.1200477621 | AK98: =AK96/IF(Variables!$Y23=2,$AF96,$AE96) -> 0.003798354579 | AL98: =AL96/IF(Variables!$Y23=2,$AF96,$AE96) -> 0 | AT98: =Report!P287 -> 0
AT99: =Report!P288 -> 0
AT100: =Report!P289 -> 2172604816
AT101: =Report!P290 -> 0
R102: DITEXPRL | AC102: DITEXPMA | AT102: =Report!P291 -> 0
R103: Pacific Division | T103: Total | U103: =Variables!X24 -> UTAH | V103: Production | W103: Transmission | X103: Distribution | Y103: DPW | Z103: CUST | AA103: DMSC | AC103: Pacific Division | AE103: Total | AF103: =Variables!X24 -> UTAH | AG103: Production | AH103: Transmission | AI103: Distribution | AJ103: DPW | AK103: CUST | AL103: DMSC | AT103: =Report!P292 -> 0
R104: Pacific Division | AC104: Pacific Division | AT104: =Report!P293 -> 0
R105: Production | S105: P | T105: =Factors!C376 -> 0 | U105: =IF(Variables!$AO$3=12,Factors!H376+Factors!K376,CHOOSE(Variables!AO$3,Factors!D376,Factors!E376,Factors!F376,Factors!G376,Factors!H376,Factors!I376,Factors!J376,Factors!K376,Factors!L376,Factors!M376,Factors!N376)) -> 0 | V105: =VLOOKUP($S105,$E$4:$O$71,5,FALSE)*IF(Variables!$Y$23=1,$T105,$U105) -> 0 | W105: =VLOOKUP($S105,$E$4:$O$71,6,FALSE)*IF(Variables!$Y$23=1,$T105,$U105) -> 0 | X105: =VLOOKUP($S105,$E$4:$O$71,7,FALSE)*IF(Variables!$Y$23=1,$T105,$U105) -> 0 | Y105: =VLOOKUP($S105,$E$4:$O$71,8,FALSE)*IF(Variables!$Y$23=1,$T105,$U105) -> 0 | Z105: =VLOOKUP($S105,$E$4:$O$71,9,FALSE)*IF(Variables!$Y$23=1,$T105,$U105) -> 0 | AA105: =VLOOKUP($S105,$E$4:$O$71,10,FALSE)*IF(Variables!$Y$23=1,$T105,$U105) -> 0 | AB105: 0 | AC105: Production | AD105: P | AE105: =T105 -> 0 | AF105: 0 | AG105: =VLOOKUP($AD105,$E$4:$O$71,5,FALSE)*IF(Variables!$Y$23=1,$AE105,$AF105) -> 0 | AH105: =VLOOKUP($AD105,$E$4:$O$71,6,FALSE)*IF(Variables!$Y$23=1,$AE105,$AF105) -> 0 | AI105: =VLOOKUP($AD105,$E$4:$O$71,7,FALSE)*IF(Variables!$Y$23=1,$AE105,$AF105) -> 0 | AJ105: =VLOOKUP($AD105,$E$4:$O$71,8,FALSE)*IF(Variables!$Y$23=1,$AE105,$AF105) -> 0 | AK105: =VLOOKUP($AD105,$E$4:$O$71,9,FALSE)*IF(Variables!$Y$23=1,$AE105,$AF105) -> 0 | AL105: =VLOOKUP($AD105,$E$4:$O$71,10,FALSE)*IF(Variables!$Y$23=1,$AE105,$AF105) -> 0 | AT105: =Report!P294 -> 0
R106: Transmission | S106: T | T106: =Factors!C377 -> 0 | U106: =IF(Variables!$AO$3=12,Factors!H377+Factors!K377,CHOOSE(Variables!AO$3,Factors!D377,Factors!E377,Factors!F377,Factors!G377,Factors!H377,Factors!I377,Factors!J377,Factors!K377,Factors!L377,Factors!M377,Factors!N377)) -> 0 | V106: =VLOOKUP($S106,$E$4:$O$71,5,FALSE)*IF(Variables!$Y$23=1,$T106,$U106) -> 0 | W106: =VLOOKUP($S106,$E$4:$O$71,6,FALSE)*IF(Variables!$Y$23=1,$T106,$U106) -> 0 | X106: =VLOOKUP($S106,$E$4:$O$71,7,FALSE)*IF(Variables!$Y$23=1,$T106,$U106) -> 0 | Y106: =VLOOKUP($S106,$E$4:$O$71,8,FALSE)*IF(Variables!$Y$23=1,$T106,$U106) -> 0 | Z106: =VLOOKUP($S106,$E$4:$O$71,9,FALSE)*IF(Variables!$Y$23=1,$T106,$U106) -> 0 | AA106: =VLOOKUP($S106,$E$4:$O$71,10,FALSE)*IF(Variables!$Y$23=1,$T106,$U106) -> 0 | AC106: Transmission | AD106: T | AE106: 0 | AF106: 0 | AG106: =VLOOKUP($AD106,$E$4:$O$71,5,FALSE)*IF(Variables!$Y$23=1,$AE106,$AF106) -> 0 | AH106: =VLOOKUP($AD106,$E$4:$O$71,6,FALSE)*IF(Variables!$Y$23=1,$AE106,$AF106) -> 0 | AI106: =VLOOKUP($AD106,$E$4:$O$71,7,FALSE)*IF(Variables!$Y$23=1,$AE106,$AF106) -> 0 | AJ106: =VLOOKUP($AD106,$E$4:$O$71,8,FALSE)*IF(Variables!$Y$23=1,$AE106,$AF106) -> 0 | AK106: =VLOOKUP($AD106,$E$4:$O$71,9,FALSE)*IF(Variables!$Y$23=1,$AE106,$AF106) -> 0 | AL106: =VLOOKUP($AD106,$E$4:$O$71,10,FALSE)*IF(Variables!$Y$23=1,$AE106,$AF106) -> 0 | AT106: =Report!P295 -> 0
R107: Distribution | S107: DPW | T107: =Factors!C378 -> 0 | U107: =IF(Variables!$AO$3=12,Factors!H378+Factors!K378,CHOOSE(Variables!AO$3,Factors!D378,Factors!E378,Factors!F378,Factors!G378,Factors!H378,Factors!I378,Factors!J378,Factors!K378,Factors!L378,Factors!M378,Factors!N378)) -> 0 | V107: =VLOOKUP($S107,$E$4:$O$71,5,FALSE)*IF(Variables!$Y$23=1,$T107,$U107) -> 0 | W107: =VLOOKUP($S107,$E$4:$O$71,6,FALSE)*IF(Variables!$Y$23=1,$T107,$U107) -> 0 | X107: =VLOOKUP($S107,$E$4:$O$71,7,FALSE)*IF(Variables!$Y$23=1,$T107,$U107) -> 0 | Y107: =VLOOKUP($S107,$E$4:$O$71,8,FALSE)*IF(Variables!$Y$23=1,$T107,$U107) -> 0 | Z107: =VLOOKUP($S107,$E$4:$O$71,9,FALSE)*IF(Variables!$Y$23=1,$T107,$U107) -> 0 | AA107: =VLOOKUP($S107,$E$4:$O$71,10,FALSE)*IF(Variables!$Y$23=1,$T107,$U107) -> 0 | AC107: Distribution | AD107: DPW | AE107: 0 | AF107: 0 | AG107: =VLOOKUP($AD107,$E$4:$O$71,5,FALSE)*IF(Variables!$Y$23=1,$AE107,$AF107) -> 0 | AH107: =VLOOKUP($AD107,$E$4:$O$71,6,FALSE)*IF(Variables!$Y$23=1,$AE107,$AF107) -> 0 | AI107: =VLOOKUP($AD107,$E$4:$O$71,7,FALSE)*IF(Variables!$Y$23=1,$AE107,$AF107) -> 0 | AJ107: =VLOOKUP($AD107,$E$4:$O$71,8,FALSE)*IF(Variables!$Y$23=1,$AE107,$AF107) -> 0 | AK107: =VLOOKUP($AD107,$E$4:$O$71,9,FALSE)*IF(Variables!$Y$23=1,$AE107,$AF107) -> 0 | AL107: =VLOOKUP($AD107,$E$4:$O$71,10,FALSE)*IF(Variables!$Y$23=1,$AE107,$AF107) -> 0 | AT107: =Report!P296 -> 0
R108: General | S108: G | T108: =Factors!C379 -> 0 | U108: =IF(Variables!$AO$3=12,Factors!H379+Factors!K379,CHOOSE(Variables!AO$3,Factors!D379,Factors!E379,Factors!F379,Factors!G379,Factors!H379,Factors!I379,Factors!J379,Factors!K379,Factors!L379,Factors!M379,Factors!N379)) -> 0 | V108: =VLOOKUP($S108,$E$4:$O$71,5,FALSE)*IF(Variables!$Y$23=1,$T108,$U108) -> 0 | W108: =VLOOKUP($S108,$E$4:$O$71,6,FALSE)*IF(Variables!$Y$23=1,$T108,$U108) -> 0 | X108: =VLOOKUP($S108,$E$4:$O$71,7,FALSE)*IF(Variables!$Y$23=1,$T108,$U108) -> 0 | Y108: =VLOOKUP($S108,$E$4:$O$71,8,FALSE)*IF(Variables!$Y$23=1,$T108,$U108) -> 0 | Z108: =VLOOKUP($S108,$E$4:$O$71,9,FALSE)*IF(Variables!$Y$23=1,$T108,$U108) -> 0 | AA108: =VLOOKUP($S108,$E$4:$O$71,10,FALSE)*IF(Variables!$Y$23=1,$T108,$U108) -> 0 | AC108: General | AD108: G | AE108: 0 | AF108: 0 | AG108: =VLOOKUP($AD108,$E$4:$O$71,5,FALSE)*IF(Variables!$Y$23=1,$AE108,$AF108) -> 0 | AH108: =VLOOKUP($AD108,$E$4:$O$71,6,FALSE)*IF(Variables!$Y$23=1,$AE108,$AF108) -> 0 | AI108: =VLOOKUP($AD108,$E$4:$O$71,7,FALSE)*IF(Variables!$Y$23=1,$AE108,$AF108) -> 0 | AJ108: =VLOOKUP($AD108,$E$4:$O$71,8,FALSE)*IF(Variables!$Y$23=1,$AE108,$AF108) -> 0 | AK108: =VLOOKUP($AD108,$E$4:$O$71,9,FALSE)*IF(Variables!$Y$23=1,$AE108,$AF108) -> 0 | AL108: =VLOOKUP($AD108,$E$4:$O$71,10,FALSE)*IF(Variables!$Y$23=1,$AE108,$AF108) -> 0 | AT108: =Report!P297 -> 0
C109: =Variables!AE29 -> 2010 PROTOCOL | R109: Mining Plant | S109: P | T109: =Factors!C380 -> 0 | U109: =IF(Variables!$AO$3=12,Factors!H380+Factors!K380,CHOOSE(Variables!AO$3,Factors!D380,Factors!E380,Factors!F380,Factors!G380,Factors!H380,Factors!I380,Factors!J380,Factors!K380,Factors!L380,Factors!M380,Factors!N380)) -> 0 | V109: =VLOOKUP($S109,$E$4:$O$71,5,FALSE)*IF(Variables!$Y$23=1,$T109,$U109) -> 0 | W109: =VLOOKUP($S109,$E$4:$O$71,6,FALSE)*IF(Variables!$Y$23=1,$T109,$U109) -> 0 | X109: =VLOOKUP($S109,$E$4:$O$71,7,FALSE)*IF(Variables!$Y$23=1,$T109,$U109) -> 0 | Y109: =VLOOKUP($S109,$E$4:$O$71,8,FALSE)*IF(Variables!$Y$23=1,$T109,$U109) -> 0 | Z109: =VLOOKUP($S109,$E$4:$O$71,9,FALSE)*IF(Variables!$Y$23=1,$T109,$U109) -> 0 | AA109: =VLOOKUP($S109,$E$4:$O$71,10,FALSE)*IF(Variables!$Y$23=1,$T109,$U109) -> 0 | AC109: Mining Plant | AD109: P | AE109: 0 | AF109: 0 | AG109: =VLOOKUP($AD109,$E$4:$O$71,5,FALSE)*IF(Variables!$Y$23=1,$AE109,$AF109) -> 0 | AH109: =VLOOKUP($AD109,$E$4:$O$71,6,FALSE)*IF(Variables!$Y$23=1,$AE109,$AF109) -> 0 | AI109: =VLOOKUP($AD109,$E$4:$O$71,7,FALSE)*IF(Variables!$Y$23=1,$AE109,$AF109) -> 0 | AJ109: =VLOOKUP($AD109,$E$4:$O$71,8,FALSE)*IF(Variables!$Y$23=1,$AE109,$AF109) -> 0 | AK109: =VLOOKUP($AD109,$E$4:$O$71,9,FALSE)*IF(Variables!$Y$23=1,$AE109,$AF109) -> 0 | AL109: =VLOOKUP($AD109,$E$4:$O$71,10,FALSE)*IF(Variables!$Y$23=1,$AE109,$AF109) -> 0 | AT109: =Report!P298 -> 0
C110: =IF(Variables!Y23=1," ",Variables!AO19) -> 13-Month Average | AT110: =Report!P299 -> 0
C111: RESULTS OF OPERATIONS SUMMARY | R111: Total Pacific Division | T111: =SUM(T105:T109) -> 0 | U111: =SUM(U105:U109) -> 0 | V111: =SUM(V105:V109) -> 0 | W111: 0 | X111: 0 | Y111: 0 | Z111: 0 | AA111: 0 | AC111: Total Pacific Division | AE111: =SUM(AE105:AE109) -> 0 | AF111: 0 | AG111: 0 | AH111: 0 | AI111: 0 | AJ111: 0 | AK111: 0 | AL111: 0 | AT111: =Report!P300 -> 0
AT112: =Report!P301 -> 0
R113: Utah Division | AC113: Utah Division | AT113: =Report!P302 -> 0
H114: =IF(Variables!Y23=1,Variables!X23,Report!N115) -> UTAH | R114: Transmission | S114: T | T114: =Factors!C387 -> 0 | U114: =IF(Variables!$AO$3=12,Factors!H387+Factors!K387,CHOOSE(Variables!AO$3,Factors!D387,Factors!E387,Factors!F387,Factors!G387,Factors!H387,Factors!I387,Factors!J387,Factors!K387,Factors!L387,Factors!M387,Factors!N387)) -> 0 | V114: =VLOOKUP($S114,$E$4:$O$71,5,FALSE)*IF(Variables!$Y$23=1,$T114,$U114) -> 0 | W114: =VLOOKUP($S114,$E$4:$O$71,6,FALSE)*IF(Variables!$Y$23=1,$T114,$U114) -> 0 | X114: =VLOOKUP($S114,$E$4:$O$71,7,FALSE)*IF(Variables!$Y$23=1,$T114,$U114) -> 0 | Y114: =VLOOKUP($S114,$E$4:$O$71,8,FALSE)*IF(Variables!$Y$23=1,$T114,$U114) -> 0 | Z114: =VLOOKUP($S114,$E$4:$O$71,9,FALSE)*IF(Variables!$Y$23=1,$T114,$U114) -> 0 | AA114: =VLOOKUP($S114,$E$4:$O$71,10,FALSE)*IF(Variables!$Y$23=1,$T114,$U114) -> 0 | AC114: Transmission | AD114: T | AE114: =T114 -> 0 | AF114: 0 | AG114: =VLOOKUP($AD114,$E$4:$O$71,5,FALSE)*IF(Variables!$Y$23=1,$AE114,$AF114) -> 0 | AH114: =VLOOKUP($AD114,$E$4:$O$71,6,FALSE)*IF(Variables!$Y$23=1,$AE114,$AF114) -> 0 | AI114: =VLOOKUP($AD114,$E$4:$O$71,7,FALSE)*IF(Variables!$Y$23=1,$AE114,$AF114) -> 0 | AJ114: =VLOOKUP($AD114,$E$4:$O$71,8,FALSE)*IF(Variables!$Y$23=1,$AE114,$AF114) -> 0 | AK114: =VLOOKUP($AD114,$E$4:$O$71,9,FALSE)*IF(Variables!$Y$23=1,$AE114,$AF114) -> 0 | AL114: =VLOOKUP($AD114,$E$4:$O$71,10,FALSE)*IF(Variables!$Y$23=1,$AE114,$AF114) -> 0 | AT114: =Report!P303 -> 0
C115: Description of Account Summary: | H115: Normalized | I115: Production | J115: Transmission | K115: Distribution | L115: Distribution | M115: Retail | N115: Misc | R115: Distribution | S115: DPW | T115: =Factors!C388 -> 0 | U115: =IF(Variables!$AO$3=12,Factors!H388+Factors!K388,CHOOSE(Variables!AO$3,Factors!D388,Factors!E388,Factors!F388,Factors!G388,Factors!H388,Factors!I388,Factors!J388,Factors!K388,Factors!L388,Factors!M388,Factors!N388)) -> 0 | V115: =VLOOKUP($S115,$E$4:$O$71,5,FALSE)*IF(Variables!$Y$23=1,$T115,$U115) -> 0 | W115: =VLOOKUP($S115,$E$4:$O$71,6,FALSE)*IF(Variables!$Y$23=1,$T115,$U115) -> 0 | X115: =VLOOKUP($S115,$E$4:$O$71,7,FALSE)*IF(Variables!$Y$23=1,$T115,$U115) -> 0 | Y115: =VLOOKUP($S115,$E$4:$O$71,8,FALSE)*IF(Variables!$Y$23=1,$T115,$U115) -> 0 | Z115: =VLOOKUP($S115,$E$4:$O$71,9,FALSE)*IF(Variables!$Y$23=1,$T115,$U115) -> 0 | AA115: =VLOOKUP($S115,$E$4:$O$71,10,FALSE)*IF(Variables!$Y$23=1,$T115,$U115) -> 0 | AC115: Distribution | AD115: DPW | AE115: 0 | AF115: 0 | AG115: =VLOOKUP($AD115,$E$4:$O$71,5,FALSE)*IF(Variables!$Y$23=1,$AE115,$AF115) -> 0 | AH115: =VLOOKUP($AD115,$E$4:$O$71,6,FALSE)*IF(Variables!$Y$23=1,$AE115,$AF115) -> 0 | AI115: =VLOOKUP($AD115,$E$4:$O$71,7,FALSE)*IF(Variables!$Y$23=1,$AE115,$AF115) -> 0 | AJ115: =VLOOKUP($AD115,$E$4:$O$71,8,FALSE)*IF(Variables!$Y$23=1,$AE115,$AF115) -> 0 | AK115: =VLOOKUP($AD115,$E$4:$O$71,9,FALSE)*IF(Variables!$Y$23=1,$AE115,$AF115) -> 0 | AL115: =VLOOKUP($AD115,$E$4:$O$71,10,FALSE)*IF(Variables!$Y$23=1,$AE115,$AF115) -> 0 | AT115: =Report!P304 -> 0
R116: General | S116: G | T116: =Factors!C389 -> 0 | U116: =IF(Variables!$AO$3=12,Factors!H389+Factors!K389,CHOOSE(Variables!AO$3,Factors!D389,Factors!E389,Factors!F389,Factors!G389,Factors!H389,Factors!I389,Factors!J389,Factors!K389,Factors!L389,Factors!M389,Factors!N389)) -> 0 | V116: =VLOOKUP($S116,$E$4:$O$71,5,FALSE)*IF(Variables!$Y$23=1,$T116,$U116) -> 0 | W116: =VLOOKUP($S116,$E$4:$O$71,6,FALSE)*IF(Variables!$Y$23=1,$T116,$U116) -> 0 | X116: =VLOOKUP($S116,$E$4:$O$71,7,FALSE)*IF(Variables!$Y$23=1,$T116,$U116) -> 0 | Y116: =VLOOKUP($S116,$E$4:$O$71,8,FALSE)*IF(Variables!$Y$23=1,$T116,$U116) -> 0 | Z116: =VLOOKUP($S116,$E$4:$O$71,9,FALSE)*IF(Variables!$Y$23=1,$T116,$U116) -> 0 | AA116: =VLOOKUP($S116,$E$4:$O$71,10,FALSE)*IF(Variables!$Y$23=1,$T116,$U116) -> 0 | AC116: General | AD116: G | AE116: 0 | AF116: 0 | AG116: =VLOOKUP($AD116,$E$4:$O$71,5,FALSE)*IF(Variables!$Y$23=1,$AE116,$AF116) -> 0 | AH116: =VLOOKUP($AD116,$E$4:$O$71,6,FALSE)*IF(Variables!$Y$23=1,$AE116,$AF116) -> 0 | AI116: =VLOOKUP($AD116,$E$4:$O$71,7,FALSE)*IF(Variables!$Y$23=1,$AE116,$AF116) -> 0 | AJ116: =VLOOKUP($AD116,$E$4:$O$71,8,FALSE)*IF(Variables!$Y$23=1,$AE116,$AF116) -> 0 | AK116: =VLOOKUP($AD116,$E$4:$O$71,9,FALSE)*IF(Variables!$Y$23=1,$AE116,$AF116) -> 0 | AL116: =VLOOKUP($AD116,$E$4:$O$71,10,FALSE)*IF(Variables!$Y$23=1,$AE116,$AF116) -> 0 | AT116: =Report!P305 -> 0
A117: 1 | E117: General Business Revenues | H117: =H219-H118-H119 -> 1988560506 | I117: 977172367.9 | J117: 216383210.4 | K117: 380682946.1 | L117: 328900482.9 | M117: 98030572.23 | N117: -46248109.03 | AT117: =Report!P306 -> -11711.17597
A118: 2 | E118: General Business Revenues | H118: =H198+H199 -> 0 | I118: =I198+I199 -> 0 | J118: 0 | K118: 0 | L118: 0 | M118: 0 | N118: 0 | R118: Total Utah Division | T118: =SUM(T114:T116) -> 0 | U118: 0 | V118: 0 | W118: 0 | X118: 0 | Y118: 0 | Z118: 0 | AA118: 0 | AC118: Total Utah Division | AE118: =SUM(AE114:AE116) -> 0 | AF118: 0 | AG118: 0 | AH118: 0 | AI118: 0 | AJ118: 0 | AK118: 0 | AL118: 0 | AT118: =Report!P307 -> -11711.17597
A119: 3 | E119: Interdepartmental | H119: =H217 -> 0 | I119: 0 | J119: 0 | K119: =K217 -> 0 | L119: 0 | M119: 0 | N119: =N217 -> 0 | AT119: =Report!P308 -> 0
A120: 4 | E120: Special Sales | H120: =H233 -> 115082019.4 | I120: 115082019.4 | J120: 0 | K120: =K233 -> 0 | L120: 0 | M120: 0 | N120: =N233 -> 0 | R120: PACIFICORP | AC120: PACIFICORP | AT120: =Report!P309 -> 0
A121: 5 | E121: Other Operating Revenues | H121: =H277+H240 -> 68962290.31 | I121: 35126499.76 | J121: 24465931.25 | K121: 9369859.31 | L121: 3482836.557 | M121: 7087989.777 | N121: -1200967.024 | R121: Production | S121: P | T121: =Factors!C396 -> 0 | U121: =IF(Variables!$AO$3=12,Factors!H396+Factors!K396,CHOOSE(Variables!AO$3,Factors!D396,Factors!E396,Factors!F396,Factors!G396,Factors!H396,Factors!I396,Factors!J396,Factors!K396,Factors!L396,Factors!M396,Factors!N396)) -> 0 | V121: =VLOOKUP($S121,$E$4:$O$71,5,FALSE)*IF(Variables!$Y$23=1,$T121,$U121) -> 0 | W121: =VLOOKUP($S121,$E$4:$O$71,6,FALSE)*IF(Variables!$Y$23=1,$T121,$U121) -> 0 | X121: =VLOOKUP($S121,$E$4:$O$71,7,FALSE)*IF(Variables!$Y$23=1,$T121,$U121) -> 0 | Y121: =VLOOKUP($S121,$E$4:$O$71,8,FALSE)*IF(Variables!$Y$23=1,$T121,$U121) -> 0 | Z121: =VLOOKUP($S121,$E$4:$O$71,9,FALSE)*IF(Variables!$Y$23=1,$T121,$U121) -> 0 | AA121: =VLOOKUP($S121,$E$4:$O$71,10,FALSE)*IF(Variables!$Y$23=1,$T121,$U121) -> 0 | AC121: Production | AD121: P | AE121: =T121 -> 0 | AF121: =U121 -> 0 | AG121: =VLOOKUP($AD121,$E$4:$O$71,5,FALSE)*IF(Variables!$Y$23=1,$AE121,$AF121) -> 0 | AH121: =VLOOKUP($AD121,$E$4:$O$71,6,FALSE)*IF(Variables!$Y$23=1,$AE121,$AF121) -> 0 | AI121: =VLOOKUP($AD121,$E$4:$O$71,7,FALSE)*IF(Variables!$Y$23=1,$AE121,$AF121) -> 0 | AJ121: =VLOOKUP($AD121,$E$4:$O$71,8,FALSE)*IF(Variables!$Y$23=1,$AE121,$AF121) -> 0 | AK121: =VLOOKUP($AD121,$E$4:$O$71,9,FALSE)*IF(Variables!$Y$23=1,$AE121,$AF121) -> 0 | AL121: =VLOOKUP($AD121,$E$4:$O$71,10,FALSE)*IF(Variables!$Y$23=1,$AE121,$AF121) -> 0 | AT121: =Report!P310 -> 0
A122: 6 | E122: Total Operating Revenues | H122: =SUM(H117:H121) -> 2172604816 | I122: 1127380887 | J122: 240849141.6 | K122: 390052805.5 | L122: 332383319.5 | M122: 105118562 | N122: -47449076.05 | R122: Hydro - P | S122: P | T122: =Factors!C397 -> 0 | U122: =IF(Variables!$AO$3=12,Factors!H397+Factors!K397,CHOOSE(Variables!AO$3,Factors!D397,Factors!E397,Factors!F397,Factors!G397,Factors!H397,Factors!I397,Factors!J397,Factors!K397,Factors!L397,Factors!M397,Factors!N397)) -> 0 | V122: =VLOOKUP($S122,$E$4:$O$71,5,FALSE)*IF(Variables!$Y$23=1,$T122,$U122) -> 0 | W122: =VLOOKUP($S122,$E$4:$O$71,6,FALSE)*IF(Variables!$Y$23=1,$T122,$U122) -> 0 | X122: =VLOOKUP($S122,$E$4:$O$71,7,FALSE)*IF(Variables!$Y$23=1,$T122,$U122) -> 0 | Y122: =VLOOKUP($S122,$E$4:$O$71,8,FALSE)*IF(Variables!$Y$23=1,$T122,$U122) -> 0 | Z122: =VLOOKUP($S122,$E$4:$O$71,9,FALSE)*IF(Variables!$Y$23=1,$T122,$U122) -> 0 | AA122: =VLOOKUP($S122,$E$4:$O$71,10,FALSE)*IF(Variables!$Y$23=1,$T122,$U122) -> 0 | AC122: Hydro - P | AD122: P | AE122: 0 | AF122: 0 | AG122: =VLOOKUP($AD122,$E$4:$O$71,5,FALSE)*IF(Variables!$Y$23=1,$AE122,$AF122) -> 0 | AH122: =VLOOKUP($AD122,$E$4:$O$71,6,FALSE)*IF(Variables!$Y$23=1,$AE122,$AF122) -> 0 | AI122: =VLOOKUP($AD122,$E$4:$O$71,7,FALSE)*IF(Variables!$Y$23=1,$AE122,$AF122) -> 0 | AJ122: =VLOOKUP($AD122,$E$4:$O$71,8,FALSE)*IF(Variables!$Y$23=1,$AE122,$AF122) -> 0 | AK122: =VLOOKUP($AD122,$E$4:$O$71,9,FALSE)*IF(Variables!$Y$23=1,$AE122,$AF122) -> 0 | AL122: =VLOOKUP($AD122,$E$4:$O$71,10,FALSE)*IF(Variables!$Y$23=1,$AE122,$AF122) -> 0 | AT122: =Report!P311 -> 0
A123: 7 | R123: Hydro - U | S123: P | T123: =Factors!C398 -> 0 | U123: =IF(Variables!$AO$3=12,Factors!H398+Factors!K398,CHOOSE(Variables!AO$3,Factors!D398,Factors!E398,Factors!F398,Factors!G398,Factors!H398,Factors!I398,Factors!J398,Factors!K398,Factors!L398,Factors!M398,Factors!N398)) -> 0 | V123: =VLOOKUP($S123,$E$4:$O$71,5,FALSE)*IF(Variables!$Y$23=1,$T123,$U123) -> 0 | W123: =VLOOKUP($S123,$E$4:$O$71,6,FALSE)*IF(Variables!$Y$23=1,$T123,$U123) -> 0 | X123: =VLOOKUP($S123,$E$4:$O$71,7,FALSE)*IF(Variables!$Y$23=1,$T123,$U123) -> 0 | Y123: =VLOOKUP($S123,$E$4:$O$71,8,FALSE)*IF(Variables!$Y$23=1,$T123,$U123) -> 0 | Z123: =VLOOKUP($S123,$E$4:$O$71,9,FALSE)*IF(Variables!$Y$23=1,$T123,$U123) -> 0 | AA123: =VLOOKUP($S123,$E$4:$O$71,10,FALSE)*IF(Variables!$Y$23=1,$T123,$U123) -> 0 | AC123: Hydro - U | AD123: P | AE123: 0 | AF123: 0 | AG123: =VLOOKUP($AD123,$E$4:$O$71,5,FALSE)*IF(Variables!$Y$23=1,$AE123,$AF123) -> 0 | AH123: =VLOOKUP($AD123,$E$4:$O$71,6,FALSE)*IF(Variables!$Y$23=1,$AE123,$AF123) -> 0 | AI123: =VLOOKUP($AD123,$E$4:$O$71,7,FALSE)*IF(Variables!$Y$23=1,$AE123,$AF123) -> 0 | AJ123: =VLOOKUP($AD123,$E$4:$O$71,8,FALSE)*IF(Variables!$Y$23=1,$AE123,$AF123) -> 0 | AK123: =VLOOKUP($AD123,$E$4:$O$71,9,FALSE)*IF(Variables!$Y$23=1,$AE123,$AF123) -> 0 | AL123: =VLOOKUP($AD123,$E$4:$O$71,10,FALSE)*IF(Variables!$Y$23=1,$AE123,$AF123) -> 0 | AT123: =Report!P312 -> 0
A124: 8 | C124: Operating Expenses: | R124: Transmission | S124: T | T124: =Factors!C408 -> 0 | U124: =IF(Variables!$AO$3=12,Factors!H408+Factors!K408,CHOOSE(Variables!AO$3,Factors!D408,Factors!E408,Factors!F408,Factors!G408,Factors!H408,Factors!I408,Factors!J408,Factors!K408,Factors!L408,Factors!M408,Factors!N408)) -> 0 | V124: =VLOOKUP($S124,$E$4:$O$71,5,FALSE)*IF(Variables!$Y$23=1,$T124,$U124) -> 0 | W124: =VLOOKUP($S124,$E$4:$O$71,6,FALSE)*IF(Variables!$Y$23=1,$T124,$U124) -> 0 | X124: =VLOOKUP($S124,$E$4:$O$71,7,FALSE)*IF(Variables!$Y$23=1,$T124,$U124) -> 0 | Y124: =VLOOKUP($S124,$E$4:$O$71,8,FALSE)*IF(Variables!$Y$23=1,$T124,$U124) -> 0 | Z124: =VLOOKUP($S124,$E$4:$O$71,9,FALSE)*IF(Variables!$Y$23=1,$T124,$U124) -> 0 | AA124: =VLOOKUP($S124,$E$4:$O$71,10,FALSE)*IF(Variables!$Y$23=1,$T124,$U124) -> 0 | AC124: Transmission | AD124: T | AE124: 0 | AF124: 0 | AG124: =VLOOKUP($AD124,$E$4:$O$71,5,FALSE)*IF(Variables!$Y$23=1,$AE124,$AF124) -> 0 | AH124: =VLOOKUP($AD124,$E$4:$O$71,6,FALSE)*IF(Variables!$Y$23=1,$AE124,$AF124) -> 0 | AI124: =VLOOKUP($AD124,$E$4:$O$71,7,FALSE)*IF(Variables!$Y$23=1,$AE124,$AF124) -> 0 | AJ124: =VLOOKUP($AD124,$E$4:$O$71,8,FALSE)*IF(Variables!$Y$23=1,$AE124,$AF124) -> 0 | AK124: =VLOOKUP($AD124,$E$4:$O$71,9,FALSE)*IF(Variables!$Y$23=1,$AE124,$AF124) -> 0 | AL124: =VLOOKUP($AD124,$E$4:$O$71,10,FALSE)*IF(Variables!$Y$23=1,$AE124,$AF124) -> 0 | AT124: =Report!P313 -> 0
A125: 9 | D125: Steam Production | H125: =H414 -> 495049870.2 | I125: 495049870.2 | J125: 0 | K125: 0 | L125: 0 | M125: 0 | N125: 0 | R125: Distribution | S125: DPW | T125: =Factors!C409 -> 0 | U125: =IF(Variables!$AO$3=12,Factors!H409+Factors!K409,CHOOSE(Variables!AO$3,Factors!D409,Factors!E409,Factors!F409,Factors!G409,Factors!H409,Factors!I409,Factors!J409,Factors!K409,Factors!L409,Factors!M409,Factors!N409)) -> 0 | V125: =VLOOKUP($S125,$E$4:$O$71,5,FALSE)*IF(Variables!$Y$23=1,$T125,$U125) -> 0 | W125: =VLOOKUP($S125,$E$4:$O$71,6,FALSE)*IF(Variables!$Y$23=1,$T125,$U125) -> 0 | X125: =VLOOKUP($S125,$E$4:$O$71,7,FALSE)*IF(Variables!$Y$23=1,$T125,$U125) -> 0 | Y125: =VLOOKUP($S125,$E$4:$O$71,8,FALSE)*IF(Variables!$Y$23=1,$T125,$U125) -> 0 | Z125: =VLOOKUP($S125,$E$4:$O$71,9,FALSE)*IF(Variables!$Y$23=1,$T125,$U125) -> 0 | AA125: =VLOOKUP($S125,$E$4:$O$71,10,FALSE)*IF(Variables!$Y$23=1,$T125,$U125) -> 0 | AC125: Distribution | AD125: DPW | AE125: 0 | AF125: 0 | AG125: =VLOOKUP($AD125,$E$4:$O$71,5,FALSE)*IF(Variables!$Y$23=1,$AE125,$AF125) -> 0 | AH125: =VLOOKUP($AD125,$E$4:$O$71,6,FALSE)*IF(Variables!$Y$23=1,$AE125,$AF125) -> 0 | AI125: =VLOOKUP($AD125,$E$4:$O$71,7,FALSE)*IF(Variables!$Y$23=1,$AE125,$AF125) -> 0 | AJ125: =VLOOKUP($AD125,$E$4:$O$71,8,FALSE)*IF(Variables!$Y$23=1,$AE125,$AF125) -> 0 | AK125: =VLOOKUP($AD125,$E$4:$O$71,9,FALSE)*IF(Variables!$Y$23=1,$AE125,$AF125) -> 0 | AL125: =VLOOKUP($AD125,$E$4:$O$71,10,FALSE)*IF(Variables!$Y$23=1,$AE125,$AF125) -> 0 | AT125: =Report!P314 -> 0
A126: 10 | D126: Nuclear Production | H126: =H462 -> 0 | I126: 0 | J126: 0 | K126: 0 | L126: 0 | M126: 0 | N126: 0 | R126: General | S126: G | T126: =Factors!C410 -> 0 | U126: =IF(Variables!$AO$3=12,Factors!H410+Factors!K410,CHOOSE(Variables!AO$3,Factors!D410,Factors!E410,Factors!F410,Factors!G410,Factors!H410,Factors!I410,Factors!J410,Factors!K410,Factors!L410,Factors!M410,Factors!N410)) -> 0 | V126: =VLOOKUP($S126,$E$4:$O$71,5,FALSE)*IF(Variables!$Y$23=1,$T126,$U126) -> 0 | W126: =VLOOKUP($S126,$E$4:$O$71,6,FALSE)*IF(Variables!$Y$23=1,$T126,$U126) -> 0 | X126: =VLOOKUP($S126,$E$4:$O$71,7,FALSE)*IF(Variables!$Y$23=1,$T126,$U126) -> 0 | Y126: =VLOOKUP($S126,$E$4:$O$71,8,FALSE)*IF(Variables!$Y$23=1,$T126,$U126) -> 0 | Z126: =VLOOKUP($S126,$E$4:$O$71,9,FALSE)*IF(Variables!$Y$23=1,$T126,$U126) -> 0 | AA126: =VLOOKUP($S126,$E$4:$O$71,10,FALSE)*IF(Variables!$Y$23=1,$T126,$U126) -> 0 | AC126: General | AD126: G | AE126: 0 | AF126: 0 | AG126: =VLOOKUP($AD126,$E$4:$O$71,5,FALSE)*IF(Variables!$Y$23=1,$AE126,$AF126) -> 0 | AH126: =VLOOKUP($AD126,$E$4:$O$71,6,FALSE)*IF(Variables!$Y$23=1,$AE126,$AF126) -> 0 | AI126: =VLOOKUP($AD126,$E$4:$O$71,7,FALSE)*IF(Variables!$Y$23=1,$AE126,$AF126) -> 0 | AJ126: =VLOOKUP($AD126,$E$4:$O$71,8,FALSE)*IF(Variables!$Y$23=1,$AE126,$AF126) -> 0 | AK126: =VLOOKUP($AD126,$E$4:$O$71,9,FALSE)*IF(Variables!$Y$23=1,$AE126,$AF126) -> 0 | AL126: =VLOOKUP($AD126,$E$4:$O$71,10,FALSE)*IF(Variables!$Y$23=1,$AE126,$AF126) -> 0 | AT126: =Report!P315 -> 0
A127: 11 | D127: Hydro Production | H127: =H545 -> 18411492.05 | I127: 18411492.05 | J127: 0 | K127: 0 | L127: 0 | M127: 0 | N127: 0 | R127: Mining Plant | S127: P | T127: =Factors!C411 -> 0 | U127: =IF(Variables!$AO$3=12,Factors!H411+Factors!K411,CHOOSE(Variables!AO$3,Factors!D411,Factors!E411,Factors!F411,Factors!G411,Factors!H411,Factors!I411,Factors!J411,Factors!K411,Factors!L411,Factors!M411,Factors!N411)) -> 0 | V127: =VLOOKUP($S127,$E$4:$O$71,5,FALSE)*IF(Variables!$Y$23=1,$T127,$U127) -> 0 | W127: =VLOOKUP($S127,$E$4:$O$71,6,FALSE)*IF(Variables!$Y$23=1,$T127,$U127) -> 0 | X127: =VLOOKUP($S127,$E$4:$O$71,7,FALSE)*IF(Variables!$Y$23=1,$T127,$U127) -> 0 | Y127: =VLOOKUP($S127,$E$4:$O$71,8,FALSE)*IF(Variables!$Y$23=1,$T127,$U127) -> 0 | Z127: =VLOOKUP($S127,$E$4:$O$71,9,FALSE)*IF(Variables!$Y$23=1,$T127,$U127) -> 0 | AA127: =VLOOKUP($S127,$E$4:$O$71,10,FALSE)*IF(Variables!$Y$23=1,$T127,$U127) -> 0 | AC127: Mining Plant | AD127: P | AE127: 0 | AF127: 0 | AG127: =VLOOKUP($AD127,$E$4:$O$71,5,FALSE)*IF(Variables!$Y$23=1,$AE127,$AF127) -> 0 | AH127: =VLOOKUP($AD127,$E$4:$O$71,6,FALSE)*IF(Variables!$Y$23=1,$AE127,$AF127) -> 0 | AI127: =VLOOKUP($AD127,$E$4:$O$71,7,FALSE)*IF(Variables!$Y$23=1,$AE127,$AF127) -> 0 | AJ127: =VLOOKUP($AD127,$E$4:$O$71,8,FALSE)*IF(Variables!$Y$23=1,$AE127,$AF127) -> 0 | AK127: =VLOOKUP($AD127,$E$4:$O$71,9,FALSE)*IF(Variables!$Y$23=1,$AE127,$AF127) -> 0 | AL127: =VLOOKUP($AD127,$E$4:$O$71,10,FALSE)*IF(Variables!$Y$23=1,$AE127,$AF127) -> 0 | AT127: =Report!P316 -> 0
A128: 12 | D128: Other Power Supply | H128: =H603+H654 -> 403572323.7 | I128: 403572323.7 | J128: 0 | K128: 0 | L128: 0 | M128: 0 | N128: 0 | AT128: =Report!P317 -> 0
A129: 13 | D129: Transmission | H129: =H755 -> 94304103.9 | I129: 0 | J129: 94304103.9 | K129: 0 | L129: 0 | M129: 0 | N129: 0 | R129: Total PC (Post Merger) | T129: =SUM(T121:T127) -> 0 | U129: 0 | V129: 0 | W129: 0 | X129: 0 | Y129: 0 | Z129: 0 | AA129: 0 | AC129: Total PC (Post Merger) | AE129: =SUM(AE121:AE127) -> 0 | AF129: 0 | AG129: 0 | AH129: 0 | AI129: 0 | AJ129: 0 | AK129: 0 | AL129: 0 | AT129: =Report!P318 -> -55793.63
A130: 14 | D130: Distribution | H130: =H856 -> 85903034.44 | I130: 0 | J130: 0 | K130: 85903034.44 | L130: 85903034.44 | M130: 0 | N130: 0 | AT130: =Report!P319 -> 0
A131: 15 | D131: Customer Accounts | H131: =H891 -> 33853028 | I131: 0 | J131: 0 | K131: 33853028 | L131: 0 | M131: 33853028 | N131: 0 | R131: Total Deferred Taxes | T131: =T111+T118+T129 -> 0 | U131: 0 | V131: 0 | W131: 0 | X131: 0 | Y131: 0 | Z131: 0 | AA131: 0 | AC131: Total Deferred Taxes | AE131: =AE111+AE118+AE129 -> 0 | AF131: 0 | AG131: 0 | AH131: 0 | AI131: 0 | AJ131: 0 | AK131: 0 | AL131: 0 | AT131: =Report!P320 -> 0
A132: 16 | D132: Customer Service | H132: =H922 -> 4467963.158 | I132: 0 | J132: 0 | K132: 4467963.158 | L132: 0 | M132: 4467963.158 | N132: 0 | AT132: =Report!P321 -> 0
A133: 17 | D133: Sales | H133: =H952 -> 0 | I133: 0 | J133: 0 | K133: 0 | L133: 0 | M133: 0 | N133: 0 | R133: DITEXPRL FACTOR | T133: =T131/T131 ->  | U133: =U131/U131 ->  | V133: =V131/IF(Variables!$Y$23=2,$U131,$T131) ->  | W133: =W131/IF(Variables!$Y$23=2,$U131,$T131) ->  | X133: =X131/IF(Variables!$Y$23=2,$U131,$T131) ->  | Y133: =Y131/IF(Variables!$Y$23=2,$U131,$T131) ->  | Z133: =Z131/IF(Variables!$Y$23=2,$U131,$T131) ->  | AA133: =AA131/IF(Variables!$Y$23=2,$U131,$T131) ->  | AC133: DITEXPMA FACTOR | AE133: =AE131/AE131 ->  | AF133: =AF131/AF131 ->  | AG133: =AG131/IF(Variables!$Y$23=2,$AF131,$AE131) ->  | AH133: =AH131/IF(Variables!$Y$23=2,$AF131,$AE131) ->  | AI133: =AI131/IF(Variables!$Y$23=2,$AF131,$AE131) ->  | AJ133: =AJ131/IF(Variables!$Y$23=2,$AF131,$AE131) ->  | AK133: =AK131/IF(Variables!$Y$23=2,$AF131,$AE131) ->  | AL133: =AL131/IF(Variables!$Y$23=2,$AF131,$AE131) ->  | AT133: =Report!P322 -> -189.3013145
A134: 18 | D134: Administrative & General | H134: =H1037 -> 57579193.91 | I134: 23660956.41 | J134: 13518603.8 | K134: 20399633.7 | L134: 13688126.48 | M134: 128544.4152 | N134: 6582962.799 | AT134: =Report!P323 -> -389945.035
A135: 19 | AT135: =Report!P324 -> -445927.9663
A136: 20 | D136: Total O & M Expenses | H136: =SUM(H125:H134) -> 1193141009 | I136: 940694642.4 | J136: 107822707.7 | K136: 144623659.3 | L136: 99591160.93 | M136: 38449535.58 | N136: 6582962.799 | AT136: =Report!P325 -> 0
A137: 21 | AT137: =Report!P326 -> -457639.1423
A138: 22 | D138: Depreciation | H138: =H1126 -> 281043548.3 | I138: 180450124.7 | J138: 48063311.62 | K138: 52530112 | L138: 51941039.04 | M138: 589072.9503 | N138: 0 | AT138: =Report!P327 -> 0
A139: 23 | D139: Amortization Expense | H139: =H1206 -> 14468980.63 | I139: 10230377.03 | J139: 4032830.994 | K139: 205772.6078 | L139: -1443485.624 | M139: 1649258.232 | N139: 0 | AT139: =Report!P328 -> 0
A140: 24 | D140: Taxes Other Than Income | H140: =H1234 -> 65837020.68 | I140: 34087589.12 | J140: 13958956.15 | K140: 17790475.41 | L140: 17382381.35 | M140: 407484.3474 | N140: 609.72 | AT140: =Report!P329 -> 983443.5
A141: 25 | D141: Income Taxes - Federal | H141: =H1443 -> 49133003.78 | I141: -150819821.5 | J141: -2927305.088 | K141: 57832440.72 | L141: 54771494.88 | M141: 20753831.84 | N141: -17692886 | AT141: =Report!P330 -> 983443.5
A142: 26 | D142: Income Taxes - State | H142: =H1410 -> -9512520.79 | I142: -16973216.84 | J142: -397772.1438 | K142: 7858468.195 | L142: 7442536.493 | M142: 2820101.061 | N142: -2404169.359 | AT142: =Report!P331 -> 983443.5
A143: 27 | D143: Income Taxes - Def Net | H143: =H1332 -> 103531973.9 | I143: 90892430.21 | J143: 22470643.15 | K143: -9831099.406 | L143: -10208757.73 | M143: 377658.3225 | N143: 0 | AT143: =Report!P332 -> 0
A144: 28 | D144: Investment Tax Credit Adj. | H144: =H1247 -> -3978052.186 | I144: -2003518.747 | J144: -951704.4437 | K144: -1022828.996 | L144: -1022828.996 | M144: 0 | N144: 0 | AT144: =Report!P333 -> 525804.3577
A145: 29 | D145: Misc Revenue & Expense | H145: =H333 -> 525804.3577 | I145: -401751.5513 | J145: -45.28821991 | K145: 927601.1972 | L145: -55842.30278 | M145: 983443.5 | N145: 0 | AT145: =Report!P334 -> 0
A146: 30 | AT146: =Report!P335 -> 0
A147: 31 | D147: Total Operating Expenses | H147: =SUM(H136:H145) -> 1694190768 | I147: 1086156855 | J147: 192071622.6 | K147: 270914601 | L147: 218397698 | M147: 66030385.83 | N147: -13513482.84 | AT147: =Report!P336 -> 6157919.498
A148: 32 | AT148: =Report!P337 -> 629803.3377
A149: 33 | C149: Operating Revenue for Return | H149: =H122-H147 -> 478414047.5 | I149: 41224032.18 | J149: 48777518.96 | K149: 119138204.4 | L149: 113985621.4 | M149: 39088176.18 | N149: -33935593.21 | AT149: =Report!P338 -> 6787722.836
A150: 34 | AT150: =Report!P339 -> 0
A151: 35 | C151: Rate Base: | AT151: =Report!P340 -> 0
A152: 36 | D152: Electric Plant in Service | H152: =H2071 -> 1.134005564e+10 | I152: 5677678255 | J152: 2686309044 | K152: 2976068343 | L152: 2900157819 | M152: 75910523.49 | N152: 0 | AT152: =Report!P341 -> 0
A153: 37 | D153: Plant Held for Future Use | H153: =H2094 -> 12072458.47 | I153: 5625173.285 | J153: 1599942.801 | K153: 4847342.38 | L153: 4847342.38 | M153: 0 | N153: 0 | AT153: =Report!P342 -> 14901642.49
A154: 38 | D154: Misc Deferred Debits | H154: =H2202+H2213 -> 336184142 | I154: 133184327.6 | J154: 18010037.09 | K154: 184989777.3 | L154: 48073685.99 | M154: 3060723.117 | N154: 133855368.2 | AT154: =Report!P343 -> 0
A155: 39 | D155: Elec Plant Acq Adj | H155: =H2100+H2106 -> 16602751.92 | I155: 16602751.92 | J155: 0 | K155: 0 | L155: 0 | M155: 0 | N155: 0 | AT155: =Report!P344 -> 0
A156: 40 | D156: Nuclear Fuel | H156: =H2110 -> 0 | I156: 0 | J156: 0 | K156: 0 | L156: 0 | M156: 0 | N156: 0 | AT156: =Report!P345 -> 1559197.007
A157: 41 | D157: Prepayments | H157: =H2192 -> 16122675.87 | I157: 7058672.017 | J157: 3206342.981 | K157: 5857660.874 | L157: 2924564.806 | M157: 14360.21545 | N157: 2918735.852 | AT157: =Report!P346 -> 16460839.5
A158: 42 | D158: Fuel Stock | H158: =H2157 -> 79964115.8 | I158: 79964115.8 | J158: 0 | K158: 0 | L158: 0 | M158: 0 | N158: 0 | AT158: =Report!P347 -> 0
A159: 43 | D159: Material & Supplies | H159: =H2184 -> 101106913.5 | I159: 85242785.84 | J159: 655618.159 | K159: 15208509.47 | L159: 15208509.47 | M159: 0 | N159: 0 | AT159: =Report!P348 -> 0
A160: 44 | D160: Working Capital | H160: =H2240 -> 25062289.09 | I160: 15046528.67 | J160: 3686102.883 | K160: 6329657.531 | L160: 5351282.334 | M160: 1230186.11 | N160: -251810.914 | AT160: =Report!P349 -> 0
A161: 45 | D161: Weatherization Loans | H161: =H2132 -> 2158810.612 | I161: 0 | J161: 0 | K161: 2158810.612 | L161: 0 | M161: 0 | N161: 2158810.612 | AT161: =Report!P350 -> 319381918.8
A162: 46 | D162: Miscellaneous Rate Base | H162: =H2260 -> 0 | I162: 0 | J162: 0 | K162: 0 | L162: 0 | M162: 0 | N162: 0 | AT162: =Report!P351 -> 0
A163: 47 | AT163: =Report!P352 -> 0
A164: 48 | D164: Total Electric Plant | H164: =SUM(H152:H163) -> 1.19293298e+10 | I164: 6020402610 | J164: 2713467088 | K164: 3195460101 | L164: 2976563204 | M164: 80215792.94 | N164: 138681103.7 | AT164: =Report!P353 -> 24994175.58
A165: 49 | AT165: =Report!P354 -> 344376094.3
A166: 50 | C166: Rate Base Deductions: | AT166: =Report!P355 -> 0
A167: 51 | D167: Accum Prov For Depr | H167: =H2562 -> -3448074682 | I167: -1811696458 | J167: -693048934.5 | K167: -943329289.6 | L167: -939766732.8 | M167: -3562556.793 | N167: 0 | AT167: =Report!P356 -> 360836933.8
A168: 52 | D168: Accum Prov For Amort | H168: =H2611 -> -230814516.6 | I168: -103585685.9 | J168: -37320214.59 | K168: -89908616.05 | L168: -33449406.71 | M168: -56459209.34 | N168: 0 | AT168: =Report!P357 -> 0
A169: 53 | D169: Accum Def Income Taxes | H169: =H2359 -> -1891511214 | I169: -972789048.1 | J169: -399181521 | K169: -519540645.3 | L169: -504817920.2 | M169: -14722725.15 | N169: 0 | AT169: =Report!P358 -> 0
A170: 54 | D170: Unamortized ITC | H170: =H2369 -> -189170.0448 | I170: -95274.19787 | J170: -45256.81511 | K170: -48639.03185 | L170: -48639.03185 | M170: 0 | N170: 0 | AT170: =Report!P359 -> 33527015.86
A171: 55 | D171: Customer Adv for Const | H171: =H2292 -> -14365565.23 | I171: 0 | J171: -9762049.859 | K171: -4603515.374 | L171: -4603515.374 | M171: 0 | N171: 0 | AT171: =Report!P360 -> 3486341.818
A172: 56 | D172: Customer Service Deposits | H172: =H2266 -> -16183238.3 | I172: =I2266 -> 0 | J172: 0 | K172: -16183238.3 | L172: 0 | M172: -16183238.3 | N172: 0 | AT172: =Report!P361 -> 37013357.68
A173: 57 | D173: Misc. Rate Base Deductions | H173: =H2273+H2278+H2284+H2303+H2296 -> -160248149.5 | I173: =I2273+I2278+I2284+I2303+I2296 -> -84745647.62 | J173: -34375651.93 | K173: -41126849.93 | L173: -39680028.2 | M173: -1446821.735 | N173: 0 | AT173: =Report!P362 -> 0
A174: 58 | AT174: =Report!P363 -> 0
A175: 59 | D175: Total Rate Base Deductions | H175: =SUM(H167:H173) -> -5761386536 | I175: -2972912114 | J175: -1173733629 | K175: -1614740794 | L175: -1522366242 | M175: -92374551.31 | N175: 0 | AT175: =Report!P364 -> 0
A176: 60 | P176: Functional Retail Revenue Spread | AT176: =Report!P365 -> 0
A177: 61 | C177: Total Rate Base | H177: =H164+H175 -> 6167943262 | I177: 3047490496 | J177: 1539733459 | K177: 1580719307 | L177: 1454196962 | M177: -12158758.37 | N177: 138681103.7 | Q177: =$I$115 -> Production | R177: =$J$115 -> Transmission | S177: =$K$115 -> Distribution | T177: =$L$115 -> Distribution | U177: Customer | V177: =$N$115 -> Misc | AT177: =Report!P366 -> 0
A178: 62 | P178: California | AT178: =Report!P367 -> 0
A179: 63 | C179: Return on Rate Base | H179: =H149/H177 -> 0.07756459927 | I179: 0.01352720615 | J179: 0.03167919659 | K179: 0.07536961424 | L179: 0.07838389464 | M179: -3.214816429 | N179: -0.2447023588 | P179: Washington | AT179: =Report!P368 -> 1710047.255
A180: 64 | P180: Montana | AT180: =Report!P369 -> 1710047.255
A181: 65 | C181: Return on Equity | H181: =(+H179-Variables!$AT$3-Variables!$AT$4)/Variables!$AT$5 -> 0.1024131463 | I181: =(+I179-Variables!$AT$3-Variables!$AT$4)/Variables!$AT$5 -> -0.02270876285 | J181: =(+J179-Variables!$AT$3-Variables!$AT$4)/Variables!$AT$5 -> 0.01275819776 | K181: =(+K179-Variables!$AT$3-Variables!$AT$4)/Variables!$AT$5 -> 0.0981243909 | L181: =(+L179-Variables!$AT$3-Variables!$AT$4)/Variables!$AT$5 -> 0.1040139579 | M181: =(+M179-Variables!$AT$3-Variables!$AT$4)/Variables!$AT$5 -> -6.330531419 | N181: =(+N179-Variables!$AT$3-Variables!$AT$4)/Variables!$AT$5 -> -0.5272604724 | P181: Wyoming - East | Q181: 127802829 | R181: 31696874 | S181: 50094096.44 | T181: 46928984 | U181: 1555189 | V181: 1610923.44 | AT181: =Report!P370 -> 0
A182: 66 | P182: Utah | Q182: 366003980 | R182: 104207074 | S182: 215005203.7 | T182: 197478510 | U182: 11984031 | V182: 5542662.72 | AT182: =Report!P371 -> 0
A183: 67 | C183: 100 Basis Points in Equity: | H183: =(H177*(Variables!$AT5*(H181+0.01)+Variables!$AT3+Variables!$AT4))-H149 -> 31567533.62 | I183: =(I177*(Variables!AT5*(I181+0.01)+Variables!AT3+Variables!AT4))-I149 -> 15597056.36 | J183: =(J177*(Variables!AU5*(J181+0.01)+Variables!AU3+Variables!AU4))-J149 -> 7880355.844 | K183: =(K177*(Variables!$AV5*(K181+0.01)+Variables!$AV3+Variables!$AV4))-K149 -> 8090121.415 | L183: =(L177*(Variables!$AV5*(L181+0.01)+Variables!$AV3+Variables!$AV4))-L149 -> 7442580.051 | M183: =(M177*(Variables!$AV5*(M181+0.01)+Variables!$AV3+Variables!$AV4))-M149 -> -62228.52535 | N183: =(N177*(Variables!$AV5*(N181+0.01)+Variables!$AV3+Variables!$AV4))-N149 -> 709769.889 | P183: Idaho | Q183: 55561275 | R183: 14318016 | S183: 30397767.02 | T183: 27273473 | U183: 2038247 | V183: 1086047.02 | AT183: =Report!P372 -> 714965.2395
A184: 68 | D184: Revenue Requirement Impact | H184: =H183*(1/(1-(INDEX(Variables!$F$15:$Q$15,1,Variables!$AO$3)))) -> 50875169.01 | I184: =I183*(1/(1-(INDEX(Variables!$F$15:$Q$15,1,Variables!$AO$3)))) -> 25136676.43 | J184: =J183*(1/(1-(INDEX(Variables!$F$15:$Q$15,1,Variables!$AO$3)))) -> 12700214.1 | K184: =K183*(1/(1-(INDEX(Variables!$F$15:$Q$15,1,Variables!$AO$3)))) -> 13038278.48 | L184: =L183*(1/(1-(INDEX(Variables!$F$15:$Q$15,1,Variables!$AO$3)))) -> 11994681.71 | M184: =M183*(1/(1-(INDEX(Variables!$F$15:$Q$15,1,Variables!$AO$3)))) -> -100289.3284 | N184: =N183*(1/(1-(INDEX(Variables!$F$15:$Q$15,1,Variables!$AO$3)))) -> 1143886.105 | P184: Wyoming - West | Q184: 19756255.66 | R184: 5006765.992 | S184: 9963427.118 | T184: 8733400.13 | U184: 996768.2125 | V184: 233258.5417 | AT184: =Report!P373 -> 313733.9884
A185: 69 | D185: Rate Base Decrease | H185: =(H149/(Variables!$AT5*(H181+0.01)+UTCR!$J7+UTCR!$J12))-H177 -> -381791742.1 | I185: =(I149/(Variables!$AT5*(I181+0.01)+UTCR!$J7+UTCR!$J12))-I177 -> -836518310.9 | J185: =(J149/(Variables!$AU5*(J181+0.01)+UTCR!$J7+UTCR!$J12))-J177 -> -214156418.8 | K185: =(K149/(Variables!$AV5*(K181+0.01)+UTCR!$J7+UTCR!$J12))-K177 -> -100513867.8 | L185: =(L149/(Variables!$AV5*(L181+0.01)+UTCR!$J7+UTCR!$J12))-L177 -> -89130672.82 | M185: =(M149/(Variables!$AV5*(M181+0.01)+UTCR!$J7+UTCR!$J12))-M177 -> -19387.65486 | N185: =(N149/(Variables!$AV5*(N181+0.01)+UTCR!$J7+UTCR!$J12))-N177 -> 2962505.118 | O185: Check | P185: Total Company | Q185: 1110556694 | R185: 308995072.2 | S185: 611877930.3 | T185: 566002564.9 | U185: 14881002.1 | V185: 30994363.59 | AT185: =Report!P374 -> 1028699.228
C186: =$C$109 -> 2010 PROTOCOL | W186: Check Total | AT186: =Report!P375 -> 0
C187: =$C$110 -> 13-Month Average | Q187: =($H179-I179)*I177*(1/(1-Variables!$F$15)) -> 314514894.5 | R187: =($H179-J179)*J177*(1/(1-Variables!$F$15)) -> 113863704.2 | S187: =($H179-K179)*K177*(1/(1-Variables!$F$15)) -> 5591798.752 | T187: =($H179-L179)*L177*(1/(1-Variables!$F$15)) -> -1920122.546 | U187: =($H179-M179)*M177*(1/(1-Variables!$F$15)) -> -64515568.98 | V187: =($H179-N179)*N177*(1/(1-Variables!$F$15)) -> 72027490.28 | W187: =ABS(SUM(Q187:V187)) -> 439562196.2 | AT187: =Report!P376 -> 0
C188: FERC | F188: BUSINESS | G188: PITA | H188: =$H$114 -> UTAH | Q188: =Q187+I192 -> 1291687262 | R188: 330246914.5 | S188: 386274744.9 | T188: 326980360.4 | U188: 33515003.25 | V188: 25779381.25 | W188: =SUM(Q188:V188,-S188) -> 2008208922 | AT188: =Report!P377 -> 9315520.114
C189: ACCT | E189: DESCRIPTION | F189: FUNCTION | G189: FACTOR | H189: =$H$115 -> Normalized | I189: =$I$115 -> Production | J189: =$J$115 -> Transmission | K189: =$K$115 -> Distribution | L189: =$L$115 -> Distribution | M189: =$M$115 -> Retail | N189: =$N$115 -> Misc | O189: Check | Q189: =$I$115 -> Production | R189: =$J$115 -> Transmission | S189: =$K$115 -> Distribution | T189: =$L$115 -> Distribution | U189: Customer | V189: =$N$115 -> Misc | AT189: =Report!P378 -> 0
A190: 70 | C190: Sales to Ultimate Customers | O190: Figure | AT190: =Report!P379 -> 446926.7571
A191: 71 | C191: 440 | D191: Residential Sales | I191: =($H179-I179)*I177*(1/(1-Variables!$F$15)) -> 314514894.5 | J191: =($H179-J179)*J177*(1/(1-Variables!$F$15)) -> 113863704.2 | K191: =($H179-K179)*K177*(1/(1-Variables!$F$15)) -> 5591798.752 | L191: =($H179-L179)*L177*(1/(1-Variables!$F$15)) -> -1920122.546 | M191: =($H179-M179)*M177*(1/(1-Variables!$F$15)) -> -64515568.98 | N191: =($H179-N179)*N177*(1/(1-Variables!$F$15)) -> 72027490.28 | O191: =H117 -> 1988560506 | AT191: =Report!P380 -> 9762446.872
A192: 72 | G192: =UTCR!H192 -> S | H192: =IF(Variables!$Y$23=2,Report!P192,NRO!I192) -> 742487158.5 | I192: 977172367.9 | J192: 216383210.4 | K192: 380682946.1 | L192: 328900482.9 | M192: 98030572.23 | N192: -46248109.03 | O192: =SUM(L192:N192)+J192+I192 -> 1574238524 | P192: =+O192-O191 -> -414321981.5 | Q192: =IF($F192=0,0,INDEX($I192:$N192,1,1)) -> 0 | R192: =IF($F192=0,0,INDEX($I192:$N192,1,2)) -> 0 | S192: =IF($F192=0,0,INDEX($I192:$N192,1,3)) -> 0 | T192: =IF($F192=0,0,INDEX($I192:$N192,1,4)) -> 0 | U192: =IF($F192=0,0,INDEX($I192:$N192,1,5)) -> 0 | V192: =IF($F192=0,0,INDEX($I192:$N192,1,6)) -> 0 | AT192: =Report!P381 -> 0
A193: 73 | Q193: 0 | R193: 0 | S193: 0 | T193: 0 | U193: 0 | V193: 0 | AT193: =Report!P382 -> 0
A194: 74 | H194: =SUBTOTAL(9,H192:H193) -> 742487158.5 | I194: 977172367.9 | J194: 216383210.4 | K194: 380682946.1 | L194: 328900482.9 | M194: 98030572.23 | N194: -46248109.03 | Q194: 0 | R194: 0 | S194: 0 | T194: 0 | U194: 0 | V194: 0 | AT194: =Report!P383 -> 172657.489
A195: 75 | Q195: 0 | R195: 0 | S195: 0 | T195: 0 | U195: 0 | V195: 0 | AT195: =Report!P384 -> 0
A196: 76 | C196: 442 | D196: Commercial & Industrial Sales | Q196: 0 | R196: 0 | S196: 0 | T196: 0 | U196: 0 | V196: 0 | AT196: =Report!P385 -> 172657.489
A197: 77 | G197: =UTCR!H197 -> S | H197: =IF(Variables!$Y$23=2,Report!P197,NRO!I197) -> 1220620282 | Q197: 0 | R197: 0 | S197: 0 | T197: 0 | U197: 0 | V197: 0 | AT197: =Report!P386 -> 0
A198: 78 | F198: P | G198: =UTCR!H198 -> SE | H198: =IF(Variables!$Y$23=2,Report!P198,NRO!I198) -> 0 | I198: =IF(F198=(VLOOKUP(F198,$E$4:$N$71,1)),VLOOKUP(F198,$E$4:$N$71,5),"#N/A")*H198 -> 0 | J198: =IF(F198=(VLOOKUP(F198,$E$4:$N$71,1)),VLOOKUP(F198,$E$4:$N$71,6),"#N/A")*H198 -> 0 | K198: =IF(F198=(VLOOKUP(F198,$E$4:$N$71,1)),VLOOKUP(F198,$E$4:$N$71,7),"#N/A")*H198 -> 0 | L198: =IF(F198=(VLOOKUP(F198,$E$4:$N$71,1)),VLOOKUP(F198,$E$4:$N$71,8),"#N/A")*H198 -> 0 | M198: =IF(F198=(VLOOKUP(F198,$E$4:$N$71,1)),VLOOKUP(F198,$E$4:$N$71,9),"#N/A")*H198 -> 0 | N198: =IF(F198=(VLOOKUP(F198,$E$4:$N$71,1)),VLOOKUP(F198,$E$4:$N$71,10),"#N/A")*H198 -> 0 | Q198: 0 | R198: 0 | S198: 0 | T198: 0 | U198: 0 | V198: 0 | AT198: =Report!P387 -> 0
A199: 79 | F199: PT | G199: =UTCR!H199 -> SG | H199: =IF(Variables!$Y$23=2,Report!P199,NRO!I199) -> 0 | I199: =(IF(F199=(VLOOKUP(F199,$E$4:$N$71,1)),VLOOKUP(F199,$E$4:$N$71,5),"#N/A")*H199)+0 -> 0 | J199: =(IF(F199=(VLOOKUP(F199,$E$4:$N$71,1)),VLOOKUP(F199,$E$4:$N$71,6),"#N/A")*H199)+0 -> 0 | K199: =(IF(F199=(VLOOKUP(F199,$E$4:$N$71,1)),VLOOKUP(F199,$E$4:$N$71,7),"#N/A")*H199)+0 -> 0 | L199: =(IF(F199=(VLOOKUP(F199,$E$4:$N$71,1)),VLOOKUP(F199,$E$4:$N$71,8),"#N/A")*H199)+0 -> 0 | M199: =(IF(F199=(VLOOKUP(F199,$E$4:$N$71,1)),VLOOKUP(F199,$E$4:$N$71,9),"#N/A")*H199)+0 -> 0 | N199: =(IF(F199=(VLOOKUP(F199,$E$4:$N$71,1)),VLOOKUP(F199,$E$4:$N$71,10),"#N/A")*H199)+0 -> 0 | Q199: 0 | R199: 0 | S199: 0 | T199: 0 | U199: 0 | V199: 0 | AT199: =Report!P388 -> 771660.6077
A200: 80 | Q200: 0 | R200: 0 | S200: 0 | T200: 0 | U200: 0 | V200: 0 | AT200: =Report!P389 -> 1540653.454
... 2047 more rows

Sheet Function1149 (hidden)
E1: =H114 -> UTAH | F1: =C111 -> RESULTS OF OPERATIONS SUMMARY | T1: UNADJUSTED RESULTS OF OPERATIONS
T2: =Variables!AE27 -> 2010 PROTOCOL
E3: Function | F3: Description | I3: Production | J3: Transmission | K3: Distribution | L3: Ancillary | M3: C_Billing | N3: C_Metering | O3: C_Service | P3: DSM | Q3: Total | T3: =Variables!AE28 -> 
F5: Internal Factors | W5: PACIFICORP | X5: PACIFICORP
E6: ACCMDIT | F6: Deferred Income Tax - Balance | I6: =X73 -> 0.7550559101 | J6: 0.1130421533 | K6: 0.1235831928 | L6: 0 | M6: 0.003878040139 | N6: 0.004440703689 | O6: 0 | P6: 0 | Q6: =SUM(I6:P6) -> 1 | T6: FERC | U6: DESCRIPTION | W6: LABOR | X6: O&M
E7: CWC | F7: Cash Working Capital | I7: =IF(ISERROR(X$70/$W$70),1,X$70/$W$70) -> 0.755101649 | J7: 0.05706563003 | K7: 0.135849883 | L7: -0.001792313118 | M7: 0.0229002205 | N7: 0.01900157496 | O7: 0.01187335562 | P7: 0 | Q7: =SUM(I7:P7) -> 1 | T7: ACCT | W7: ONLY | X7: TOTAL | Y7: =Variables!X24 -> UTAH
E8: D_SPLIT | F8: Distribution Slit between Functions | I8: 0 | J8: 0 | K8: =Y62 -> 0.9710082377 | L8: 0 | M8: 0 | N8: =Y63 -> 0.02899176234 | O8: 0 | P8: 0 | Q8: 1
E9: DITEXP | F9: Deferred Income Tax - Expense | I9: =X74 -> 
E10: FIT | F10: Federal Income Taxes | I10: =I$1433/$H$1433 -> -4.311859293 | J10: =IF(ISERROR(J$1433/$H$1433),1,J$1433/$H$1433) -> -0.956021291 | K10: -0.05449482873 | L10: -0.02443139638 | M10: 0.03986133149 | N10: 0.06448599405 | O10: -0.06168459667 | P10: 2.731501305e-307 | Q10: -5.30414408 | T10: Production | W10: 90698845 | X10: =URO!I656 -> 2118492929 | Y10: =IF(Variables!AO3=12,URO!N656+URO!Q656,CHOOSE(Variables!AO3,URO!J656,URO!K656,URO!L656,URO!M656,URO!N656,URO!O656,URO!P656,URO!Q656,URO!R656,URO!S656,URO!T656)) -> 917033686 | AA10: Meter O&M Split
E11: GP | F11: Gross Plant | I11: =(I$152)/($H$152) -> 0.4598441269 | J11: =(J$152)/($H$152) -> 0.2396707162 | K11: 0.2791615214 | L11: 0 | M11: 0.005667875146 | N11: 0.01189308068 | O11: 0.003762679659 | P11: 0 | Q11: 1 | T11: Transmission | W11: 10748429 | X11: =URO!I755 -> 215664452.3 | Y11: =IF(Variables!AO3=12,URO!N755+URO!Q755,CHOOSE(Variables!AO3,URO!J755,URO!K755,URO!L755,URO!M755,URO!N755,URO!O755,URO!P755,URO!Q755,URO!R755,URO!S755,URO!T755)) -> 94304103.9 | AB11: 1998 | AC11: 1997 | AD11: Total | AE11: Percent
E12: IBT | F12: Income Before Taxes | I12: =I$1418/$H$1418 -> -3.338842899 | J12: =IF(ISERROR(J$1418/$H$1418),1,J$1418/$H$1418) -> -0.8267163155 | K12: -0.04712422668 | L12: -0.02112697091 | M12: 0.03446995732 | N12: 0.05576405454 | O12: -0.05334155522 | P12: 2.362056908e-307 | Q12: -4.196917955 | T12: Distribution | W12: =W17 -> 41944504.6 | X12: 196157001.5 | Y12: 81856803.58 | AA12: Account 586 597 | AB12: =7716052+814586 -> 8530638 | AC12: =5317324+1141217 -> 6458541 | AD12: =AB12+AC12 -> 14989179 | AE12: =AD12/$AD$13 -> 0.0801081302
E13: NP | F13: Net Plant | I13: =(I$152+I$167+I$168)/($H$152+$H$167+$H$168) -> 0.4281931278 | J13: =(J$152+J$167+J$168)/($H$152+$H$167+$H$168) -> 0.273679992 | K13: 0.2859664094 | L13: 0 | M13: 0.002146897138 | N13: 0.008232587505 | O13: 0.001780986142 | P13: 0 | Q13: 1 | T13: Customer Billing | W13: 35215299.05 | X13: 86669322.65 | Y13: 34015569.94 | AA13: TTL Dist Exp | AB13: 97117213 | AC13: 89994619 | AD13: =AB13+AC13 -> 187111832 | AE13: =AD13/$AD$13 -> 1
E14: PT | F14: Production / Transmission | I14: =IF(Variables!$Y$23=1,Function1149!X$51,Function1149!Y$51) -> 0.6779585221 | J14: =IF(Variables!$Y$23=1,Function1149!X$52,Function1149!Y$52) -> 0.3220414779 | K14: 0 | L14: 0 | M14: 0 | N14: 0 | O14: 0 | P14: 0 | Q14: 1 | T14: Customer Metering | W14: 15369458.98 | X14: 28219492.08 | Y14: 8351652.092
E15: PTD | F15: Prod, Trans, Dist Plant | I15: =IF(Variables!$Y$23=1,Function1149!X$44,Function1149!Y$44) -> 0.5036431532 | J15: =IF(Variables!$Y$23=1,Function1149!X$45,Function1149!Y$45) -> 0.2392388031 | K15: =IF(Variables!$Y$23=1,Function1149!X$46,Function1149!Y$46) -> 0.2496637385 | L15: 0 | M15: 0 | N15: =IF(Variables!$Y$23=1,Function1149!X$47,Function1149!Y$47) -> 0.007454305216 | O15: 0 | P15: 0 | Q15: 1 | T15: TOTAL | W15: =SUM(W10:W14) -> 193976536.6 | X15: =SUM(X10:X14) -> 2645203198 | Y15: =SUM(Y10:Y14) -> 1135561815 | AA15: Meter Reading Labor Split
E16: REVREQ | F16: Revenue Requirement | I16: =IF(ISERROR(I$122/$H$122),1,I$122/$H$122) -> 0.3589305292 | J16: =IF(ISERROR(J$122/$H$122),1,J$122/$H$122) -> 0.04672210207 | K16: 0.09073122626 | L16: -0.001944551158 | M16: 0.01253141293 | N16: 0.01155237238 | O16: 0.003146490199 | P16: 0 | Q16: =SUM(I16:P16) -> 0.5216695818 | AB16: 1998 | AC16: 1997 | AD16: Total | AE16: Percent
E17: T_SPLIT | F17: Transmission Split | I17: =I$1751/$H$1751 -> 0.02814033586 | J17: =J$1751/$H$1751 -> 0.9718596641 | K17: 0 | L17: 0 | M17: 0 | N17: 0 | O17: 0 | P17: 0 | Q17: 1 | T17: Poles & Wires | W17: =45597212*(1-AE12) -> 41944504.6 | X17: =URO!I856-URO!I849-URO!I795 -> 196157001.5 | Y17: =INDEX(URO!$J$856:$R$856,,Variables!$AO$3)-INDEX(URO!$J$849:$R$849,,Variables!$AO$3)-INDEX(URO!$J$795:$R$795,,Variables!$AO$3) -> 81856803.58 | AA17: Account 902 | AB17: 17740463 | AC17: 17582340 | AD17: =AB17+AC17 -> 35322803 | AE17: =AD17/$AD$18 -> 0.243929702
E18: TD | F18: Transmission / Distribution | I18: 0 | J18: =IF(Variables!$Y$23=1,Function1149!$X$56,Function1149!$Y$56) -> 0.4819895296 | K18: =IF(Variables!$Y$23=1,Function1149!$X$57,Function1149!$Y$57) -> 0.502992434 | L18: 0 | M18: 0 | N18: =IF(Variables!$Y$23=1,Function1149!$X$58,Function1149!$Y$58) -> 0.01501803645 | O18: 0 | P18: 0 | Q18: =SUM(I18:P18) -> 1 | T18: Customer Billing | W18: =(38485186+6117793)-(38485186*$AE$17) -> 35215299.05 | X18: =URO!I891+URO!I960-URO!I873 -> 86669322.65 | Y18: =INDEX(URO!$J$891:$R$891,,Variables!$AO$3)+INDEX(URO!$J$960:$R$960,,Variables!$AO$3)-INDEX(URO!$J$873:$R$873,,Variables!$AO$3) -> 34015569.94 | AA18: Ttl Cust Service | AB18: 72030470 | AC18: 72776836 | AD18: =AB18+AC18 -> 144807306 | AE18: =AD18/$AD$18 -> 1
T19: Customer Metering | W19: =38485186*$AE$17+(74671310*AE12) -> 15369458.98 | X19: =URO!I849+URO!I795+URO!I873 -> 28219492.08 | Y19: =INDEX(URO!$J$849:$R$849,,Variables!$AO$3)+INDEX(URO!$J$795:$R$795,,Variables!$AO$3)+INDEX(URO!$J$873:$R$873,,Variables!$AO$3) -> 8351652.092
F20: External Factors | T20: Misc | AA20: Source: FERC FORM 1 Page 322
E21: ANC | F21: Ancillary Function | I21: 0 | J21: 0 | K21: 0 | L21: 1 | M21: 0 | N21: 0 | O21: 0 | P21: 0 | Q21: =SUM(I21:P21) -> 1 | T21: TOTAL DISTRIBUTION | W21: =SUM(W17:W20) -> 92529262.63 | X21: =SUM(X17:X20) -> 311045816.2 | Y21: =SUM(Y17:Y20) -> 124224025.6
E22: B_CENTER | F22: Business Centers | I22: 0 | J22: 0 | K22: 0 | L22: 0 | M22: 0.7453435853 | N22: 0 | O22: 0.2546564147 | P22: 0 | Q22: =SUM(I22:P22) -> 1
E23: BOOKDEPR | F23: Book Depreciation | I23: 0.4845650437 | J23: 0.1558154864 | K23: 0.3420665007 | L23: 0 | M23: 0.00362896348 | N23: 0.01392400566 | O23: 0 | P23: 0 | Q23: 1 | T23: Labor/O&M
E24: C_METER | F24: Customer Metering | I24: 0 | J24: 0 | K24: 0 | L24: 0 | M24: 0 | N24: 1 | O24: 0 | P24: 0 | Q24: 1 | T24: Production | W24: =W10/W$15 -> 0.4675763707 | X24: 0.80088098 | Y24: 0.8075594595
E25: C_SERVICE | F25: Customer Other | I25: 0 | J25: 0 | K25: 0 | L25: 0 | M25: 0 | N25: 0 | O25: 1 | P25: 0 | Q25: 1 | T25: Transmission | W25: 0.05541097489 | X25: 0.08153039151 | Y25: 0.08304620904
E26: COM_EQ | F26: Communication Equipment Acct 397 | I26: 0.159434 | J26: 0.393847 | K26: 0.432754 | L26: 0 | M26: 0 | N26: 0 | O26: 0.013965 | P26: 0 | Q26: 1 | T26: Distribution | W26: 0.2162349392 | X26: 0.07415574033 | Y26: 0.07208485039
E27: CSS_SYS | F27: CSS System | I27: 0 | J27: 0 | K27: 0 | L27: 0 | M27: 0.55 | N27: 0.18 | O27: 0.27 | P27: 0 | Q27: 1 | T27: Customer Billing | W27: 0.1815441169 | X27: 0.03276471264 | Y27: 0.02995483775
E28: CUST | F28: Customer Billing | I28: 0 | J28: 0 | K28: 0 | L28: 0 | M28: 1 | N28: 0 | O28: 0 | P28: 0 | Q28: 1 | T28: Customer Metering | W28: 0.07923359827 | X28: 0.01066817555 | Y28: 0.007354643295
E29: CUST901 | F29: Supervision | I29: 0 | J29: 0 | K29: 0 | L29: 0 | M29: 0.6345753273 | N29: -0.06989238368 | O29: 0.4353170564 | P29: 0 | Q29: 1 | T29: TOTAL | W29: =SUM(W24:W28) -> 1 | X29: =SUM(X24:X28) -> 1 | Y29: =SUM(Y24:Y28) -> 1
E30: CUST903 | F30: Cust. Records & Coll. Exp. | I30: 0 | J30: 0 | K30: 0 | L30: 0 | M30: 0.5961416623 | N30: 0 | O30: 0.4038583377 | P30: 0 | Q30: 1
E31: CUST905 | F31: Misc. Customer Acct. Exp. | I31: 0 | J31: 0 | K31: 0 | L31: 0 | M31: 0.08871429249 | N31: 0.07696437586 | O31: 0.8343213317 | P31: 0 | Q31: 1 | T31: Distribution | W31: =W17/W$21 -> 0.4533106978 | X31: 0.6306370035 | Y31: 0.6589450243
E32: D | F32: Distribution Only | I32: 0 | J32: 0 | K32: 1 | L32: 0 | M32: 0 | N32: 0 | O32: 0 | P32: 0 | Q32: 1 | T32: Customer Billing | W32: 0.3805855364 | X32: 0.2786384453 | Y32: 0.2738244053
E33: DDS2 | F33: Deferred Debits - Situs | I33: 0.5072219508 | J33: 0.1845855021 | K33: 0.2834051309 | L33: 0 | M33: 0.01256905969 | N33: 0.01221835658 | O33: 0 | P33: 0 | Q33: 1 | T33: Customer Metering | W33: 0.1661037659 | X33: 0.09072455121 | Y33: 0.06723057035
E34: DDS6 | F34: Deferred Debits - Situs | I34: 0 | J34: 1 | K34: 0 | L34: 0 | M34: 0 | N34: 0 | O34: 0 | P34: 0 | Q34: 1 | T34: Total Distribution | W34: =SUM(W31:W33) -> 1 | X34: =SUM(X31:X33) -> 1 | Y34: =SUM(Y31:Y33) -> 1
E35: DDSO2 | F35: Deferred Debits - System Overhead | I35: 0.4171842688 | J35: 0.06670748689 | K35: 0.512731016 | L35: 0 | M35: 0 | N35: 0.003377228292 | O35: 0 | P35: 0 | Q35: 1
E36: DDSO6 | F36: Deferred Debits - System Overhead | I36: 0 | J36: 0 | K36: 1 | L36: 0 | M36: 0 | N36: 0 | O36: 0 | P36: 0 | Q36: 1
E37: DEFSG | F37: Deferred Debit - System Generation | I37: 0.2424591015 | J37: 0.7575408985 | K37: 0 | L37: 0 | M37: 0 | N37: 0 | O37: 0 | P37: 0 | Q37: 1 | T37: Total Production Plant | X37: =URO!I1701 -> 1.196099682e+10 | Y37: =IF(Variables!AO3=12,URO!N1701+URO!Q1701,CHOOSE(Variables!AO3,URO!J1701,URO!K1701,URO!L1701,URO!M1701,URO!N1701,URO!O1701,URO!P1701,URO!Q1701,URO!R1701,URO!S1701,URO!T1701)) -> 5232155946
E38: DSM | F38: Demand Side Management | I38: 0 | J38: 0 | K38: 1 | L38: 0 | M38: 0 | N38: 0 | O38: 0 | P38: 0 | Q38: 1 | T38: Total Transmission Plant | X38: =URO!I1765 -> 5681635112 | Y38: =IF(Variables!AO3=12,URO!N1765+URO!Q1765,CHOOSE(Variables!AO3,URO!J1765,URO!K1765,URO!L1765,URO!M1765,URO!N1765,URO!O1765,URO!P1765,URO!Q1765,URO!R1765,URO!S1765,URO!T1765)) -> 2485360355
E39: DPW | F39: Distribution Poles & Wires | I39: 0 | J39: 0 | K39: 0.9608865815 | L39: 0 | M39: 0 | N39: 0.03911341851 | O39: 0 | P39: 0 | Q39: =SUM(I39:P39) -> 1 | T39: Total Distribution Plant | X39: =URO!I1839 -> 6282882317 | Y39: =IF(Variables!AO3=12,URO!N1839+URO!Q1839,CHOOSE(Variables!AO3,URO!J1839,URO!K1839,URO!L1839,URO!M1839,URO!N1839,URO!O1839,URO!P1839,URO!Q1839,URO!R1839,URO!S1839,URO!T1839)) -> 2671100942
E40: ESD | F40: Environmental Services Department | I40: 0.3 | J40: 0.1 | K40: 0.6 | L40: 0 | M40: 0 | N40: 0 | O40: 0 | P40: 0 | Q40: 1 | T40: Total Account 370 | X40: =URO!I1815 -> 183025641.6 | Y40: =H1801 -> 77439923.7
E41: FERC | F41: FERC Fees | I41: 0.514717736 | J41: 0.485282264 | K41: 0 | L41: 0 | M41: 0 | N41: 0 | O41: 0 | P41: 0 | Q41: 1 | T41: TOTAL | X41: =SUM(X37:X40) -> 2.410853989e+10 | Y41: =SUM(Y37:Y40) -> 1.046605717e+10
E42: G | F42: General Plant | I42: 0.2569188767 | J42: 0.2193639593 | K42: 0.4775233865 | L42: 0 | M42: 0.02675592464 | N42: 0.01943785294 | O42: 0 | P42: 0 | Q42: 1
E43: G-DGP | F43: General Plant - DGP Factor | I43: 0.6855986064 | J43: 0.3144013936 | K43: 0 | O43: 0 | P43: 0 | Q43: 1 | T43: PTD
E44: G-DGU | F44: General Plant - DGU Factor | I44: 0.6855986064 | J44: 0.3144013936 | K44: 0 | O44: 0 | P44: 0 | Q44: 1 | T44: Total Production Plant | X44: =X37/SUM(X$37:X$39) -> 0.4999264256 | Y44: =Y37/SUM(Y$37:Y$39) -> 0.5036431532
E45: G-SG | F45: General Plant - SG Factor | I45: 0.6863049829 | J45: 0.3070705956 | K45: 0.006365317742 | L45: 0 | M45: 0 | N45: 0.000259103771 | O45: 0 | P45: 0 | Q45: 1 | T45: Total Transmission Plant | X45: =X38/SUM(X$37:X$39) -> 0.2374718074 | Y45: =Y38/SUM(Y$37:Y$39) -> 0.2392388031
E46: G-SITUS | F46: General Plant - SITUS Factor | I46: 0.0001467575033 | J46: 0.209679849 | K46: 0.7592670109 | L46: 0 | M46: 0 | N46: 0.03090638263 | O46: 0 | P46: 0 | Q46: 1 | T46: Total Distribution Plant | X46: =(X39-X40)/SUM(X$37:X$39) -> 0.2549519568 | Y46: =(Y39-Y40)/SUM(Y$37:Y$39) -> 0.2496637385
E47: I | F47: Intangible Plant | I47: 0.4702230682 | J47: 0.1465189551 | K47: 0.1997512069 | L47: 0 | M47: 0.09641524389 | N47: 0.0397376888 | O47: 0.0473538371 | P47: 0 | Q47: 1 | T47: Total Account 370 | X47: =(X40)/SUM(X$37:X$39) -> 0.007649810143 | Y47: =(Y40)/SUM(Y$37:Y$39) -> 0.007454305216
E48: I-DGP | F48: Intangible Plant - DGP Factor | I48: 1 | J48: 0 | K48: 0 | L48: 0 | M48: 0 | N48: 0 | O48: 0 | P48: 0 | Q48: 1 | T48: TOTAL | X48: =SUM(X44:X47) -> 1 | Y48: =SUM(Y44:Y47) -> 1
E49: I-DGU | F49: Intangible Plant - DGU Factor | I49: 1 | J49: 0 | K49: 0 | L49: 0 | M49: 0 | N49: 0 | O49: 0 | P49: 0 | Q49: 1
E50: I-SG | F50: Intangible Plant - SG Factor | I50: 0.8952466433 | J50: 0.1044295446 | K50: 0.0003111467083 | L50: 0 | M50: 0 | N50: 1.266539845e-05 | O50: 0 | P50: 0 | Q50: 1 | T50: PT
E51: I-SITUS | F51: Intangible Plant - SITUS Factor | I51: 0 | J51: 0.3714231392 | K51: 0.603991071 | L51: 0 | M51: 0 | N51: 0.02458578982 | O51: 0 | P51: 0 | Q51: 1 | T51: Total Production Plant | X51: =X37/(X$37+X$38) -> 0.6779598909 | Y51: =Y37/(Y$37+Y$38) -> 0.6779585221
E52: LABOR | F52: Direct Labor Expense | I52: 0.4042442542 | J52: 0.04812701706 | K52: 0.3400063721 | L52: 0 | M52: 0.05441429262 | N52: 0.09789744243 | O52: 0.05531062156 | P52: 0 | Q52: 1 | T52: Total Transmission Plant | X52: =X38/(X$37+X$38) -> 0.3220401091 | Y52: =Y38/(Y$37+Y$38) -> 0.3220414779
E53: MSS | F53: Materials & Supplies | I53: 0.8033119538 | J53: 0.06755266468 | K53: 0.1247572377 | L53: 0 | M53: 0 | N53: 0.004378143827 | O53: 0 | P53: 0 | Q53: 1 | T53: TOTAL | X53: =SUM(X51:X52) -> 1 | Y53: =SUM(Y51:Y52) -> 1
E54: NONE | F54: Not Functionalized | I54: 0 | J54: 0 | K54: 0 | L54: 0 | M54: 0 | N54: 0 | O54: 0 | P54: 0 | Q54: 0
E55: NUTIL | F55: Non-Utility | I55: 0 | J55: 0 | K55: 0 | L55: 0 | M55: 0 | N55: 0 | O55: 0 | P55: 0 | Q55: 0 | T55: TD
E56: OTHDGP | F56: Other Revenues - DGP Factor | I56: 0.4625870645 | J56: 0.5374129355 | K56: 0 | L56: 0 | M56: 0 | N56: 0 | O56: 0 | P56: 0 | Q56: 1 | T56: Total Transmission Plant | X56: =X38/SUM(X$38:X$39) -> 0.4748737377 | Y56: =Y38/SUM(Y$38:Y$39) -> 0.4819895296
E57: OTHDGU | F57: Other Revenues - DGU Factor | I57: 0.4625870645 | J57: 0.5374129355 | K57: 0 | L57: 0 | M57: 0 | N57: 0 | O57: 0 | P57: 0 | Q57: 1 | T57: Total Distribution Plant | X57: =(X39-X40)/SUM(X$38:X$39) -> 0.509828893 | Y57: =(Y39-Y40)/SUM(Y$38:Y$39) -> 0.502992434
E58: OTHSE | F58: Other Revenues - SE Factor | I58: 0.0001727378942 | J58: 0.9998272621 | K58: 0 | L58: 0 | M58: 0 | N58: 0 | O58: 0 | P58: 0 | Q58: 1 | T58: Total Account 370 | X58: =X40/SUM(X$38:X$39) -> 0.0152973693 | Y58: =Y40/SUM(Y$38:Y$39) -> 0.01501803645
E59: OTHSG | F59: Other Revenues - SG Factor | I59: 0.4625870645 | J59: 0.5374129355 | K59: 0 | L59: 0 | M59: 0 | N59: 0 | O59: 0 | P59: 0 | Q59: 1 | T59: TOTAL | X59: =SUM(X56:X58) -> 1 | Y59: =SUM(Y56:Y58) -> 1
E60: OTHSGR | F60: Other Revenues - Rolled-In SG Factor | I60: 0.4625870645 | J60: 0.5374129355 | K60: 0 | L60: 0 | M60: 0 | N60: 0 | O60: 0 | P60: 0 | Q60: 1
E61: OTHSITUS | F61: Other Revenues - SITUS | I61: 0 | J61: 0 | K61: 1 | L61: 0 | M61: 0 | N61: 0 | O61: 0 | P61: 0 | Q61: 1 | T61: D_Split
E62: OTHSO | F62: Other Revenues - SO Factor | I62: 4.679293728e-05 | J62: 2.06904628e-05 | K62: 0.999931147 | L62: 0 | M62: 0 | N62: 0 | O62: 0 | P62: 0 | Q62: 0.9999986304 | T62: Total Distribution Plant | X62: =(X39-X40)/(X$39) -> 0.9708691597 | Y62: =(Y39-Y40)/(Y$39) -> 0.9710082377
E63: P | F63: Production | I63: 1 | J63: 0 | K63: 0 | L63: 0 | M63: 0 | N63: 0 | O63: 0 | P63: 0 | Q63: 1 | T63: Total Account 370 | X63: =X40/(X$39) -> 0.02913084033 | Y63: =Y40/(Y$39) -> 0.02899176234
E64: RETAIL | F64: Retail Function | I64: 0 | J64: 0 | K64: 0 | L64: 0 | M64: 0 | N64: 0 | O64: 0 | P64: 0 | Q64: 0 | T64: Total | X64: =SUM(X62:X63) -> 1 | Y64: =SUM(Y62:Y63) -> 1
E65: SCHMA | F65: Schedule M Additions | I65: 0.4190865141 | J65: 0.1641232291 | K65: 0.3761491918 | L65: 0 | M65: 0.005477940566 | N65: 0.01951171973 | O65: 0.0156514046 | P65: 0 | Q65: 1
E66: SCHMAF | F66: Schedule M Additions - Flow Through | I66: 1 | J66: 0 | K66: 0 | L66: 0 | M66: 0 | N66: 0 | O66: 0 | P66: 0 | Q66: 1
E67: SCHMAP | F67: Schedule M Additions - Permanent | I67: 0.4160970458 | J67: 0.06253452748 | K67: 0.3350010237 | L67: 0 | M67: 0.04850308641 | N67: 0.08856227243 | O67: 0.04930204415 | P67: 0 | Q67: 1 | X67: =I$3 -> Production | Y67: Transmission | Z67: Distribution | AA67: Ancillary | AB67: C_Billing | AC67: C_Metering | AD67: C_Service | AE67: DSM
E68: SCHMAP-SO | F68: Schedule M Additions - Permanent-SO | I68: 0.4059309643 | J68: 0.05308717123 | K68: 0.3396272537 | L68: 0 | M68: 0.05265863495 | N68: 0.09516993166 | O68: 0.05352604416 | P68: 0 | Q68: 1 | T68: (O&M + Taxes) / 365 | W68: =SUM(X68:AE68) -> 2471611.591 | X68: =((I1036+I1224+I1400+I1433)/365) -> 1866317.988 | Y68: 141044.0727 | Z68: 335768.1456 | AA68: -4429.901879 | AB68: 56600.45042 | AC68: 46964.51293 | AD68: 29346.32338 | AE68: 4.903199155e-302
E69: SCHMAT | F69: Schedule M Additions - Temporary | I69: 0.4191435536 | J69: 0.1660615541 | K69: 0.376934304 | L69: 0 | M69: 0.004657015452 | N69: 0.01819422663 | O69: 0.01500934623 | P69: 0 | Q69: 1 | T69: Net LAG Days | X69: =IF(Variables!$AO$3=12,Variables!$J20,IF(Variables!$Y23=2,CHOOSE(Variables!$AO3,Variables!$F20,Variables!$G20,Variables!$H20,Variables!$I20,Variables!$J20,Variables!$K20,Variables!$L20,Variables!$M20,Variables!$N20),Variables!$O20)) -> 5.985371458 | Y69: =IF(Variables!$AO$3=12,Variables!$J20,IF(Variables!$Y23=2,CHOOSE(Variables!$AO3,Variables!$F20,Variables!$G20,Variables!$H20,Variables!$I20,Variables!$J20,Variables!$K20,Variables!$L20,Variables!$M20,Variables!$N20),Variables!$O20)) -> 5.985371458 | Z69: =IF(Variables!$AO$3=12,Variables!$J20,IF(Variables!$Y23=2,CHOOSE(Variables!$AO3,Variables!$F20,Variables!$G20,Variables!$H20,Variables!$I20,Variables!$J20,Variables!$K20,Variables!$L20,Variables!$M20,Variables!$N20),Variables!$O20)) -> 5.985371458 | AA69: =IF(Variables!$AO$3=12,Variables!$J20,IF(Variables!$Y23=2,CHOOSE(Variables!$AO3,Variables!$F20,Variables!$G20,Variables!$H20,Variables!$I20,Variables!$J20,Variables!$K20,Variables!$L20,Variables!$M20,Variables!$N20),Variables!$O20)) -> 5.985371458 | AB69: =IF(Variables!$AO$3=12,Variables!$J20,IF(Variables!$Y23=2,CHOOSE(Variables!$AO3,Variables!$F20,Variables!$G20,Variables!$H20,Variables!$I20,Variables!$J20,Variables!$K20,Variables!$L20,Variables!$M20,Variables!$N20),Variables!$O20)) -> 5.985371458 | AC69: =IF(Variables!$AO$3=12,Variables!$J20,IF(Variables!$Y23=2,CHOOSE(Variables!$AO3,Variables!$F20,Variables!$G20,Variables!$H20,Variables!$I20,Variables!$J20,Variables!$K20,Variables!$L20,Variables!$M20,Variables!$N20),Variables!$O20)) -> 5.985371458 | AD69: =IF(Variables!$AO$3=12,Variables!$J20,IF(Variables!$Y23=2,CHOOSE(Variables!$AO3,Variables!$F20,Variables!$G20,Variables!$H20,Variables!$I20,Variables!$J20,Variables!$K20,Variables!$L20,Variables!$M20,Variables!$N20),Variables!$O20)) -> 5.985371458 | AE69: =IF(Variables!$AO$3=12,Variables!$J20,IF(Variables!$Y23=2,CHOOSE(Variables!$AO3,Variables!$F20,Variables!$G20,Variables!$H20,Variables!$I20,Variables!$J20,Variables!$K20,Variables!$L20,Variables!$M20,Variables!$N20),Variables!$O20)) -> 5.985371458
E70: SCHMAT-GPS | F70: Schedule M Additions - Temporary-GPS | I70: 0.4565079555 | J70: 0.2009823396 | K70: 0.3277488096 | L70: 0 | M70: 0.0008314080651 | N70: 0.0135501467 | O70: 0.0003793405869 | P70: 0 | Q70: 1 | T70: CWC | W70: =SUM(X70:AE70) -> 14793513.47 | X70: =X68*X69 -> 11170606.42 | Y70: 844201.1668 | Z70: 2009697.075 | AA70: -26514.60827 | AB70: 338774.7205 | AC70: 281100.0552 | AD70: 175648.6463 | AE70: 2.934746828e-301
E71: SCHMAT-SE | F71: Schedule M Additions - Temporary-SE | I71: 0.9842508729 | J71: 0.001272263869 | K71: 0.00898825335 | L71: 0 | M71: 0.001438471417 | N71: 0.002587972129 | O71: 0.00146216636 | P71: 0 | Q71: =SUM(I71:P71) -> 1
E72: SCHMAT-SITUS | F72: Schedule M Additions - Temporary-SITUS | I72: 0.5055376977 | J72: 0.05463690133 | K72: 0.2959301989 | L72: 0 | M72: 0.0370623376 | N72: 0.0691600246 | O72: 0.0376728398 | P72: 0 | Q72: 1
E73: SCHMAT-SNP | F73: Schedule M Additions - Temporary-SNP | I73: 0.4565162898 | J73: 0.2015183426 | K73: 0.3280584593 | L73: 0 | M73: 0.0003239124031 | N73: 0.01343520669 | O73: 0.0001477891859 | P73: 0 | Q73: 1 | T73: ACCUMDIT | V73: =Variables!AE27 -> 2010 PROTOCOL | X73: =IF(Variables!$AD$24=2,Function1149!X110,Function1149!AK110) -> 0.7550559101 | Y73: =IF(Variables!$AD$24=2,Function1149!Y110,Function1149!AL110) -> 0.1130421533 | Z73: =IF(Variables!$AD$24=2,Function1149!Z110,Function1149!AM110) -> 0.1235831928 | AA73: =IF(Variables!$AD$24=2,Function1149!AA110,Function1149!AN110) -> 0 | AB73: =IF(Variables!$AD$24=2,Function1149!AB110,Function1149!AO110) -> 0.003878040139 | AC73: =IF(Variables!$AD$24=2,Function1149!AC110,Function1149!AP110) -> 0.004440703689 | AD73: =IF(Variables!$AD$24=2,Function1149!AD110,Function1149!AQ110) -> 0 | AE73: =IF(Variables!$AD$24=2,Function1149!AE110,Function1149!AR110) -> 0
E74: SCHMAT-SO | F74: Schedule M Additions - Temporary-SO | I74: 0.4186955507 | J74: 0.154156412 | K74: 0.3574530733 | L74: 0 | M74: 0.01129494904 | N74: 0.02910680568 | O74: 0.02929320916 | P74: 0 | Q74: 1 | T74: DITEXP | V74: =Variables!AE27 -> 2010 PROTOCOL | X74: =IF(Variables!$AD$24=2,Function1149!X143,Function1149!AK143) ->  | Y74: =IF(Variables!$AD$24=2,Function1149!Y143,Function1149!AL143) ->  | Z74: =IF(Variables!$AD$24=2,Function1149!Z143,Function1149!AM143) ->  | AA74: =IF(Variables!$AD$24=2,Function1149!AA143,Function1149!AN143) ->  | AB74: =IF(Variables!$AD$24=2,Function1149!AB143,Function1149!AO143) ->  | AC74: =IF(Variables!$AD$24=2,Function1149!AC143,Function1149!AP143) ->  | AD74: =IF(Variables!$AD$24=2,Function1149!AD143,Function1149!AQ143) ->  | AE74: =IF(Variables!$AD$24=2,Function1149!AE143,Function1149!AR143) -> 
E75: SCHMD | F75: Schedule M Deductions | I75: 0.5227884621 | J75: 0.1552876126 | K75: 0.3019214664 | L75: 0 | M75: 0.003191548108 | N75: 0.008795786426 | O75: 0.008015124335 | P75: 0 | Q75: 1
E76: SCHMDF | F76: Schedule M Deductions - Flow Through | I76: 1 | J76: 0 | K76: 0 | L76: 0 | M76: 0 | N76: 0 | O76: 0 | P76: 0 | Q76: 1
E77: SCHMDP | F77: Schedule M Deductions - Permanent | I77: 0.4990425753 | J77: 0.04223817146 | K77: 0.2861061775 | L77: 0 | M77: 0.04519973017 | N77: 0.08146907158 | O77: 0.045944274 | P77: 0 | Q77: 1 | T77: DITBALRL | AG77: DITBALMA
E78: SCHMDP-SO | F78: Schedule M Deductions - Permanent- SO | I78: 0.4042442012 | J78: 0.04812686127 | K78: 0.340006384 | L78: 0 | M78: 0.05441434776 | N78: 0.0978975281 | O78: 0.05531067761 | P78: 0 | Q78: 1 | T78: Pacific Division | V78: Total | W78: =Variables!X24 -> UTAH | X78: =I$3 -> Production | Y78: Transmission | Z78: Distribution | AA78: Ancillary | AB78: C_Billing | AC78: C_Metering | AD78: C_Service | AE78: DSM | AG78: Pacific Division | AI78: Total | AJ78: =Variables!X24 -> UTAH | AK78: =I$3 -> Production | AL78: Transmission | AM78: Distribution | AN78: Ancillary | AO78: C_Billing | AP78: C_Metering | AQ78: C_Service | AR78: DSM
E79: SCHMDT | F79: Schedule M Deductions - Temporary | I79: 0.5234441071 | J79: 0.1584090078 | K79: 0.3023581405 | L79: 0 | M79: 0.00203166501 | N79: 0.006789212682 | O79: 0.006967866933 | P79: 0 | Q79: 1 | T79: Pacific Division | AG79: Pacific Division
E80: SCHMDT-GPS | F80: Schedule M Deductions - Temporary-GPS | I80: 0.4565216092 | J80: 0.20186045 | K80: 0.3282560953 | L80: 0 | M80: 0 | N80: 0.01336184549 | O80: 0 | P80: 0 | Q80: 1 | T80: Production | U80: P | V80: =Factors!C433 -> 42724405 | W80: =IF(Variables!$AO$3=12,Factors!H433+Factors!K433,CHOOSE(Variables!AO$3,Factors!D433,Factors!E433,Factors!F433,Factors!G433,Factors!H433,Factors!I433,Factors!J433,Factors!K433,Factors!L433,Factors!M433,Factors!N433)) -> 1644458 | X80: =VLOOKUP($U80,Func_Ftrs,I$90,0)*IF(Variables!$Y$23=1,$V80,$W80) -> 1644458 | Y80: =VLOOKUP($U80,Func_Ftrs,J$90,0)*IF(Variables!$Y$23=1,$V80,$W80) -> 0 | Z80: =VLOOKUP($U80,Func_Ftrs,K$90,0)*IF(Variables!$Y$23=1,$V80,$W80) -> 0 | AA80: =VLOOKUP($U80,Func_Ftrs,L$90,0)*IF(Variables!$Y$23=1,$V80,$W80) -> 0 | AB80: =VLOOKUP($U80,Func_Ftrs,M$90,0)*IF(Variables!$Y$23=1,$V80,$W80) -> 0 | AC80: =VLOOKUP($U80,Func_Ftrs,N$90,0)*IF(Variables!$Y$23=1,$V80,$W80) -> 0 | AD80: =VLOOKUP($U80,Func_Ftrs,O$90,0)*IF(Variables!$Y$23=1,$V80,$W80) -> 0 | AE80: =VLOOKUP($U80,Func_Ftrs,P$90,0)*IF(Variables!$Y$23=1,$V80,$W80) -> 0 | AG80: Production | AH80: P | AI80: =V80 -> 42724405 | AJ80: 1644458 | AK80: =VLOOKUP($AH80,Func_Ftrs,I$90,0)*IF(Variables!$Y$23=1,$AI80,$AJ80) -> 1644458 | AL80: =VLOOKUP($AH80,Func_Ftrs,J$90,0)*IF(Variables!$Y$23=1,$AI80,$AJ80) -> 0 | AM80: =VLOOKUP($AH80,Func_Ftrs,K$90,0)*IF(Variables!$Y$23=1,$AI80,$AJ80) -> 0 | AN80: =VLOOKUP($AH80,Func_Ftrs,L$90,0)*IF(Variables!$Y$23=1,$AI80,$AJ80) -> 0 | AO80: =VLOOKUP($AH80,Func_Ftrs,M$90,0)*IF(Variables!$Y$23=1,$AI80,$AJ80) -> 0 | AP80: =VLOOKUP($AH80,Func_Ftrs,N$90,0)*IF(Variables!$Y$23=1,$AI80,$AJ80) -> 0 | AQ80: =VLOOKUP($AH80,Func_Ftrs,O$90,0)*IF(Variables!$Y$23=1,$AI80,$AJ80) -> 0 | AR80: =VLOOKUP($AH80,Func_Ftrs,P$90,0)*IF(Variables!$Y$23=1,$AI80,$AJ80) -> 0
E81: SCHMDT-SG | F81: Schedule M Deductions - Temporary-SG | I81: 0.4608190971 | J81: 0.1948405389 | K81: 0.3224945048 | L81: 0 | M81: 0.005105776225 | N81: 0.01441050707 | O81: 0.00232957585 | P81: 0 | Q81: 1 | T81: Transmission | U81: T | V81: =Factors!C434 -> 17577756 | W81: =IF(Variables!$AO$3=12,Factors!H434+Factors!K434,CHOOSE(Variables!AO$3,Factors!D434,Factors!E434,Factors!F434,Factors!G434,Factors!H434,Factors!I434,Factors!J434,Factors!K434,Factors!L434,Factors!M434,Factors!N434)) -> 768591 | X81: =VLOOKUP($U81,Func_Ftrs,I$90,0)*IF(Variables!$Y$23=1,$V81,$W81) -> 0 | Y81: =VLOOKUP($U81,Func_Ftrs,J$90,0)*IF(Variables!$Y$23=1,$V81,$W81) -> 768591 | Z81: =VLOOKUP($U81,Func_Ftrs,K$90,0)*IF(Variables!$Y$23=1,$V81,$W81) -> 0 | AA81: =VLOOKUP($U81,Func_Ftrs,L$90,0)*IF(Variables!$Y$23=1,$V81,$W81) -> 0 | AB81: =VLOOKUP($U81,Func_Ftrs,M$90,0)*IF(Variables!$Y$23=1,$V81,$W81) -> 0 | AC81: =VLOOKUP($U81,Func_Ftrs,N$90,0)*IF(Variables!$Y$23=1,$V81,$W81) -> 0 | AD81: =VLOOKUP($U81,Func_Ftrs,O$90,0)*IF(Variables!$Y$23=1,$V81,$W81) -> 0 | AE81: =VLOOKUP($U81,Func_Ftrs,P$90,0)*IF(Variables!$Y$23=1,$V81,$W81) -> 0 | AG81: Transmission | AH81: T | AI81: 17577756 | AJ81: 768591 | AK81: =VLOOKUP($AH81,Func_Ftrs,I$90,0)*IF(Variables!$Y$23=1,$AI81,$AJ81) -> 0 | AL81: =VLOOKUP($AH81,Func_Ftrs,J$90,0)*IF(Variables!$Y$23=1,$AI81,$AJ81) -> 768591 | AM81: =VLOOKUP($AH81,Func_Ftrs,K$90,0)*IF(Variables!$Y$23=1,$AI81,$AJ81) -> 0 | AN81: =VLOOKUP($AH81,Func_Ftrs,L$90,0)*IF(Variables!$Y$23=1,$AI81,$AJ81) -> 0 | AO81: =VLOOKUP($AH81,Func_Ftrs,M$90,0)*IF(Variables!$Y$23=1,$AI81,$AJ81) -> 0 | AP81: =VLOOKUP($AH81,Func_Ftrs,N$90,0)*IF(Variables!$Y$23=1,$AI81,$AJ81) -> 0 | AQ81: =VLOOKUP($AH81,Func_Ftrs,O$90,0)*IF(Variables!$Y$23=1,$AI81,$AJ81) -> 0 | AR81: =VLOOKUP($AH81,Func_Ftrs,P$90,0)*IF(Variables!$Y$23=1,$AI81,$AJ81) -> 0
E82: SCHMDT-SITUS | F82: Schedule M Deductions - Temporary-SITUS | I82: 0.3410559312 | J82: 0.1427612088 | K82: 0.4141191546 | L82: 0 | M82: 0.006128821526 | N82: 0.02200440681 | O82: 0.07393047712 | P82: 0 | Q82: 1 | T82: Distribution | U82: D_SPLIT | V82: =Factors!C435 -> 20834796 | W82: =IF(Variables!$AO$3=12,Factors!H435+Factors!K435,CHOOSE(Variables!AO$3,Factors!D435,Factors!E435,Factors!F435,Factors!G435,Factors!H435,Factors!I435,Factors!J435,Factors!K435,Factors!L435,Factors!M435,Factors!N435)) -> 0 | X82: =VLOOKUP($U82,Func_Ftrs,I$90,0)*IF(Variables!$Y$23=1,$V82,$W82) -> 0 | Y82: =VLOOKUP($U82,Func_Ftrs,J$90,0)*IF(Variables!$Y$23=1,$V82,$W82) -> 0 | Z82: =VLOOKUP($U82,Func_Ftrs,K$90,0)*IF(Variables!$Y$23=1,$V82,$W82) -> 0 | AA82: =VLOOKUP($U82,Func_Ftrs,L$90,0)*IF(Variables!$Y$23=1,$V82,$W82) -> 0 | AB82: =VLOOKUP($U82,Func_Ftrs,M$90,0)*IF(Variables!$Y$23=1,$V82,$W82) -> 0 | AC82: =VLOOKUP($U82,Func_Ftrs,N$90,0)*IF(Variables!$Y$23=1,$V82,$W82) -> 0 | AD82: =VLOOKUP($U82,Func_Ftrs,O$90,0)*IF(Variables!$Y$23=1,$V82,$W82) -> 0 | AE82: =VLOOKUP($U82,Func_Ftrs,P$90,0)*IF(Variables!$Y$23=1,$V82,$W82) -> 0 | AG82: Distribution | AH82: D_SPLIT | AI82: 20834796 | AJ82: 0 | AK82: =VLOOKUP($AH82,Func_Ftrs,I$90,0)*IF(Variables!$Y$23=1,$AI82,$AJ82) -> 0 | AL82: =VLOOKUP($AH82,Func_Ftrs,J$90,0)*IF(Variables!$Y$23=1,$AI82,$AJ82) -> 0 | AM82: =VLOOKUP($AH82,Func_Ftrs,K$90,0)*IF(Variables!$Y$23=1,$AI82,$AJ82) -> 0 | AN82: =VLOOKUP($AH82,Func_Ftrs,L$90,0)*IF(Variables!$Y$23=1,$AI82,$AJ82) -> 0 | AO82: =VLOOKUP($AH82,Func_Ftrs,M$90,0)*IF(Variables!$Y$23=1,$AI82,$AJ82) -> 0 | AP82: =VLOOKUP($AH82,Func_Ftrs,N$90,0)*IF(Variables!$Y$23=1,$AI82,$AJ82) -> 0 | AQ82: =VLOOKUP($AH82,Func_Ftrs,O$90,0)*IF(Variables!$Y$23=1,$AI82,$AJ82) -> 0 | AR82: =VLOOKUP($AH82,Func_Ftrs,P$90,0)*IF(Variables!$Y$23=1,$AI82,$AJ82) -> 0
E83: SCHMDT-SNP | F83: Schedule M Deductions - Temporary-SNP | I83: 0.4565216092 | J83: 0.20186045 | K83: 0.3282560953 | L83: 0 | M83: 0 | N83: 0.01336184549 | O83: 0 | P83: 0 | Q83: 1 | T83: General | U83: G | V83: =Factors!C436 -> -340826 | W83: =IF(Variables!$AO$3=12,Factors!H436+Factors!K436,CHOOSE(Variables!AO$3,Factors!D436,Factors!E436,Factors!F436,Factors!G436,Factors!H436,Factors!I436,Factors!J436,Factors!K436,Factors!L436,Factors!M436,Factors!N436)) -> -39874 | X83: =VLOOKUP($U83,Func_Ftrs,I$90,0)*IF(Variables!$Y$23=1,$V83,$W83) -> -10244.38329 | Y83: =VLOOKUP($U83,Func_Ftrs,J$90,0)*IF(Variables!$Y$23=1,$V83,$W83) -> -8746.918512 | Z83: =VLOOKUP($U83,Func_Ftrs,K$90,0)*IF(Variables!$Y$23=1,$V83,$W83) -> -19040.76751 | AA83: =VLOOKUP($U83,Func_Ftrs,L$90,0)*IF(Variables!$Y$23=1,$V83,$W83) -> 0 | AB83: =VLOOKUP($U83,Func_Ftrs,M$90,0)*IF(Variables!$Y$23=1,$V83,$W83) -> -1066.865739 | AC83: =VLOOKUP($U83,Func_Ftrs,N$90,0)*IF(Variables!$Y$23=1,$V83,$W83) -> -775.0649481 | AD83: =VLOOKUP($U83,Func_Ftrs,O$90,0)*IF(Variables!$Y$23=1,$V83,$W83) -> 0 | AE83: =VLOOKUP($U83,Func_Ftrs,P$90,0)*IF(Variables!$Y$23=1,$V83,$W83) -> 0 | AG83: General | AH83: G | AI83: -340826 | AJ83: -39874 | AK83: =VLOOKUP($AH83,Func_Ftrs,I$90,0)*IF(Variables!$Y$23=1,$AI83,$AJ83) -> -10244.38329 | AL83: =VLOOKUP($AH83,Func_Ftrs,J$90,0)*IF(Variables!$Y$23=1,$AI83,$AJ83) -> -8746.918512 | AM83: =VLOOKUP($AH83,Func_Ftrs,K$90,0)*IF(Variables!$Y$23=1,$AI83,$AJ83) -> -19040.76751 | AN83: =VLOOKUP($AH83,Func_Ftrs,L$90,0)*IF(Variables!$Y$23=1,$AI83,$AJ83) -> 0 | AO83: =VLOOKUP($AH83,Func_Ftrs,M$90,0)*IF(Variables!$Y$23=1,$AI83,$AJ83) -> -1066.865739 | AP83: =VLOOKUP($AH83,Func_Ftrs,N$90,0)*IF(Variables!$Y$23=1,$AI83,$AJ83) -> -775.0649481 | AQ83: =VLOOKUP($AH83,Func_Ftrs,O$90,0)*IF(Variables!$Y$23=1,$AI83,$AJ83) -> 0 | AR83: =VLOOKUP($AH83,Func_Ftrs,P$90,0)*IF(Variables!$Y$23=1,$AI83,$AJ83) -> 0
E84: SCHMDT-SO | F84: Schedule M Deductions - Temporary-SO | I84: 0.3991307728 | J84: 0.1406406649 | K84: 0.3597395907 | L84: 0 | M84: 0.0138620858 | N84: 0.02934318126 | O84: 0.05728370445 | P84: 0 | Q84: 1 | T84: Mining Plant | U84: P | V84: =Factors!C437 -> 3474 | W84: =IF(Variables!$AO$3=12,Factors!H437+Factors!K437,CHOOSE(Variables!AO$3,Factors!D437,Factors!E437,Factors!F437,Factors!G437,Factors!H437,Factors!I437,Factors!J437,Factors!K437,Factors!L437,Factors!M437,Factors!N437)) -> 1447 | X84: =VLOOKUP($U84,Func_Ftrs,I$90,0)*IF(Variables!$Y$23=1,$V84,$W84) -> 1447 | Y84: =VLOOKUP($U84,Func_Ftrs,J$90,0)*IF(Variables!$Y$23=1,$V84,$W84) -> 0 | Z84: =VLOOKUP($U84,Func_Ftrs,K$90,0)*IF(Variables!$Y$23=1,$V84,$W84) -> 0 | AA84: =VLOOKUP($U84,Func_Ftrs,L$90,0)*IF(Variables!$Y$23=1,$V84,$W84) -> 0 | AB84: =VLOOKUP($U84,Func_Ftrs,M$90,0)*IF(Variables!$Y$23=1,$V84,$W84) -> 0 | AC84: =VLOOKUP($U84,Func_Ftrs,N$90,0)*IF(Variables!$Y$23=1,$V84,$W84) -> 0 | AD84: =VLOOKUP($U84,Func_Ftrs,O$90,0)*IF(Variables!$Y$23=1,$V84,$W84) -> 0 | AE84: =VLOOKUP($U84,Func_Ftrs,P$90,0)*IF(Variables!$Y$23=1,$V84,$W84) -> 0 | AG84: Mining Plant | AH84: P | AI84: 3474 | AJ84: 1447 | AK84: =VLOOKUP($AH84,Func_Ftrs,I$90,0)*IF(Variables!$Y$23=1,$AI84,$AJ84) -> 1447 | AL84: =VLOOKUP($AH84,Func_Ftrs,J$90,0)*IF(Variables!$Y$23=1,$AI84,$AJ84) -> 0 | AM84: =VLOOKUP($AH84,Func_Ftrs,K$90,0)*IF(Variables!$Y$23=1,$AI84,$AJ84) -> 0 | AN84: =VLOOKUP($AH84,Func_Ftrs,L$90,0)*IF(Variables!$Y$23=1,$AI84,$AJ84) -> 0 | AO84: =VLOOKUP($AH84,Func_Ftrs,M$90,0)*IF(Variables!$Y$23=1,$AI84,$AJ84) -> 0 | AP84: =VLOOKUP($AH84,Func_Ftrs,N$90,0)*IF(Variables!$Y$23=1,$AI84,$AJ84) -> 0 | AQ84: =VLOOKUP($AH84,Func_Ftrs,O$90,0)*IF(Variables!$Y$23=1,$AI84,$AJ84) -> 0 | AR84: =VLOOKUP($AH84,Func_Ftrs,P$90,0)*IF(Variables!$Y$23=1,$AI84,$AJ84) -> 0
E85: STEP_UP | F85: Step-up Transformers | I85: 0.08489055306 | J85: 0.9151094469 | K85: 0 | L85: 0 | M85: 0 | N85: 0 | O85: 0 | P85: 0 | Q85: 1
E86: T | F86: Transmission | I86: 0 | J86: 1 | K86: 0 | L86: 0 | M86: 0 | N86: 0 | O86: 0 | P86: 0 | Q86: 1 | T86: Total Pacific Division | V86: =SUM(V80:V85) -> 80799605 | W86: 2374622 | X86: =SUM(X80:X85) -> 1635660.617 | Y86: =SUM(Y80:Y85) -> 759844.0815 | Z86: =SUM(Z80:Z85) -> -19040.76751 | AA86: 0 | AB86: -1066.865739 | AC86: -775.0649481 | AD86: 0 | AE86: 0 | AG86: Total Pacific Division | AI86: =SUM(AI80:AI85) -> 80799605 | AJ86: 2374622 | AK86: 1635660.617 | AL86: 759844.0815 | AM86: -19040.76751 | AN86: 0 | AO86: -1066.865739 | AP86: -775.0649481 | AQ86: 0 | AR86: 0
E87: TAXDEPR | F87: Tax Depreciation | I87: 0.538093851 | J87: 0.1599673196 | K87: 0.2956423354 | L87: 0 | M87: 0.001573456926 | N87: 0.003540275144 | O87: 0.001182761924 | P87: 0 | Q87: 1
E88: WSF | F88: Wholesale Sales Firm | I88: 0.795370473 | J88: 0.204629527 | K88: 0 | L88: 0 | M88: 0 | N88: 0 | O88: 0 | P88: 0 | Q88: 1 | T88: Utah Division | AG88: Utah Division
T89: Production | U89: P | V89: =Factors!C443 -> 65261524 | W89: =IF(Variables!$AO$3=12,Factors!H443+Factors!K443,CHOOSE(Variables!AO$3,Factors!D443,Factors!E443,Factors!F443,Factors!G443,Factors!H443,Factors!I443,Factors!J443,Factors!K443,Factors!L443,Factors!M443,Factors!N443)) -> 51345382 | X89: =VLOOKUP($U89,Func_Ftrs,I$90,0)*IF(Variables!$Y$23=1,$V89,$W89) -> 51345382 | Y89: =VLOOKUP($U89,Func_Ftrs,J$90,0)*IF(Variables!$Y$23=1,$V89,$W89) -> 0 | Z89: =VLOOKUP($U89,Func_Ftrs,K$90,0)*IF(Variables!$Y$23=1,$V89,$W89) -> 0 | AA89: =VLOOKUP($U89,Func_Ftrs,L$90,0)*IF(Variables!$Y$23=1,$V89,$W89) -> 0 | AB89: =VLOOKUP($U89,Func_Ftrs,M$90,0)*IF(Variables!$Y$23=1,$V89,$W89) -> 0 | AC89: =VLOOKUP($U89,Func_Ftrs,N$90,0)*IF(Variables!$Y$23=1,$V89,$W89) -> 0 | AD89: =VLOOKUP($U89,Func_Ftrs,O$90,0)*IF(Variables!$Y$23=1,$V89,$W89) -> 0 | AE89: =VLOOKUP($U89,Func_Ftrs,P$90,0)*IF(Variables!$Y$23=1,$V89,$W89) -> 0 | AG89: Production | AH89: P | AI89: =V89 -> 65261524 | AJ89: 51345382 | AK89: =VLOOKUP($AH89,Func_Ftrs,I$90,0)*IF(Variables!$Y$23=1,$AI89,$AJ89) -> 51345382 | AL89: =VLOOKUP($AH89,Func_Ftrs,J$90,0)*IF(Variables!$Y$23=1,$AI89,$AJ89) -> 0 | AM89: =VLOOKUP($AH89,Func_Ftrs,K$90,0)*IF(Variables!$Y$23=1,$AI89,$AJ89) -> 0 | AN89: =VLOOKUP($AH89,Func_Ftrs,L$90,0)*IF(Variables!$Y$23=1,$AI89,$AJ89) -> 0 | AO89: =VLOOKUP($AH89,Func_Ftrs,M$90,0)*IF(Variables!$Y$23=1,$AI89,$AJ89) -> 0 | AP89: =VLOOKUP($AH89,Func_Ftrs,N$90,0)*IF(Variables!$Y$23=1,$AI89,$AJ89) -> 0 | AQ89: =VLOOKUP($AH89,Func_Ftrs,O$90,0)*IF(Variables!$Y$23=1,$AI89,$AJ89) -> 0 | AR89: =VLOOKUP($AH89,Func_Ftrs,P$90,0)*IF(Variables!$Y$23=1,$AI89,$AJ89) -> 0
E90: 1 | F90: =E90+1 -> 2 | G90: 3 | H90: 4 | I90: 5 | J90: 6 | K90: 7 | L90: 8 | M90: 9 | N90: 10 | O90: 11 | P90: 12 | Q90: 13 | T90: Transmission | U90: T | V90: =Factors!C444 -> 41175577 | W90: =IF(Variables!$AO$3=12,Factors!H444+Factors!K444,CHOOSE(Variables!AO$3,Factors!D444,Factors!E444,Factors!F444,Factors!G444,Factors!H444,Factors!I444,Factors!J444,Factors!K444,Factors!L444,Factors!M444,Factors!N444)) -> 34732978 | X90: =VLOOKUP($U90,Func_Ftrs,I$90,0)*IF(Variables!$Y$23=1,$V90,$W90) -> 0 | Y90: =VLOOKUP($U90,Func_Ftrs,J$90,0)*IF(Variables!$Y$23=1,$V90,$W90) -> 34732978 | Z90: =VLOOKUP($U90,Func_Ftrs,K$90,0)*IF(Variables!$Y$23=1,$V90,$W90) -> 0 | AA90: =VLOOKUP($U90,Func_Ftrs,L$90,0)*IF(Variables!$Y$23=1,$V90,$W90) -> 0 | AB90: =VLOOKUP($U90,Func_Ftrs,M$90,0)*IF(Variables!$Y$23=1,$V90,$W90) -> 0 | AC90: =VLOOKUP($U90,Func_Ftrs,N$90,0)*IF(Variables!$Y$23=1,$V90,$W90) -> 0 | AD90: =VLOOKUP($U90,Func_Ftrs,O$90,0)*IF(Variables!$Y$23=1,$V90,$W90) -> 0 | AE90: =VLOOKUP($U90,Func_Ftrs,P$90,0)*IF(Variables!$Y$23=1,$V90,$W90) -> 0 | AG90: Transmission | AH90: T | AI90: 41175577 | AJ90: 34732978 | AK90: =VLOOKUP($AH90,Func_Ftrs,I$90,0)*IF(Variables!$Y$23=1,$AI90,$AJ90) -> 0 | AL90: =VLOOKUP($AH90,Func_Ftrs,J$90,0)*IF(Variables!$Y$23=1,$AI90,$AJ90) -> 34732978 | AM90: =VLOOKUP($AH90,Func_Ftrs,K$90,0)*IF(Variables!$Y$23=1,$AI90,$AJ90) -> 0 | AN90: =VLOOKUP($AH90,Func_Ftrs,L$90,0)*IF(Variables!$Y$23=1,$AI90,$AJ90) -> 0 | AO90: =VLOOKUP($AH90,Func_Ftrs,M$90,0)*IF(Variables!$Y$23=1,$AI90,$AJ90) -> 0 | AP90: =VLOOKUP($AH90,Func_Ftrs,N$90,0)*IF(Variables!$Y$23=1,$AI90,$AJ90) -> 0 | AQ90: =VLOOKUP($AH90,Func_Ftrs,O$90,0)*IF(Variables!$Y$23=1,$AI90,$AJ90) -> 0 | AR90: =VLOOKUP($AH90,Func_Ftrs,P$90,0)*IF(Variables!$Y$23=1,$AI90,$AJ90) -> 0
T91: Distribution | U91: D_SPLIT | V91: =Factors!C445 -> 30022827 | W91: =IF(Variables!$AO$3=12,Factors!H445+Factors!K445,CHOOSE(Variables!AO$3,Factors!D445,Factors!E445,Factors!F445,Factors!G445,Factors!H445,Factors!I445,Factors!J445,Factors!K445,Factors!L445,Factors!M445,Factors!N445)) -> 24466833 | X91: =VLOOKUP($U91,Func_Ftrs,I$90,0)*IF(Variables!$Y$23=1,$V91,$W91) -> 0 | Y91: =VLOOKUP($U91,Func_Ftrs,J$90,0)*IF(Variables!$Y$23=1,$V91,$W91) -> 0 | Z91: =VLOOKUP($U91,Func_Ftrs,K$90,0)*IF(Variables!$Y$23=1,$V91,$W91) -> 23757496.39 | AA91: =VLOOKUP($U91,Func_Ftrs,L$90,0)*IF(Variables!$Y$23=1,$V91,$W91) -> 0 | AB91: =VLOOKUP($U91,Func_Ftrs,M$90,0)*IF(Variables!$Y$23=1,$V91,$W91) -> 0 | AC91: =VLOOKUP($U91,Func_Ftrs,N$90,0)*IF(Variables!$Y$23=1,$V91,$W91) -> 709336.6075 | AD91: =VLOOKUP($U91,Func_Ftrs,O$90,0)*IF(Variables!$Y$23=1,$V91,$W91) -> 0 | AE91: =VLOOKUP($U91,Func_Ftrs,P$90,0)*IF(Variables!$Y$23=1,$V91,$W91) -> 0 | AG91: Distribution | AH91: D_SPLIT | AI91: 30022827 | AJ91: 24466833 | AK91: =VLOOKUP($AH91,Func_Ftrs,I$90,0)*IF(Variables!$Y$23=1,$AI91,$AJ91) -> 0 | AL91: =VLOOKUP($AH91,Func_Ftrs,J$90,0)*IF(Variables!$Y$23=1,$AI91,$AJ91) -> 0 | AM91: =VLOOKUP($AH91,Func_Ftrs,K$90,0)*IF(Variables!$Y$23=1,$AI91,$AJ91) -> 23757496.39 | AN91: =VLOOKUP($AH91,Func_Ftrs,L$90,0)*IF(Variables!$Y$23=1,$AI91,$AJ91) -> 0 | AO91: =VLOOKUP($AH91,Func_Ftrs,M$90,0)*IF(Variables!$Y$23=1,$AI91,$AJ91) -> 0 | AP91: =VLOOKUP($AH91,Func_Ftrs,N$90,0)*IF(Variables!$Y$23=1,$AI91,$AJ91) -> 709336.6075 | AQ91: =VLOOKUP($AH91,Func_Ftrs,O$90,0)*IF(Variables!$Y$23=1,$AI91,$AJ91) -> 0 | AR91: =VLOOKUP($AH91,Func_Ftrs,P$90,0)*IF(Variables!$Y$23=1,$AI91,$AJ91) -> 0
T92: General | U92: G | V92: =Factors!C446 -> -717525 | W92: =IF(Variables!$AO$3=12,Factors!H446+Factors!K446,CHOOSE(Variables!AO$3,Factors!D446,Factors!E446,Factors!F446,Factors!G446,Factors!H446,Factors!I446,Factors!J446,Factors!K446,Factors!L446,Factors!M446,Factors!N446)) -> -273621 | X92: =VLOOKUP($U92,Func_Ftrs,I$90,0)*IF(Variables!$Y$23=1,$V92,$W92) -> -70298.39996 | Y92: =VLOOKUP($U92,Func_Ftrs,J$90,0)*IF(Variables!$Y$23=1,$V92,$W92) -> -60022.5859 | Z92: =VLOOKUP($U92,Func_Ftrs,K$90,0)*IF(Variables!$Y$23=1,$V92,$W92) -> -130660.4265 | AA92: =VLOOKUP($U92,Func_Ftrs,L$90,0)*IF(Variables!$Y$23=1,$V92,$W92) -> 0 | AB92: =VLOOKUP($U92,Func_Ftrs,M$90,0)*IF(Variables!$Y$23=1,$V92,$W92) -> -7320.982855 | AC92: =VLOOKUP($U92,Func_Ftrs,N$90,0)*IF(Variables!$Y$23=1,$V92,$W92) -> -5318.604759 | AD92: =VLOOKUP($U92,Func_Ftrs,O$90,0)*IF(Variables!$Y$23=1,$V92,$W92) -> 0 | AE92: =VLOOKUP($U92,Func_Ftrs,P$90,0)*IF(Variables!$Y$23=1,$V92,$W92) -> 0 | AG92: General | AH92: G | AI92: -717525 | AJ92: -273621 | AK92: =VLOOKUP($AH92,Func_Ftrs,I$90,0)*IF(Variables!$Y$23=1,$AI92,$AJ92) -> -70298.39996 | AL92: =VLOOKUP($AH92,Func_Ftrs,J$90,0)*IF(Variables!$Y$23=1,$AI92,$AJ92) -> -60022.5859 | AM92: =VLOOKUP($AH92,Func_Ftrs,K$90,0)*IF(Variables!$Y$23=1,$AI92,$AJ92) -> -130660.4265 | AN92: =VLOOKUP($AH92,Func_Ftrs,L$90,0)*IF(Variables!$Y$23=1,$AI92,$AJ92) -> 0 | AO92: =VLOOKUP($AH92,Func_Ftrs,M$90,0)*IF(Variables!$Y$23=1,$AI92,$AJ92) -> -7320.982855 | AP92: =VLOOKUP($AH92,Func_Ftrs,N$90,0)*IF(Variables!$Y$23=1,$AI92,$AJ92) -> -5318.604759 | AQ92: =VLOOKUP($AH92,Func_Ftrs,O$90,0)*IF(Variables!$Y$23=1,$AI92,$AJ92) -> 0 | AR92: =VLOOKUP($AH92,Func_Ftrs,P$90,0)*IF(Variables!$Y$23=1,$AI92,$AJ92) -> 0
T93: Mining Plant | U93: P | V93: =Factors!C447 -> 8895 | W93: =IF(Variables!$AO$3=12,Factors!H447+Factors!K447,CHOOSE(Variables!AO$3,Factors!D447,Factors!E447,Factors!F447,Factors!G447,Factors!H447,Factors!I447,Factors!J447,Factors!K447,Factors!L447,Factors!M447,Factors!N447)) -> 3703 | X93: =VLOOKUP($U93,Func_Ftrs,I$90,0)*IF(Variables!$Y$23=1,$V93,$W93) -> 3703 | Y93: =VLOOKUP($U93,Func_Ftrs,J$90,0)*IF(Variables!$Y$23=1,$V93,$W93) -> 0 | Z93: =VLOOKUP($U93,Func_Ftrs,K$90,0)*IF(Variables!$Y$23=1,$V93,$W93) -> 0 | AA93: =VLOOKUP($U93,Func_Ftrs,L$90,0)*IF(Variables!$Y$23=1,$V93,$W93) -> 0 | AB93: =VLOOKUP($U93,Func_Ftrs,M$90,0)*IF(Variables!$Y$23=1,$V93,$W93) -> 0 | AC93: =VLOOKUP($U93,Func_Ftrs,N$90,0)*IF(Variables!$Y$23=1,$V93,$W93) -> 0 | AD93: =VLOOKUP($U93,Func_Ftrs,O$90,0)*IF(Variables!$Y$23=1,$V93,$W93) -> 0 | AE93: =VLOOKUP($U93,Func_Ftrs,P$90,0)*IF(Variables!$Y$23=1,$V93,$W93) -> 0 | AG93: Mining Plant | AH93: P | AI93: 8895 | AJ93: 3703 | AK93: =VLOOKUP($AH93,Func_Ftrs,I$90,0)*IF(Variables!$Y$23=1,$AI93,$AJ93) -> 3703 | AL93: =VLOOKUP($AH93,Func_Ftrs,J$90,0)*IF(Variables!$Y$23=1,$AI93,$AJ93) -> 0 | AM93: =VLOOKUP($AH93,Func_Ftrs,K$90,0)*IF(Variables!$Y$23=1,$AI93,$AJ93) -> 0 | AN93: =VLOOKUP($AH93,Func_Ftrs,L$90,0)*IF(Variables!$Y$23=1,$AI93,$AJ93) -> 0 | AO93: =VLOOKUP($AH93,Func_Ftrs,M$90,0)*IF(Variables!$Y$23=1,$AI93,$AJ93) -> 0 | AP93: =VLOOKUP($AH93,Func_Ftrs,N$90,0)*IF(Variables!$Y$23=1,$AI93,$AJ93) -> 0 | AQ93: =VLOOKUP($AH93,Func_Ftrs,O$90,0)*IF(Variables!$Y$23=1,$AI93,$AJ93) -> 0 | AR93: =VLOOKUP($AH93,Func_Ftrs,P$90,0)*IF(Variables!$Y$23=1,$AI93,$AJ93) -> 0
T95: Total Utah Division | V95: =SUM(V89:V94) -> 135751298 | W95: 110275275 | X95: =SUM(X89:X94) -> 51278786.6 | Y95: 34672955.41 | Z95: 23626835.97 | AA95: 0 | AB95: -7320.982855 | AC95: 704018.0028 | AD95: 0 | AE95: 0 | AG95: Total Utah Division | AI95: =SUM(AI89:AI94) -> 135751298 | AJ95: 110275275 | AK95: 51278786.6 | AL95: 34672955.41 | AM95: 23626835.97 | AN95: 0 | AO95: -7320.982855 | AP95: 704018.0028 | AQ95: 0 | AR95: 0
T97: PACIFICORP | AG97: PACIFICORP
T98: Production | U98: P | V98: =Factors!C453 -> 479644261 | W98: =IF(Variables!$AO$3=12,Factors!H453+Factors!K453,CHOOSE(Variables!AO$3,Factors!D453,Factors!E453,Factors!F453,Factors!G453,Factors!H453,Factors!I453,Factors!J453,Factors!K453,Factors!L453,Factors!M453,Factors!N453)) -> 195634290 | X98: =VLOOKUP($U98,Func_Ftrs,I$90,0)*IF(Variables!$Y$23=1,$V98,$W98) -> 195634290 | Y98: =VLOOKUP($U98,Func_Ftrs,J$90,0)*IF(Variables!$Y$23=1,$V98,$W98) -> 0 | Z98: =VLOOKUP($U98,Func_Ftrs,K$90,0)*IF(Variables!$Y$23=1,$V98,$W98) -> 0 | AA98: =VLOOKUP($U98,Func_Ftrs,L$90,0)*IF(Variables!$Y$23=1,$V98,$W98) -> 0 | AB98: =VLOOKUP($U98,Func_Ftrs,M$90,0)*IF(Variables!$Y$23=1,$V98,$W98) -> 0 | AC98: =VLOOKUP($U98,Func_Ftrs,N$90,0)*IF(Variables!$Y$23=1,$V98,$W98) -> 0 | AD98: =VLOOKUP($U98,Func_Ftrs,O$90,0)*IF(Variables!$Y$23=1,$V98,$W98) -> 0 | AE98: =VLOOKUP($U98,Func_Ftrs,P$90,0)*IF(Variables!$Y$23=1,$V98,$W98) -> 0 | AG98: Production | AH98: P | AI98: =V98 -> 479644261 | AJ98: =W98 -> 195634290 | AK98: =VLOOKUP($AH98,Func_Ftrs,I$90,0)*IF(Variables!$Y$23=1,$AI98,$AJ98) -> 195634290 | AL98: =VLOOKUP($AH98,Func_Ftrs,J$90,0)*IF(Variables!$Y$23=1,$AI98,$AJ98) -> 0 | AM98: =VLOOKUP($AH98,Func_Ftrs,K$90,0)*IF(Variables!$Y$23=1,$AI98,$AJ98) -> 0 | AN98: =VLOOKUP($AH98,Func_Ftrs,L$90,0)*IF(Variables!$Y$23=1,$AI98,$AJ98) -> 0 | AO98: =VLOOKUP($AH98,Func_Ftrs,M$90,0)*IF(Variables!$Y$23=1,$AI98,$AJ98) -> 0 | AP98: =VLOOKUP($AH98,Func_Ftrs,N$90,0)*IF(Variables!$Y$23=1,$AI98,$AJ98) -> 0 | AQ98: =VLOOKUP($AH98,Func_Ftrs,O$90,0)*IF(Variables!$Y$23=1,$AI98,$AJ98) -> 0 | AR98: =VLOOKUP($AH98,Func_Ftrs,P$90,0)*IF(Variables!$Y$23=1,$AI98,$AJ98) -> 0
T99: Hydro - P | U99: P | V99: =Factors!C454 -> 30793696 | W99: =IF(Variables!$AO$3=12,Factors!H454+Factors!K454,CHOOSE(Variables!AO$3,Factors!D454,Factors!E454,Factors!F454,Factors!G454,Factors!H454,Factors!I454,Factors!J454,Factors!K454,Factors!L454,Factors!M454,Factors!N454)) -> 12494496 | X99: =VLOOKUP($U99,Func_Ftrs,I$90,0)*IF(Variables!$Y$23=1,$V99,$W99) -> 12494496 | Y99: =VLOOKUP($U99,Func_Ftrs,J$90,0)*IF(Variables!$Y$23=1,$V99,$W99) -> 0 | Z99: =VLOOKUP($U99,Func_Ftrs,K$90,0)*IF(Variables!$Y$23=1,$V99,$W99) -> 0 | AA99: =VLOOKUP($U99,Func_Ftrs,L$90,0)*IF(Variables!$Y$23=1,$V99,$W99) -> 0 | AB99: =VLOOKUP($U99,Func_Ftrs,M$90,0)*IF(Variables!$Y$23=1,$V99,$W99) -> 0 | AC99: =VLOOKUP($U99,Func_Ftrs,N$90,0)*IF(Variables!$Y$23=1,$V99,$W99) -> 0 | AD99: =VLOOKUP($U99,Func_Ftrs,O$90,0)*IF(Variables!$Y$23=1,$V99,$W99) -> 0 | AE99: =VLOOKUP($U99,Func_Ftrs,P$90,0)*IF(Variables!$Y$23=1,$V99,$W99) -> 0 | AG99: Hydro - P | AH99: P | AI99: 30793696 | AJ99: 12494496 | AK99: =VLOOKUP($AH99,Func_Ftrs,I$90,0)*IF(Variables!$Y$23=1,$AI99,$AJ99) -> 12494496 | AL99: =VLOOKUP($AH99,Func_Ftrs,J$90,0)*IF(Variables!$Y$23=1,$AI99,$AJ99) -> 0 | AM99: =VLOOKUP($AH99,Func_Ftrs,K$90,0)*IF(Variables!$Y$23=1,$AI99,$AJ99) -> 0 | AN99: =VLOOKUP($AH99,Func_Ftrs,L$90,0)*IF(Variables!$Y$23=1,$AI99,$AJ99) -> 0 | AO99: =VLOOKUP($AH99,Func_Ftrs,M$90,0)*IF(Variables!$Y$23=1,$AI99,$AJ99) -> 0 | AP99: =VLOOKUP($AH99,Func_Ftrs,N$90,0)*IF(Variables!$Y$23=1,$AI99,$AJ99) -> 0 | AQ99: =VLOOKUP($AH99,Func_Ftrs,O$90,0)*IF(Variables!$Y$23=1,$AI99,$AJ99) -> 0 | AR99: =VLOOKUP($AH99,Func_Ftrs,P$90,0)*IF(Variables!$Y$23=1,$AI99,$AJ99) -> 0
T100: Hydro - U | U100: P | V100: =Factors!C455 -> 5816168 | W100: =IF(Variables!$AO$3=12,Factors!H455+Factors!K455,CHOOSE(Variables!AO$3,Factors!D455,Factors!E455,Factors!F455,Factors!G455,Factors!H455,Factors!I455,Factors!J455,Factors!K455,Factors!L455,Factors!M455,Factors!N455)) -> 2526251 | X100: =VLOOKUP($U100,Func_Ftrs,I$90,0)*IF(Variables!$Y$23=1,$V100,$W100) -> 2526251 | Y100: =VLOOKUP($U100,Func_Ftrs,J$90,0)*IF(Variables!$Y$23=1,$V100,$W100) -> 0 | Z100: =VLOOKUP($U100,Func_Ftrs,K$90,0)*IF(Variables!$Y$23=1,$V100,$W100) -> 0 | AA100: =VLOOKUP($U100,Func_Ftrs,L$90,0)*IF(Variables!$Y$23=1,$V100,$W100) -> 0 | AB100: =VLOOKUP($U100,Func_Ftrs,M$90,0)*IF(Variables!$Y$23=1,$V100,$W100) -> 0 | AC100: =VLOOKUP($U100,Func_Ftrs,N$90,0)*IF(Variables!$Y$23=1,$V100,$W100) -> 0 | AD100: =VLOOKUP($U100,Func_Ftrs,O$90,0)*IF(Variables!$Y$23=1,$V100,$W100) -> 0 | AE100: =VLOOKUP($U100,Func_Ftrs,P$90,0)*IF(Variables!$Y$23=1,$V100,$W100) -> 0 | AG100: Hydro - U | AH100: P | AI100: 5816168 | AJ100: 2526251 | AK100: =VLOOKUP($AH100,Func_Ftrs,I$90,0)*IF(Variables!$Y$23=1,$AI100,$AJ100) -> 2526251 | AL100: =VLOOKUP($AH100,Func_Ftrs,J$90,0)*IF(Variables!$Y$23=1,$AI100,$AJ100) -> 0 | AM100: =VLOOKUP($AH100,Func_Ftrs,K$90,0)*IF(Variables!$Y$23=1,$AI100,$AJ100) -> 0 | AN100: =VLOOKUP($AH100,Func_Ftrs,L$90,0)*IF(Variables!$Y$23=1,$AI100,$AJ100) -> 0 | AO100: =VLOOKUP($AH100,Func_Ftrs,M$90,0)*IF(Variables!$Y$23=1,$AI100,$AJ100) -> 0 | AP100: =VLOOKUP($AH100,Func_Ftrs,N$90,0)*IF(Variables!$Y$23=1,$AI100,$AJ100) -> 0 | AQ100: =VLOOKUP($AH100,Func_Ftrs,O$90,0)*IF(Variables!$Y$23=1,$AI100,$AJ100) -> 0 | AR100: =VLOOKUP($AH100,Func_Ftrs,P$90,0)*IF(Variables!$Y$23=1,$AI100,$AJ100) -> 0
T101: Transmission | U101: T | V101: =Factors!C465 -> 0 | W101: =IF(Variables!$AO$3=12,Factors!H465+Factors!K465,CHOOSE(Variables!AO$3,Factors!D465,Factors!E465,Factors!F465,Factors!G465,Factors!H465,Factors!I465,Factors!J465,Factors!K465,Factors!L465,Factors!M465,Factors!N465)) -> 0 | X101: =VLOOKUP($U101,Func_Ftrs,I$90,0)*IF(Variables!$Y$23=1,$V101,$W101) -> 0 | Y101: =VLOOKUP($U101,Func_Ftrs,J$90,0)*IF(Variables!$Y$23=1,$V101,$W101) -> 0 | Z101: =VLOOKUP($U101,Func_Ftrs,K$90,0)*IF(Variables!$Y$23=1,$V101,$W101) -> 0 | AA101: =VLOOKUP($U101,Func_Ftrs,L$90,0)*IF(Variables!$Y$23=1,$V101,$W101) -> 0 | AB101: =VLOOKUP($U101,Func_Ftrs,M$90,0)*IF(Variables!$Y$23=1,$V101,$W101) -> 0 | AC101: =VLOOKUP($U101,Func_Ftrs,N$90,0)*IF(Variables!$Y$23=1,$V101,$W101) -> 0 | AD101: =VLOOKUP($U101,Func_Ftrs,O$90,0)*IF(Variables!$Y$23=1,$V101,$W101) -> 0 | AE101: =VLOOKUP($U101,Func_Ftrs,P$90,0)*IF(Variables!$Y$23=1,$V101,$W101) -> 0 | AG101: Transmission | AH101: T | AI101: 0 | AJ101: 0 | AK101: =VLOOKUP($AH101,Func_Ftrs,I$90,0)*IF(Variables!$Y$23=1,$AI101,$AJ101) -> 0 | AL101: =VLOOKUP($AH101,Func_Ftrs,J$90,0)*IF(Variables!$Y$23=1,$AI101,$AJ101) -> 0 | AM101: =VLOOKUP($AH101,Func_Ftrs,K$90,0)*IF(Variables!$Y$23=1,$AI101,$AJ101) -> 0 | AN101: =VLOOKUP($AH101,Func_Ftrs,L$90,0)*IF(Variables!$Y$23=1,$AI101,$AJ101) -> 0 | AO101: =VLOOKUP($AH101,Func_Ftrs,M$90,0)*IF(Variables!$Y$23=1,$AI101,$AJ101) -> 0 | AP101: =VLOOKUP($AH101,Func_Ftrs,N$90,0)*IF(Variables!$Y$23=1,$AI101,$AJ101) -> 0 | AQ101: =VLOOKUP($AH101,Func_Ftrs,O$90,0)*IF(Variables!$Y$23=1,$AI101,$AJ101) -> 0 | AR101: =VLOOKUP($AH101,Func_Ftrs,P$90,0)*IF(Variables!$Y$23=1,$AI101,$AJ101) -> 0
T102: Distribution | U102: D_SPLIT | V102: =Factors!C466 -> 0 | W102: =IF(Variables!$AO$3=12,Factors!H466+Factors!K466,CHOOSE(Variables!AO$3,Factors!D466,Factors!E466,Factors!F466,Factors!G466,Factors!H466,Factors!I466,Factors!J466,Factors!K466,Factors!L466,Factors!M466,Factors!N466)) -> 0 | X102: =VLOOKUP($U102,Func_Ftrs,I$90,0)*IF(Variables!$Y$23=1,$V102,$W102) -> 0 | Y102: =VLOOKUP($U102,Func_Ftrs,J$90,0)*IF(Variables!$Y$23=1,$V102,$W102) -> 0 | Z102: =VLOOKUP($U102,Func_Ftrs,K$90,0)*IF(Variables!$Y$23=1,$V102,$W102) -> 0 | AA102: =VLOOKUP($U102,Func_Ftrs,L$90,0)*IF(Variables!$Y$23=1,$V102,$W102) -> 0 | AB102: =VLOOKUP($U102,Func_Ftrs,M$90,0)*IF(Variables!$Y$23=1,$V102,$W102) -> 0 | AC102: =VLOOKUP($U102,Func_Ftrs,N$90,0)*IF(Variables!$Y$23=1,$V102,$W102) -> 0 | AD102: =VLOOKUP($U102,Func_Ftrs,O$90,0)*IF(Variables!$Y$23=1,$V102,$W102) -> 0 | AE102: =VLOOKUP($U102,Func_Ftrs,P$90,0)*IF(Variables!$Y$23=1,$V102,$W102) -> 0 | AG102: Distribution | AH102: D_SPLIT | AI102: 0 | AJ102: 0 | AK102: =VLOOKUP($AH102,Func_Ftrs,I$90,0)*IF(Variables!$Y$23=1,$AI102,$AJ102) -> 0 | AL102: =VLOOKUP($AH102,Func_Ftrs,J$90,0)*IF(Variables!$Y$23=1,$AI102,$AJ102) -> 0 | AM102: =VLOOKUP($AH102,Func_Ftrs,K$90,0)*IF(Variables!$Y$23=1,$AI102,$AJ102) -> 0 | AN102: =VLOOKUP($AH102,Func_Ftrs,L$90,0)*IF(Variables!$Y$23=1,$AI102,$AJ102) -> 0 | AO102: =VLOOKUP($AH102,Func_Ftrs,M$90,0)*IF(Variables!$Y$23=1,$AI102,$AJ102) -> 0 | AP102: =VLOOKUP($AH102,Func_Ftrs,N$90,0)*IF(Variables!$Y$23=1,$AI102,$AJ102) -> 0 | AQ102: =VLOOKUP($AH102,Func_Ftrs,O$90,0)*IF(Variables!$Y$23=1,$AI102,$AJ102) -> 0 | AR102: =VLOOKUP($AH102,Func_Ftrs,P$90,0)*IF(Variables!$Y$23=1,$AI102,$AJ102) -> 0
T103: General | U103: G | V103: =Factors!C467 -> 153090545 | W103: =IF(Variables!$AO$3=12,Factors!H467+Factors!K467,CHOOSE(Variables!AO$3,Factors!D467,Factors!E467,Factors!F467,Factors!G467,Factors!H467,Factors!I467,Factors!J467,Factors!K467,Factors!L467,Factors!M467,Factors!N467)) -> 63646669 | X103: =VLOOKUP($U103,Func_Ftrs,I$90,0)*IF(Variables!$Y$23=1,$V103,$W103) -> 16352030.7 | Y103: =VLOOKUP($U103,Func_Ftrs,J$90,0)*IF(Variables!$Y$23=1,$V103,$W103) -> 13961785.31 | Z103: =VLOOKUP($U103,Func_Ftrs,K$90,0)*IF(Variables!$Y$23=1,$V103,$W103) -> 30392772.92 | AA103: =VLOOKUP($U103,Func_Ftrs,L$90,0)*IF(Variables!$Y$23=1,$V103,$W103) -> 0 | AB103: =VLOOKUP($U103,Func_Ftrs,M$90,0)*IF(Variables!$Y$23=1,$V103,$W103) -> 1702925.479 | AC103: =VLOOKUP($U103,Func_Ftrs,N$90,0)*IF(Variables!$Y$23=1,$V103,$W103) -> 1237154.592 | AD103: =VLOOKUP($U103,Func_Ftrs,O$90,0)*IF(Variables!$Y$23=1,$V103,$W103) -> 0 | AE103: =VLOOKUP($U103,Func_Ftrs,P$90,0)*IF(Variables!$Y$23=1,$V103,$W103) -> 0 | AG103: General | AH103: G | AI103: 153090545 | AJ103: 63646669 | AK103: =VLOOKUP($AH103,Func_Ftrs,I$90,0)*IF(Variables!$Y$23=1,$AI103,$AJ103) -> 16352030.7 | AL103: =VLOOKUP($AH103,Func_Ftrs,J$90,0)*IF(Variables!$Y$23=1,$AI103,$AJ103) -> 13961785.31 | AM103: =VLOOKUP($AH103,Func_Ftrs,K$90,0)*IF(Variables!$Y$23=1,$AI103,$AJ103) -> 30392772.92 | AN103: =VLOOKUP($AH103,Func_Ftrs,L$90,0)*IF(Variables!$Y$23=1,$AI103,$AJ103) -> 0 | AO103: =VLOOKUP($AH103,Func_Ftrs,M$90,0)*IF(Variables!$Y$23=1,$AI103,$AJ103) -> 1702925.479 | AP103: =VLOOKUP($AH103,Func_Ftrs,N$90,0)*IF(Variables!$Y$23=1,$AI103,$AJ103) -> 1237154.592 | AQ103: =VLOOKUP($AH103,Func_Ftrs,O$90,0)*IF(Variables!$Y$23=1,$AI103,$AJ103) -> 0 | AR103: =VLOOKUP($AH103,Func_Ftrs,P$90,0)*IF(Variables!$Y$23=1,$AI103,$AJ103) -> 0
T104: Mining Plant | U104: P | V104: =Factors!C468 -> 116578868 | W104: =IF(Variables!$AO$3=12,Factors!H468+Factors!K468,CHOOSE(Variables!AO$3,Factors!D468,Factors!E468,Factors!F468,Factors!G468,Factors!H468,Factors!I468,Factors!J468,Factors!K468,Factors!L468,Factors!M468,Factors!N468)) -> 50005615 | X104: =VLOOKUP($U104,Func_Ftrs,I$90,0)*IF(Variables!$Y$23=1,$V104,$W104) -> 50005615 | Y104: =VLOOKUP($U104,Func_Ftrs,J$90,0)*IF(Variables!$Y$23=1,$V104,$W104) -> 0 | Z104: =VLOOKUP($U104,Func_Ftrs,K$90,0)*IF(Variables!$Y$23=1,$V104,$W104) -> 0 | AA104: =VLOOKUP($U104,Func_Ftrs,L$90,0)*IF(Variables!$Y$23=1,$V104,$W104) -> 0 | AB104: =VLOOKUP($U104,Func_Ftrs,M$90,0)*IF(Variables!$Y$23=1,$V104,$W104) -> 0 | AC104: =VLOOKUP($U104,Func_Ftrs,N$90,0)*IF(Variables!$Y$23=1,$V104,$W104) -> 0 | AD104: =VLOOKUP($U104,Func_Ftrs,O$90,0)*IF(Variables!$Y$23=1,$V104,$W104) -> 0 | AE104: =VLOOKUP($U104,Func_Ftrs,P$90,0)*IF(Variables!$Y$23=1,$V104,$W104) -> 0 | AG104: Mining Plant | AH104: P | AI104: 116578868 | AJ104: 50005615 | AK104: =VLOOKUP($AH104,Func_Ftrs,I$90,0)*IF(Variables!$Y$23=1,$AI104,$AJ104) -> 50005615 | AL104: =VLOOKUP($AH104,Func_Ftrs,J$90,0)*IF(Variables!$Y$23=1,$AI104,$AJ104) -> 0 | AM104: =VLOOKUP($AH104,Func_Ftrs,K$90,0)*IF(Variables!$Y$23=1,$AI104,$AJ104) -> 0 | AN104: =VLOOKUP($AH104,Func_Ftrs,L$90,0)*IF(Variables!$Y$23=1,$AI104,$AJ104) -> 0 | AO104: =VLOOKUP($AH104,Func_Ftrs,M$90,0)*IF(Variables!$Y$23=1,$AI104,$AJ104) -> 0 | AP104: =VLOOKUP($AH104,Func_Ftrs,N$90,0)*IF(Variables!$Y$23=1,$AI104,$AJ104) -> 0 | AQ104: =VLOOKUP($AH104,Func_Ftrs,O$90,0)*IF(Variables!$Y$23=1,$AI104,$AJ104) -> 0 | AR104: =VLOOKUP($AH104,Func_Ftrs,P$90,0)*IF(Variables!$Y$23=1,$AI104,$AJ104) -> 0
T106: Total PC (Post Merger) | V106: =SUM(V98:V105) -> 785923538 | W106: 324307321 | X106: 277012682.7 | Y106: 13961785.31 | Z106: 30392772.92 | AA106: 0 | AB106: 1702925.479 | AC106: 1237154.592 | AD106: 0 | AE106: 0 | AG106: Total PC (Post Merger) | AI106: =SUM(AI98:AI105) -> 785923538 | AJ106: 324307321 | AK106: 277012682.7 | AL106: 13961785.31 | AM106: 30392772.92 | AN106: 0 | AO106: 1702925.479 | AP106: 1237154.592 | AQ106: 0 | AR106: 0
T108: Total Deferred Taxes | V108: =V86+V95+V106 -> 1002474441 | W108: 436957218 | X108: 329927129.9 | Y108: 49394584.8 | Z108: 54000568.12 | AA108: 0 | AB108: 1694537.631 | AC108: 1940397.53 | AD108: 0 | AE108: 0 | AG108: Total Deferred Taxes | AI108: =AI86+AI95+AI106 -> 1002474441 | AJ108: 436957218 | AK108: 329927129.9 | AL108: 49394584.8 | AM108: 54000568.12 | AN108: 0 | AO108: 1694537.631 | AP108: 1940397.53 | AQ108: 0 | AR108: 0
C109: =Variables!AE27 -> 2010 PROTOCOL
C110: =IF(Variables!Y21=1," ",Variables!AO17) -> Year End | T110: ACCMDITRL FACTOR | V110: =V108/$V108 -> 1 | W110: =W108/$W108 -> 1 | X110: =X108/IF(Variables!$Y$23=2,$W108,$V108) -> 0.7550559101 | Y110: =Y108/IF(Variables!$Y$23=2,$W108,$V108) -> 0.1130421533 | Z110: =Z108/IF(Variables!$Y$23=2,$W108,$V108) -> 0.1235831928 | AA110: =AA108/IF(Variables!$Y$23=2,$W108,$V108) -> 0 | AB110: =AB108/IF(Variables!$Y$23=2,$W108,$V108) -> 0.003878040139 | AC110: =AC108/IF(Variables!$Y$23=2,$W108,$V108) -> 0.004440703689 | AD110: =AD108/IF(Variables!$Y$23=2,$W108,$V108) -> 0 | AE110: =AE108/IF(Variables!$Y$23=2,$W108,$V108) -> 0 | AG110: ACCMDITMA FACTOR | AI110: =AI108/$AI108 -> 1 | AJ110: =AJ108/$AJ108 -> 1 | AK110: =AK108/IF(Variables!$Y23=2,$AJ108,$AI108) -> 0.7550559101 | AL110: =AL108/IF(Variables!$Y23=2,$AJ108,$AI108) -> 0.1130421533 | AM110: =AM108/IF(Variables!$Y23=2,$AJ108,$AI108) -> 0.1235831928 | AN110: =AN108/IF(Variables!$Y23=2,$AJ108,$AI108) -> 0 | AO110: =AO108/IF(Variables!$Y23=2,$AJ108,$AI108) -> 0.003878040139 | AP110: =AP108/IF(Variables!$Y23=2,$AJ108,$AI108) -> 0.004440703689 | AQ110: =AQ108/IF(Variables!$Y23=2,$AJ108,$AI108) -> 0 | AR110: =AR108/IF(Variables!$Y23=2,$AJ108,$AI108) -> 0
C111: RESULTS OF OPERATIONS SUMMARY
T112: DITEXPRL | AG112: DITEXPMA
T113: Pacific Division | V113: Total | W113: =Variables!X24 -> UTAH | X113: =I$3 -> Production | Y113: Transmission | Z113: Distribution | AA113: Ancillary | AB113: C_Billing | AC113: C_Metering | AD113: C_Service | AE113: DSM | AG113: Pacific Division | AI113: Total | AJ113: =Variables!X24 -> UTAH | AK113: =I$3 -> Production | AL113: Transmission | AM113: Distribution | AN113: Ancillary | AO113: C_Billing | AP113: C_Metering | AQ113: C_Service | AR113: DSM
C114: =+Variables!AE29 -> 2010 PROTOCOL | H114: =IF(Variables!Y23=1,Variables!X23,Report!N115) -> UTAH | T114: Production | U114: P | V114: =Factors!C376 -> 0 | W114: =IF(Variables!$AO$3=12,Factors!H376+Factors!K376,CHOOSE(Variables!AO$3,Factors!D376,Factors!E376,Factors!F376,Factors!G376,Factors!H376,Factors!I376,Factors!J376,Factors!K376,Factors!L376,Factors!M376,Factors!N376)) -> 0 | X114: =VLOOKUP($U114,Func_Ftrs,I$90,0)*IF(Variables!$Y$23=1,$V114,$W114) -> 0 | Y114: =VLOOKUP($U114,Func_Ftrs,J$90,0)*IF(Variables!$Y$23=1,$V114,$W114) -> 0 | Z114: =VLOOKUP($U114,Func_Ftrs,K$90,0)*IF(Variables!$Y$23=1,$V114,$W114) -> 0 | AA114: =VLOOKUP($U114,Func_Ftrs,L$90,0)*IF(Variables!$Y$23=1,$V114,$W114) -> 0 | AB114: =VLOOKUP($U114,Func_Ftrs,M$90,0)*IF(Variables!$Y$23=1,$V114,$W114) -> 0 | AC114: =VLOOKUP($U114,Func_Ftrs,N$90,0)*IF(Variables!$Y$23=1,$V114,$W114) -> 0 | AD114: =VLOOKUP($U114,Func_Ftrs,O$90,0)*IF(Variables!$Y$23=1,$V114,$W114) -> 0 | AE114: =VLOOKUP($U114,Func_Ftrs,P$90,0)*IF(Variables!$Y$23=1,$V114,$W114) -> 0 | AG114: Production | AH114: P | AI114: =V114 -> 0 | AJ114: 0 | AK114: =VLOOKUP($AH114,Func_Ftrs,I$90,0)*IF(Variables!$Y$23=1,$AI114,$AJ114) -> 0 | AL114: =VLOOKUP($AH114,Func_Ftrs,J$90,0)*IF(Variables!$Y$23=1,$AI114,$AJ114) -> 0 | AM114: =VLOOKUP($AH114,Func_Ftrs,K$90,0)*IF(Variables!$Y$23=1,$AI114,$AJ114) -> 0 | AN114: =VLOOKUP($AH114,Func_Ftrs,L$90,0)*IF(Variables!$Y$23=1,$AI114,$AJ114) -> 0 | AO114: =VLOOKUP($AH114,Func_Ftrs,M$90,0)*IF(Variables!$Y$23=1,$AI114,$AJ114) -> 0 | AP114: =VLOOKUP($AH114,Func_Ftrs,N$90,0)*IF(Variables!$Y$23=1,$AI114,$AJ114) -> 0 | AQ114: =VLOOKUP($AH114,Func_Ftrs,O$90,0)*IF(Variables!$Y$23=1,$AI114,$AJ114) -> 0 | AR114: =VLOOKUP($AH114,Func_Ftrs,P$90,0)*IF(Variables!$Y$23=1,$AI114,$AJ114) -> 0
C115: Description of Account Summary: | H115: Normalized | I115: =I3 -> Production | J115: Transmission | K115: Distribution | L115: Ancillary | M115: C_Billing | N115: C_Metering | O115: C_Service | P115: DSM | T115: Transmission | U115: T | V115: =Factors!C377 -> 0 | W115: =IF(Variables!$AO$3=12,Factors!H377+Factors!K377,CHOOSE(Variables!AO$3,Factors!D377,Factors!E377,Factors!F377,Factors!G377,Factors!H377,Factors!I377,Factors!J377,Factors!K377,Factors!L377,Factors!M377,Factors!N377)) -> 0 | X115: =VLOOKUP($U115,Func_Ftrs,I$90,0)*IF(Variables!$Y$23=1,$V115,$W115) -> 0 | Y115: =VLOOKUP($U115,Func_Ftrs,J$90,0)*IF(Variables!$Y$23=1,$V115,$W115) -> 0 | Z115: =VLOOKUP($U115,Func_Ftrs,K$90,0)*IF(Variables!$Y$23=1,$V115,$W115) -> 0 | AA115: =VLOOKUP($U115,Func_Ftrs,L$90,0)*IF(Variables!$Y$23=1,$V115,$W115) -> 0 | AB115: =VLOOKUP($U115,Func_Ftrs,M$90,0)*IF(Variables!$Y$23=1,$V115,$W115) -> 0 | AC115: =VLOOKUP($U115,Func_Ftrs,N$90,0)*IF(Variables!$Y$23=1,$V115,$W115) -> 0 | AD115: =VLOOKUP($U115,Func_Ftrs,O$90,0)*IF(Variables!$Y$23=1,$V115,$W115) -> 0 | AE115: =VLOOKUP($U115,Func_Ftrs,P$90,0)*IF(Variables!$Y$23=1,$V115,$W115) -> 0 | AG115: Transmission | AH115: T | AI115: 0 | AJ115: 0 | AK115: =VLOOKUP($AH115,Func_Ftrs,I$90,0)*IF(Variables!$Y$23=1,$AI115,$AJ115) -> 0 | AL115: =VLOOKUP($AH115,Func_Ftrs,J$90,0)*IF(Variables!$Y$23=1,$AI115,$AJ115) -> 0 | AM115: =VLOOKUP($AH115,Func_Ftrs,K$90,0)*IF(Variables!$Y$23=1,$AI115,$AJ115) -> 0 | AN115: =VLOOKUP($AH115,Func_Ftrs,L$90,0)*IF(Variables!$Y$23=1,$AI115,$AJ115) -> 0 | AO115: =VLOOKUP($AH115,Func_Ftrs,M$90,0)*IF(Variables!$Y$23=1,$AI115,$AJ115) -> 0 | AP115: =VLOOKUP($AH115,Func_Ftrs,N$90,0)*IF(Variables!$Y$23=1,$AI115,$AJ115) -> 0 | AQ115: =VLOOKUP($AH115,Func_Ftrs,O$90,0)*IF(Variables!$Y$23=1,$AI115,$AJ115) -> 0 | AR115: =VLOOKUP($AH115,Func_Ftrs,P$90,0)*IF(Variables!$Y$23=1,$AI115,$AJ115) -> 0
T116: Distribution | U116: D_SPLIT | V116: =Factors!C378 -> 0 | W116: =IF(Variables!$AO$3=12,Factors!H378+Factors!K378,CHOOSE(Variables!AO$3,Factors!D378,Factors!E378,Factors!F378,Factors!G378,Factors!H378,Factors!I378,Factors!J378,Factors!K378,Factors!L378,Factors!M378,Factors!N378)) -> 0 | X116: =VLOOKUP($U116,Func_Ftrs,I$90,0)*IF(Variables!$Y$23=1,$V116,$W116) -> 0 | Y116: =VLOOKUP($U116,Func_Ftrs,J$90,0)*IF(Variables!$Y$23=1,$V116,$W116) -> 0 | Z116: =VLOOKUP($U116,Func_Ftrs,K$90,0)*IF(Variables!$Y$23=1,$V116,$W116) -> 0 | AA116: =VLOOKUP($U116,Func_Ftrs,L$90,0)*IF(Variables!$Y$23=1,$V116,$W116) -> 0 | AB116: =VLOOKUP($U116,Func_Ftrs,M$90,0)*IF(Variables!$Y$23=1,$V116,$W116) -> 0 | AC116: =VLOOKUP($U116,Func_Ftrs,N$90,0)*IF(Variables!$Y$23=1,$V116,$W116) -> 0 | AD116: =VLOOKUP($U116,Func_Ftrs,O$90,0)*IF(Variables!$Y$23=1,$V116,$W116) -> 0 | AE116: =VLOOKUP($U116,Func_Ftrs,P$90,0)*IF(Variables!$Y$23=1,$V116,$W116) -> 0 | AG116: Distribution | AH116: D_SPLIT | AI116: 0 | AJ116: 0 | AK116: =VLOOKUP($AH116,Func_Ftrs,I$90,0)*IF(Variables!$Y$23=1,$AI116,$AJ116) -> 0 | AL116: =VLOOKUP($AH116,Func_Ftrs,J$90,0)*IF(Variables!$Y$23=1,$AI116,$AJ116) -> 0 | AM116: =VLOOKUP($AH116,Func_Ftrs,K$90,0)*IF(Variables!$Y$23=1,$AI116,$AJ116) -> 0 | AN116: =VLOOKUP($AH116,Func_Ftrs,L$90,0)*IF(Variables!$Y$23=1,$AI116,$AJ116) -> 0 | AO116: =VLOOKUP($AH116,Func_Ftrs,M$90,0)*IF(Variables!$Y$23=1,$AI116,$AJ116) -> 0 | AP116: =VLOOKUP($AH116,Func_Ftrs,N$90,0)*IF(Variables!$Y$23=1,$AI116,$AJ116) -> 0 | AQ116: =VLOOKUP($AH116,Func_Ftrs,O$90,0)*IF(Variables!$Y$23=1,$AI116,$AJ116) -> 0 | AR116: =VLOOKUP($AH116,Func_Ftrs,P$90,0)*IF(Variables!$Y$23=1,$AI116,$AJ116) -> 0
A117: 1 | E117: General Business Revenues | H117: =H219-H118-H119 -> 1988560506 | I117: 652206238.2 | J117: 43324568.75 | K117: 194817363.5 | L117: 6949653.101 | M117: 20138960.93 | N117: 25075718.33 | O117: 6828800.312 | P117: 4.705277175e-299 | T117: Mining Plant | U117: P | V117: =Factors!C380 -> 0 | W117: =IF(Variables!$AO$3=12,Factors!H380+Factors!K380,CHOOSE(Variables!AO$3,Factors!D380,Factors!E380,Factors!F380,Factors!G380,Factors!H380,Factors!I380,Factors!J380,Factors!K380,Factors!L380,Factors!M380,Factors!N380)) -> 0 | X117: =VLOOKUP($U117,Func_Ftrs,I$90,0)*IF(Variables!$Y$23=1,$V117,$W117) -> 0 | Y117: =VLOOKUP($U117,Func_Ftrs,J$90,0)*IF(Variables!$Y$23=1,$V117,$W117) -> 0 | Z117: =VLOOKUP($U117,Func_Ftrs,K$90,0)*IF(Variables!$Y$23=1,$V117,$W117) -> 0 | AA117: =VLOOKUP($U117,Func_Ftrs,L$90,0)*IF(Variables!$Y$23=1,$V117,$W117) -> 0 | AB117: =VLOOKUP($U117,Func_Ftrs,M$90,0)*IF(Variables!$Y$23=1,$V117,$W117) -> 0 | AC117: =VLOOKUP($U117,Func_Ftrs,N$90,0)*IF(Variables!$Y$23=1,$V117,$W117) -> 0 | AD117: =VLOOKUP($U117,Func_Ftrs,O$90,0)*IF(Variables!$Y$23=1,$V117,$W117) -> 0 | AE117: =VLOOKUP($U117,Func_Ftrs,P$90,0)*IF(Variables!$Y$23=1,$V117,$W117) -> 0 | AG117: Mining Plant | AH117: P | AI117: 0 | AJ117: 0 | AK117: =VLOOKUP($AH117,Func_Ftrs,I$90,0)*IF(Variables!$Y$23=1,$AI117,$AJ117) -> 0 | AL117: =VLOOKUP($AH117,Func_Ftrs,J$90,0)*IF(Variables!$Y$23=1,$AI117,$AJ117) -> 0 | AM117: =VLOOKUP($AH117,Func_Ftrs,K$90,0)*IF(Variables!$Y$23=1,$AI117,$AJ117) -> 0 | AN117: =VLOOKUP($AH117,Func_Ftrs,L$90,0)*IF(Variables!$Y$23=1,$AI117,$AJ117) -> 0 | AO117: =VLOOKUP($AH117,Func_Ftrs,M$90,0)*IF(Variables!$Y$23=1,$AI117,$AJ117) -> 0 | AP117: =VLOOKUP($AH117,Func_Ftrs,N$90,0)*IF(Variables!$Y$23=1,$AI117,$AJ117) -> 0 | AQ117: =VLOOKUP($AH117,Func_Ftrs,O$90,0)*IF(Variables!$Y$23=1,$AI117,$AJ117) -> 0 | AR117: =VLOOKUP($AH117,Func_Ftrs,P$90,0)*IF(Variables!$Y$23=1,$AI117,$AJ117) -> 0
A118: 2 | E118: General Business Revenues | H118: =H198+H199 -> 0 | I118: 0 | J118: 0 | K118: 0 | L118: 0 | M118: 0 | N118: =N198+N199 -> 0 | O118: =O198+O199 -> 0 | P118: =P198+P199 -> 0
A119: 3 | E119: Interdepartmental | H119: =H217 -> 0 | I119: 0 | J119: 0 | K119: =K217 -> 0 | L119: 0 | M119: 0 | N119: =N217 -> 0 | O119: =O217 -> 0 | P119: =P217 -> 0 | T119: Total Pacific Division | V119: =SUM(V114:V117) -> 0 | W119: 0 | X119: 0 | Y119: 0 | Z119: 0 | AA119: 0 | AB119: 0 | AC119: 0 | AD119: 0 | AE119: 0 | AG119: Total Pacific Division | AI119: =SUM(AI114:AI117) -> 0 | AJ119: 0 | AK119: 0 | AL119: 0 | AM119: 0 | AN119: 0 | AO119: 0 | AP119: 0 | AQ119: 0 | AR119: 0
A120: 4 | E120: Special Sales | H120: =H233 -> 115082019.4 | I120: 91532840.18 | J120: 23549179.19 | K120: =K233 -> 0 | L120: 0 | M120: 0 | N120: =N233 -> 0 | O120: =O233 -> 0 | P120: =P233 -> 0
A121: 5 | E121: Other Operating Revenues | H121: =H276+H240 -> 68954416.44 | I121: 36072291.51 | J121: 34634548.12 | K121: 2305021.211 | L121: -11174379 | M121: 7086748.481 | N121: 22930.56777 | O121: 7254.670446 | P121: 0 | T121: Utah Division | AG121: Utah Division
A122: 6 | E122: Total Operating Revenues | H122: =SUM(H117:H121) -> 2172596942 | I122: 779811369.9 | J122: 101508296.1 | K122: 197122384.7 | L122: -4224725.899 | M122: 27225709.41 | N122: =SUM(N117:N121) -> 25098648.9 | O122: =SUM(O117:O121) -> 6836054.982 | P122: =SUM(P117:P121) -> 4.705277175e-299 | T122: Production | U122: P | V122: =Factors!C386 -> 0 | W122: =IF(Variables!$AO$3=12,Factors!H386+Factors!K386,CHOOSE(Variables!AO$3,Factors!D386,Factors!E386,Factors!F386,Factors!G386,Factors!H386,Factors!I386,Factors!J386,Factors!K386,Factors!L386,Factors!M386,Factors!N386)) -> 0 | X122: =VLOOKUP($U122,Func_Ftrs,I$90,0)*IF(Variables!$Y$23=1,$V122,$W122) -> 0 | Y122: =VLOOKUP($U122,Func_Ftrs,J$90,0)*IF(Variables!$Y$23=1,$V122,$W122) -> 0 | Z122: =VLOOKUP($U122,Func_Ftrs,K$90,0)*IF(Variables!$Y$23=1,$V122,$W122) -> 0 | AA122: =VLOOKUP($U122,Func_Ftrs,L$90,0)*IF(Variables!$Y$23=1,$V122,$W122) -> 0 | AB122: =VLOOKUP($U122,Func_Ftrs,M$90,0)*IF(Variables!$Y$23=1,$V122,$W122) -> 0 | AC122: =VLOOKUP($U122,Func_Ftrs,N$90,0)*IF(Variables!$Y$23=1,$V122,$W122) -> 0 | AD122: =VLOOKUP($U122,Func_Ftrs,O$90,0)*IF(Variables!$Y$23=1,$V122,$W122) -> 0 | AE122: =VLOOKUP($U122,Func_Ftrs,P$90,0)*IF(Variables!$Y$23=1,$V122,$W122) -> 0 | AG122: Production | AH122: P | AI122: =V122 -> 0 | AJ122: 0 | AK122: =VLOOKUP($AH122,Func_Ftrs,I$90,0)*IF(Variables!$Y$23=1,$AI122,$AJ122) -> 0 | AL122: =VLOOKUP($AH122,Func_Ftrs,J$90,0)*IF(Variables!$Y$23=1,$AI122,$AJ122) -> 0 | AM122: =VLOOKUP($AH122,Func_Ftrs,K$90,0)*IF(Variables!$Y$23=1,$AI122,$AJ122) -> 0 | AN122: =VLOOKUP($AH122,Func_Ftrs,L$90,0)*IF(Variables!$Y$23=1,$AI122,$AJ122) -> 0 | AO122: =VLOOKUP($AH122,Func_Ftrs,M$90,0)*IF(Variables!$Y$23=1,$AI122,$AJ122) -> 0 | AP122: =VLOOKUP($AH122,Func_Ftrs,N$90,0)*IF(Variables!$Y$23=1,$AI122,$AJ122) -> 0 | AQ122: =VLOOKUP($AH122,Func_Ftrs,O$90,0)*IF(Variables!$Y$23=1,$AI122,$AJ122) -> 0 | AR122: =VLOOKUP($AH122,Func_Ftrs,P$90,0)*IF(Variables!$Y$23=1,$AI122,$AJ122) -> 0
A123: 7 | T123: Transmission | U123: T | V123: =Factors!C387 -> 0 | W123: =IF(Variables!$AO$3=12,Factors!H387+Factors!K387,CHOOSE(Variables!AO$3,Factors!D387,Factors!E387,Factors!F387,Factors!G387,Factors!H387,Factors!I387,Factors!J387,Factors!K387,Factors!L387,Factors!M387,Factors!N387)) -> 0 | X123: =VLOOKUP($U123,Func_Ftrs,I$90,0)*IF(Variables!$Y$23=1,$V123,$W123) -> 0 | Y123: =VLOOKUP($U123,Func_Ftrs,J$90,0)*IF(Variables!$Y$23=1,$V123,$W123) -> 0 | Z123: =VLOOKUP($U123,Func_Ftrs,K$90,0)*IF(Variables!$Y$23=1,$V123,$W123) -> 0 | AA123: =VLOOKUP($U123,Func_Ftrs,L$90,0)*IF(Variables!$Y$23=1,$V123,$W123) -> 0 | AB123: =VLOOKUP($U123,Func_Ftrs,M$90,0)*IF(Variables!$Y$23=1,$V123,$W123) -> 0 | AC123: =VLOOKUP($U123,Func_Ftrs,N$90,0)*IF(Variables!$Y$23=1,$V123,$W123) -> 0 | AD123: =VLOOKUP($U123,Func_Ftrs,O$90,0)*IF(Variables!$Y$23=1,$V123,$W123) -> 0 | AE123: =VLOOKUP($U123,Func_Ftrs,P$90,0)*IF(Variables!$Y$23=1,$V123,$W123) -> 0 | AG123: Transmission | AH123: T | AI123: 0 | AJ123: 0 | AK123: =VLOOKUP($AH123,Func_Ftrs,I$90,0)*IF(Variables!$Y$23=1,$AI123,$AJ123) -> 0 | AL123: =VLOOKUP($AH123,Func_Ftrs,J$90,0)*IF(Variables!$Y$23=1,$AI123,$AJ123) -> 0 | AM123: =VLOOKUP($AH123,Func_Ftrs,K$90,0)*IF(Variables!$Y$23=1,$AI123,$AJ123) -> 0 | AN123: =VLOOKUP($AH123,Func_Ftrs,L$90,0)*IF(Variables!$Y$23=1,$AI123,$AJ123) -> 0 | AO123: =VLOOKUP($AH123,Func_Ftrs,M$90,0)*IF(Variables!$Y$23=1,$AI123,$AJ123) -> 0 | AP123: =VLOOKUP($AH123,Func_Ftrs,N$90,0)*IF(Variables!$Y$23=1,$AI123,$AJ123) -> 0 | AQ123: =VLOOKUP($AH123,Func_Ftrs,O$90,0)*IF(Variables!$Y$23=1,$AI123,$AJ123) -> 0 | AR123: =VLOOKUP($AH123,Func_Ftrs,P$90,0)*IF(Variables!$Y$23=1,$AI123,$AJ123) -> 0
A124: 8 | C124: Operating Expenses: | T124: Distribution | U124: D_SPLIT | V124: =Factors!C388 -> 0 | W124: =IF(Variables!$AO$3=12,Factors!H388+Factors!K388,CHOOSE(Variables!AO$3,Factors!D388,Factors!E388,Factors!F388,Factors!G388,Factors!H388,Factors!I388,Factors!J388,Factors!K388,Factors!L388,Factors!M388,Factors!N388)) -> 0 | X124: =VLOOKUP($U124,Func_Ftrs,I$90,0)*IF(Variables!$Y$23=1,$V124,$W124) -> 0 | Y124: =VLOOKUP($U124,Func_Ftrs,J$90,0)*IF(Variables!$Y$23=1,$V124,$W124) -> 0 | Z124: =VLOOKUP($U124,Func_Ftrs,K$90,0)*IF(Variables!$Y$23=1,$V124,$W124) -> 0 | AA124: =VLOOKUP($U124,Func_Ftrs,L$90,0)*IF(Variables!$Y$23=1,$V124,$W124) -> 0 | AB124: =VLOOKUP($U124,Func_Ftrs,M$90,0)*IF(Variables!$Y$23=1,$V124,$W124) -> 0 | AC124: =VLOOKUP($U124,Func_Ftrs,N$90,0)*IF(Variables!$Y$23=1,$V124,$W124) -> 0 | AD124: =VLOOKUP($U124,Func_Ftrs,O$90,0)*IF(Variables!$Y$23=1,$V124,$W124) -> 0 | AE124: =VLOOKUP($U124,Func_Ftrs,P$90,0)*IF(Variables!$Y$23=1,$V124,$W124) -> 0 | AG124: Distribution | AH124: D_SPLIT | AI124: 0 | AJ124: 0 | AK124: =VLOOKUP($AH124,Func_Ftrs,I$90,0)*IF(Variables!$Y$23=1,$AI124,$AJ124) -> 0 | AL124: =VLOOKUP($AH124,Func_Ftrs,J$90,0)*IF(Variables!$Y$23=1,$AI124,$AJ124) -> 0 | AM124: =VLOOKUP($AH124,Func_Ftrs,K$90,0)*IF(Variables!$Y$23=1,$AI124,$AJ124) -> 0 | AN124: =VLOOKUP($AH124,Func_Ftrs,L$90,0)*IF(Variables!$Y$23=1,$AI124,$AJ124) -> 0 | AO124: =VLOOKUP($AH124,Func_Ftrs,M$90,0)*IF(Variables!$Y$23=1,$AI124,$AJ124) -> 0 | AP124: =VLOOKUP($AH124,Func_Ftrs,N$90,0)*IF(Variables!$Y$23=1,$AI124,$AJ124) -> 0 | AQ124: =VLOOKUP($AH124,Func_Ftrs,O$90,0)*IF(Variables!$Y$23=1,$AI124,$AJ124) -> 0 | AR124: =VLOOKUP($AH124,Func_Ftrs,P$90,0)*IF(Variables!$Y$23=1,$AI124,$AJ124) -> 0
A125: 9 | D125: Steam Production | H125: =H413 -> 495049870.2 | I125: 495049870.2 | J125: 0 | K125: 0 | L125: 0 | M125: 0 | N125: =N413 -> 0 | O125: =O413 -> 0 | P125: =P413 -> 0 | T125: General | U125: G | V125: =Factors!C389 -> 0 | W125: =IF(Variables!$AO$3=12,Factors!H389+Factors!K389,CHOOSE(Variables!AO$3,Factors!D389,Factors!E389,Factors!F389,Factors!G389,Factors!H389,Factors!I389,Factors!J389,Factors!K389,Factors!L389,Factors!M389,Factors!N389)) -> 0 | X125: =VLOOKUP($U125,Func_Ftrs,I$90,0)*IF(Variables!$Y$23=1,$V125,$W125) -> 0 | Y125: =VLOOKUP($U125,Func_Ftrs,J$90,0)*IF(Variables!$Y$23=1,$V125,$W125) -> 0 | Z125: =VLOOKUP($U125,Func_Ftrs,K$90,0)*IF(Variables!$Y$23=1,$V125,$W125) -> 0 | AA125: =VLOOKUP($U125,Func_Ftrs,L$90,0)*IF(Variables!$Y$23=1,$V125,$W125) -> 0 | AB125: =VLOOKUP($U125,Func_Ftrs,M$90,0)*IF(Variables!$Y$23=1,$V125,$W125) -> 0 | AC125: =VLOOKUP($U125,Func_Ftrs,N$90,0)*IF(Variables!$Y$23=1,$V125,$W125) -> 0 | AD125: =VLOOKUP($U125,Func_Ftrs,O$90,0)*IF(Variables!$Y$23=1,$V125,$W125) -> 0 | AE125: =VLOOKUP($U125,Func_Ftrs,P$90,0)*IF(Variables!$Y$23=1,$V125,$W125) -> 0 | AG125: General | AH125: G | AI125: 0 | AJ125: 0 | AK125: =VLOOKUP($AH125,Func_Ftrs,I$90,0)*IF(Variables!$Y$23=1,$AI125,$AJ125) -> 0 | AL125: =VLOOKUP($AH125,Func_Ftrs,J$90,0)*IF(Variables!$Y$23=1,$AI125,$AJ125) -> 0 | AM125: =VLOOKUP($AH125,Func_Ftrs,K$90,0)*IF(Variables!$Y$23=1,$AI125,$AJ125) -> 0 | AN125: =VLOOKUP($AH125,Func_Ftrs,L$90,0)*IF(Variables!$Y$23=1,$AI125,$AJ125) -> 0 | AO125: =VLOOKUP($AH125,Func_Ftrs,M$90,0)*IF(Variables!$Y$23=1,$AI125,$AJ125) -> 0 | AP125: =VLOOKUP($AH125,Func_Ftrs,N$90,0)*IF(Variables!$Y$23=1,$AI125,$AJ125) -> 0 | AQ125: =VLOOKUP($AH125,Func_Ftrs,O$90,0)*IF(Variables!$Y$23=1,$AI125,$AJ125) -> 0 | AR125: =VLOOKUP($AH125,Func_Ftrs,P$90,0)*IF(Variables!$Y$23=1,$AI125,$AJ125) -> 0
A126: 10 | D126: Nuclear Production | H126: =H461 -> 0 | I126: 0 | J126: 0 | K126: 0 | L126: 0 | M126: 0 | N126: =N461 -> 0 | O126: =O461 -> 0 | P126: =P461 -> 0 | T126: Mining Plant | U126: P | V126: =Factors!C390 -> 0 | W126: =IF(Variables!$AO$3=12,Factors!H390+Factors!K390,CHOOSE(Variables!AO$3,Factors!D390,Factors!E390,Factors!F390,Factors!G390,Factors!H390,Factors!I390,Factors!J390,Factors!K390,Factors!L390,Factors!M390,Factors!N390)) -> 0 | X126: =VLOOKUP($U126,Func_Ftrs,I$90,0)*IF(Variables!$Y$23=1,$V126,$W126) -> 0 | Y126: =VLOOKUP($U126,Func_Ftrs,J$90,0)*IF(Variables!$Y$23=1,$V126,$W126) -> 0 | Z126: =VLOOKUP($U126,Func_Ftrs,K$90,0)*IF(Variables!$Y$23=1,$V126,$W126) -> 0 | AA126: =VLOOKUP($U126,Func_Ftrs,L$90,0)*IF(Variables!$Y$23=1,$V126,$W126) -> 0 | AB126: =VLOOKUP($U126,Func_Ftrs,M$90,0)*IF(Variables!$Y$23=1,$V126,$W126) -> 0 | AC126: =VLOOKUP($U126,Func_Ftrs,N$90,0)*IF(Variables!$Y$23=1,$V126,$W126) -> 0 | AD126: =VLOOKUP($U126,Func_Ftrs,O$90,0)*IF(Variables!$Y$23=1,$V126,$W126) -> 0 | AE126: =VLOOKUP($U126,Func_Ftrs,P$90,0)*IF(Variables!$Y$23=1,$V126,$W126) -> 0 | AG126: Mining Plant | AH126: P | AI126: 0 | AJ126: 0 | AK126: =VLOOKUP($AH126,Func_Ftrs,I$90,0)*IF(Variables!$Y$23=1,$AI126,$AJ126) -> 0 | AL126: =VLOOKUP($AH126,Func_Ftrs,J$90,0)*IF(Variables!$Y$23=1,$AI126,$AJ126) -> 0 | AM126: =VLOOKUP($AH126,Func_Ftrs,K$90,0)*IF(Variables!$Y$23=1,$AI126,$AJ126) -> 0 | AN126: =VLOOKUP($AH126,Func_Ftrs,L$90,0)*IF(Variables!$Y$23=1,$AI126,$AJ126) -> 0 | AO126: =VLOOKUP($AH126,Func_Ftrs,M$90,0)*IF(Variables!$Y$23=1,$AI126,$AJ126) -> 0 | AP126: =VLOOKUP($AH126,Func_Ftrs,N$90,0)*IF(Variables!$Y$23=1,$AI126,$AJ126) -> 0 | AQ126: =VLOOKUP($AH126,Func_Ftrs,O$90,0)*IF(Variables!$Y$23=1,$AI126,$AJ126) -> 0 | AR126: =VLOOKUP($AH126,Func_Ftrs,P$90,0)*IF(Variables!$Y$23=1,$AI126,$AJ126) -> 0
A127: 11 | D127: Hydro Production | H127: =H544 -> 18411492.05 | I127: 18411492.05 | J127: 0 | K127: 0 | L127: 0 | M127: 0 | N127: =N544 -> 0 | O127: =O544 -> 0 | P127: =P544 -> 0
A128: 12 | D128: Other Power Supply | H128: =H600+H643 -> 396759595 | I128: 396759595 | J128: 0 | K128: 0 | L128: 0 | M128: 0 | N128: 0 | O128: 0 | P128: 0 | T128: Total Utah Division | V128: =SUM(V122:V126) -> 0 | W128: 0 | X128: 0 | Y128: 0 | Z128: 0 | AA128: 0 | AB128: 0 | AC128: 0 | AD128: 0 | AE128: 0 | AG128: Total Utah Division | AI128: =SUM(AI122:AI126) -> 0 | AJ128: 0 | AK128: 0 | AL128: 0 | AM128: 0 | AN128: 0 | AO128: 0 | AP128: 0 | AQ128: 0 | AR128: 0
A129: 13 | D129: Transmission | H129: =H747 -> 94304103.9 | I129: 298459.881 | J129: 94005644.02 | K129: 0 | L129: 0 | M129: 0 | N129: =N747 -> 0 | O129: =O747 -> 0 | P129: =P747 -> 0
A130: 14 | D130: Distribution | H130: =H848 -> 85903034.44 | I130: 0 | J130: 0 | K130: 81623200.26 | L130: 0 | M130: 0 | N130: =N848 -> 4279834.178 | O130: =O848 -> 0 | P130: =P848 -> 0 | T130: PACIFICORP | AG130: PACIFICORP
A131: 15 | D131: Customer Accounts | H131: =H883 -> 33853028 | I131: 1330311.679 | J131: 173167.0978 | K131: 336279.0294 | L131: -7207.130367 | M131: 15476213.14 | N131: =N883 -> 4289619.1 | O131: =O883 -> 10481799.12 | P131: =P883 -> 0 | T131: Production | U131: P | V131: =Factors!C396 -> 0 | W131: =IF(Variables!$AO$3=12,Factors!H396+Factors!K396,CHOOSE(Variables!AO$3,Factors!D396,Factors!E396,Factors!F396,Factors!G396,Factors!H396,Factors!I396,Factors!J396,Factors!K396,Factors!L396,Factors!M396,Factors!N396)) -> 0 | X131: =VLOOKUP($U131,Func_Ftrs,I$90,0)*IF(Variables!$Y$23=1,$V131,$W131) -> 0 | Y131: =VLOOKUP($U131,Func_Ftrs,J$90,0)*IF(Variables!$Y$23=1,$V131,$W131) -> 0 | Z131: =VLOOKUP($U131,Func_Ftrs,K$90,0)*IF(Variables!$Y$23=1,$V131,$W131) -> 0 | AA131: =VLOOKUP($U131,Func_Ftrs,L$90,0)*IF(Variables!$Y$23=1,$V131,$W131) -> 0 | AB131: =VLOOKUP($U131,Func_Ftrs,M$90,0)*IF(Variables!$Y$23=1,$V131,$W131) -> 0 | AC131: =VLOOKUP($U131,Func_Ftrs,N$90,0)*IF(Variables!$Y$23=1,$V131,$W131) -> 0 | AD131: =VLOOKUP($U131,Func_Ftrs,O$90,0)*IF(Variables!$Y$23=1,$V131,$W131) -> 0 | AE131: =VLOOKUP($U131,Func_Ftrs,P$90,0)*IF(Variables!$Y$23=1,$V131,$W131) -> 0 | AG131: Production | AH131: P | AI131: =V131 -> 0 | AJ131: =W131 -> 0 | AK131: =VLOOKUP($AH131,Func_Ftrs,I$90,0)*IF(Variables!$Y$23=1,$AI131,$AJ131) -> 0 | AL131: =VLOOKUP($AH131,Func_Ftrs,J$90,0)*IF(Variables!$Y$23=1,$AI131,$AJ131) -> 0 | AM131: =VLOOKUP($AH131,Func_Ftrs,K$90,0)*IF(Variables!$Y$23=1,$AI131,$AJ131) -> 0 | AN131: =VLOOKUP($AH131,Func_Ftrs,L$90,0)*IF(Variables!$Y$23=1,$AI131,$AJ131) -> 0 | AO131: =VLOOKUP($AH131,Func_Ftrs,M$90,0)*IF(Variables!$Y$23=1,$AI131,$AJ131) -> 0 | AP131: =VLOOKUP($AH131,Func_Ftrs,N$90,0)*IF(Variables!$Y$23=1,$AI131,$AJ131) -> 0 | AQ131: =VLOOKUP($AH131,Func_Ftrs,O$90,0)*IF(Variables!$Y$23=1,$AI131,$AJ131) -> 0 | AR131: =VLOOKUP($AH131,Func_Ftrs,P$90,0)*IF(Variables!$Y$23=1,$AI131,$AJ131) -> 0
A132: 16 | D132: Customer Service | H132: =H914 -> 4467963.158 | I132: 0 | J132: 0 | K132: 2345006.57 | L132: 0 | M132: 0 | N132: =N914 -> 0 | O132: =O914 -> 2122956.588 | P132: =P914 -> 0 | T132: Hydro - P | U132: P | V132: =Factors!C397 -> 0 | W132: =IF(Variables!$AO$3=12,Factors!H397+Factors!K397,CHOOSE(Variables!AO$3,Factors!D397,Factors!E397,Factors!F397,Factors!G397,Factors!H397,Factors!I397,Factors!J397,Factors!K397,Factors!L397,Factors!M397,Factors!N397)) -> 0 | X132: =VLOOKUP($U132,Func_Ftrs,I$90,0)*IF(Variables!$Y$23=1,$V132,$W132) -> 0 | Y132: =VLOOKUP($U132,Func_Ftrs,J$90,0)*IF(Variables!$Y$23=1,$V132,$W132) -> 0 | Z132: =VLOOKUP($U132,Func_Ftrs,K$90,0)*IF(Variables!$Y$23=1,$V132,$W132) -> 0 | AA132: =VLOOKUP($U132,Func_Ftrs,L$90,0)*IF(Variables!$Y$23=1,$V132,$W132) -> 0 | AB132: =VLOOKUP($U132,Func_Ftrs,M$90,0)*IF(Variables!$Y$23=1,$V132,$W132) -> 0 | AC132: =VLOOKUP($U132,Func_Ftrs,N$90,0)*IF(Variables!$Y$23=1,$V132,$W132) -> 0 | AD132: =VLOOKUP($U132,Func_Ftrs,O$90,0)*IF(Variables!$Y$23=1,$V132,$W132) -> 0 | AE132: =VLOOKUP($U132,Func_Ftrs,P$90,0)*IF(Variables!$Y$23=1,$V132,$W132) -> 0 | AG132: Hydro - P | AH132: P | AI132: 0 | AJ132: 0 | AK132: =VLOOKUP($AH132,Func_Ftrs,I$90,0)*IF(Variables!$Y$23=1,$AI132,$AJ132) -> 0 | AL132: =VLOOKUP($AH132,Func_Ftrs,J$90,0)*IF(Variables!$Y$23=1,$AI132,$AJ132) -> 0 | AM132: =VLOOKUP($AH132,Func_Ftrs,K$90,0)*IF(Variables!$Y$23=1,$AI132,$AJ132) -> 0 | AN132: =VLOOKUP($AH132,Func_Ftrs,L$90,0)*IF(Variables!$Y$23=1,$AI132,$AJ132) -> 0 | AO132: =VLOOKUP($AH132,Func_Ftrs,M$90,0)*IF(Variables!$Y$23=1,$AI132,$AJ132) -> 0 | AP132: =VLOOKUP($AH132,Func_Ftrs,N$90,0)*IF(Variables!$Y$23=1,$AI132,$AJ132) -> 0 | AQ132: =VLOOKUP($AH132,Func_Ftrs,O$90,0)*IF(Variables!$Y$23=1,$AI132,$AJ132) -> 0 | AR132: =VLOOKUP($AH132,Func_Ftrs,P$90,0)*IF(Variables!$Y$23=1,$AI132,$AJ132) -> 0
A133: 17 | D133: Sales | H133: =H944 -> 0 | I133: 0 | J133: 0 | K133: 0 | L133: 0 | M133: 0 | N133: =N944 -> 0 | O133: =O944 -> 0 | P133: =P944 -> 0 | T133: Hydro - U | U133: P | V133: =Factors!C398 -> 0 | W133: =IF(Variables!$AO$3=12,Factors!H398+Factors!K398,CHOOSE(Variables!AO$3,Factors!D398,Factors!E398,Factors!F398,Factors!G398,Factors!H398,Factors!I398,Factors!J398,Factors!K398,Factors!L398,Factors!M398,Factors!N398)) -> 0 | X133: =VLOOKUP($U133,Func_Ftrs,I$90,0)*IF(Variables!$Y$23=1,$V133,$W133) -> 0 | Y133: =VLOOKUP($U133,Func_Ftrs,J$90,0)*IF(Variables!$Y$23=1,$V133,$W133) -> 0 | Z133: =VLOOKUP($U133,Func_Ftrs,K$90,0)*IF(Variables!$Y$23=1,$V133,$W133) -> 0 | AA133: =VLOOKUP($U133,Func_Ftrs,L$90,0)*IF(Variables!$Y$23=1,$V133,$W133) -> 0 | AB133: =VLOOKUP($U133,Func_Ftrs,M$90,0)*IF(Variables!$Y$23=1,$V133,$W133) -> 0 | AC133: =VLOOKUP($U133,Func_Ftrs,N$90,0)*IF(Variables!$Y$23=1,$V133,$W133) -> 0 | AD133: =VLOOKUP($U133,Func_Ftrs,O$90,0)*IF(Variables!$Y$23=1,$V133,$W133) -> 0 | AE133: =VLOOKUP($U133,Func_Ftrs,P$90,0)*IF(Variables!$Y$23=1,$V133,$W133) -> 0 | AG133: Hydro - U | AH133: P | AI133: 0 | AJ133: 0 | AK133: =VLOOKUP($AH133,Func_Ftrs,I$90,0)*IF(Variables!$Y$23=1,$AI133,$AJ133) -> 0 | AL133: =VLOOKUP($AH133,Func_Ftrs,J$90,0)*IF(Variables!$Y$23=1,$AI133,$AJ133) -> 0 | AM133: =VLOOKUP($AH133,Func_Ftrs,K$90,0)*IF(Variables!$Y$23=1,$AI133,$AJ133) -> 0 | AN133: =VLOOKUP($AH133,Func_Ftrs,L$90,0)*IF(Variables!$Y$23=1,$AI133,$AJ133) -> 0 | AO133: =VLOOKUP($AH133,Func_Ftrs,M$90,0)*IF(Variables!$Y$23=1,$AI133,$AJ133) -> 0 | AP133: =VLOOKUP($AH133,Func_Ftrs,N$90,0)*IF(Variables!$Y$23=1,$AI133,$AJ133) -> 0 | AQ133: =VLOOKUP($AH133,Func_Ftrs,O$90,0)*IF(Variables!$Y$23=1,$AI133,$AJ133) -> 0 | AR133: =VLOOKUP($AH133,Func_Ftrs,P$90,0)*IF(Variables!$Y$23=1,$AI133,$AJ133) -> 0
A134: 18 | D134: Administrative & General | H134: =H1027 -> 55431077.27 | I134: 18577048.31 | J134: 5324791.649 | K134: 23869105.89 | L134: 0 | M134: 2172891.534 | N134: =N1027 -> 3579629.36 | O134: =O1027 -> 1907610.53 | P134: =P1027 -> 0 | T134: Transmission | U134: T | V134: =Factors!C408 -> 0 | W134: =IF(Variables!$AO$3=12,Factors!H408+Factors!K408,CHOOSE(Variables!AO$3,Factors!D408,Factors!E408,Factors!F408,Factors!G408,Factors!H408,Factors!I408,Factors!J408,Factors!K408,Factors!L408,Factors!M408,Factors!N408)) -> 0 | X134: =VLOOKUP($U134,Func_Ftrs,I$90,0)*IF(Variables!$Y$23=1,$V134,$W134) -> 0 | Y134: =VLOOKUP($U134,Func_Ftrs,J$90,0)*IF(Variables!$Y$23=1,$V134,$W134) -> 0 | Z134: =VLOOKUP($U134,Func_Ftrs,K$90,0)*IF(Variables!$Y$23=1,$V134,$W134) -> 0 | AA134: =VLOOKUP($U134,Func_Ftrs,L$90,0)*IF(Variables!$Y$23=1,$V134,$W134) -> 0 | AB134: =VLOOKUP($U134,Func_Ftrs,M$90,0)*IF(Variables!$Y$23=1,$V134,$W134) -> 0 | AC134: =VLOOKUP($U134,Func_Ftrs,N$90,0)*IF(Variables!$Y$23=1,$V134,$W134) -> 0 | AD134: =VLOOKUP($U134,Func_Ftrs,O$90,0)*IF(Variables!$Y$23=1,$V134,$W134) -> 0 | AE134: =VLOOKUP($U134,Func_Ftrs,P$90,0)*IF(Variables!$Y$23=1,$V134,$W134) -> 0 | AG134: Transmission | AH134: T | AI134: 0 | AJ134: 0 | AK134: =VLOOKUP($AH134,Func_Ftrs,I$90,0)*IF(Variables!$Y$23=1,$AI134,$AJ134) -> 0 | AL134: =VLOOKUP($AH134,Func_Ftrs,J$90,0)*IF(Variables!$Y$23=1,$AI134,$AJ134) -> 0 | AM134: =VLOOKUP($AH134,Func_Ftrs,K$90,0)*IF(Variables!$Y$23=1,$AI134,$AJ134) -> 0 | AN134: =VLOOKUP($AH134,Func_Ftrs,L$90,0)*IF(Variables!$Y$23=1,$AI134,$AJ134) -> 0 | AO134: =VLOOKUP($AH134,Func_Ftrs,M$90,0)*IF(Variables!$Y$23=1,$AI134,$AJ134) -> 0 | AP134: =VLOOKUP($AH134,Func_Ftrs,N$90,0)*IF(Variables!$Y$23=1,$AI134,$AJ134) -> 0 | AQ134: =VLOOKUP($AH134,Func_Ftrs,O$90,0)*IF(Variables!$Y$23=1,$AI134,$AJ134) -> 0 | AR134: =VLOOKUP($AH134,Func_Ftrs,P$90,0)*IF(Variables!$Y$23=1,$AI134,$AJ134) -> 0
A135: 19 | T135: Distribution | U135: D_SPLIT | V135: =Factors!C409 -> 0 | W135: =IF(Variables!$AO$3=12,Factors!H409+Factors!K409,CHOOSE(Variables!AO$3,Factors!D409,Factors!E409,Factors!F409,Factors!G409,Factors!H409,Factors!I409,Factors!J409,Factors!K409,Factors!L409,Factors!M409,Factors!N409)) -> 0 | X135: =VLOOKUP($U135,Func_Ftrs,I$90,0)*IF(Variables!$Y$23=1,$V135,$W135) -> 0 | Y135: =VLOOKUP($U135,Func_Ftrs,J$90,0)*IF(Variables!$Y$23=1,$V135,$W135) -> 0 | Z135: =VLOOKUP($U135,Func_Ftrs,K$90,0)*IF(Variables!$Y$23=1,$V135,$W135) -> 0 | AA135: =VLOOKUP($U135,Func_Ftrs,L$90,0)*IF(Variables!$Y$23=1,$V135,$W135) -> 0 | AB135: =VLOOKUP($U135,Func_Ftrs,M$90,0)*IF(Variables!$Y$23=1,$V135,$W135) -> 0 | AC135: =VLOOKUP($U135,Func_Ftrs,N$90,0)*IF(Variables!$Y$23=1,$V135,$W135) -> 0 | AD135: =VLOOKUP($U135,Func_Ftrs,O$90,0)*IF(Variables!$Y$23=1,$V135,$W135) -> 0 | AE135: =VLOOKUP($U135,Func_Ftrs,P$90,0)*IF(Variables!$Y$23=1,$V135,$W135) -> 0 | AG135: Distribution | AH135: D_SPLIT | AI135: 0 | AJ135: 0 | AK135: =VLOOKUP($AH135,Func_Ftrs,I$90,0)*IF(Variables!$Y$23=1,$AI135,$AJ135) -> 0 | AL135: =VLOOKUP($AH135,Func_Ftrs,J$90,0)*IF(Variables!$Y$23=1,$AI135,$AJ135) -> 0 | AM135: =VLOOKUP($AH135,Func_Ftrs,K$90,0)*IF(Variables!$Y$23=1,$AI135,$AJ135) -> 0 | AN135: =VLOOKUP($AH135,Func_Ftrs,L$90,0)*IF(Variables!$Y$23=1,$AI135,$AJ135) -> 0 | AO135: =VLOOKUP($AH135,Func_Ftrs,M$90,0)*IF(Variables!$Y$23=1,$AI135,$AJ135) -> 0 | AP135: =VLOOKUP($AH135,Func_Ftrs,N$90,0)*IF(Variables!$Y$23=1,$AI135,$AJ135) -> 0 | AQ135: =VLOOKUP($AH135,Func_Ftrs,O$90,0)*IF(Variables!$Y$23=1,$AI135,$AJ135) -> 0 | AR135: =VLOOKUP($AH135,Func_Ftrs,P$90,0)*IF(Variables!$Y$23=1,$AI135,$AJ135) -> 0
A136: 20 | D136: Total O & M Expenses | H136: =SUM(H125:H134) -> 1184180164 | I136: 930426777.2 | J136: 99503602.77 | K136: 108173591.7 | L136: -7207.130367 | M136: 17649104.68 | N136: =SUM(N125:N134) -> 12149082.64 | O136: =SUM(O125:O134) -> 14512366.24 | P136: =SUM(P125:P134) -> 0 | T136: General | U136: G | V136: =Factors!C410 -> 0 | W136: =IF(Variables!$AO$3=12,Factors!H410+Factors!K410,CHOOSE(Variables!AO$3,Factors!D410,Factors!E410,Factors!F410,Factors!G410,Factors!H410,Factors!I410,Factors!J410,Factors!K410,Factors!L410,Factors!M410,Factors!N410)) -> 0 | X136: =VLOOKUP($U136,Func_Ftrs,I$90,0)*IF(Variables!$Y$23=1,$V136,$W136) -> 0 | Y136: =VLOOKUP($U136,Func_Ftrs,J$90,0)*IF(Variables!$Y$23=1,$V136,$W136) -> 0 | Z136: =VLOOKUP($U136,Func_Ftrs,K$90,0)*IF(Variables!$Y$23=1,$V136,$W136) -> 0 | AA136: =VLOOKUP($U136,Func_Ftrs,L$90,0)*IF(Variables!$Y$23=1,$V136,$W136) -> 0 | AB136: =VLOOKUP($U136,Func_Ftrs,M$90,0)*IF(Variables!$Y$23=1,$V136,$W136) -> 0 | AC136: =VLOOKUP($U136,Func_Ftrs,N$90,0)*IF(Variables!$Y$23=1,$V136,$W136) -> 0 | AD136: =VLOOKUP($U136,Func_Ftrs,O$90,0)*IF(Variables!$Y$23=1,$V136,$W136) -> 0 | AE136: =VLOOKUP($U136,Func_Ftrs,P$90,0)*IF(Variables!$Y$23=1,$V136,$W136) -> 0 | AG136: General | AH136: G | AI136: 0 | AJ136: 0 | AK136: =VLOOKUP($AH136,Func_Ftrs,I$90,0)*IF(Variables!$Y$23=1,$AI136,$AJ136) -> 0 | AL136: =VLOOKUP($AH136,Func_Ftrs,J$90,0)*IF(Variables!$Y$23=1,$AI136,$AJ136) -> 0 | AM136: =VLOOKUP($AH136,Func_Ftrs,K$90,0)*IF(Variables!$Y$23=1,$AI136,$AJ136) -> 0 | AN136: =VLOOKUP($AH136,Func_Ftrs,L$90,0)*IF(Variables!$Y$23=1,$AI136,$AJ136) -> 0 | AO136: =VLOOKUP($AH136,Func_Ftrs,M$90,0)*IF(Variables!$Y$23=1,$AI136,$AJ136) -> 0 | AP136: =VLOOKUP($AH136,Func_Ftrs,N$90,0)*IF(Variables!$Y$23=1,$AI136,$AJ136) -> 0 | AQ136: =VLOOKUP($AH136,Func_Ftrs,O$90,0)*IF(Variables!$Y$23=1,$AI136,$AJ136) -> 0 | AR136: =VLOOKUP($AH136,Func_Ftrs,P$90,0)*IF(Variables!$Y$23=1,$AI136,$AJ136) -> 0
A137: 21 | T137: Mining Plant | U137: P | V137: =Factors!C411 -> 0 | W137: =IF(Variables!$AO$3=12,Factors!H411+Factors!K411,CHOOSE(Variables!AO$3,Factors!D411,Factors!E411,Factors!F411,Factors!G411,Factors!H411,Factors!I411,Factors!J411,Factors!K411,Factors!L411,Factors!M411,Factors!N411)) -> 0 | X137: =VLOOKUP($U137,Func_Ftrs,I$90,0)*IF(Variables!$Y$23=1,$V137,$W137) -> 0 | Y137: =VLOOKUP($U137,Func_Ftrs,J$90,0)*IF(Variables!$Y$23=1,$V137,$W137) -> 0 | Z137: =VLOOKUP($U137,Func_Ftrs,K$90,0)*IF(Variables!$Y$23=1,$V137,$W137) -> 0 | AA137: =VLOOKUP($U137,Func_Ftrs,L$90,0)*IF(Variables!$Y$23=1,$V137,$W137) -> 0 | AB137: =VLOOKUP($U137,Func_Ftrs,M$90,0)*IF(Variables!$Y$23=1,$V137,$W137) -> 0 | AC137: =VLOOKUP($U137,Func_Ftrs,N$90,0)*IF(Variables!$Y$23=1,$V137,$W137) -> 0 | AD137: =VLOOKUP($U137,Func_Ftrs,O$90,0)*IF(Variables!$Y$23=1,$V137,$W137) -> 0 | AE137: =VLOOKUP($U137,Func_Ftrs,P$90,0)*IF(Variables!$Y$23=1,$V137,$W137) -> 0 | AG137: Mining Plant | AH137: P | AI137: 0 | AJ137: 0 | AK137: =VLOOKUP($AH137,Func_Ftrs,I$90,0)*IF(Variables!$Y$23=1,$AI137,$AJ137) -> 0 | AL137: =VLOOKUP($AH137,Func_Ftrs,J$90,0)*IF(Variables!$Y$23=1,$AI137,$AJ137) -> 0 | AM137: =VLOOKUP($AH137,Func_Ftrs,K$90,0)*IF(Variables!$Y$23=1,$AI137,$AJ137) -> 0 | AN137: =VLOOKUP($AH137,Func_Ftrs,L$90,0)*IF(Variables!$Y$23=1,$AI137,$AJ137) -> 0 | AO137: =VLOOKUP($AH137,Func_Ftrs,M$90,0)*IF(Variables!$Y$23=1,$AI137,$AJ137) -> 0 | AP137: =VLOOKUP($AH137,Func_Ftrs,N$90,0)*IF(Variables!$Y$23=1,$AI137,$AJ137) -> 0 | AQ137: =VLOOKUP($AH137,Func_Ftrs,O$90,0)*IF(Variables!$Y$23=1,$AI137,$AJ137) -> 0 | AR137: =VLOOKUP($AH137,Func_Ftrs,P$90,0)*IF(Variables!$Y$23=1,$AI137,$AJ137) -> 0
A138: 22 | D138: Depreciation | H138: =H1116 -> 281043548.3 | I138: 181973690.9 | J138: 46089906.84 | K138: 48579609.53 | L138: 0 | M138: 340925.0399 | N138: =N1116 -> 3704648.724 | O138: =O1116 -> 354767.2656 | P138: =P1116 -> 0
A139: 23 | D139: Amortization Expense | H139: =H1196 -> 14468980.63 | I139: 9954171.978 | J139: 3035590.922 | K139: -963963.328 | L139: 0 | M139: 1134287.564 | N139: =N1196 -> 633464.2843 | O139: =O1196 -> 675429.2109 | P139: =P1196 -> 0 | T139: Total PC (Post Merger) | V139: =SUM(V131:V137) -> 0 | W139: 0 | X139: 0 | Y139: 0 | Z139: 0 | AA139: 0 | AB139: 0 | AC139: 0 | AD139: 0 | AE139: 0 | AG139: Total PC (Post Merger) | AI139: =SUM(AI131:AI137) -> 0 | AJ139: 0 | AK139: 0 | AL139: 0 | AM139: 0 | AN139: 0 | AO139: 0 | AP139: 0 | AQ139: 0 | AR139: 0
A140: 24 | D140: Taxes Other Than Income | H140: =H1224 -> 65837020.68 | I140: 29664190.78 | J140: 14615580.01 | K140: 17952258.71 | L140: -8972.665151 | M140: 398362.748 | N140: =N1224 -> 767870.4951 | O140: =O1224 -> 240589.5527 | P140: =P1224 -> 0
A141: 25 | D141: Income Taxes - Federal | H141: =H1433 -> 57475482.99 | I141: -247826195.4 | J141: -54947785.44 | K141: -3132116.601 | L141: -1404206.307 | M141: 2291049.28 | N141: =N1433 -> 3706363.654 | O141: =O1433 -> -3545351.986 | P141: =P1433 -> 1.569943568e-299 | T141: Total Deferred Taxes | V141: =V119+V128+V139 -> 0 | W141: 0 | X141: 0 | Y141: 0 | Z141: 0 | AA141: 0 | AB141: 0 | AC141: 0 | AD141: 0 | AE141: 0 | AG141: Total Deferred Taxes | AI141: =AI119+AI128+AI139 -> 0 | AJ141: 0 | AK141: 0 | AL141: 0 | AM141: 0 | AN141: 0 | AO141: 0 | AP141: 0 | AQ141: 0 | AR141: 0
A142: 26 | D142: Income Taxes - State | H142: =H1400 -> -39040724.07 | I142: -31058706.82 | J142: -7690310.819 | K142: -438360.709 | L142: -196528.0833 | M142: 320647.7007 | N142: =N1400 -> 518730.4325 | O142: =O1400 -> -496195.7706 | P142: =P1400 -> 2.197241237e-300
A143: 27 | D143: Income Taxes - Def Net | H143: =H1322 -> 53379090.05 | N143: =N1322 ->  | O143: =O1322 ->  | P143: =P1322 ->  | T143: DITEXPRL FACTOR | V143: =V141/V141 ->  | W143: =W141/W141 ->  | X143: =X141/IF(Variables!$Y$23=2,$W141,$V141) ->  | Y143: =Y141/IF(Variables!$Y$23=2,$W141,$V141) ->  | Z143: =Z141/IF(Variables!$Y$23=2,$W141,$V141) ->  | AA143: =AA141/IF(Variables!$Y$23=2,$W141,$V141) ->  | AB143: =AB141/IF(Variables!$Y$23=2,$W141,$V141) ->  | AC143: =AC141/IF(Variables!$Y$23=2,$W141,$V141) ->  | AD143: =AD141/IF(Variables!$Y$23=2,$W141,$V141) ->  | AE143: =AE141/IF(Variables!$Y$23=2,$W141,$V141) ->  | AG143: DITEXPMA FACTOR | AI143: =AI141/AI141 ->  | AJ143: =AJ141/AJ141 ->  | AK143: =AK141/IF(Variables!$Y$23=2,$AJ141,$AI141) ->  | AL143: =AL141/IF(Variables!$Y$23=2,$AJ141,$AI141) ->  | AM143: =AM141/IF(Variables!$Y$23=2,$AJ141,$AI141) ->  | AN143: =AN141/IF(Variables!$Y$23=2,$AJ141,$AI141) ->  | AO143: =AO141/IF(Variables!$Y$23=2,$AJ141,$AI141) ->  | AP143: =AP141/IF(Variables!$Y$23=2,$AJ141,$AI141) ->  | AQ143: =AQ141/IF(Variables!$Y$23=2,$AJ141,$AI141) ->  | AR143: =AR141/IF(Variables!$Y$23=2,$AJ141,$AI141) -> 
A144: 28 | D144: Investment Tax Credit Adj. | H144: =H1237 -> -3978052.186 | I144: -2003518.747 | J144: -951704.4437 | K144: -993175.3807 | L144: 0 | M144: 0 | N144: =N1237 -> -29653.61516 | O144: =O1237 -> 0 | P144: =P1237 -> 0
A145: 29 | D145: Misc Revenue & Expense | H145: =H332 -> 525804.3577 | I145: -401751.5513 | J145: -45.28821991 | K145: -55840.89167 | L145: 0 | M145: 983443.5 | N145: =N332 -> -1.411109776 | O145: =O332 -> 0 | P145: =P332 -> 0
A146: 30
A147: 31 | D147: Total Operating Expenses | H147: =SUM(H136:H145) -> 1613891315 | N147: =SUM(N136:N145) ->  | O147: =SUM(O136:O145) ->  | P147: =SUM(P136:P145) -> 
A148: 32
A149: 33 | C149: Operating Revenue for Return | H149: =H122-H147 -> 558705626.9 | N149: =N122-N147 ->  | O149: =O122-O147 ->  | P149: =P122-P147 -> 
A150: 34
A151: 35 | C151: Rate Base:
A152: 36 | D152: Electric Plant in Service | H152: =H2058 -> 1.046875982e+10 | I152: 4813997721 | J152: 2509055164 | K152: 2922474920 | L152: 0 | M152: 59335623.61 | N152: =N2058 -> 124505805.2 | O152: =O2058 -> 39390589.64 | P152: =P2058 -> 0
A153: 37 | D153: Plant Held for Future Use | H153: =H2081 -> 12072458.47 | I153: 5625173.285 | J153: 1599942.801 | K153: 4706809.382 | L153: 0 | M153: 0 | N153: =N2081 -> 140532.9983 | O153: =O2081 -> 0 | P153: =P2081 -> 0
A154: 38 | D154: Misc Deferred Debits | H154: =H2189+H2200 -> 336184142 | I154: 177834504.8 | J154: 34483838.01 | K154: 78839891.03 | L154: 0 | M154: 11928190.55 | N154: 21241631.16 | O154: 11856086.38 | P154: 0
A155: 39 | D155: Elec Plant Acq Adj | H155: =H2087+H2093 -> 16602751.92 | I155: 16602751.92 | J155: 0 | K155: 0 | L155: 0 | M155: 0 | N155: 0 | O155: 0 | P155: 0
A156: 40 | D156: Nuclear Fuel | H156: =H2097 -> 0 | I156: 0 | J156: 0 | K156: 0 | L156: 0 | M156: 0 | N156: =N2097 -> 0 | O156: =O2097 -> 0 | P156: =P2097 -> 0
A157: 41 | D157: Prepayments | H157: =H2179 -> 16122675.87 | I157: 7232083.233 | J157: 1682863.412 | K157: 4686189.287 | L157: 0 | M157: 661033.6141 | N157: =N2179 -> 1193140.645 | O157: =O2179 -> 667365.6805 | P157: =P2179 -> 0
A158: 42 | D158: Fuel Stock | H158: =H2144 -> 79964115.8 | I158: 79964115.8 | J158: 0 | K158: 0 | L158: 0 | M158: 0 | N158: =N2144 -> 0 | O158: =O2144 -> 0 | P158: =P2144 -> 0
A159: 43 | D159: Material & Supplies | H159: =H2171 -> 101106913.5 | I159: 81220392.2 | J159: 6830041.422 | K159: 12613819.24 | L159: 0 | M159: 0 | N159: =N2171 -> 442660.609 | O159: =O2171 -> 0 | P159: =P2171 -> 0
A160: 44 | D160: Working Capital | H160: =H2227 -> 25062289.09 | I160: 15419732.58 | J160: 1580344.031 | K160: 5418945.741 | L160: -38526.35054 | M160: 892154.5651 | N160: =N2227 -> 1127922.593 | O160: =O2227 -> 661715.9253 | P160: =P2227 -> 0
A161: 45 | D161: Weatherization Loans | H161: =H2119 -> 2158810.612 | I161: 0 | J161: 0 | K161: 2158810.612 | L161: 0 | M161: 0 | N161: =N2119 -> 0 | O161: =O2119 -> 0 | P161: =P2119 -> 0
A162: 46 | D162: Miscellaneous Rate Base | H162: =H2247 -> 0 | I162: 0 | J162: 0 | K162: 0 | L162: 0 | M162: 0 | N162: =N2247 -> 0 | O162: =O2247 -> 0 | P162: =P2247 -> 0
A163: 47
A164: 48 | D164: Total Electric Plant | H164: =SUM(H152:H163) -> 1.105803398e+10 | I164: 5197896475 | J164: 2555232194 | K164: 3030899385 | L164: -38526.35054 | M164: 72817002.34 | N164: =SUM(N152:N163) -> 148651693.2 | O164: =SUM(O152:O163) -> 52575757.63 | P164: =SUM(P152:P163) -> 0
A165: 49
A166: 50 | C166: Rate Base Deductions:
A167: 51 | D167: Accum Prov For Depr | H167: =H2547 -> -3439491814 | I167: -1825194631 | J167: -639400534 | K167: -923972773.9 | L167: 0 | M167: -4941824.189 | N167: =N2547 -> -42750663.15 | O167: =O2547 -> -3231387.13 | P167: =P2547 -> 0
A168: 52 | D168: Accum Prov For Amort | H168: =H2596 -> -230814516.6 | I168: -77752024.44 | J168: -9053932.482 | K168: -54372810.78 | L168: 0 | M168: -39798219.08 | N168: =N2596 -> -25786278.75 | O168: =O2596 -> -24051251.05 | P168: =P2596 -> 0
A169: 53 | D169: Accum Def Income Taxes | H169: =H2344 -> -1891583382 | I169: -882498969.7 | J169: -442441389 | K169: -522397926.2 | L169: 0 | M169: -10945443.99 | N169: =N2344 -> -24737696.29 | O169: =O2344 -> -8561957.078 | P169: =P2344 -> 0
A170: 54 | D170: Unamortized ITC | H170: =H2354 -> -189170.0448 | I170: -76470.90369 | J170: -9104.189975 | K170: -64319.02066 | L170: 0 | M170: -10293.55417 | N170: =N2354 -> -18519.26357 | O170: =O2354 -> -10463.11276 | P170: =P2354 -> 0
A171: 55 | D171: Customer Adv for Const | H171: =H2279 -> -14365565.23 | I171: 0 | J171: -9762049.859 | K171: -4470051.35 | L171: 0 | M171: 0 | N171: =N2279 -> -133464.0236 | O171: =O2279 -> 0 | P171: =P2279 -> 0
A172: 56 | D172: Customer Service Deposits | H172: =H2253 -> -16183238.3 | I172: 0 | J172: 0 | K172: 0 | L172: 0 | M172: -16183238.3 | N172: =N2253 -> 0 | O172: =O2253 -> 0 | P172: =P2253 -> 0
A173: 57 | D173: Misc. Rate Base Deductions | H173: =H2260+H2265+H2271+H2290+H2283 -> -160248149.5 | I173: =I2260+I2265+I2271+I2290+I2283 -> -69685689.65 | J173: -7248714.478 | K173: -52018310.08 | L173: 0 | M173: -8195680.822 | N173: -14769071.86 | O173: -8330682.593 | P173: 0
A174: 58
A175: 59 | D175: Total Rate Base Deductions | H175: =SUM(H167:H173) -> -5752875836 | I175: -2855207786 | J175: -1107915724 | K175: -1557296191 | L175: 0 | M175: -80074699.93 | N175: =SUM(N167:N173) -> -108195693.3 | O175: =SUM(O167:O173) -> -44185740.97 | P175: =SUM(P167:P173) -> 0
A176: 60 | R176: Functional Retail Revenue Spread
A177: 61 | C177: Total Rate Base | H177: =H164+H175 -> 5305158145 | I177: 2342688689 | J177: 1447316470 | K177: 1473603194 | L177: =MAX(L164+L175,1) -> 1 | M177: -7257697.592 | N177: =N164+N175 -> 40455999.85 | O177: =O164+O175 -> 8390016.661 | P177: =P164+P175 -> 0 | S177: =$I$115 -> Production | T177: =$J$115 -> Transmission | U177: =$K$115 -> Distribution | V177: =$L$115 -> Ancillary | W177: =$M$115 -> C_Billing | X177: =$N$115 -> C_Metering | Y177: =$O$115 -> C_Service | Z177: =$P$115 -> DSM
A178: 62 | R178: California
A179: 63 | C179: Return on Rate Base | H179: =H149/H177 -> 0.1053136611 | P179: 0 | R179: Washington
A180: 64 | R180: Montana
A181: 65 | C181: Return on Equity | H181: =(+H179-Variables!$AT$3-Variables!$AT$4)/Variables!$AT$5 -> 0.1566317118 | I181: =(+I179-Variables!$AT$3-Variables!$AT$4)/Variables!$AT$5 ->  | J181: =(+J179-Variables!$AT$3-Variables!$AT$4)/Variables!$AT$5 ->  | K181: =(+K179-Variables!$AT$3-Variables!$AT$4)/Variables!$AT$5 ->  | L181: =(+L179-Variables!$AT$3-Variables!$AT$4)/Variables!$AT$5 ->  | M181: =(+M179-Variables!$AT$3-Variables!$AT$4)/Variables!$AT$5 ->  | N181: =(+N179-Variables!$AT$3-Variables!$AT$4)/Variables!$AT$5 ->  | O181: =(+O179-Variables!$AT$3-Variables!$AT$4)/Variables!$AT$5 ->  | P181: 0 | R181: Wyoming - East | S181: 127802829 | T181: 31696874 | U181: 50094096.44 | V181: 46928984 | W181: 1555189 | X181: 1610923.44
A182: 66 | R182: Utah | S182: 366003980 | T182: 104207074 | U182: 215005203.7 | V182: 197478510 | W182: 11984031 | X182: 5542662.72
A183: 67 | C183: 100 Basis Points in Equity: | H183: =(H177*(Variables!$AT5*(H181+0.01)+Variables!$AT3+Variables!$AT4))-H149 -> 27151799.39 | I183: =(I177*(Variables!AT5*(I181+0.01)+Variables!AT3+Variables!AT4))-I149 ->  | J183: =(J177*(Variables!AU5*(J181+0.01)+Variables!AU3+Variables!AU4))-J149 ->  | K183: =(K177*(Variables!$AV5*(K181+0.01)+Variables!$AV3+Variables!$AV4))-K149 ->  | L183: =(L177*(Variables!$AV5*(L181+0.01)+Variables!$AV3+Variables!$AV4))-L149 ->  | M183: =(M177*(Variables!$AV5*(M181+0.01)+Variables!$AV3+Variables!$AV4))-M149 ->  | N183: =(N177*(Variables!$AV5*(N181+0.01)+Variables!$AV3+Variables!$AV4))-N149 ->  | O183: =(O177*(Variables!$AV5*(O181+0.01)+Variables!$AV3+Variables!$AV4))-O149 ->  | P183: =(P177*(Variables!$AV5*(P181+0.01)+Variables!$AV3+Variables!$AV4))-P149 ->  | R183: Idaho | S183: 55561275 | T183: 14318016 | U183: 30397767.02 | V183: 27273473 | W183: 2038247 | X183: 1086047.02
A184: 68 | D184: Revenue Requirement Impact | H184: =H183*(1/(1-(INDEX(Variables!$F$15:$Q$15,1,Variables!$AO$3)))) -> 43758641.37 | I184: =I183*(1/(1-(INDEX(Variables!$F$15:$Q$15,1,Variables!$AO$3)))) ->  | J184: =J183*(1/(1-(INDEX(Variables!$F$15:$Q$15,1,Variables!$AO$3)))) ->  | K184: =K183*(1/(1-(INDEX(Variables!$F$15:$Q$15,1,Variables!$AO$3)))) ->  | L184: =L183*(1/(1-(INDEX(Variables!$F$15:$Q$15,1,Variables!$AO$3)))) ->  | M184: =M183*(1/(1-(INDEX(Variables!$F$15:$Q$15,1,Variables!$AO$3)))) ->  | N184: =N183*(1/(1-(INDEX(Variables!$F$15:$Q$15,1,Variables!$AO$3)))) ->  | O184: =O183*(1/(1-(INDEX(Variables!$F$15:$Q$15,1,Variables!$AO$3)))) ->  | P184: =P183*(1/(1-(INDEX(Variables!$F$15:$Q$15,1,Variables!$AO$3)))) ->  | R184: Wyoming - West | S184: 19756255.66 | T184: 5006765.992 | U184: 9963427.118 | V184: 8733400.13 | W184: 996768.2125 | X184: 233258.5417
A185: 69 | D185: Rate Base Decrease | H185: =(H149/(Variables!$AT5*(H181+0.01)+UTCR!$J7+UTCR!$J12))-H177 -> -245869700.1 | I185: =(I149/(Variables!$AT5*(I181+0.01)+UTCR!$J7+UTCR!$J12))-I177 ->  | J185: =(J149/(Variables!$AU5*(J181+0.01)+UTCR!$J7+UTCR!$J12))-J177 ->  | K185: =(K149/(Variables!$AV5*(K181+0.01)+UTCR!$J7+UTCR!$J12))-K177 ->  | L185: =(L149/(Variables!$AV5*(L181+0.01)+UTCR!$J7+UTCR!$J12))-L177 ->  | M185: =(M149/(Variables!$AV5*(M181+0.01)+UTCR!$J7+UTCR!$J12))-M177 ->  | N185: =(N149/(Variables!$AV5*(N181+0.01)+UTCR!$J7+UTCR!$J12))-N177 ->  | O185: =(O149/(Variables!$AV5*(O181+0.01)+UTCR!$J7+UTCR!$J12))-O177 ->  | P185: =(P149/(Variables!$AV5*(P181+0.01)+UTCR!$J7+UTCR!$J12))-P177 ->  | R185: Total Company | S185: 1110556694 | T185: 308995072.2 | U185: 611877930.3 | V185: 566002564.9 | W185: 14881002.1 | X185: 30994363.59
C186: =$C$111 -> RESULTS OF OPERATIONS SUMMARY | AA186: Check Total
C187: =+$C$114 -> 2010 PROTOCOL | S187: =($H179-I179)*I177*(1/(1-Variables!$F$15)) ->  | T187: =($H179-J179)*J177*(1/(1-Variables!$F$15)) ->  | U187: =($H179-K179)*K177*(1/(1-Variables!$F$15)) ->  | V187: =($H179-L179)*L177*(1/(1-Variables!$F$15)) ->  | W187: =($H179-M179)*M177*(1/(1-Variables!$F$15)) ->  | X187: =($H179-N179)*N177*(1/(1-Variables!$F$15)) ->  | Y187: =($H179-O179)*O177*(1/(1-Variables!$F$15)) ->  | Z187: =($H179-P179)*P177*(1/(1-Variables!$F$15)) -> 0 | AA187: =ABS(SUM(S187:Z187)) -> 
C188: FERC | F188: BUSINESS | G188: PITA | H188: =$H$114 -> UTAH | S188: =S187+I192 ->  | Z188: 4.705277175e-299 | AA188: =SUM(S188:Z188) -> 
C189: ACCT | E189: DESCRIPTION | F189: FUNCTION | G189: FACTOR | H189: =$H$115 -> Normalized | I189: =$I$115 -> Production | J189: =$J$115 -> Transmission | K189: =$K$115 -> Distribution | L189: =$L$115 -> Ancillary | M189: =$M$115 -> C_Billing | N189: =$N$115 -> C_Metering | O189: =$O$115 -> C_Service | P189: =$P$115 -> DSM | Q189: Check | S189: =$I$115 -> Production | T189: =$J$115 -> Transmission | U189: =$K$115 -> Distribution | V189: =$L$115 -> Ancillary | W189: Customer | X189: DSM
A190: 70 | C190: Sales to Ultimate Customers | Q190: Figure | R190: Variance
A191: 71 | C191: 440 | D191: Residential Sales | I191: =($H179-I179)*I177*(1/(1-Variables!$F$15)) ->  | J191: =($H179-J179)*J177*(1/(1-Variables!$F$15)) ->  | K191: =($H179-K179)*K177*(1/(1-Variables!$F$15)) ->  | L191: =($H179-L179)*L177*(1/(1-Variables!$F$15)) ->  | M191: =($H179-M179)*M177*(1/(1-Variables!$F$15)) ->  | N191: =($H179-N179)*N177*(1/(1-Variables!$F$15)) ->  | O191: =($H179-O179)*O177*(1/(1-Variables!$F$15)) ->  | P191: =($H179-P179)*P177*(1/(1-Variables!$F$15)) -> 0 | Q191: =H117 -> 1988560506
A192: 72 | G192: =UTCR!H192 -> S | H192: =IF(Variables!$Y$23=2,Report!P192,NRO!I192) -> 742487158.5 | I192: 652206238.2 | J192: 43324568.75 | K192: 194817363.5 | L192: 6949653.101 | M192: 20138960.93 | N192: 25075718.33 | O192: 6828800.312 | P192: 4.705277175e-299 | Q192: =SUM(I192:P192) -> 949341303.1 | R192: =ROUND(Q191-Q192,0) -> 1039219203 | S192: =IF($F192=0,0,INDEX($I192:$P192,1,1)) -> 0 | T192: =IF($F192=0,0,INDEX($I192:$P192,1,2)) -> 0 | U192: =IF($F192=0,0,INDEX($I192:$P192,1,3)) -> 0 | V192: =IF($F192=0,0,INDEX($I192:$P192,1,4)) -> 0 | W192: =IF($F192=0,0,INDEX($I192:$P192,1,5)) -> 0 | X192: =IF($F192=0,0,INDEX($I192:$P192,1,6)) -> 0
A193: 73 | S193: 0 | T193: 0 | U193: 0 | V193: 0 | W193: 0 | X193: 0
A194: 74 | H194: =SUBTOTAL(9,H192:H193) -> 742487158.5 | S194: 0 | T194: 0 | U194: 0 | V194: 0 | W194: 0 | X194: 0
A195: 75 | S195: 0 | T195: 0 | U195: 0 | V195: 0 | W195: 0 | X195: 0
A196: 76 | C196: 442 | D196: Commercial & Industrial Sales | S196: 0 | T196: 0 | U196: 0 | V196: 0 | W196: 0 | X196: 0
A197: 77 | G197: =UTCR!H197 -> S | H197: =IF(Variables!$Y$23=2,Report!P197,NRO!I197) -> 1220620282 | S197: 0 | T197: 0 | U197: 0 | V197: 0 | W197: 0 | X197: 0
A198: 78 | F198: P | G198: =UTCR!H198 -> SE | H198: =IF(Variables!$Y$23=2,Report!P198,NRO!I198) -> 0 | I198: =IF(F198=(VLOOKUP(F198,Func_Ftrs,1)),VLOOKUP(F198,Func_Ftrs,5),"#N/A")*H198 -> 0 | J198: =IF(F198=(VLOOKUP(F198,Func_Ftrs,1)),VLOOKUP(F198,Func_Ftrs,6),"#N/A")*H198 -> 0 | K198: =IF(F198=(VLOOKUP(F198,Func_Ftrs,1)),VLOOKUP(F198,Func_Ftrs,7),"#N/A")*H198 -> 0 | L198: =IF(F198=(VLOOKUP(F198,Func_Ftrs,1)),VLOOKUP(F198,Func_Ftrs,8),"#N/A")*H198 -> 0 | M198: =IF(F198=(VLOOKUP(F198,Func_Ftrs,1)),VLOOKUP(F198,Func_Ftrs,9),"#N/A")*H198 -> 0 | N198: =IF($F198=(VLOOKUP($F198,Func_Ftrs,1)),VLOOKUP($F198,Func_Ftrs,10),"#N/A")*$H198 -> 0 | O198: =IF($F198=(VLOOKUP($F198,Func_Ftrs,1)),VLOOKUP($F198,Func_Ftrs,11),"#N/A")*$H198 -> 0 | P198: =IF($F198=(VLOOKUP($F198,Func_Ftrs,1)),VLOOKUP($F198,Func_Ftrs,12),"#N/A")*$H198 -> 0 | S198: 0 | T198: 0 | U198: 0 | V198: 0 | W198: 0 | X198: 0
A199: 79 | F199: PT | G199: =UTCR!H199 -> SG | H199: =IF(Variables!$Y$23=2,Report!P199,NRO!I199) -> 0 | I199: =IF(F199=(VLOOKUP(F199,Func_Ftrs,1,0)),VLOOKUP(F199,Func_Ftrs,5,0),"#N/A")*H199 -> 0 | J199: =IF(F199=(VLOOKUP(F199,Func_Ftrs,1,0)),VLOOKUP(F199,Func_Ftrs,6,0),"#N/A")*H199 -> 0 | K199: =IF(F199=(VLOOKUP(F199,Func_Ftrs,1,0)),VLOOKUP(F199,Func_Ftrs,7,0),"#N/A")*H199 -> 0 | L199: =IF(F199=(VLOOKUP(F199,Func_Ftrs,1,0)),VLOOKUP(F199,Func_Ftrs,8,0),"#N/A")*H199 -> 0 | M199: =IF(F199=(VLOOKUP(F199,Func_Ftrs,1,0)),VLOOKUP(F199,Func_Ftrs,9,0),"#N/A")*H199 -> 0 | N199: =IF($F199=(VLOOKUP($F199,Func_Ftrs,1,0)),VLOOKUP($F199,Func_Ftrs,10,0),"#N/A")*$H199 -> 0 | O199: =IF($F199=(VLOOKUP($F199,Func_Ftrs,1,0)),VLOOKUP($F199,Func_Ftrs,11,0),"#N/A")*$H199 -> 0 | P199: =IF($F199=(VLOOKUP($F199,Func_Ftrs,1,0)),VLOOKUP($F199,Func_Ftrs,12,0),"#N/A")*$H199 -> 0 | S199: 0 | T199: 0 | U199: 0 | V199: 0 | W199: 0 | X199: 0
A200: 80 | S200: 0 | T200: 0 | U200: 0 | V200: 0 | W200: 0 | X200: 0
A201: 81 | S201: 0 | T201: 0 | U201: 0 | V201: 0 | W201: 0 | X201: 0
A202: 82 | H202: =SUBTOTAL(9,H197:H200) -> 1220620282 | I202: 0 | J202: 0 | K202: 0 | L202: 0 | M202: 0 | N202: =SUBTOTAL(9,N197:N200) -> 0 | O202: =SUBTOTAL(9,O197:O200) -> 0 | P202: =SUBTOTAL(9,P197:P200) -> 0 | S202: 0 | T202: 0 | U202: 0 | V202: 0 | W202: 0 | X202: 0
A203: 83 | S203: 0 | T203: 0 | U203: 0 | V203: 0 | W203: 0 | X203: 0
A204: 84 | C204: 444 | D204: Public Street & Highway Lighting | S204: 0 | T204: 0 | U204: 0 | V204: 0 | W204: 0 | X204: 0
A205: 85 | G205: =UTCR!H205 -> S | H205: =IF(Variables!$Y$23=2,Report!P205,NRO!I205) -> 9123413.117 | S205: 0 | T205: 0 | U205: 0 | V205: 0 | W205: 0 | X205: 0
... 2399 more rows

Sheet Results
A1: =VLOOKUP(VLOOKUP(Variables!$AO$3,Variables!$AL$3:'Variables'!$AL$14,1,FALSE),Variables!$AL$3:'Variables'!$AP$14,5,FALSE) -> Rocky Mountain Power | G1: Page 1.1
A2: =Report!I56 -> UTAH
A3: ="Normalized Results of Operations - "&Variables!AE27 -> Normalized Results of Operations - 2010 PROTOCOL
A4: =PROPER(Report!I57) -> 12 Months Ended December 31, 2015
A7: (1) | B7: ="Test Period "& PROPER(Variables!AE27)&" Revenue Requirement" -> Test Period 2010 Protocol Revenue Requirement | E7: =E43 -> 1986852140 | F7: Page 1.2
A9: (2) | B9: Normalized General Business Revenues | E9: =C43 -> 1988560506 | F9: Page 1.2
A11: (3) | B11: =PROPER(Variables!AE27)&" Price Change" -> 2010 Protocol Price Change | E11: =D43 -> -1708365.389 | F11: Page 1.2
A34: =VLOOKUP(VLOOKUP(Variables!$AO$3,Variables!$AL$3:'Variables'!$AL$14,1,FALSE),Variables!$AL$3:'Variables'!$AP$14,5,FALSE) -> Rocky Mountain Power | G34: Page 1.2
A35: =Report!I56 -> UTAH
A36: ="Normalized Results of Operations - "&Variables!AE27 -> Normalized Results of Operations - 2010 PROTOCOL
A37: =A4 -> 12 Months Ended December 31, 2015
C39: (1) | D39: (2) | E39: (3)
C40: Total Adjusted | E40: Results with | L40: PREVIOUS | M40: ADJUSTED
C41: Results | D41: Price Change | E41: Price Change | L41: RESULTS | M41: RESULTS | N41: DIFFERENCE
A42: 1 | B42: Operating Revenues: | J42: 1 | K42: Operating Revenues:
A43: 2 | B43: General Business Revenues | C43: =Report!P118 -> 1988560506 | D43: =-(C74-(C102*Report!J96))*(1/NetToGross) -> -1708365.389 | E43: =SUM(C43:D43) -> 1986852140 | J43: 2 | K43: General Business Revenues | L43: 1988560506 | M43: =C43 -> 1988560506 | N43: =M43-L43 -> 0
A44: 3 | B44: Interdepartmental | C44: =Report!P119 -> 0 | J44: 3 | K44: Interdepartmental | L44: 0 | M44: =C44 -> 0 | N44: =M44-L44 -> 0
A45: 4 | B45: Special Sales | C45: =Report!P120 -> 115082019.4 | J45: 4 | K45: Special Sales | L45: 115082019.4 | M45: =C45 -> 115082019.4 | N45: =M45-L45 -> 0
A46: 5 | B46: Other Operating Revenues | C46: =Report!P121 -> 68962290.31 | J46: 5 | K46: Other Operating Revenues | L46: 68962290.31 | M46: =C46 -> 68962290.31 | N46: =M46-L46 -> 0
A47: 6 | B47: Total Operating Revenues | C47: =SUM(C43:C46) -> 2172604816 | J47: 6 | K47: Total Operating Revenues | L47: 2172604816 | M47: =C47 -> 2172604816 | N47: =M47-L47 -> 0
A48: 7 | J48: 7
A49: 8 | B49: Operating Expenses: | J49: 8 | K49: Operating Expenses:
A50: 9 | B50: Steam Production | C50: =Report!P125 -> 495049870.2 | J50: 9 | K50: Steam Production | L50: 495049870.2 | M50: =C50 -> 495049870.2 | N50: =M50-L50 -> 0
A51: 10 | B51: Nuclear Production | C51: =Report!P126 -> 0 | J51: 10 | K51: Nuclear Production | L51: 0 | M51: 0 | N51: 0
A52: 11 | B52: Hydro Production | C52: =Report!P127 -> 18411492.05 | J52: 11 | K52: Hydro Production | L52: 18411492.05 | M52: 18411492.05 | N52: 0
A53: 12 | B53: Other Power Supply | C53: =Report!P128 -> 403572323.7 | J53: 12 | K53: Other Power Supply | L53: 403572323.7 | M53: 403572323.7 | N53: 0
A54: 13 | B54: Transmission | C54: =Report!P129 -> 94304103.9 | J54: 13 | K54: Transmission | L54: 94304103.9 | M54: 94304103.9 | N54: 0
A55: 14 | B55: Distribution | C55: =Report!P130 -> 85903034.44 | J55: 14 | K55: Distribution | L55: 85903034.44 | M55: =C55 -> 85903034.44 | N55: 0
A56: 15 | B56: Customer Accounting | C56: =Report!P131 -> 33853028 | D56: =D43*UncollectibleAccounts -> -3182.717072 | E56: =SUM(C56:D56) -> 33849845.29 | J56: 15 | K56: Customer Accounting | L56: 33853028 | M56: 33853028 | N56: 0
A57: 16 | B57: Customer Service & Info | C57: =Report!P132 -> 4467963.158 | J57: 16 | K57: Customer Service & Info | L57: 4467963.158 | M57: 4467963.158 | N57: 0
A58: 17 | B58: Sales | C58: =Report!P133 -> 0 | J58: 17 | K58: Sales | L58: 0 | M58: 0 | N58: 0
A59: 18 | B59: Administrative & General | C59: =Report!P134 -> 57579193.91 | J59: 18 | K59: Administrative & General | L59: 57579193.91 | M59: 57579193.91 | N59: 0
A60: 19 | J60: 19
A61: 20 | B61: Total O&M Expenses | C61: =Report!P136 -> 1193141009 | J61: 20 | K61: Total O&M Expenses | L61: 1193141009 | M61: =C61 -> 1193141009 | N61: =M61-L61 -> 0
A62: 21 | J62: 21
A63: 22 | B63: Depreciation | C63: =Report!P138 -> 281043548.3 | J63: 22 | K63: Depreciation | L63: 281043548.3 | M63: =C63 -> 281043548.3 | N63: =M63-L63 -> 0
A64: 23 | B64: Amortization | C64: =Report!P139 -> 14468980.63 | J64: 23 | K64: Amortization | L64: 14468980.63 | M64: 14468980.63 | N64: 0
A65: 24 | B65: Taxes Other Than Income | C65: =Report!P140 -> 65837020.68 | D65: =((D43)*(FranchiseTax+RevenueTax+ResourceSupplier+PUCFees)) -> -4460.542032 | E65: =SUM(C65:D65) -> 65832560.14 | J65: 24 | K65: Taxes Other Than Income | L65: 65837020.68 | M65: 65837020.68 | N65: 0
A66: 25 | B66: Income Taxes - Federal | C66: =Report!P141 -> 42547838.67 | D66: =(D43-D56-D65-D67)*Report!J78 -> -568228.271 | E66: =SUM(C66:D66) -> 41979610.4 | J66: 25 | K66: Income Taxes - Federal | L66: 42547838.67 | M66: 42547838.67 | N66: 0
A67: 26 | B67: Income Taxes - State | C67: =Report!P142 -> 9302236.661 | D67: =(D43-D56-D65)*Report!J79 -> -77212.78472 | E67: =SUM(C67:D67) -> 9225023.877 | J67: 26 | K67: Income Taxes - State | L67: 9302236.661 | M67: 9302236.661 | N67: 0
A68: 27 | B68: Income Taxes - Def Net | C68: =Report!P143 -> 103531973.9 | J68: 27 | K68: Income Taxes - Def Net | L68: 103531973.9 | M68: 103531973.9 | N68: 0
A69: 28 | B69: Investment Tax Credit Adj. | C69: =Report!P144 -> -3978052.186 | J69: 28 | K69: Investment Tax Credit Adj. | L69: -3978052.186 | M69: -3978052.186 | N69: 0
A70: 29 | B70: Misc Revenue & Expense | C70: =Report!P145 -> 525804.3577 | J70: 29 | K70: Misc Revenue & Expense | L70: 525804.3577 | M70: =C70 -> 525804.3577 | N70: 0
A71: 30 | J71: 30
A72: 31 | B72: Total Operating Expenses: | C72: =Report!P147 -> 1706420360 | D72: =SUM(D56,D65:D67) -> -653084.3148 | E72: =C72+D72 -> 1705767276 | J72: 31 | K72: Total Operating Expenses: | L72: 1706420360 | M72: =C72 -> 1706420360 | N72: =M72-L72 -> 0
A73: 32 | J73: 32
A74: 33 | B74: Operating Rev For Return: | C74: =C47-C72 -> 466184455.1 | D74: =D43-D72 -> -1055281.075 | E74: =(C74+D43-D56-D65-D66-D67) -> 465129174 | J74: 33 | K74: Operating Rev For Return: | L74: 466184455.1 | M74: =C74 -> 466184455.1 | N74: =M74-L74 -> 0
A75: 34 | J75: 34
A76: 35 | B76: Rate Base: | J76: 35 | K76: Rate Base:
A77: 36 | B77: Electric Plant In Service | C77: =Report!P152 -> 1.134005564e+10 | J77: 36 | K77: Electric Plant In Service | L77: 1.134005564e+10 | M77: =C77 -> 1.134005564e+10 | N77: =M77-L77 -> 0
A78: 37 | B78: Plant Held for Future Use | C78: =Report!P153 -> 12072458.47 | J78: 37 | K78: Plant Held for Future Use | L78: 12072458.47 | M78: 12072458.47 | N78: 0
A79: 38 | B79: Misc Deferred Debits | C79: =Report!P154 -> 336184142 | J79: 38 | K79: Misc Deferred Debits | L79: 336184142 | M79: 336184142 | N79: 0
A80: 39 | B80: Elec Plant Acq Adj | C80: =Report!P155 -> 16602751.92 | J80: 39 | K80: Elec Plant Acq Adj | L80: 16602751.92 | M80: 16602751.92 | N80: 0
A81: 40 | B81: Nuclear Fuel | C81: =Report!P156 -> 0 | J81: 40 | K81: Pensions | L81: 0 | M81: 0 | N81: 0
A82: 41 | B82: Prepayments | C82: =Report!P157 -> 16122675.87 | J82: 41 | K82: Prepayments | L82: 16122675.87 | M82: 16122675.87 | N82: 0
A83: 42 | B83: Fuel Stock | C83: =Report!P158 -> 79964115.8 | J83: 42 | K83: Fuel Stock | L83: 79964115.8 | M83: 79964115.8 | N83: 0
A84: 43 | B84: Material & Supplies | C84: =Report!P159 -> 101106913.5 | J84: 43 | K84: Material & Supplies | L84: 101106913.5 | M84: 101106913.5 | N84: 0
A85: 44 | B85: Working Capital | C85: =Report!P160 -> 25062289.09 | J85: 44 | K85: Working Capital | L85: 25062289.09 | M85: 25062289.09 | N85: 0
A86: 45 | B86: Weatherization Loans | C86: =Report!P161 -> 2158810.612 | J86: 45 | K86: Weatherization Loans | L86: 2158810.612 | M86: 2158810.612 | N86: 0
A87: 46 | B87: Misc Rate Base | C87: =Report!P162 -> 0 | J87: 46 | K87: Misc Rate Base | L87: 0 | M87: 0 | N87: 0
A88: 47 | J88: 47
A89: 48 | B89: Total Electric Plant: | C89: =Report!P164 -> 1.19293298e+10 | D89: 0 | E89: =SUM(C89:D89) -> 1.19293298e+10 | J89: 48 | K89: Total Electric Plant: | L89: 1.19293298e+10 | M89: =C89 -> 1.19293298e+10 | N89: =M89-L89 -> 0
A90: 49 | J90: 49
A91: 50 | B91: Rate Base Deductions: | J91: 50 | K91: Rate Base Deductions:
A92: 51 | B92: Accum Prov For Deprec | C92: =Report!P167 -> -3439491814 | J92: 51 | K92: Accum Prov For Deprec | L92: -3439491814 | M92: =C92 -> -3439491814 | N92: =M92-L92 -> 0
A93: 52 | B93: Accum Prov For Amort | C93: =Report!P168 -> -230814516.6 | J93: 52 | K93: Accum Prov For Amort | L93: -230814516.6 | M93: -230814516.6 | N93: 0
A94: 53 | B94: Accum Def Income Tax | C94: =Report!P169 -> -1891511214 | J94: 53 | K94: Accum Def Income Tax | L94: -1891511214 | M94: -1891511214 | N94: 0
A95: 54 | B95: Unamortized ITC | C95: =Report!P170 -> -189170.0448 | J95: 54 | K95: Unamortized ITC | L95: -189170.0448 | M95: -189170.0448 | N95: 0
A96: 55 | B96: Customer Adv For Const | C96: =Report!P171 -> -14365565.23 | J96: 55 | K96: Customer Adv For Const | L96: -14365565.23 | M96: -14365565.23 | N96: 0
A97: 56 | B97: Customer Service Deposits | C97: =Report!P172 -> -16183238.3 | J97: 56 | K97: Customer Service Deposits | L97: -16183238.3 | M97: -16183238.3 | N97: 0
A98: 57 | B98: Misc Rate Base Deductions | C98: =Report!P173 -> -160248149.5 | J98: 57 | K98: Misc Rate Base Deductions | L98: -160248149.5 | M98: -160248149.5 | N98: 0
A99: 58 | J99: 58
A100: 59 | B100: Total Rate Base Deductions | C100: =Report!P175 -> -5752803668 | D100: 0 | E100: =SUM(C100:D100) -> -5752803668 | J100: 59 | K100: Total Rate Base Deductions | L100: -5752803668 | M100: =C100 -> -5752803668 | N100: =M100-L100 -> 0
A101: 60 | J101: 60
A102: 61 | B102: Total Rate Base: | C102: =SUM(C89,C100) -> 6176526131 | D102: 0 | E102: =SUM(C102:D102) -> 6176526131 | J102: 61 | K102: Total Rate Base: | L102: 6176526131 | M102: =C102 -> 6176526131 | N102: =M102-L102 -> 0
A103: 62 | J103: 62
A104: 63 | B104: Return on Rate Base | C104: =C74/C102 -> 0.07547680447 | E104: =E74/E102 -> 0.07530595098 | J104: 63 | K104: Return on Rate Base | L104: 0.07547680447 | M104: =C104 -> 0.07547680447 | N104: =M104-L104 -> 0
A105: 64 | J105: 64
A106: 65 | B106: Return on Equity | C106: =(+C104-UTCR!L7-UTCR!L12)/UTCR!L15 -> 0.09833382863 | E106: =(+E104-UTCR!L7-UTCR!L12)/UTCR!L15 -> 0.098 | J106: 65 | K106: Return on Equity | L106: 0.09833382863 | M106: =C106 -> 0.09833382863 | N106: =M106-L106 -> 0
A107: 66 | J107: 66
A108: 67 | B108: TAX CALCULATION: | J108: 67 | K108: TAX CALCULATION:
A109: 68 | B109: Operating Revenue | C109: =C47-C61-C63-C64-C65-C70 -> 617588452.2 | D109: =D43-D56-D65 -> -1700722.13 | E109: =SUM(C109:D109) -> 615887730.1 | J109: 68 | K109: Operating Revenue | L109: 617588452.2 | M109: =C109 -> 617588452.2 | N109: =M109-L109 -> 0
A110: 69 | B110: Other Deductions | J110: 69 | K110: Other Deductions
A111: 70 | B111: Interest (AFUDC) | C111: =Report!P1289 -> -14645519.84 | D111: 0 | E111: =SUM(C111:D111) -> -14645519.84 | J111: 70 | K111: Interest (AFUDC) | L111: -14645519.84 | M111: =C111 -> -14645519.84 | N111: =M111-L111 -> 0
A112: 71 | B112: Interest | C112: =Report!P1273 -> 156080272.2 | D112: 0 | E112: =SUM(C112:D112) -> 156080272.2 | J112: 71 | K112: Interest | L112: 156080272.2 | M112: =C112 -> 156080272.2 | N112: =M112-L112 -> 0
A113: 72 | B113: Schedule "M" Additions | C113: =Report!P1368 -> 374487731.3 | D113: 0 | E113: =SUM(C113:D113) -> 374487731.3 | J113: 72 | K113: Schedule "M" Additions | L113: 374487731.3 | M113: =C113 -> 374487731.3 | N113: =M113-L113 -> 0
A114: 73 | B114: Schedule "M" Deductions | C114: =Report!P1399 -> 645746350.5 | D114: 0 | E114: =SUM(C114:D114) -> 645746350.5 | J114: 73 | K114: Schedule "M" Deductions | L114: 645746350.5 | M114: =C114 -> 645746350.5 | N114: =M114-L114 -> 0
A115: 74 | B115: Income Before Tax | C115: =C109-C111-C112+C113-C114 -> 204895080.6 | D115: =D109-D111-D112+D113-D114 -> -1700722.13 | E115: =E109-E111-E112+E113-E114 -> 203194358.5 | J115: 74 | K115: Income Before Tax | L115: 204895080.6 | M115: =C115 -> 204895080.6 | N115: =M115-L115 -> 0
A116: 75 | J116: 75
A117: 76 | B117: State Income Taxes | C117: =C67 -> 9302236.661 | D117: =D67 -> -77212.78472 | E117: =SUM(C117:D117) -> 9225023.877 | J117: 76 | K117: State Income Taxes | L117: 9302236.661 | M117: =C117 -> 9302236.661 | N117: =M117-L117 -> 0
A118: 77 | B118: Taxable Income | C118: =C115-C117 -> 195592844 | D118: =D115-D117 -> -1623509.346 | E118: =E115-E117 -> 193969334.6 | J118: 77 | K118: Taxable Income | L118: 195592844 | M118: =C118 -> 195592844 | N118: =M118-L118 -> 0
A119: 78 | J119: 78
A120: 79 | B120: Federal Income Taxes + Other | C120: =C66 -> 42547838.67 | D120: =D66 -> -568228.271 | E120: =SUM(C120:D120) -> 41979610.4 | J120: 79 | K120: Federal Income Taxes + Other | L120: 42547838.67 | M120: =C120 -> 42547838.67 | N120: =M120-L120 -> 0
C122: Ref. Page 2.2 | K122: PRICE CHANGE | L122: -1708365.389 | M122: =D43 -> -1708365.389 | N122: =M122-L122 -> 0
A124: =A34 -> Rocky Mountain Power | G124: Page 1.3
A125: =+A35 -> UTAH
A126: =A36 -> Normalized Results of Operations - 2010 PROTOCOL
A127: =A4 -> 12 Months Ended December 31, 2015
B131: Net Rate Base | D131: =C102 -> 6176526131 | E131: Ref. Page 1.1
B132: Return on Rate Base Requested | D132: =Report!J96 -> 0.07530595098 | E132: Ref. Page 2.1
B134: Revenues Required to Earn Requested Return | D134: =E74 -> 465129174
B135: Less Current Operating Revenues | D135: =-C74 -> -466184455.1
B137: Increase to Current Revenues | D137: =D134+D135 -> -1055281.075
B138: Net to Gross Bump-up | D138: =1/NetToGross -> 1.618872384
B140: Price Change Required for Requested Return | D140: =D43 -> -1708365.389
B143: Requested Price Change | D143: =D140 -> -1708365.389
B144: Uncollectible Percent | D144: =UncollectibleAccounts -> 0.001863018937 | E144: Ref. Page 1.3
B145: Increased Uncollectible Expense | D145: =D143*D144 -> -3182.717072
B148: Requested Price Change | D148: =D140 -> -1708365.389
B149: Franchise Tax | D149: =FranchiseTax -> 0 | E149: Ref. Page 1.3
B150: Revenue Tax | D150: =RevenueTax -> 0 | E150: Ref. Page 1.3
B151: Resource Supplier Tax | D151: =ResourceSupplier -> 0 | E151: Ref. Page 1.3
B152: Gross Receipts | D152: =PUCFees -> 0.002611 | E152: Ref. Page 1.3
B153: Increase Taxes Other Than Income | D153: =SUM(D149:D152)*D148 -> -4460.542032
B156: Requested Price Change | D156: =D140 -> -1708365.389
B157: Uncollectible Expense | D157: =-D145 -> 3182.717072
B158: Taxes Other Than Income | D158: =-D153 -> 4460.542032
B159: Income Before Taxes | D159: =SUM(D156:D158) -> -1700722.13
B161: State Effective Tax Rate | D161: =+Report!J79 -> 0.0454 | E161: Ref. Page 2.1
B162: State Income Taxes | D162: =D159*D161 -> -77212.78472
B164: Taxable Income | D164: =D159-D162 -> -1623509.346
B165: Federal Income Tax Rate | D165: =+Report!J78 -> 0.35 | E165: Ref. Page 2.1
B166: Federal Income Taxes | D166: =D164*D165 -> -568228.271
B169: Operating Income | D169: 1
B170: Net Operating Income | D170: =D200 -> 0.617713916 | E170: Ref. Page 1.3
B171: Net to Gross Bump-Up | D171: =D169/D170 -> 1.618872384
A176: =A$34 -> Rocky Mountain Power | G176: Page 1.4
A177: =A$35 -> UTAH
A178: =A$36 -> Normalized Results of Operations - 2010 PROTOCOL
A179: =A4 -> 12 Months Ended December 31, 2015
A183: Operating Revenue | D183: 1
A185: Operating Deductions
A186: Uncollectible Accounts | D186: =UncollectibleAccounts -> 0.001863018937 | E186: See Note (1) Below
A187: Taxes Other - Franchise Tax | D187: =FranchiseTax -> 0
A188: Taxes Other - Revenue Tax | D188: =RevenueTax -> 0
A189: Taxes Other - Resource Supplier | D189: =ResourceSupplier -> 0
A190: PUC Fees Based on General Business Revenues | D190: =PUCFees -> 0.002611
A192: Sub-Total | D192: =D183-SUM(D185:D190) -> 0.9955259811
A194: State Income Tax @ 4.54% | D194: =D192*Report!J79 -> 0.04519687954
A196: Sub-Total | D196: =D192-D194 -> 0.9503291015
A198: Federal Income Tax @ 35.00% | D198: =D196*Report!J78 -> 0.3326151855
A200: Net Operating Income | D200: =D196-D198 -> 0.617713916
B203: (1) Uncollectible Accounts = | C203: =Report!N881 -> 3704725.88 | D203: =+"Pg 2.12, "& Report!I56&" Situs from Account 904" -> Pg 2.12, UTAH Situs from Account 904
C204: =Report!N118 -> 1988560506 | D204: Pg. 2.2, General Business Revenues

Sheet Report
C50: =VLOOKUP(VLOOKUP(Variables!$AO$3,Variables!$AL$3:'Variables'!$AL$14,1,FALSE),Variables!$AL$3:'Variables'!$AP$14,5,FALSE) -> Rocky Mountain Power
C51: RESULTS OF OPERATIONS
C54: USER SPECIFIC INFORMATION
F56: STATE: | I56: =VLOOKUP(VLOOKUP(Variables!$AO$3,Variables!$AL$3:'Variables'!$AM$14,1,FALSE),Variables!$AL$3:'Variables'!$AM$14,2,FALSE) -> UTAH
F57: PERIOD: | I57: =UPPER(TEXT(Variables!A5,"MMMM yyyy")) -> 12 MONTHS ENDED DECEMBER 31, 2015
F59: FILE: | I59: =+Variables!A2 -> JAM Dec 2015 Results UT
F60: PREPARED BY: | I60: Revenue Requirement Department
F61: DATE: | I61: =NOW() -> 2016-08-15T11:54:03.030
F62: TIME: | I62: =NOW() -> 42597.49587
F64: TYPE OF RATE BASE: | I64: =Variables!AO19 -> 13-Month Average
F65: ALLOCATION METHOD: | I65: =Variables!AE27 -> 2010 PROTOCOL
F67: FERC JURISDICTION: | I67: =IF(Variables!AD16=1,Variables!AC16,Variables!AC17) -> Separate Jurisdiction
F69: 8 OR 12 CP: | I69: =IF(Variables!AD20=1,Variables!AC20,Variables!AC21) -> 12 Coincident Peaks
F71: DEMAND % | I71: =VLOOKUP(Variables!Y16,Variables!W16:X20,2) -> 75% Demand
F72: ENERGY % | I72: =VLOOKUP(Variables!Y16,Variables!T16:U20,2) -> 25% Energy
C75: TAX INFORMATION
F77: TAX RATE ASSUMPTIONS: | J77: TAX RATE
F78: FEDERAL RATE | J78: =IF(Variables!AO3=12,INDEX(Variables!F12:N12,5),INDEX(Variables!F12:N12,Variables!$AO$3)) -> 0.35
F79: STATE EFFECTIVE RATE | J79: =IF(Variables!AO3=12,INDEX(Variables!F14:N14,5),INDEX(Variables!F14:N14,Variables!$AO$3)) -> 0.0454
F80: TAX GROSS UP FACTOR | J80: =1/(+Results!D200) -> 1.618872384
F81: FEDERAL/STATE COMBINED RATE | J81: =IF(Variables!AO3=12,INDEX(Variables!$F15:$N15,5),INDEX(Variables!$F15:$N15,Variables!$AO$3)) -> 0.37951
C85: CAPITAL STRUCTURE INFORMATION
G89: CAPITAL | I89: EMBEDDED | J89: WEIGHTED
G90: STRUCTURE | I90: COST | J90: COST
D93: DEBT | G93: =IF(Variables!AO3=12,INDEX(Variables!F3:N3,5),INDEX(Variables!F3:N3,Variables!$AO$3)) -> 0.4881 | I93: =IF(Variables!AO3=12,INDEX(Variables!F7:N7,5),INDEX(Variables!F7:N7,Variables!$AO$3)) -> 0.05151157203 | J93: =G93*I93 -> 0.02514279831
D94: PREFERRED | G94: =IF(Variables!AO3=12,INDEX(Variables!F4:N4,5),INDEX(Variables!F4:N4,Variables!$AO$3)) -> 0.0001 | I94: =IF(Variables!AO3=12,INDEX(Variables!F8:N8,5),INDEX(Variables!F8:N8,Variables!$AO$3)) -> 0.06752669336 | J94: =G94*I94 -> 6.752669336e-06
D95: COMMON | G95: =IF(Variables!AO3=12,INDEX(Variables!F5:N5,5),INDEX(Variables!F5:N5,Variables!$AO$3)) -> 0.5118 | I95: =IF(Variables!AO3=12,INDEX(Variables!F9:N9,5),INDEX(Variables!F9:N9,Variables!$AO$3)) -> 0.098 | J95: =G95*I95 -> 0.0501564
G96: =SUM(G93:G95) -> 1 | J96: =SUM(J93:J95) -> 0.07530595098
C99: OTHER INFORMATION
B109: =Variables!AE29 -> 2010 PROTOCOL
B110: =Variables!AO19 -> 13-Month Average
C111: RESULTS OF OPERATIONS SUMMARY
I113: DECEMBER 2015 | L113: DECEMBER 2015
I114: UNADJUSTED RESULTS | L114: NORMALIZED RESULTS | O114: =N115 -> UTAH
C115: Description of Account Summary: | H115: Ref | I115: TOTAL | J115: UTAH | L115: TOTAL | M115: OTHER | N115: =VLOOKUP(Variables!$AO$3,Variables!$AL$3:$AM$14,2) -> UTAH | O115: ADJUSTMENTS | P115: ADJ TOTAL
A117: 1 | C117: Operating Revenues
A118: 2 | E118: General Business Revenues | H118: 2.3 | I118: 4810600630 | J118: 2106660065 | L118: =L219-L217 -> 4692501071 | M118: =M219-M217 -> 2703940565 | N118: =N219-N217 -> 1988560506 | O118: =O219-O217 -> 0 | P118: =P219-P217 -> 1988560506
A119: 3 | E119: Interdepartmental | H119: 2.3 | I119: 0 | J119: 0 | L119: =L217 -> 0 | M119: =M217 -> 0 | N119: =N217 -> 0 | O119: =O217 -> 0 | P119: =P217 -> 0
A120: 4 | E120: Special Sales | H120: 2.3 | I120: 269833621.7 | J120: 116304124 | L120: =L233 -> 269833621.7 | M120: =M233 -> 154751602.3 | N120: =N233 -> 115082019.4 | O120: =O233 -> 0 | P120: =P233 -> 115082019.4
A121: 5 | E121: Other Operating Revenues | H121: 2.4 | I121: 154846292.6 | J121: 69684434.68 | L121: =L277+L240 -> 154064562.6 | M121: =M277+M240 -> 85102272.33 | N121: =N277+N240 -> 68962290.31 | O121: =O277+O240 -> 0 | P121: =P277+P240 -> 68962290.31
A122: 6 | E122: Total Operating Revenues | H122: 2.4 | I122: 5235280545 | J122: 2292648624 | L122: =SUM(L118:L121) -> 5116399256 | M122: =SUM(M118:M121) -> 2943794440 | N122: =SUM(N118:N121) -> 2172604816 | O122: =SUM(O118:O121) -> 0 | P122: =SUM(P118:P121) -> 2172604816
A123: 7
A124: 8 | C124: Operating Expenses:
A125: 9 | D125: Steam Production | H125: 2.5 | I125: 1146025051 | J125: 499305733.8 | L125: =L414 -> 1142796156 | M125: =M414 -> 647746285.9 | N125: =N414 -> 495049870.2 | O125: =O414 -> 0 | P125: =P414 -> 495049870.2
A126: 10 | D126: Nuclear Production | H126: 2.6 | I126: 0 | J126: 0 | L126: =L462 -> 0 | M126: =M462 -> 0 | N126: =N462 -> 0 | O126: =O462 -> 0 | P126: =P462 -> 0
A127: 11 | D127: Hydro Production | H127: 2.7 | I127: 42326256.65 | J127: 18711712.21 | L127: =L545 -> 42089421.54 | M127: =M545 -> 23677929.49 | N127: =N545 -> 18411492.05 | O127: =O545 -> 0 | P127: =P545 -> 18411492.05
A128: 12 | D128: Other Power Supply | H128: 2.9 | I128: 1007353120 | J128: 441363781 | L128: =L603+L654 -> 933607351.6 | M128: =M603+M654 -> 530035028 | N128: =N603+N654 -> 403572323.7 | O128: =O603+O654 -> 0 | P128: =P603+P654 -> 403572323.7
A129: 13 | D129: Transmission | H129: 2.1 | I129: 215664452.3 | J129: 95294661.59 | L129: =L755 -> 215664452.3 | M129: =M755 -> 121360348.4 | N129: =N755 -> 94304103.9 | O129: =O755 -> 0 | P129: =P755 -> 94304103.9
A130: 14 | D130: Distribution | H130: 2.12 | I130: 207035424.8 | J130: 85903034.44 | L130: =L856 -> 207035424.8 | M130: =M856 -> 121132390.3 | N130: =N856 -> 85903034.44 | O130: =O856 -> 0 | P130: =P856 -> 85903034.44
A131: 15 | D131: Customer Accounting | H131: 2.12 | I131: 81365998.73 | J131: 33853524.74 | L131: =L891 -> 81312003.21 | M131: =M891 -> 47458975.21 | N131: =N891 -> 33853028 | O131: =O891 -> 0 | P131: =P891 -> 33853028
A132: 16 | D132: Customer Service & Infor | H132: 2.13 | I132: 135712010.7 | J132: 72520223.17 | L132: =L922 -> 22698388.2 | M132: =M922 -> 18230425.04 | N132: =N922 -> 4467963.158 | O132: =O922 -> 0 | P132: =P922 -> 4467963.158
A133: 17 | D133: Sales | H133: 2.13 | I133: 0 | J133: 0 | L133: =L952 -> 0 | M133: =M952 -> 0 | N133: =N952 -> 0 | O133: =O952 -> 0 | P133: =P952 -> 0
A134: 18 | D134: Administrative & General | H134: 2.14 | I134: 134255043 | J134: 54284647.95 | L134: =L1037 -> 142527165.9 | M134: =M1037 -> 84947971.98 | N134: =N1037 -> 57579193.91 | O134: =O1037 -> 0 | P134: =P1037 -> 57579193.91
A135: 19
A136: 20 | D136: Total O & M Expenses | H136: 2.14 | I136: 2969737357 | J136: 1301237319 | L136: =SUM(L125:L134) -> 2787730364 | M136: =SUM(M125:M134) -> 1594589354 | N136: =SUM(N125:N134) -> 1193141009 | O136: =SUM(O125:O134) -> 0 | P136: =SUM(P125:P134) -> 1193141009
A137: 21
A138: 22 | D138: Depreciation | H138: 2.16 | I138: 674204140.9 | J138: 281852430.5 | L138: =L1126 -> 677809714.1 | M138: =M1126 -> 396766165.8 | N138: =N1126 -> 281043548.3 | O138: =O1126 -> 0 | P138: =P1126 -> 281043548.3
A139: 23 | D139: Amortization | H139: 2.17 | I139: 43422397.05 | J139: 14936691.35 | L139: =L1206 -> 38107947.75 | M139: =M1206 -> 23638967.12 | N139: =N1206 -> 14468980.63 | O139: =O1206 -> 0 | P139: =P1206 -> 14468980.63
A140: 24 | D140: Taxes Other Than Income | H140: 2.17 | I140: 185302307.6 | J140: 66246671.92 | L140: =L1234 -> 185302307.6 | M140: =M1234 -> 119465286.9 | N140: =N1234 -> 65837020.68 | O140: =O1234 -> 0 | P140: =P1234 -> 65837020.68
A141: 25 | D141: Income Taxes - Federal | H141: 2.2 | I141: 134575216.6 | J141: 45570270.46 | L141: =L1443 -> 154123358.2 | M141: =M1443 -> 111575519.5 | N141: =N1443 -> 42547838.67 | O141: =O1443 -> 0 | P141: =P1443 -> 42547838.67
A142: 26 | D142: Income Taxes - State | H142: 2.2 | I142: 26335125.41 | J142: 9750303.497 | L142: =L1410 -> 28991393.18 | M142: =M1410 -> 19689156.52 | N142: =N1410 -> 9302236.661 | O142: =O1410 -> 0 | P142: =P1410 -> 9302236.661
A143: 27 | D143: Income Taxes - Def Net | H143: 2.19 | I143: 172506160.1 | J143: 102640382.2 | L143: =L1332 -> 177242761.3 | M143: =M1332 -> 73710787.35 | N143: =N1332 -> 103531973.9 | O143: =O1332 -> 0 | P143: =P1332 -> 103531973.9
A144: 28 | D144: Investment Tax Credit Adj. | H144: 2.17 | I144: -4756407.95 | J144: -3980706.13 | L144: =L1247 -> -4756407.95 | M144: =M1247 -> -778355.7638 | N144: =N1247 -> -3978052.186 | O144: =O1247 -> 0 | P144: =P1247 -> -3978052.186
A145: 29 | D145: Misc Revenue & Expense | H145: 2.4 | I145: -872480.65 | J145: -1164683.475 | L145: =L333 -> 84019.637 | M145: =M333 -> -441784.7207 | N145: =N333 -> 525804.3577 | O145: =O333 -> 0 | P145: =P333 -> 525804.3577
A146: 30
A147: 31 | D147: Total Operating Expenses | H147: 2.2 | I147: 4200453816 | J147: 1817088679 | L147: =SUM(L136:L145) -> 4044635458 | M147: =SUM(M136:M145) -> 2338215097 | N147: =SUM(N136:N145) -> 1706420360 | O147: =SUM(O136:O145) -> 0 | P147: =SUM(P136:P145) -> 1706420360
A148: 32
A149: 33 | C149: Operating Revenue for Return | I149: 1034826728 | J149: 475559944.4 | L149: =L122-L147 -> 1071763798 | M149: =M122-M147 -> 605579343 | N149: =N122-N147 -> 466184455.1 | O149: =O122-O147 -> 0 | P149: =P122-P147 -> 466184455.1
A150: 34
A151: 35 | C151: Rate Base:
A152: 36 | D152: Electric Plant in Service | H152: 2.3 | I152: 2.605402669e+10 | J152: 1.134396383e+10 | L152: =L2071 -> 2.620594978e+10 | M152: =M2071 -> 1.486589414e+10 | N152: =N2071 -> 1.134005564e+10 | O152: =O2071 -> 0 | P152: =P2071 -> 1.134005564e+10
A153: 37 | D153: Plant Held for Future Use | H153: 2.31 | I153: 37734895.04 | J153: 17043853.13 | L153: =L2094 -> 26579220.32 | M153: =M2094 -> 14506761.85 | N153: =N2094 -> 12072458.47 | O153: =O2094 -> 0 | P153: =P2094 -> 12072458.47
A154: 38 | D154: Misc Deferred Debits | H154: 2.33 | I154: 926486313.3 | J154: 338168998.2 | L154: =L2202+L2213 -> 926486313.3 | M154: =M2202+M2213 -> 590302171.3 | N154: =N2202+N2213 -> 336184142 | O154: =O2202+O2213 -> 0 | P154: =P2202+P2213 -> 336184142
A155: 39 | D155: Elec Plant Acq Adj | H155: 2.31 | I155: 35651951.72 | J155: 16760049.82 | L155: =L2100+L2106 -> 35651951.72 | M155: =M2100+M2106 -> 19049199.8 | N155: =N2100+N2106 -> 16602751.92 | O155: =O2100+O2106 -> 0 | P155: =P2100+P2106 -> 16602751.92
A156: 40 | D156: Pensions | H156: 2.31 | I156: 0 | J156: 0 | L156: =L2110 -> 0 | M156: =M2110 -> 0 | N156: =N2110 -> 0 | O156: =O2110 -> 0 | P156: =P2110 -> 0
A157: 41 | D157: Prepayments | H157: 2.32 | I157: 45885319.56 | J157: 16211799.08 | L157: =L2192 -> 45885319.56 | M157: =M2192 -> 29762643.69 | N157: =N2192 -> 16122675.87 | O157: =O2192 -> 0 | P157: =P2192 -> 16122675.87
A158: 42 | D158: Fuel Stock | H158: 2.32 | I158: 186155747.1 | J158: 80364340.31 | L158: =L2157 -> 186155747.1 | M158: =M2157 -> 106191631.3 | N158: =N2157 -> 79964115.8 | O158: =O2157 -> 0 | P158: =P2157 -> 79964115.8
A159: 43 | D159: Material & Supplies | H159: 2.32 | I159: 230094384.6 | J159: 101706080 | L159: =L2184 -> 230094384.6 | M159: =M2184 -> 128987471.1 | N159: =N2184 -> 101106913.5 | O159: =O2184 -> 0 | P159: =P2184 -> 101106913.5
A160: 44 | D160: Working Capital | H160: 2.33 | I160: 51032796.83 | J160: 26924811.35 | L160: =L2240 -> 48441366.04 | M160: =M2240 -> 23379076.95 | N160: =N2240 -> 25062289.09 | O160: =O2240 -> 0 | P160: =P2240 -> 25062289.09
A161: 45 | D161: Weatherization Loans | H161: 2.31 | I161: 19562302.11 | J161: 2158798.706 | L161: =L2132 -> 19562302.11 | M161: =M2132 -> 17403491.5 | N161: =N2132 -> 2158810.612 | O161: =O2132 -> 0 | P161: =P2132 -> 2158810.612
A162: 46 | D162: Miscellaneous Rate Base | H162: 2.34 | I162: 0 | J162: 0 | L162: =L2260 -> 0 | M162: =M2260 -> 0 | N162: =N2260 -> 0 | O162: =O2260 -> 0 | P162: =P2260 -> 0
A163: 47
A164: 48 | D164: Total Electric Plant | I164: 2.75866304e+10 | J164: 1.194330256e+10 | L164: =SUM(L152:L163) -> 2.772480638e+10 | M164: =SUM(M152:M163) -> 1.579547658e+10 | N164: =SUM(N152:N163) -> 1.19293298e+10 | O164: =SUM(O152:O163) -> 0 | P164: =SUM(P152:P163) -> 1.19293298e+10
A165: 49
A166: 50 | C166: Rate Base Deductions:
A167: 51 | D167: Accum Prov For Depr | H167: 2.38 | I167: -8455007782 | J167: -3470541921 | L167: =L2562 -> -8443828809 | M167: =M2562 -> -5004336995 | N167: =N2562 -> -3439491814 | O167: =O2562 -> 0 | P167: =P2562 -> -3439491814
A168: 52 | D168: Accum Prov For Amort | H168: 2.39 | I168: -550917891.8 | J168: -232725434.4 | L168: =L2611 -> -529247543.9 | M168: =M2611 -> -298433027.3 | N168: =N2611 -> -230814516.6 | O168: =O2611 -> 0 | P168: =P2611 -> -230814516.6
A169: 53 | D169: Accum Def Income Taxes | H169: 2.35 | I169: -4336472999 | J169: -1888195992 | L169: =L2359 -> -4346258736 | M169: =M2359 -> -2454747522 | N169: =N2359 -> -1891511214 | O169: =O2359 -> 0 | P169: =P2359 -> -1891511214
A170: 54 | D170: Unamortized ITC | H170: 2.35 | I170: -827183.2208 | J170: -190393.2098 | L170: =L2369 -> -827183.2208 | M170: =M2369 -> -638013.1759 | N170: =N2369 -> -189170.0448 | O170: =O2369 -> 0 | P170: =P2369 -> -189170.0448
A171: 55 | D171: Customer Adv for Const | H171: 2.34 | I171: -31187515.5 | J171: -13613403.6 | L171: =L2292 -> -31187515.5 | M171: =M2292 -> -16821950.26 | N171: =N2292 -> -14365565.23 | O171: =O2292 -> 0 | P171: =P2292 -> -14365565.23
A172: 56 | D172: Customer Service Deposits | H172: 2.34 | I172: 0 | J172: 0 | L172: =L2266 -> -16183238.3 | M172: =M2266 -> 0 | N172: =N2266 -> -16183238.3 | O172: =O2266 -> 0 | P172: =P2266 -> -16183238.3
A173: 57 | D173: Misc. Rate Base Deductions | H173: 2.34 | I173: -421312291.9 | J173: -168091344.4 | L173: =L2273+L2278+L2284+L2296+L2303 -> -405420482.5 | M173: =M2273+M2278+M2284+M2296+M2303 -> -245172333 | N173: =N2273+N2278+N2284+N2296+N2303 -> -160248149.5 | O173: =O2273+O2278+O2284+O2296+O2303 -> 0 | P173: =P2273+P2278+P2284+P2296+P2303 -> -160248149.5
A174: 58
A175: 59 | D175: Total Rate Base Deductions | I175: -1.379572566e+10 | J175: -5773358488 | L175: =SUM(L167:L173) -> -1.377295351e+10 | M175: =SUM(M167:M173) -> -8020149841 | N175: =SUM(N167:N173) -> -5752803668 | O175: =SUM(O167:O173) -> 0 | P175: =SUM(P167:P173) -> -5752803668
A176: 60
A177: 61 | C177: Total Rate Base | I177: 1.379090474e+10 | J177: 6169944075 | L177: =L164+L175 -> 1.395185287e+10 | M177: =M164+M175 -> 7775326743 | N177: =N164+N175 -> 6176526131 | O177: =O164+O175 -> 0 | P177: =P164+P175 -> 6176526131
A178: 62
A179: 63 | C179: Return on Rate Base | J179: 0.07707686465 | N179: =N149/N177 -> 0.07547680447 | P179: =P149/P177 -> 0.07547680447
A180: 64
A181: 65 | C181: Return on Equity | J181: 0.1014601674 | N181: =(+N179-Variables!$AT$3-Variables!$AT$4)/Variables!$AT$5 -> 0.09833382863 | P181: =(+P179-Variables!$AT$3-Variables!$AT$4)/Variables!$AT$5 -> 0.09833382863
A182: 66 | C182: Net Power Costs | J182: 715438974.2 | N182: =-N231+N354+N369+N560+N615+N711 -> 654101869.5 | P182: =-P231+P354+P369+P560+P615+P711 -> 654101869.5
A183: 67 | C183: 100 Basis Points in Equity: | J183: 31577773.78 | N183: =(N177*(Variables!$AT$5*(N181+0.01)+Variables!$AT$3+Variables!$AT$4))-N149 -> 31611460.74 | P183: =(P177*(Variables!$AT$5*(P181+0.01)+Variables!$AT$3+Variables!$AT$4))-P149 -> 31611460.74
A184: 68 | D184: Revenue Requirement Impact | J184: 50891672.35 | N184: =N183*(1/(1-(INDEX(Variables!$F$15:$N$15,1,IF(Variables!$AO$3=12,5,Variables!$AO$3))))) -> 50945963.25 | P184: =P183*(1/(1-(INDEX(Variables!$F$15:$N$15,1,IF(Variables!$AO$3=12,5,Variables!$AO$3))))) -> 50945963.25
A185: 69 | D185: Rate Base Decrease | J185: -384181833.2 | N185: =(N149/(Variables!$AT$5*(N181+0.01)+(Variables!$H7*Variables!$H3)+(Variables!$H8*Variables!$H4)))-N177 -> -392227029.3 | P185: =(P149/(Variables!$AT$5*(P181+0.01)+(Variables!$H7*Variables!$H3)+(Variables!$H8*Variables!$H4)))-P177 -> -392227029.3
C186: =$B$109 -> 2010 PROTOCOL
C187: =$B$110 -> 13-Month Average | I187: DECEMBER 2015 | L187: =+L113 -> DECEMBER 2015
C188: FERC | F188: BUS | I188: UNADJUSTED RESULTS | L188: =+L114 -> NORMALIZED RESULTS | O188: =$N$115 -> UTAH
C189: ACCT | D189: DESCRIP | F189: FUNC | G189: FACTOR | H189: Ref | I189: TOTAL | J189: UTAH | L189: TOTAL | M189: OTHER | N189: =$N$115 -> UTAH | O189: ADJUSTMENT | P189: ADJ TOTAL
A190: 70 | C190: Sales to Ultimate Customers
A191: 71 | C191: 440 | D191: Residential Sales
A192: 72 | F192: =+Function!F192 -> 0 | G192: =UTCR!H192 -> S | I192: 1781722516 | J192: 785636116.5 | L192: =IF(VLOOKUP(Variables!$AO$3,Variables!$AL$3:$AN$14,3)=2,UTCR!J192,UTCR!AF192) -> 1738573558 | M192: =L192-N192 -> 996086399.2 | N192: =IF(Variables!$AO$3=12,IF(VLOOKUP(Variables!$AO$3,Variables!$AL$3:$AN$14,3)=2,INDEX(UTCR!K192:U192,1,5)+INDEX(UTCR!K192:U192,1,8),INDEX(UTCR!AG192:AQ192,1,5)+INDEX(UTCR!AG192:AQ192,1,8)),IF(VLOOKUP(Variables!$AO$3,Variables!$AL$3:$AN$14,3)=2,INDEX(UTCR!K192:U192,1,Variables!$AO$3),INDEX(UTCR!AG192:AQ192,1,Variables!$AO$3))) -> 742487158.5 | O192: =P192-N192 -> 0 | P192: =IF(Variables!$AO$3=12,INDEX(NRO!J192:T192,1,5)+INDEX(NRO!J192:T192,1,8),INDEX(NRO!J192:T192,1,Variables!$AO$3)) -> 742487158.5
A193: 73
A194: 74 | H194: B1 | I194: 1781722516 | J194: 785636116.5 | L194: =SUBTOTAL(9,L192:L193) -> 1738573558 | M194: =SUBTOTAL(9,M192:M193) -> 996086399.2 | N194: =SUBTOTAL(9,N192:N193) -> 742487158.5 | O194: =SUBTOTAL(9,O192:O193) -> 0 | P194: =SUBTOTAL(9,P192:P193) -> 742487158.5
A195: 75
A196: 76 | C196: 442 | D196: Commercial & Industrial Sales
A197: 77 | F197: =+Function!F197 -> 0 | G197: =UTCR!H197 -> S | I197: 2992033307 | J197: 1294773340 | L197: =IF(VLOOKUP(Variables!$AO$3,Variables!$AL$3:$AN$14,3)=2,UTCR!J197,UTCR!AF197) -> 2917880249 | M197: =L197-N197 -> 1697259967 | N197: =IF(Variables!$AO$3=12,IF(VLOOKUP(Variables!$AO$3,Variables!$AL$3:$AN$14,3)=2,INDEX(UTCR!K197:U197,1,5)+INDEX(UTCR!K197:U197,1,8),INDEX(UTCR!AG197:AQ197,1,5)+INDEX(UTCR!AG197:AQ197,1,8)),IF(VLOOKUP(Variables!$AO$3,Variables!$AL$3:$AN$14,3)=2,INDEX(UTCR!K197:U197,1,Variables!$AO$3),INDEX(UTCR!AG197:AQ197,1,Variables!$AO$3))) -> 1220620282 | O197: =P197-N197 -> 0 | P197: =IF(Variables!$AO$3=12,INDEX(NRO!J197:T197,1,5)+INDEX(NRO!J197:T197,1,8),INDEX(NRO!J197:T197,1,Variables!$AO$3)) -> 1220620282
A198: 78 | F198: =+Function!F198 -> P | G198: =UTCR!H198 -> SE | I198: 0 | J198: 0 | L198: =IF(VLOOKUP(Variables!$AO$3,Variables!$AL$3:$AN$14,3)=2,UTCR!J198,UTCR!AF198) -> 0 | M198: =L198-N198 -> 0 | N198: =IF(Variables!$AO$3=12,IF(VLOOKUP(Variables!$AO$3,Variables!$AL$3:$AN$14,3)=2,INDEX(UTCR!K198:U198,1,5)+INDEX(UTCR!K198:U198,1,8),INDEX(UTCR!AG198:AQ198,1,5)+INDEX(UTCR!AG198:AQ198,1,8)),IF(VLOOKUP(Variables!$AO$3,Variables!$AL$3:$AN$14,3)=2,INDEX(UTCR!K198:U198,1,Variables!$AO$3),INDEX(UTCR!AG198:AQ198,1,Variables!$AO$3))) -> 0 | O198: =P198-N198 -> 0 | P198: =IF(Variables!$AO$3=12,INDEX(NRO!J198:T198,1,5)+INDEX(NRO!J198:T198,1,8),INDEX(NRO!J198:T198,1,Variables!$AO$3)) -> 0
A199: 79 | F199: =+Function!F199 -> PT | G199: =UTCR!H199 -> SG | I199: 0 | J199: 0 | L199: =IF(VLOOKUP(Variables!$AO$3,Variables!$AL$3:$AN$14,3)=2,UTCR!J199,UTCR!AF199) -> 0 | M199: =L199-N199 -> 0 | N199: =IF(Variables!$AO$3=12,IF(VLOOKUP(Variables!$AO$3,Variables!$AL$3:$AN$14,3)=2,INDEX(UTCR!K199:U199,1,5)+INDEX(UTCR!K199:U199,1,8),INDEX(UTCR!AG199:AQ199,1,5)+INDEX(UTCR!AG199:AQ199,1,8)),IF(VLOOKUP(Variables!$AO$3,Variables!$AL$3:$AN$14,3)=2,INDEX(UTCR!K199:U199,1,Variables!$AO$3),INDEX(UTCR!AG199:AQ199,1,Variables!$AO$3))) -> 0 | O199: =P199-N199 -> 0 | P199: =IF(Variables!$AO$3=12,INDEX(NRO!J199:T199,1,5)+INDEX(NRO!J199:T199,1,8),INDEX(NRO!J199:T199,1,Variables!$AO$3)) -> 0
A200: 80
A201: 81
A202: 82 | H202: B1 | I202: 2992033307 | J202: 1294773340 | L202: =SUBTOTAL(9,L197:L200) -> 2917880249 | M202: =SUBTOTAL(9,M197:M200) -> 1697259967 | N202: =SUBTOTAL(9,N197:N200) -> 1220620282 | O202: =SUBTOTAL(9,O197:O200) -> 0 | P202: =SUBTOTAL(9,P197:P200) -> 1220620282
A203: 83
A204: 84 | C204: 444 | D204: Public Street & Highway Lighting
A205: 85 | F205: =+Function!F205 -> 0 | G205: =UTCR!H205 -> S | I205: 19942746.8 | J205: 9386419.79 | L205: =IF(VLOOKUP(Variables!$AO$3,Variables!$AL$3:$AN$14,3)=2,UTCR!J205,UTCR!AF205) -> 19679740.13 | M205: =L205-N205 -> 10556327.01 | N205: =IF(Variables!$AO$3=12,IF(VLOOKUP(Variables!$AO$3,Variables!$AL$3:$AN$14,3)=2,INDEX(UTCR!K205:U205,1,5)+INDEX(UTCR!K205:U205,1,8),INDEX(UTCR!AG205:AQ205,1,5)+INDEX(UTCR!AG205:AQ205,1,8)),IF(VLOOKUP(Variables!$AO$3,Variables!$AL$3:$AN$14,3)=2,INDEX(UTCR!K205:U205,1,Variables!$AO$3),INDEX(UTCR!AG205:AQ205,1,Variables!$AO$3))) -> 9123413.117 | O205: =P205-N205 -> 0 | P205: =IF(Variables!$AO$3=12,INDEX(NRO!J205:T205,1,5)+INDEX(NRO!J205:T205,1,8),INDEX(NRO!J205:T205,1,Variables!$AO$3)) -> 9123413.117
A206: 86 | F206: =+Function!F206 -> 0 | G206: =UTCR!H206 -> SO | I206: 0 | J206: 0 | L206: =IF(VLOOKUP(Variables!$AO$3,Variables!$AL$3:$AN$14,3)=2,UTCR!J206,UTCR!AF206) -> 0 | M206: =L206-N206 -> 0 | N206: =IF(Variables!$AO$3=12,IF(VLOOKUP(Variables!$AO$3,Variables!$AL$3:$AN$14,3)=2,INDEX(UTCR!K206:U206,1,5)+INDEX(UTCR!K206:U206,1,8),INDEX(UTCR!AG206:AQ206,1,5)+INDEX(UTCR!AG206:AQ206,1,8)),IF(VLOOKUP(Variables!$AO$3,Variables!$AL$3:$AN$14,3)=2,INDEX(UTCR!K206:U206,1,Variables!$AO$3),INDEX(UTCR!AG206:AQ206,1,Variables!$AO$3))) -> 0 | O206: =P206-N206 -> 0 | P206: =IF(Variables!$AO$3=12,INDEX(NRO!J206:T206,1,5)+INDEX(NRO!J206:T206,1,8),INDEX(NRO!J206:T206,1,Variables!$AO$3)) -> 0
A207: 87 | H207: B1 | I207: 19942746.8 | J207: 9386419.79 | L207: =SUBTOTAL(9,L205:L206) -> 19679740.13 | M207: =SUBTOTAL(9,M205:M206) -> 10556327.01 | N207: =SUBTOTAL(9,N205:N206) -> 9123413.117 | O207: =SUBTOTAL(9,O205:O206) -> 0 | P207: =SUBTOTAL(9,P205:P206) -> 9123413.117
A208: 88
A209: 89 | C209: 445 | D209: Other Sales to Public Authority
A210: 90 | F210: =+Function!F210 -> 0 | G210: =UTCR!H210 -> S | I210: 16902061.36 | J210: 16864188.94 | L210: =IF(VLOOKUP(Variables!$AO$3,Variables!$AL$3:$AN$14,3)=2,UTCR!J210,UTCR!AF210) -> 16367525.01 | M210: =L210-N210 -> 37872.42 | N210: =IF(Variables!$AO$3=12,IF(VLOOKUP(Variables!$AO$3,Variables!$AL$3:$AN$14,3)=2,INDEX(UTCR!K210:U210,1,5)+INDEX(UTCR!K210:U210,1,8),INDEX(UTCR!AG210:AQ210,1,5)+INDEX(UTCR!AG210:AQ210,1,8)),IF(VLOOKUP(Variables!$AO$3,Variables!$AL$3:$AN$14,3)=2,INDEX(UTCR!K210:U210,1,Variables!$AO$3),INDEX(UTCR!AG210:AQ210,1,Variables!$AO$3))) -> 16329652.59 | O210: =P210-N210 -> 0 | P210: =IF(Variables!$AO$3=12,INDEX(NRO!J210:T210,1,5)+INDEX(NRO!J210:T210,1,8),INDEX(NRO!J210:T210,1,Variables!$AO$3)) -> 16329652.59
A211: 91
A212: 92 | H212: B1 | I212: 16902061.36 | J212: 16864188.94 | L212: =SUBTOTAL(9,L210) -> 16367525.01 | M212: =SUBTOTAL(9,M210) -> 37872.42 | N212: =SUBTOTAL(9,N210) -> 16329652.59 | O212: =SUBTOTAL(9,O210) -> 0 | P212: =SUBTOTAL(9,P210) -> 16329652.59
A213: 93
A214: 94 | C214: 448 | D214: Interdepartmental
A215: 95 | F215: =+Function!F215 -> DPW | G215: =UTCR!H215 -> S | I215: 0 | J215: 0 | L215: =IF(VLOOKUP(Variables!$AO$3,Variables!$AL$3:$AN$14,3)=2,UTCR!J215,UTCR!AF215) -> 0 | M215: =L215-N215 -> 0 | N215: =IF(Variables!$AO$3=12,IF(VLOOKUP(Variables!$AO$3,Variables!$AL$3:$AN$14,3)=2,INDEX(UTCR!K215:U215,1,5)+INDEX(UTCR!K215:U215,1,8),INDEX(UTCR!AG215:AQ215,1,5)+INDEX(UTCR!AG215:AQ215,1,8)),IF(VLOOKUP(Variables!$AO$3,Variables!$AL$3:$AN$14,3)=2,INDEX(UTCR!K215:U215,1,Variables!$AO$3),INDEX(UTCR!AG215:AQ215,1,Variables!$AO$3))) -> 0 | O215: =P215-N215 -> 0 | P215: =IF(Variables!$AO$3=12,INDEX(NRO!J215:T215,1,5)+INDEX(NRO!J215:T215,1,8),INDEX(NRO!J215:T215,1,Variables!$AO$3)) -> 0
A216: 96 | F216: =+Function!F216 -> GP | G216: =UTCR!H216 -> SO | I216: 0 | J216: 0 | L216: =IF(VLOOKUP(Variables!$AO$3,Variables!$AL$3:$AN$14,3)=2,UTCR!J216,UTCR!AF216) -> 0 | M216: =L216-N216 -> 0 | N216: =IF(Variables!$AO$3=12,IF(VLOOKUP(Variables!$AO$3,Variables!$AL$3:$AN$14,3)=2,INDEX(UTCR!K216:U216,1,5)+INDEX(UTCR!K216:U216,1,8),INDEX(UTCR!AG216:AQ216,1,5)+INDEX(UTCR!AG216:AQ216,1,8)),IF(VLOOKUP(Variables!$AO$3,Variables!$AL$3:$AN$14,3)=2,INDEX(UTCR!K216:U216,1,Variables!$AO$3),INDEX(UTCR!AG216:AQ216,1,Variables!$AO$3))) -> 0 | O216: =P216-N216 -> 0 | P216: =IF(Variables!$AO$3=12,INDEX(NRO!J216:T216,1,5)+INDEX(NRO!J216:T216,1,8),INDEX(NRO!J216:T216,1,Variables!$AO$3)) -> 0
A217: 97 | H217: B1 | I217: 0 | J217: 0 | L217: =SUBTOTAL(9,L215:L216) -> 0 | M217: =SUBTOTAL(9,M215:M216) -> 0 | N217: =SUBTOTAL(9,N215:N216) -> 0 | O217: =SUBTOTAL(9,O215:O216) -> 0 | P217: =SUBTOTAL(9,P215:P216) -> 0
A218: 98
A219: 99 | C219: Total Sales to Ultimate Customers | H219: B1 | I219: 4810600630 | J219: 2106660065 | L219: =SUBTOTAL(9,L192:L217) -> 4692501071 | M219: =SUBTOTAL(9,M192:M217) -> 2703940565 | N219: =SUBTOTAL(9,N192:N217) -> 1988560506 | O219: =SUBTOTAL(9,O192:O217) -> 0 | P219: =SUBTOTAL(9,P192:P217) -> 1988560506
A220: 100
A221: 101
A222: 102
A223: 103 | C223: 447 | D223: Sales for Resale-Non NPC
A224: 104 | F224: =+Function!F224 -> P | G224: =UTCR!H224 -> S | I224: 6751432.97 | J224: 0 | L224: =IF(VLOOKUP(Variables!$AO$3,Variables!$AL$3:$AN$14,3)=2,UTCR!J224,UTCR!AF224) -> 6751432.97 | M224: =L224-N224 -> 6751432.97 | N224: =IF(Variables!$AO$3=12,IF(VLOOKUP(Variables!$AO$3,Variables!$AL$3:$AN$14,3)=2,INDEX(UTCR!K224:U224,1,5)+INDEX(UTCR!K224:U224,1,8),INDEX(UTCR!AG224:AQ224,1,5)+INDEX(UTCR!AG224:AQ224,1,8)),IF(VLOOKUP(Variables!$AO$3,Variables!$AL$3:$AN$14,3)=2,INDEX(UTCR!K224:U224,1,Variables!$AO$3),INDEX(UTCR!AG224:AQ224,1,Variables!$AO$3))) -> 0 | O224: =P224-N224 -> 0 | P224: =IF(Variables!$AO$3=12,INDEX(NRO!J224:T224,1,5)+INDEX(NRO!J224:T224,1,8),INDEX(NRO!J224:T224,1,Variables!$AO$3)) -> 0
A225: 105 | I225: 6751432.97 | J225: 0 | L225: =SUBTOTAL(9,L224:L224) -> 6751432.97 | M225: =SUBTOTAL(9,M224:M224) -> 6751432.97 | N225: =SUBTOTAL(9,N224:N224) -> 0 | O225: =SUBTOTAL(9,O224:O224) -> 0 | P225: =SUBTOTAL(9,P224:P224) -> 0
A226: 106
A227: 107 | C227: 447NPC | D227: Sales for Resale-NPC
A228: 108 | F228: =+Function!F228 -> P | G228: =UTCR!H228 -> SG | I228: 263082188.7 | J228: 116304124 | L228: =IF(VLOOKUP(Variables!$AO$3,Variables!$AL$3:$AN$14,3)=2,UTCR!J228,UTCR!AF228) -> 263082188.7 | M228: =L228-N228 -> 148000169.4 | N228: =IF(Variables!$AO$3=12,IF(VLOOKUP(Variables!$AO$3,Variables!$AL$3:$AN$14,3)=2,INDEX(UTCR!K228:U228,1,5)+INDEX(UTCR!K228:U228,1,8),INDEX(UTCR!AG228:AQ228,1,5)+INDEX(UTCR!AG228:AQ228,1,8)),IF(VLOOKUP(Variables!$AO$3,Variables!$AL$3:$AN$14,3)=2,INDEX(UTCR!K228:U228,1,Variables!$AO$3),INDEX(UTCR!AG228:AQ228,1,Variables!$AO$3))) -> 115082019.4 | O228: =P228-N228 -> 0 | P228: =IF(Variables!$AO$3=12,INDEX(NRO!J228:T228,1,5)+INDEX(NRO!J228:T228,1,8),INDEX(NRO!J228:T228,1,Variables!$AO$3)) -> 115082019.4
A229: 109 | F229: =+Function!F229 -> P | G229: =UTCR!H229 -> SE | I229: 0 | J229: 0 | L229: =IF(VLOOKUP(Variables!$AO$3,Variables!$AL$3:$AN$14,3)=2,UTCR!J229,UTCR!AF229) -> 0 | M229: =L229-N229 -> 0 | N229: =IF(Variables!$AO$3=12,IF(VLOOKUP(Variables!$AO$3,Variables!$AL$3:$AN$14,3)=2,INDEX(UTCR!K229:U229,1,5)+INDEX(UTCR!K229:U229,1,8),INDEX(UTCR!AG229:AQ229,1,5)+INDEX(UTCR!AG229:AQ229,1,8)),IF(VLOOKUP(Variables!$AO$3,Variables!$AL$3:$AN$14,3)=2,INDEX(UTCR!K229:U229,1,Variables!$AO$3),INDEX(UTCR!AG229:AQ229,1,Variables!$AO$3))) -> 0 | O229: =P229-N229 -> 0 | P229: =IF(Variables!$AO$3=12,INDEX(NRO!J229:T229,1,5)+INDEX(NRO!J229:T229,1,8),INDEX(NRO!J229:T229,1,Variables!$AO$3)) -> 0
A230: 110 | F230: =+Function!F230 -> P | G230: =UTCR!H230 -> SG | I230: 0 | J230: 0 | L230: =IF(VLOOKUP(Variables!$AO$3,Variables!$AL$3:$AN$14,3)=2,UTCR!J230,UTCR!AF230) -> 0 | M230: =L230-N230 -> 0 | N230: =IF(Variables!$AO$3=12,IF(VLOOKUP(Variables!$AO$3,Variables!$AL$3:$AN$14,3)=2,INDEX(UTCR!K230:U230,1,5)+INDEX(UTCR!K230:U230,1,8),INDEX(UTCR!AG230:AQ230,1,5)+INDEX(UTCR!AG230:AQ230,1,8)),IF(VLOOKUP(Variables!$AO$3,Variables!$AL$3:$AN$14,3)=2,INDEX(UTCR!K230:U230,1,Variables!$AO$3),INDEX(UTCR!AG230:AQ230,1,Variables!$AO$3))) -> 0 | O230: =P230-N230 -> 0 | P230: =IF(Variables!$AO$3=12,INDEX(NRO!J230:T230,1,5)+INDEX(NRO!J230:T230,1,8),INDEX(NRO!J230:T230,1,Variables!$AO$3)) -> 0
A231: 111 | I231: 263082188.7 | J231: 116304124 | L231: =SUBTOTAL(9,L228:L230) -> 263082188.7 | M231: =SUBTOTAL(9,M228:M230) -> 148000169.4 | N231: =SUBTOTAL(9,N228:N230) -> 115082019.4 | O231: =SUBTOTAL(9,O228:O230) -> 0 | P231: =SUBTOTAL(9,P228:P230) -> 115082019.4
A232: 112
A233: 113 | D233: Total Sales for Resale | H233: B1 | I233: 269833621.7 | J233: 116304124 | L233: =SUBTOTAL(9,L224:L231) -> 269833621.7 | M233: =SUBTOTAL(9,M224:M231) -> 154751602.3 | N233: =SUBTOTAL(9,N224:N231) -> 115082019.4 | O233: =SUBTOTAL(9,O224:O231) -> 0 | P233: =SUBTOTAL(9,P224:P231) -> 115082019.4
A234: 114
A235: 115 | C235: 449 | D235: Provision for Rate Refund
A236: 116 | F236: =+Function!F236 -> P | G236: =UTCR!H236 -> S | I236: 0.1 | J236: 0.1 | L236: =IF(VLOOKUP(Variables!$AO$3,Variables!$AL$3:$AN$14,3)=2,UTCR!J236,UTCR!AF236) -> 0.1 | M236: =L236-N236 -> 0 | N236: =IF(Variables!$AO$3=12,IF(VLOOKUP(Variables!$AO$3,Variables!$AL$3:$AN$14,3)=2,INDEX(UTCR!K236:U236,1,5)+INDEX(UTCR!K236:U236,1,8),INDEX(UTCR!AG236:AQ236,1,5)+INDEX(UTCR!AG236:AQ236,1,8)),IF(VLOOKUP(Variables!$AO$3,Variables!$AL$3:$AN$14,3)=2,INDEX(UTCR!K236:U236,1,Variables!$AO$3),INDEX(UTCR!AG236:AQ236,1,Variables!$AO$3))) -> 0.1 | O236: =P236-N236 -> 0 | P236: =IF(Variables!$AO$3=12,INDEX(NRO!J236:T236,1,5)+INDEX(NRO!J236:T236,1,8),INDEX(NRO!J236:T236,1,Variables!$AO$3)) -> 0.1
A237: 117 | F237: =+Function!F237 -> P | G237: =UTCR!H237 -> SG | I237: 0 | J237: 0 | L237: =IF(VLOOKUP(Variables!$AO$3,Variables!$AL$3:$AN$14,3)=2,UTCR!J237,UTCR!AF237) -> 0 | M237: =L237-N237 -> 0 | N237: =IF(Variables!$AO$3=12,IF(VLOOKUP(Variables!$AO$3,Variables!$AL$3:$AN$14,3)=2,INDEX(UTCR!K237:U237,1,5)+INDEX(UTCR!K237:U237,1,8),INDEX(UTCR!AG237:AQ237,1,5)+INDEX(UTCR!AG237:AQ237,1,8)),IF(VLOOKUP(Variables!$AO$3,Variables!$AL$3:$AN$14,3)=2,INDEX(UTCR!K237:U237,1,Variables!$AO$3),INDEX(UTCR!AG237:AQ237,1,Variables!$AO$3))) -> 0 | O237: =P237-N237 -> 0 | P237: =IF(Variables!$AO$3=12,INDEX(NRO!J237:T237,1,5)+INDEX(NRO!J237:T237,1,8),INDEX(NRO!J237:T237,1,Variables!$AO$3)) -> 0
A238: 118
A239: 119
A240: 120 | H240: B1 | I240: 0.1 | J240: 0.1 | L240: =SUBTOTAL(9,L236:L237) -> 0.1 | M240: =SUBTOTAL(9,M236:M237) -> 0 | N240: =SUBTOTAL(9,N236:N237) -> 0.1 | O240: =SUBTOTAL(9,O236:O237) -> 0 | P240: =SUBTOTAL(9,P236:P237) -> 0.1
A241: 121
A242: 122 | C242: Total Sales from Electricity | H242: B1 | I242: 5080434252 | J242: 2222964189 | L242: =SUBTOTAL(9,L224:L240)+L219 -> 4962334693 | M242: =SUBTOTAL(9,M224:M240)+M219 -> 2858692168 | N242: =SUBTOTAL(9,N224:N240)+N219 -> 2103642525 | O242: =SUBTOTAL(9,O224:O240)+O219 -> 0 | P242: =SUBTOTAL(9,P224:P240)+P219 -> 2103642525
A243: 123 | C243: 450 | D243: Forfeited Discounts & Interest
A244: 124 | F244: =+Function!F244 -> CUST | G244: =UTCR!H244 -> S | I244: 9141276.38 | J244: 3479500.68 | L244: =IF(VLOOKUP(Variables!$AO$3,Variables!$AL$3:$AN$14,3)=2,UTCR!J244,UTCR!AF244) -> 9141276.38 | M244: =L244-N244 -> 5661775.7 | N244: =IF(Variables!$AO$3=12,IF(VLOOKUP(Variables!$AO$3,Variables!$AL$3:$AN$14,3)=2,INDEX(UTCR!K244:U244,1,5)+INDEX(UTCR!K244:U244,1,8),INDEX(UTCR!AG244:AQ244,1,5)+INDEX(UTCR!AG244:AQ244,1,8)),IF(VLOOKUP(Variables!$AO$3,Variables!$AL$3:$AN$14,3)=2,INDEX(UTCR!K244:U244,1,Variables!$AO$3),INDEX(UTCR!AG244:AQ244,1,Variables!$AO$3))) -> 3479500.68 | O244: =P244-N244 -> 0 | P244: =IF(Variables!$AO$3=12,INDEX(NRO!J244:T244,1,5)+INDEX(NRO!J244:T244,1,8),INDEX(NRO!J244:T244,1,Variables!$AO$3)) -> 3479500.68
A245: 125 | F245: =+Function!F245 -> CUST | G245: =UTCR!H245 -> SO | I245: 0 | J245: 0 | L245: =IF(VLOOKUP(Variables!$AO$3,Variables!$AL$3:$AN$14,3)=2,UTCR!J245,UTCR!AF245) -> 0 | M245: =L245-N245 -> 0 | N245: =IF(Variables!$AO$3=12,IF(VLOOKUP(Variables!$AO$3,Variables!$AL$3:$AN$14,3)=2,INDEX(UTCR!K245:U245,1,5)+INDEX(UTCR!K245:U245,1,8),INDEX(UTCR!AG245:AQ245,1,5)+INDEX(UTCR!AG245:AQ245,1,8)),IF(VLOOKUP(Variables!$AO$3,Variables!$AL$3:$AN$14,3)=2,INDEX(UTCR!K245:U245,1,Variables!$AO$3),INDEX(UTCR!AG245:AQ245,1,Variables!$AO$3))) -> 0 | O245: =P245-N245 -> 0 | P245: =IF(Variables!$AO$3=12,INDEX(NRO!J245:T245,1,5)+INDEX(NRO!J245:T245,1,8),INDEX(NRO!J245:T245,1,Variables!$AO$3)) -> 0
A246: 126 | H246: B1 | I246: 9141276.38 | J246: 3479500.68 | L246: =SUBTOTAL(9,L244:L245) -> 9141276.38 | M246: =SUBTOTAL(9,M244:M245) -> 5661775.7 | N246: =SUBTOTAL(9,N244:N245) -> 3479500.68 | O246: =SUBTOTAL(9,O244:O245) -> 0 | P246: =SUBTOTAL(9,P244:P245) -> 3479500.68
A247: 127
A248: 128 | C248: 451 | D248: Misc Electric Revenue
A249: 129 | F249: =+Function!F249 -> CUST | G249: =UTCR!H249 -> S | I249: 5521840.14 | J249: 3596319.8 | L249: =IF(VLOOKUP(Variables!$AO$3,Variables!$AL$3:$AN$14,3)=2,UTCR!J249,UTCR!AF249) -> 5521840.14 | M249: =L249-N249 -> 1925520.34 | N249: =IF(Variables!$AO$3=12,IF(VLOOKUP(Variables!$AO$3,Variables!$AL$3:$AN$14,3)=2,INDEX(UTCR!K249:U249,1,5)+INDEX(UTCR!K249:U249,1,8),INDEX(UTCR!AG249:AQ249,1,5)+INDEX(UTCR!AG249:AQ249,1,8)),IF(VLOOKUP(Variables!$AO$3,Variables!$AL$3:$AN$14,3)=2,INDEX(UTCR!K249:U249,1,Variables!$AO$3),INDEX(UTCR!AG249:AQ249,1,Variables!$AO$3))) -> 3596319.8 | O249: =P249-N249 -> 0 | P249: =IF(Variables!$AO$3=12,INDEX(NRO!J249:T249,1,5)+INDEX(NRO!J249:T249,1,8),INDEX(NRO!J249:T249,1,Variables!$AO$3)) -> 3596319.8
A250: 130 | F250: =+Function!F250 -> GP | G250: =UTCR!H250 -> SG | I250: 0 | J250: 0 | L250: =IF(VLOOKUP(Variables!$AO$3,Variables!$AL$3:$AN$14,3)=2,UTCR!J250,UTCR!AF250) -> 0 | M250: =L250-N250 -> 0 | N250: =IF(Variables!$AO$3=12,IF(VLOOKUP(Variables!$AO$3,Variables!$AL$3:$AN$14,3)=2,INDEX(UTCR!K250:U250,1,5)+INDEX(UTCR!K250:U250,1,8),INDEX(UTCR!AG250:AQ250,1,5)+INDEX(UTCR!AG250:AQ250,1,8)),IF(VLOOKUP(Variables!$AO$3,Variables!$AL$3:$AN$14,3)=2,INDEX(UTCR!K250:U250,1,Variables!$AO$3),INDEX(UTCR!AG250:AQ250,1,Variables!$AO$3))) -> 0 | O250: =P250-N250 -> 0 | P250: =IF(Variables!$AO$3=12,INDEX(NRO!J250:T250,1,5)+INDEX(NRO!J250:T250,1,8),INDEX(NRO!J250:T250,1,Variables!$AO$3)) -> 0
A251: 131 | F251: =+Function!F251 -> GP | G251: =UTCR!H251 -> SO | I251: 9407.46 | J251: 4096.022747 | L251: =IF(VLOOKUP(Variables!$AO$3,Variables!$AL$3:$AN$14,3)=2,UTCR!J251,UTCR!AF251) -> 9407.46 | M251: =L251-N251 -> 5336.58599 | N251: =IF(Variables!$AO$3=12,IF(VLOOKUP(Variables!$AO$3,Variables!$AL$3:$AN$14,3)=2,INDEX(UTCR!K251:U251,1,5)+INDEX(UTCR!K251:U251,1,8),INDEX(UTCR!AG251:AQ251,1,5)+INDEX(UTCR!AG251:AQ251,1,8)),IF(VLOOKUP(Variables!$AO$3,Variables!$AL$3:$AN$14,3)=2,INDEX(UTCR!K251:U251,1,Variables!$AO$3),INDEX(UTCR!AG251:AQ251,1,Variables!$AO$3))) -> 4070.87401 | O251: =P251-N251 -> 0 | P251: =IF(Variables!$AO$3=12,INDEX(NRO!J251:T251,1,5)+INDEX(NRO!J251:T251,1,8),INDEX(NRO!J251:T251,1,Variables!$AO$3)) -> 4070.87401
A252: 132 | H252: B1 | I252: 5531247.6 | J252: 3600415.823 | L252: =SUBTOTAL(9,L249:L251) -> 5531247.6 | M252: =SUBTOTAL(9,M249:M251) -> 1930856.926 | N252: =SUBTOTAL(9,N249:N251) -> 3600390.674 | O252: =SUBTOTAL(9,O249:O251) -> 0 | P252: =SUBTOTAL(9,P249:P251) -> 3600390.674
A253: 133
A254: 134 | C254: 453 | D254: Water Sales
A255: 135 | F255: =+Function!F255 -> P | G255: =UTCR!H255 -> SG | I255: 0 | J255: 0 | L255: =IF(VLOOKUP(Variables!$AO$3,Variables!$AL$3:$AN$14,3)=2,UTCR!J255,UTCR!AF255) -> 0 | M255: =L255-N255 -> 0 | N255: =IF(Variables!$AO$3=12,IF(VLOOKUP(Variables!$AO$3,Variables!$AL$3:$AN$14,3)=2,INDEX(UTCR!K255:U255,1,5)+INDEX(UTCR!K255:U255,1,8),INDEX(UTCR!AG255:AQ255,1,5)+INDEX(UTCR!AG255:AQ255,1,8)),IF(VLOOKUP(Variables!$AO$3,Variables!$AL$3:$AN$14,3)=2,INDEX(UTCR!K255:U255,1,Variables!$AO$3),INDEX(UTCR!AG255:AQ255,1,Variables!$AO$3))) -> 0 | O255: =P255-N255 -> 0 | P255: =IF(Variables!$AO$3=12,INDEX(NRO!J255:T255,1,5)+INDEX(NRO!J255:T255,1,8),INDEX(NRO!J255:T255,1,Variables!$AO$3)) -> 0
A256: 136 | H256: B1 | I256: 0 | J256: 0 | L256: =SUBTOTAL(9,L255) -> 0 | M256: =SUBTOTAL(9,M255) -> 0 | N256: =SUBTOTAL(9,N255) -> 0 | O256: =SUBTOTAL(9,O255) -> 0 | P256: =SUBTOTAL(9,P255) -> 0
A257: 137
A258: 138 | C258: 454 | D258: Rent of Electric Property
A259: 139 | F259: =+Function!F259 -> DPW | G259: =UTCR!H259 -> S | I259: 9020770.06 | J259: 3565031.82 | L259: =IF(VLOOKUP(Variables!$AO$3,Variables!$AL$3:$AN$14,3)=2,UTCR!J259,UTCR!AF259) -> 8419459.48 | M259: =L259-N259 -> 5455738.24 | N259: =IF(Variables!$AO$3=12,IF(VLOOKUP(Variables!$AO$3,Variables!$AL$3:$AN$14,3)=2,INDEX(UTCR!K259:U259,1,5)+INDEX(UTCR!K259:U259,1,8),INDEX(UTCR!AG259:AQ259,1,5)+INDEX(UTCR!AG259:AQ259,1,8)),IF(VLOOKUP(Variables!$AO$3,Variables!$AL$3:$AN$14,3)=2,INDEX(UTCR!K259:U259,1,Variables!$AO$3),INDEX(UTCR!AG259:AQ259,1,Variables!$AO$3))) -> 2963721.24 | O259: =P259-N259 -> 0 | P259: =IF(Variables!$AO$3=12,INDEX(NRO!J259:T259,1,5)+INDEX(NRO!J259:T259,1,8),INDEX(NRO!J259:T259,1,Variables!$AO$3)) -> 2963721.24
A260: 140 | F260: =+Function!F260 -> T | G260: =UTCR!H260 -> SG | I260: 6178199.38 | J260: 2731275.996 | L260: =IF(VLOOKUP(Variables!$AO$3,Variables!$AL$3:$AN$14,3)=2,UTCR!J260,UTCR!AF260) -> 6178199.38 | M260: =L260-N260 -> 3475623.184 | N260: =IF(Variables!$AO$3=12,IF(VLOOKUP(Variables!$AO$3,Variables!$AL$3:$AN$14,3)=2,INDEX(UTCR!K260:U260,1,5)+INDEX(UTCR!K260:U260,1,8),INDEX(UTCR!AG260:AQ260,1,5)+INDEX(UTCR!AG260:AQ260,1,8)),IF(VLOOKUP(Variables!$AO$3,Variables!$AL$3:$AN$14,3)=2,INDEX(UTCR!K260:U260,1,Variables!$AO$3),INDEX(UTCR!AG260:AQ260,1,Variables!$AO$3))) -> 2702576.196 | O260: =P260-N260 -> 0 | P260: =IF(Variables!$AO$3=12,INDEX(NRO!J260:T260,1,5)+INDEX(NRO!J260:T260,1,8),INDEX(NRO!J260:T260,1,Variables!$AO$3)) -> 2702576.196
A261: 141 | F261: =+Function!F261 -> T | G261: =UTCR!H261 -> SG | I261: 18000 | J261: 7957.491318 | L261: =IF(VLOOKUP(Variables!$AO$3,Variables!$AL$3:$AN$14,3)=2,UTCR!J261,UTCR!AF261) -> 18000 | M261: =L261-N261 -> 10126.1247 | N261: =IF(Variables!$AO$3=12,IF(VLOOKUP(Variables!$AO$3,Variables!$AL$3:$AN$14,3)=2,INDEX(UTCR!K261:U261,1,5)+INDEX(UTCR!K261:U261,1,8),INDEX(UTCR!AG261:AQ261,1,5)+INDEX(UTCR!AG261:AQ261,1,8)),IF(VLOOKUP(Variables!$AO$3,Variables!$AL$3:$AN$14,3)=2,INDEX(UTCR!K261:U261,1,Variables!$AO$3),INDEX(UTCR!AG261:AQ261,1,Variables!$AO$3))) -> 7873.875304 | O261: =P261-N261 -> 0 | P261: =IF(Variables!$AO$3=12,INDEX(NRO!J261:T261,1,5)+INDEX(NRO!J261:T261,1,8),INDEX(NRO!J261:T261,1,Variables!$AO$3)) -> 7873.875304
A262: 142 | F262: =+Function!F262 -> GP | G262: =UTCR!H262 -> SO | I262: 3854278.82 | J262: 1678159.006 | L262: =IF(VLOOKUP(Variables!$AO$3,Variables!$AL$3:$AN$14,3)=2,UTCR!J262,UTCR!AF262) -> 4455589.4 | M262: =L262-N262 -> 2527529.851 | N262: =IF(Variables!$AO$3=12,IF(VLOOKUP(Variables!$AO$3,Variables!$AL$3:$AN$14,3)=2,INDEX(UTCR!K262:U262,1,5)+INDEX(UTCR!K262:U262,1,8),INDEX(UTCR!AG262:AQ262,1,5)+INDEX(UTCR!AG262:AQ262,1,8)),IF(VLOOKUP(Variables!$AO$3,Variables!$AL$3:$AN$14,3)=2,INDEX(UTCR!K262:U262,1,Variables!$AO$3),INDEX(UTCR!AG262:AQ262,1,Variables!$AO$3))) -> 1928059.549 | O262: =P262-N262 -> 0 | P262: =IF(Variables!$AO$3=12,INDEX(NRO!J262:T262,1,5)+INDEX(NRO!J262:T262,1,8),INDEX(NRO!J262:T262,1,Variables!$AO$3)) -> 1928059.549
A263: 143 | H263: B1 | I263: 19071248.26 | J263: 7982424.313 | L263: =SUBTOTAL(9,L259:L262) -> 19071248.26 | M263: =SUBTOTAL(9,M259:M262) -> 11469017.4 | N263: =SUBTOTAL(9,N259:N262) -> 7602230.86 | O263: =SUBTOTAL(9,O259:O262) -> 0 | P263: =SUBTOTAL(9,P259:P262) -> 7602230.86
A264: 144
A265: 145
A266: 146
A267: 147 | C267: 456 | D267: Other Electric Revenue
A268: 148 | F268: =+Function!F268 -> DMSC | G268: =UTCR!H268 -> S | I268: -6239827.24 | J268: -1577531.52 | L268: =IF(VLOOKUP(Variables!$AO$3,Variables!$AL$3:$AN$14,3)=2,UTCR!J268,UTCR!AF268) -> -8135291.615 | M268: =L268-N268 -> -6296512.502 | N268: =IF(Variables!$AO$3=12,IF(VLOOKUP(Variables!$AO$3,Variables!$AL$3:$AN$14,3)=2,INDEX(UTCR!K268:U268,1,5)+INDEX(UTCR!K268:U268,1,8),INDEX(UTCR!AG268:AQ268,1,5)+INDEX(UTCR!AG268:AQ268,1,8)),IF(VLOOKUP(Variables!$AO$3,Variables!$AL$3:$AN$14,3)=2,INDEX(UTCR!K268:U268,1,Variables!$AO$3),INDEX(UTCR!AG268:AQ268,1,Variables!$AO$3))) -> -1838779.113 | O268: =P268-N268 -> 0 | P268: =IF(Variables!$AO$3=12,INDEX(NRO!J268:T268,1,5)+INDEX(NRO!J268:T268,1,8),INDEX(NRO!J268:T268,1,Variables!$AO$3)) -> -1838779.113
A269: 149 | F269: =+Function!F269 -> CUST | G269: =UTCR!H269 -> CN | I269: 0 | J269: 0 | L269: =IF(VLOOKUP(Variables!$AO$3,Variables!$AL$3:$AN$14,3)=2,UTCR!J269,UTCR!AF269) -> 0 | M269: =L269-N269 -> 0 | N269: =IF(Variables!$AO$3=12,IF(VLOOKUP(Variables!$AO$3,Variables!$AL$3:$AN$14,3)=2,INDEX(UTCR!K269:U269,1,5)+INDEX(UTCR!K269:U269,1,8),INDEX(UTCR!AG269:AQ269,1,5)+INDEX(UTCR!AG269:AQ269,1,8)),IF(VLOOKUP(Variables!$AO$3,Variables!$AL$3:$AN$14,3)=2,INDEX(UTCR!K269:U269,1,Variables!$AO$3),INDEX(UTCR!AG269:AQ269,1,Variables!$AO$3))) -> 0 | O269: =P269-N269 -> 0 | P269: =IF(Variables!$AO$3=12,INDEX(NRO!J269:T269,1,5)+INDEX(NRO!J269:T269,1,8),INDEX(NRO!J269:T269,1,Variables!$AO$3)) -> 0
A270: 150 | F270: =+Function!F270 -> OTHSE | G270: =UTCR!H270 -> SE | I270: 8324825.69 | J270: 3593867.691 | L270: =IF(VLOOKUP(Variables!$AO$3,Variables!$AL$3:$AN$14,3)=2,UTCR!J270,UTCR!AF270) -> 8324825.69 | M270: =L270-N270 -> 4748855.912 | N270: =IF(Variables!$AO$3=12,IF(VLOOKUP(Variables!$AO$3,Variables!$AL$3:$AN$14,3)=2,INDEX(UTCR!K270:U270,1,5)+INDEX(UTCR!K270:U270,1,8),INDEX(UTCR!AG270:AQ270,1,5)+INDEX(UTCR!AG270:AQ270,1,8)),IF(VLOOKUP(Variables!$AO$3,Variables!$AL$3:$AN$14,3)=2,INDEX(UTCR!K270:U270,1,Variables!$AO$3),INDEX(UTCR!AG270:AQ270,1,Variables!$AO$3))) -> 3575969.778 | O270: =P270-N270 -> 0 | P270: =IF(Variables!$AO$3=12,INDEX(NRO!J270:T270,1,5)+INDEX(NRO!J270:T270,1,8),INDEX(NRO!J270:T270,1,Variables!$AO$3)) -> 3575969.778
A271: 151 | F271: =+Function!F271 -> OTHSO | G271: =UTCR!H271 -> SO | I271: 1473932.06 | J271: 641752.3164 | L271: =IF(VLOOKUP(Variables!$AO$3,Variables!$AL$3:$AN$14,3)=2,UTCR!J271,UTCR!AF271) -> 1473932.06 | M271: =L271-N271 -> 836119.971 | N271: =IF(Variables!$AO$3=12,IF(VLOOKUP(Variables!$AO$3,Variables!$AL$3:$AN$14,3)=2,INDEX(UTCR!K271:U271,1,5)+INDEX(UTCR!K271:U271,1,8),INDEX(UTCR!AG271:AQ271,1,5)+INDEX(UTCR!AG271:AQ271,1,8)),IF(VLOOKUP(Variables!$AO$3,Variables!$AL$3:$AN$14,3)=2,INDEX(UTCR!K271:U271,1,Variables!$AO$3),INDEX(UTCR!AG271:AQ271,1,Variables!$AO$3))) -> 637812.089 | O271: =P271-N271 -> 0 | P271: =IF(Variables!$AO$3=12,INDEX(NRO!J271:T271,1,5)+INDEX(NRO!J271:T271,1,8),INDEX(NRO!J271:T271,1,Variables!$AO$3)) -> 637812.089
A272: 152 | F272: =+Function!F272 -> OTHSGR | G272: =UTCR!H272 -> SG | I272: 117543589.8 | J272: 51964005.28 | L272: =IF(VLOOKUP(Variables!$AO$3,Variables!$AL$3:$AN$14,3)=2,UTCR!J272,UTCR!AF272) -> 118657324.2 | M272: =L272-N272 -> 66752158.93 | N272: =IF(Variables!$AO$3=12,IF(VLOOKUP(Variables!$AO$3,Variables!$AL$3:$AN$14,3)=2,INDEX(UTCR!K272:U272,1,5)+INDEX(UTCR!K272:U272,1,8),INDEX(UTCR!AG272:AQ272,1,5)+INDEX(UTCR!AG272:AQ272,1,8)),IF(VLOOKUP(Variables!$AO$3,Variables!$AL$3:$AN$14,3)=2,INDEX(UTCR!K272:U272,1,Variables!$AO$3),INDEX(UTCR!AG272:AQ272,1,Variables!$AO$3))) -> 51905165.24 | O272: =P272-N272 -> 0 | P272: =IF(Variables!$AO$3=12,INDEX(NRO!J272:T272,1,5)+INDEX(NRO!J272:T272,1,8),INDEX(NRO!J272:T272,1,Variables!$AO$3)) -> 51905165.24
A273: 153
A274: 154
A275: 155 | H275: B1 | I275: 121102520.3 | J275: 54622093.76 | L275: =SUBTOTAL(9,L268:L274) -> 120320790.3 | M275: =SUBTOTAL(9,M268:M274) -> 66040622.31 | N275: =SUBTOTAL(9,N268:N274) -> 54280168 | O275: =SUBTOTAL(9,O268:O274) -> 0 | P275: =SUBTOTAL(9,P268:P274) -> 54280168
A276: 156
A277: 157 | C277: Total Other Electric Revenues | H277: B1 | I277: 154846292.5 | J277: 69684434.58 | L277: =SUBTOTAL(9,L244:L275) -> 154064562.5 | M277: =SUBTOTAL(9,M244:M275) -> 85102272.33 | N277: =SUBTOTAL(9,N244:N275) -> 68962290.21 | O277: =SUBTOTAL(9,O244:O275) -> 0 | P277: =SUBTOTAL(9,P244:P275) -> 68962290.21
A278: 158
A279: 159 | C279: Total Electric Operating Revenues | H279: B1 | I279: 5235280545 | J279: 2292648624 | L279: =L277+L242 -> 5116399256 | M279: =M277+M242 -> 2943794440 | N279: =N277+N242 -> 2172604816 | O279: =O277+O242 -> 0 | P279: =P277+P242 -> 2172604816
A280: 160
A281: 161 | C281: Summary of Revenues by Factor
... 2347 more rows

Sheet NRO (hidden)
C110: =Variables!AE29 -> 2010 PROTOCOL
C111: BALANCE BASED ON JURISDICTION
C112: RESULTS OF OPERATIONS SUMMARY
C115: Description of Account Summary: | I115: Total | J115: California | K115: Oregon | L115: Washington | M115: Montana | N115: Wyo-PPL | O115: Utah | P115: Idaho | Q115: Wyo-UPL | R115: FERC | S115: OTHER | T115: NON-UTILITY
A117: 1 | C117: Operating Revenues
A118: 2 | E118: General Business Revenues | I118: =I219-I217 -> 4692501071 | J118: =J219-J217 -> 103758076.9 | K118: =K219-K217 -> 1265741623 | L118: 343273558.4 | M118: 0 | N118: 560992668.4 | O118: 1988560506 | P118: 285019106.8 | Q118: 133859693.7 | R118: 0 | S118: 11295837.82 | T118: 0
A119: 3 | E119: Interdepartmental | I119: =I217 -> 0 | J119: 0 | K119: 0 | L119: 0 | M119: 0 | N119: 0 | O119: 0 | P119: 0 | Q119: 0 | R119: 0 | S119: 0 | T119: 0
A120: 4 | E120: Special Sales | I120: =I233 -> 269833621.7 | J120: 3985823.456 | K120: 68992363.94 | L120: 21004403.3 | M120: 0 | N120: 32594614.49 | O120: 115082019.4 | P120: 15005067.92 | Q120: 7067253.79 | R120: 6102075.422 | S120: 0 | T120: 0
A121: 5 | E121: Other Operating Revenues | I121: =I277+I240 -> 154064562.6 | J121: 2936333.237 | K121: 42843918.53 | L121: 12575941.25 | M121: 0 | N121: 18897198.31 | O121: 68962290.31 | P121: 8623416.4 | Q121: 3868267.682 | R121: 233026.0065 | S121: -4875829.089 | T121: 0
A122: 6 | E122: Total Operating Revenues | G122: 2.4 | I122: =SUM(I118:I121) -> 5116399256 | J122: =SUM(J118:J121) -> 110680233.6 | K122: =SUM(K118:K121) -> 1377577906 | L122: 376853903 | M122: 0 | N122: 612484481.2 | O122: 2172604816 | P122: 308647591.2 | Q122: 144795215.1 | R122: 6335101.428 | S122: 6420008.731 | T122: 0
A123: 7
A124: 8 | C124: Operating Expenses:
A125: 9 | D125: Steam Production | G125: 2.6 | I125: =I414 -> 1142796156 | J125: 16897207.28 | K125: 285433407.4 | L125: 87277174.7 | M125: 0 | N125: 152442551.5 | O125: 495049870.2 | P125: 69753421.15 | Q125: 33950752.98 | R125: 1991770.873 | S125: 0 | T125: 0
A126: 10 | D126: Nuclear Production | G126: 2.7 | I126: =I462 -> 0 | J126: 0 | K126: 0 | L126: 0 | M126: 0 | N126: 0 | O126: 0 | P126: 0 | Q126: 0 | R126: 0 | S126: 0 | T126: 0
A127: 11 | D127: Hydro Production | G127: 2.8 | I127: =I545 -> 42089421.54 | J127: 637675.2621 | K127: 10862731.89 | L127: 3360406.833 | M127: 0 | N127: 5214676.356 | O127: 18411492.05 | P127: 2400598.201 | Q127: 1130660.442 | R127: 71180.51049 | S127: 0 | T127: 0
A128: 12 | D128: Other Power Supply | I128: =I603+I654 -> 933607351.6 | J128: 14009874.39 | K128: 238869673.5 | L128: 73046833.49 | M128: 0 | N128: 118470599.3 | O128: 403572323.7 | P128: 57946757.44 | Q128: 25976910.52 | R128: 1584522.95 | S128: 129856.4 | T128: 0
A129: 13 | D129: Transmission | G129: 2.11 | I129: =I755 -> 215664452.3 | J129: 3266702.284 | K129: 55614369.62 | L129: 17203884.82 | M129: 0 | N129: 26776056.62 | O129: 94304103.9 | P129: 12324057 | Q129: 5810272.943 | R129: 365005.1438 | S129: 0 | T129: 0
A130: 14 | D130: Distribution | G130: 2.13 | I130: =I856 -> 207035424.8 | J130: 10426452.03 | K130: 68393765.59 | L130: 11299257.32 | M130: 0 | N130: 17797179.46 | O130: 85903034.44 | P130: 10656030.16 | Q130: 2559705.771 | R130: 0 | S130: 0 | T130: 0
A131: 15 | D131: Customer Accounting | G131: 2.13 | I131: =I891 -> 81312003.21 | J131: 2675413.217 | K131: 28944545.71 | L131: 5787609.876 | M131: 0 | N131: 5673913.109 | O131: 33853028 | P131: 3698647.782 | Q131: 678845.5073 | R131: 0 | S131: 0 | T131: 0
A132: 16 | D132: Customer Service & Info | G132: 2.14 | I132: =I922 -> 22698388.2 | J132: 215756.9707 | K132: 3470061.514 | L132: 704789.9893 | M132: 0 | N132: 1657012.666 | O132: 4467963.158 | P132: 789860.7023 | Q132: 32257.05906 | R132: 0 | S132: 11360686.14 | T132: 0
A133: 17 | D133: Sales | G133: 2.14 | I133: =I952 -> 0 | J133: 0 | K133: 0 | L133: 0 | M133: 0 | N133: 0 | O133: 0 | P133: 0 | Q133: 0 | R133: 0 | S133: 0 | T133: 0
A134: 18 | D134: Administrative & General | G134: 2.15 | I134: =I1037 -> 142527165.9 | J134: 2775589.713 | K134: 44628797.05 | L134: 10591114.7 | M134: 0 | N134: 16720533.9 | O134: 57579193.91 | P134: 7289689.828 | Q134: 2802556.951 | R134: 139689.8411 | S134: 0 | T134: 0
A135: 19
A136: 20 | D136: Total O & M Expenses | G136: 2.15 | I136: =SUM(I125:I134) -> 2787730364 | J136: =SUM(J125:J134) -> 50904671.15 | K136: 736217352.3 | L136: 209271071.7 | M136: 0 | N136: 344752522.9 | O136: 1193141009 | P136: 164859062.3 | Q136: 72941962.17 | R136: 4152169.319 | S136: 11490542.54 | T136: 0
A137: 21
A138: 22 | D138: Depreciation | G138: 2.17 | I138: =I1126 -> 677809714.1 | J138: 15679346.37 | K138: 188341096.9 | L138: 55664249.12 | M138: 0 | N138: 81536468.5 | O138: 281043548.3 | P138: 36831137.51 | Q138: 17835376.42 | R138: 878490.977 | S138: 0 | T138: 0
A139: 23 | D139: Amortization | G139: 2.18 | I139: =I1206 -> 38107947.75 | J139: 734116.4387 | K139: 11340830.78 | L139: 2640604.738 | M139: 0 | N139: 3670134.013 | O139: 14468980.63 | P139: -79343.41775 | Q139: 801498.8509 | R139: 45472.13549 | S139: 4485653.58 | T139: 0
A140: 24 | D140: Taxes Other Than Income | G140: 2.19 | I140: =I1234 -> 185302307.6 | J140: 4368778.049 | K140: 71183032.88 | L140: 11867950.63 | M140: 0 | N140: 19597421.77 | O140: 65837020.68 | P140: 8485522.098 | Q140: 3774722.936 | R140: 187858.5237 | S140: 0 | T140: 0
A141: 25 | D141: Income Taxes - Federal | G141: 2.22 | I141: =I1443 -> 154123358.2 | J141: 7570808.602 | K141: 36537127.57 | L141: 15780019.05 | M141: 0 | N141: =N1443 -> 11099854.62 | O141: 42547838.67 | P141: 11594425.69 | Q141: 6569426.996 | R141: -804625.1069 | S141: 30533415.02 | T141: -7304932.928
A142: 26 | D142: Income Taxes - State | G142: 2.22 | I142: =I1410 -> 28991393.18 | J142: 1150686.327 | K142: 7041945.436 | L142: 2786813.593 | M142: 0 | N142: 2505565.044 | O142: 9302236.661 | P142: 2034587.481 | Q142: 1108916.877 | R142: -95723.16979 | S142: 4148983.993 | T142: -992619.0624
A143: 27 | D143: Income Taxes - Def Net | G143: 2.20 | I143: =I1332 -> 177242761.3 | J143: 2632618.799 | K143: 48461309.51 | L143: 5332740.091 | M143: 0 | N143: 27579941.55 | O143: 103531973.9 | P143: 13268895.83 | Q143: 5494993.155 | R143: 1009418.711 | S143: -38366682.29 | T143: 8297551.995
A144: 28 | D144: Investment Tax Credit Adj. | G144: 2.19 | I144: =I1247 -> -4756407.95 | J144: 0 | K144: 0 | L144: 0 | M144: 0 | N144: 0 | O144: -3978052.186 | P144: -518681.7505 | Q144: -244294.5001 | R144: -15379.51322 | S144: 0 | T144: 0
A145: 29 | D145: Misc Revenue & Expense | G145: 2.5 | I145: =I333 -> 84019.637 | J145: -13923.78339 | K145: -161992.0359 | L145: -73293.5896 | M145: 0 | N145: -113663.5687 | O145: 525804.3577 | P145: -52564.42475 | Q145: -24791.427 | R145: -1555.891315 | S145: 0 | T145: 0
A146: 30
A147: 31 | D147: Total Operating Expenses | G147: 2.22 | I147: =SUM(I136:I145) -> 4044635458 | J147: =SUM(J136:J145) -> 83027101.95 | K147: 1098960703 | L147: 303270155.4 | M147: 0 | N147: 490628244.9 | O147: 1706420360 | P147: 236423041.3 | Q147: 108257811.5 | R147: 5356125.984 | S147: 12291912.84 | T147: 0.004184070043
A148: 32
A149: 33 | C149: Operating Revenue for Return | I149: =I122-I147 -> 1071763798 | J149: =J122-J147 -> 27653131.65 | K149: 278617202.6 | L149: 73583747.65 | M149: 0 | N149: 121856236.3 | O149: 466184455.1 | P149: 72224549.89 | Q149: 36537403.66 | R149: 978975.4439 | S149: -5871904.108 | T149: -0.004184070043
A150: 34
A151: 35 | C151: Rate Base:
A152: 36 | D152: Electric Plant in Service | G152: 2.31 | I152: =I2071 -> 2.620594978e+10 | J152: 567002551.2 | K152: 7095877043 | L152: 2039830699 | M152: 0 | N152: 3021993638 | O152: 1.134005564e+10 | P152: 1460333547 | Q152: 648715380 | R152: 32141278.62 | S152: 0 | T152: 0
A153: 37 | D153: Plant Held for Future Use | G153: 2.32 | I153: =I2094 -> 26579220.32 | J153: 935306.4405 | K153: 8432543.804 | L153: 1290816.901 | M153: 0 | N153: 2272665.953 | O153: 12072458.47 | P153: 1037746.639 | Q153: 508331.3356 | R153: 29350.78043 | S153: 0 | T153: 0
A154: 38 | D154: Misc Deferred Debits | G154: 2.33 | I154: =I2202+I2213 -> 926486313.3 | J154: 12922094.17 | K154: 187932776 | L154: 52986263.27 | M154: 0 | N154: 103534543.1 | O154: 336184142 | P154: 46769931.7 | Q154: 18847155.86 | R154: 1008993.486 | S154: 166300413.8 | T154: 0
A155: 39 | D155: Elec Plant Acq Adj | G155: 2.32 | I155: =I2100+I2106 -> 35651951.72 | J155: 513017.9763 | K155: 8739207.968 | L155: 2703490.657 | M155: 0 | N155: 4195274.414 | O155: 16602751.92 | P155: 1931312.228 | Q155: 909630.9149 | R155: 57265.63914 | S155: 0 | T155: 0
A156: 40 | D156: Nuclear Fuel | G156: 2.32 | I156: =I2110 -> 0 | J156: 0 | K156: 0 | L156: 0 | M156: 0 | N156: 0 | O156: 0 | P156: 0 | Q156: 0 | R156: 0 | S156: 0 | T156: 0
A157: 41 | D157: Prepayments | G157: 2.33 | I157: =I2192 -> 45885319.56 | J157: 630559.1681 | K157: 10033610.47 | L157: 2379426.8 | M157: 0 | N157: 3689593.538 | O157: 16122675.87 | P157: 1973763.879 | Q157: 765257.646 | R157: 39456.86751 | S157: 10250975.32 | T157: 0
A158: 42 | D158: Fuel Stock | G158: 2.32 | I158: =I2157 -> 186155747.1 | J158: 2790715.352 | K158: 46156771.74 | L158: 14256994.54 | M158: 0 | N158: 25382015.08 | O158: 79964115.8 | P158: 11585294.89 | Q158: 5693517.474 | R158: 326322.1684 | S158: 0 | T158: 0
A159: 43 | D159: Material & Supplies | G159: 2.33 | I159: =I2184 -> 230094384.6 | J159: 3288236.174 | K159: 64535635.02 | L159: 16488456.57 | M159: 0 | N159: 26840953.94 | O159: 101106913.5 | P159: 12840165.08 | Q159: 4773404.359 | R159: 220619.9441 | S159: 0 | T159: 0
A160: 44 | D160: Working Capital | G160: 2.33 | I160: =I2240 -> 48441366.04 | J160: 529211.5621 | K160: 21002920.77 | L160: 4633831.847 | M160: 0 | N160: 2906972.79 | O160: 25062289.09 | P160: 2868158.938 | Q160: 631050.1449 | R160: 10388.91853 | S160: -9203458.021 | T160: 0
A161: 45 | D161: Weatherization Loans | G161: 2.32 | I161: =I2132 -> 19562302.11 | J161: 190462.6789 | K161: -1205.77128 | L161: 891247.4916 | M161: 0 | N161: 78268.42116 | O161: 2158810.612 | P161: 1986308.428 | Q161: 2082.086482 | R161: -5.462396608 | S161: 14256333.63 | T161: 0
A162: 46 | D162: Miscellaneous Rate Base | G162: 2.33 | I162: =I2260 -> 0 | J162: 0 | K162: 0 | L162: 0 | M162: 0 | N162: 0 | O162: 0 | P162: 0 | Q162: 0 | R162: 0 | S162: 0 | T162: 0
A163: 47
A164: 48 | D164: Total Electric Plant | I164: =SUM(I152:I163) -> 2.772480638e+10 | J164: =SUM(J152:J163) -> 588802154.8 | K164: 7442709303 | L164: 2135461227 | M164: 0 | N164: 3190893925 | O164: 1.19293298e+10 | P164: 1541326228 | Q164: 680845809.8 | R164: 33833670.96 | S164: 181604264.7 | T164: 0
A165: 49
A166: 50 | C166: Rate Base Deductions:
A167: 51 | D167: Accum Prov For Depr | G167: 2.38 | I167: =I2562 -> -8443828809 | J167: -211164925.5 | K167: -2462413841 | L167: -690722061.3 | M167: 0 | N167: -950732035.1 | O167: -3439491814 | P167: -472279439.6 | Q167: -208155992.2 | R167: -9616378.647 | S167: 747677.9315 | T167: 0
A168: 52 | D168: Accum Prov For Amort | G168: 2.39 | I168: =I2611 -> -529247543.9 | J168: -11300580.15 | K168: -146729874.7 | L168: -40696329.93 | M168: 0 | N168: -59928902.72 | O168: -230814516.6 | P168: -28085646.61 | Q168: -11151789.62 | R168: -539903.5164 | S168: 0 | T168: 0
A169: 53 | D169: Accum Def Income Taxes | G169: 2.35 | I169: =I2359 -> -4346258736 | J169: -92541370.68 | K169: -1143717701 | L169: -255407603.8 | M169: 0 | N169: -613545847.8 | O169: -1891511214 | P169: -245715485.1 | Q169: -3783404.016 | R169: -187352.7669 | S169: -99848756.91 | T169: -0.001971425889
A170: 54 | D170: Unamortized ITC | G170: 2.36 | I170: =I2369 -> -827183.2208 | J170: -22743.76864 | K170: -300779.0458 | L170: -77103.71327 | M170: 0 | N170: -101303.281 | O170: -189170.0448 | P170: -97894.80134 | Q170: -28415.04814 | R170: -445.3036 | S170: 0 | T170: -9328.214117
A171: 55 | D171: Customer Adv for Const | G171: 2.35 | I171: =I2292 -> -31187515.5 | J171: -607688.1546 | K171: -8507165.077 | L171: -1991246.459 | M171: 0 | N171: -3692873.755 | O171: -14365565.23 | P171: -1392273.73 | Q171: -592962.1112 | R171: -37740.97671 | S171: 0 | T171: 0
A172: 56 | D172: Customer Service Deposits | G172: 2.35 | I172: =I2266 -> -16183238.3 | J172: =J2266 -> 0 | K172: 0 | L172: 0 | M172: 0 | N172: 0 | O172: -16183238.3 | P172: 0 | Q172: 0 | R172: 0 | S172: 0 | T172: 0
A173: 57 | D173: Misc. Rate Base Deductions | G173: 2.35 | I173: =I2273+I2278+I2284+I2296+I2303 -> -405420482.5 | J173: =J2273+J2278+J2284+J2296+J2303 -> -7218209.292 | K173: -102995294.2 | L173: -28613218.23 | M173: 0 | N173: -46198844.32 | O173: -160248149.5 | P173: -21294210.36 | Q173: -9583708.512 | R173: -505008.1792 | S173: -28763839.91 | T173: 0
A174: 58
A175: 59 | D175: Total Rate Base Deductions | I175: =SUM(I167:I173) -> -1.377295351e+10 | J175: =SUM(J167:J173) -> -322855517.6 | K175: -3864664655 | L175: -1017507563 | M175: 0 | N175: -1674199807 | O175: -5752803668 | P175: -768864950.3 | Q175: -233296271.5 | R175: -10886829.39 | S175: -127864918.9 | T175: -9328.216088
A176: 60
A177: 61 | C177: Total Rate Base | I177: =I164+I175 -> 1.395185287e+10 | J177: =J164+J175 -> 265946637.2 | K177: 3578044648 | L177: 1117953663 | M177: 0 | N177: 1516694118 | O177: 6176526131 | P177: 772461278 | Q177: 447549538.4 | R177: 22946841.57 | S177: 53739345.86 | T177: -9328.216088
A178: 62
A179: 63 | C179: Return on Rate Base | I179: =I149/I177 -> 0.07681874285 | J179: 0.1039800012 | K179: 0.07786856508 | L179: 0.06582003357 | N179: 0.08034331699 | O179: 0.07547680447 | P179: 0.09349924966 | Q179: 0.08163879197 | R179: 0.04266275343
A180: 64
A181: 65 | C181: Return on Equity | I181: =(+I179-UTCR!J7-UTCR!J12)/UTCR!J15 -> 0.1009558262 | J181: =(+J179-UTCR!K7-UTCR!K12)/UTCR!K15 -> 0.1540258894 | K181: =(+K179-UTCR!L7-UTCR!L12)/UTCR!L15 -> 0.1030070615 | L181: =(+L179-UTCR!M7-UTCR!M12)/UTCR!M15 -> 0.07946557756 | M181: =(+M179-UTCR!N7-UTCR!N12)/UTCR!N15 ->  | N181: =(+N179-UTCR!O7-UTCR!O12)/UTCR!O15 -> 0.1078424502 | O181: =(+O179-UTCR!P7-UTCR!P12)/UTCR!P15 -> 0.09833382863 | P181: =(+P179-UTCR!Q7-UTCR!Q12)/UTCR!Q15 -> 0.1335476723 | Q181: =(+Q179-UTCR!R7-UTCR!R12)/UTCR!R15 -> 0.1103736635 | R181: =(+R179-UTCR!S7-UTCR!S12)/UTCR!S15 -> 0.03421884027
A182: 66
A183: 67 | C183: 100 Basis Points in Equity: | I183: =(I177*(UTCR!J15*(I181+0.01)+UTCR!J7+UTCR!J12))-I149 -> 71405583.01 | J183: =(J177*(UTCR!K15*(J181+0.01)+UTCR!K7+UTCR!K12))-J149 -> 1361114.889 | K183: =(K177*(UTCR!L15*(K181+0.01)+UTCR!L7+UTCR!L12))-K149 -> 18312432.51 | L183: =(L177*(UTCR!M15*(L181+0.01)+UTCR!M7+UTCR!M12))-L149 -> 5721686.848 | M183: =(M177*(UTCR!N15*(M181+0.01)+UTCR!N7+UTCR!N12))-M149 ->  | N183: =(N177*(UTCR!O15*(N181+0.01)+UTCR!O7+UTCR!O12))-N149 -> 7762440.497 | O183: =(O177*(UTCR!P15*(O181+0.01)+UTCR!P7+UTCR!P12))-O149 -> 31611460.74 | P183: =(P177*(UTCR!Q15*(P181+0.01)+UTCR!Q7+UTCR!Q12))-P149 -> 3953456.821 | Q183: =(Q177*(UTCR!R15*(Q181+0.01)+UTCR!R7+UTCR!R12))-Q149 -> 2290558.537 | R183: =(R177*(UTCR!S15*(R181+0.01)+UTCR!S7+UTCR!S12))-R149 -> 117441.9352
A184: 68 | D184: Revenue Requirement Impact | I184: =I183*(1/(1-Variables!$E15)) -> 115079345.4 | J184: =J183*(1/(1-Variables!$F15)) -> 2193612.934 | K184: =K183*(1/(1-Variables!$G15)) -> 29512856.79 | L184: =L183*(1/(1-Variables!$H15)) -> 9221239.421 | M184: =M183*(1/(1-Variables!$I15)) ->  | N184: =N183*(1/(1-Variables!$J15)) -> 12510178.24 | O184: =O183*(1/(1-Variables!$K15)) -> 50945963.25 | P184: =P183*(1/(1-Variables!$L15)) -> 6371507.713 | Q184: =Q183*(1/(1-Variables!$M15)) -> 3691531.753 | R184: =R183*(1/(1-Variables!$N15)) -> 189272.8894
A185: 69 | D185: Rate Base Decrease | I185: =(I149/(UTCR!J15*(I181+0.01)+UTCR!J7+UTCR!J12))-I177 -> -871472071.3 | J185: =(J149/(UTCR!K15*(J181+0.01)+UTCR!K7+UTCR!K12))-J177 -> -12476075.4 | K185: =(K149/(UTCR!L15*(K181+0.01)+UTCR!L7+UTCR!L12))-K177 -> -220667435.7 | L185: =(L149/(UTCR!M15*(L181+0.01)+UTCR!M7+UTCR!M12))-L177 -> -80657533.91 | M185: =(M149/(UTCR!N15*(M181+0.01)+UTCR!N7+UTCR!N12))-M177 ->  | N185: =(N149/(UTCR!O15*(N181+0.01)+UTCR!O7+UTCR!O12))-N177 -> -90829872.16 | O185: =(O149/(UTCR!P15*(O181+0.01)+UTCR!P7+UTCR!P12))-O177 -> -392227029.3 | P185: =(P149/(UTCR!Q15*(P181+0.01)+UTCR!Q7+UTCR!Q12))-P177 -> -40088897.58 | Q185: =(Q149/(UTCR!R15*(Q181+0.01)+UTCR!R7+UTCR!R12))-Q177 -> -26402065.88 | R185: =(R149/(UTCR!S15*(R181+0.01)+UTCR!S7+UTCR!S12))-R177 -> -2457933.932
C186: =Variables!AE29 -> 2010 PROTOCOL | H186: ELECTRIC REVENUES
C187: =Variables!AO19 -> 13-Month Average | I187: ELECTRIC REVENUES
C188: FERC | I188: NORMALIZED RESULTS
C189: ACCT | E189: DESCRIPTION | G189: FACTOR | H189: Ref | I189: TOTAL | J189: CALIFORNIA | K189: OREGON | L189: WASHINGTON | M189: MONTANA | N189: WY-PPL | O189: UTAH | P189: Idaho | Q189: WY-UPL | R189: FERC | S189: OTH | T189: NUTIL
A190: 70 | C190: Sales to Ultimate Customers
A191: 71 | C191: 440 | D191: Residential Sales
A192: 72 | G192: =UTCR!H192 -> S | I192: =SUM(J192:T192) -> 1738573558 | J192: =+URO!J192+ADJ!N192 -> 46990871.36 | K192: =URO!K192+ADJ!R192 -> 615098857 | L192: =URO!L192+ADJ!V192 -> 143669156.5 | M192: =URO!M192+ADJ!Z192 -> 0 | N192: =URO!N192+ADJ!AD192 -> 99306583.42 | O192: =URO!O192+ADJ!AH192 -> 742487158.5 | P192: =URO!P192+ADJ!AL192 -> 73053944.66 | Q192: =URO!Q192+ADJ!AP192 -> 12829835.63 | R192: =URO!R192+ADJ!AT192 -> 0 | S192: =URO!S192+ADJ!AX192 -> 5137150.66 | T192: =URO!T192+ADJ!BB192 -> 0
A193: 73
A194: 74 | H194: B1.1 | I194: =SUBTOTAL(9,I192:I193) -> 1738573558 | J194: =SUBTOTAL(9,J192:J193) -> 46990871.36 | K194: 615098857 | L194: 143669156.5 | M194: 0 | N194: 99306583.42 | O194: 742487158.5 | P194: 73053944.66 | Q194: 12829835.63 | R194: 0 | S194: 5137150.66 | T194: 0
A195: 75
A196: 76 | C196: 442 | D196: Commercial & Industrial Sales
A197: 77 | G197: =UTCR!H197 -> S | I197: =SUM(J197:T197) -> 2917880249 | J197: =+URO!J197+ADJ!N197 -> 56245126.24 | K197: =URO!K197+ADJ!R197 -> 644568651.6 | L197: =URO!L197+ADJ!V197 -> 198308712.6 | M197: =URO!M197+ADJ!Z197 -> 0 | N197: =URO!N197+ADJ!AD197 -> 459978373.1 | O197: =URO!O197+ADJ!AH197 -> 1220620282 | P197: =URO!P197+ADJ!AL197 -> 211452532.3 | Q197: =URO!Q197+ADJ!AP197 -> 120620800.7 | R197: =URO!R197+ADJ!AT197 -> 0 | S197: =URO!S197+ADJ!AX197 -> 6085770.23 | T197: =URO!T197+ADJ!BB197 -> 0
A198: 78 | G198: =UTCR!H198 -> SE | I198: =SUM(J198:T198) -> 0 | J198: =+URO!J198+ADJ!N198 -> 0 | K198: =URO!K198+ADJ!R198 -> 0 | L198: =URO!L198+ADJ!V198 -> 0 | M198: =URO!M198+ADJ!Z198 -> 0 | N198: =URO!N198+ADJ!AD198 -> 0 | O198: =URO!O198+ADJ!AH198 -> 0 | P198: =URO!P198+ADJ!AL198 -> 0 | Q198: =URO!Q198+ADJ!AP198 -> 0 | R198: =URO!R198+ADJ!AT198 -> 0 | S198: =URO!S198+ADJ!AX198 -> 0 | T198: =URO!T198+ADJ!BB198 -> 0
A199: 79 | G199: =UTCR!H199 -> SG | I199: =SUM(J199:T199) -> 0 | J199: =+URO!J199+ADJ!N199 -> 0 | K199: =URO!K199+ADJ!R199 -> 0 | L199: =URO!L199+ADJ!V199 -> 0 | M199: =URO!M199+ADJ!Z199 -> 0 | N199: =URO!N199+ADJ!AD199 -> 0 | O199: =URO!O199+ADJ!AH199 -> 0 | P199: =URO!P199+ADJ!AL199 -> 0 | Q199: =URO!Q199+ADJ!AP199 -> 0 | R199: =URO!R199+ADJ!AT199 -> 0 | S199: =URO!S199+ADJ!AX199 -> 0 | T199: =URO!T199+ADJ!BB199 -> 0
A200: 80
A201: 81
A202: 82 | H202: B1.2 | I202: =SUBTOTAL(9,I197:I200) -> 2917880249 | J202: =SUBTOTAL(9,J197:J200) -> 56245126.24 | K202: 644568651.6 | L202: 198308712.6 | M202: 0 | N202: 459978373.1 | O202: 1220620282 | P202: 211452532.3 | Q202: 120620800.7 | R202: 0 | S202: 6085770.23 | T202: 0
A203: 83
A204: 84 | C204: 444 | D204: Public Street & Highway Lighting
A205: 85 | G205: =UTCR!H205 -> S | I205: =SUM(J205:T205) -> 19679740.13 | J205: =+URO!J205+ADJ!N205 -> 522079.31 | K205: =URO!K205+ADJ!R205 -> 6074114.81 | L205: =URO!L205+ADJ!V205 -> 1295689.37 | M205: =URO!M205+ADJ!Z205 -> 0 | N205: =URO!N205+ADJ!AD205 -> 1707711.81 | O205: =URO!O205+ADJ!AH205 -> 9123413.117 | P205: =URO!P205+ADJ!AL205 -> 512629.9 | Q205: =URO!Q205+ADJ!AP205 -> 409057.3 | R205: =URO!R205+ADJ!AT205 -> 0 | S205: =URO!S205+ADJ!AX205 -> 35044.51 | T205: =URO!T205+ADJ!BB205 -> 0
A206: 86 | G206: =UTCR!H206 -> SO | I206: =SUM(J206:T206) -> 0 | J206: =+URO!J206+ADJ!N206 -> 0 | K206: =URO!K206+ADJ!R206 -> 0 | L206: =URO!L206+ADJ!V206 -> 0 | M206: =URO!M206+ADJ!Z206 -> 0 | N206: =URO!N206+ADJ!AD206 -> 0 | O206: =URO!O206+ADJ!AH206 -> 0 | P206: =URO!P206+ADJ!AL206 -> 0 | Q206: =URO!Q206+ADJ!AP206 -> 0 | R206: =URO!R206+ADJ!AT206 -> 0 | S206: =URO!S206+ADJ!AX206 -> 0 | T206: =URO!T206+ADJ!BB206 -> 0
A207: 87 | H207: B1.3 | I207: =SUBTOTAL(9,I205:I206) -> 19679740.13 | J207: =SUBTOTAL(9,J205:J206) -> 522079.31 | K207: 6074114.81 | L207: 1295689.37 | M207: 0 | N207: 1707711.81 | O207: 9123413.117 | P207: 512629.9 | Q207: 409057.3 | R207: 0 | S207: 35044.51 | T207: 0
A208: 88
A209: 89 | C209: 445 | D209: Other Sales to Public Authority
A210: 90 | G210: =UTCR!H210 -> S | I210: =SUM(J210:T210) -> 16367525.01 | J210: =+URO!J210+ADJ!N210 -> 0 | K210: =URO!K210+ADJ!R210 -> 0 | L210: =URO!L210+ADJ!V210 -> 0 | M210: =URO!M210+ADJ!Z210 -> 0 | N210: =URO!N210+ADJ!AD210 -> 0 | O210: =URO!O210+ADJ!AH210 -> 16329652.59 | P210: =URO!P210+ADJ!AL210 -> 0 | Q210: =URO!Q210+ADJ!AP210 -> 0 | R210: =URO!R210+ADJ!AT210 -> 0 | S210: =URO!S210+ADJ!AX210 -> 37872.42 | T210: =URO!T210+ADJ!BB210 -> 0
A211: 91
A212: 92 | H212: B1.3 | I212: =SUBTOTAL(9,I210) -> 16367525.01 | J212: =SUBTOTAL(9,J210) -> 0 | K212: 0 | L212: 0 | M212: 0 | N212: 0 | O212: 16329652.59 | P212: 0 | Q212: 0 | R212: 0 | S212: 37872.42 | T212: 0
A213: 93
A214: 94 | C214: 448 | D214: Interdepartmental
A215: 95 | G215: =UTCR!H215 -> S | I215: =SUM(J215:T215) -> 0 | J215: =+URO!J215+ADJ!N215 -> 0 | K215: =URO!K215+ADJ!R215 -> 0 | L215: =URO!L215+ADJ!V215 -> 0 | M215: =URO!M215+ADJ!Z215 -> 0 | N215: =URO!N215+ADJ!AD215 -> 0 | O215: =URO!O215+ADJ!AH215 -> 0 | P215: =URO!P215+ADJ!AL215 -> 0 | Q215: =URO!Q215+ADJ!AP215 -> 0 | R215: =URO!R215+ADJ!AT215 -> 0 | S215: =URO!S215+ADJ!AX215 -> 0 | T215: =URO!T215+ADJ!BB215 -> 0
A216: 96 | G216: =UTCR!H216 -> SO | I216: =SUM(J216:T216) -> 0 | J216: =+URO!J216+ADJ!N216 -> 0 | K216: =URO!K216+ADJ!R216 -> 0 | L216: =URO!L216+ADJ!V216 -> 0 | M216: =URO!M216+ADJ!Z216 -> 0 | N216: =URO!N216+ADJ!AD216 -> 0 | O216: =URO!O216+ADJ!AH216 -> 0 | P216: =URO!P216+ADJ!AL216 -> 0 | Q216: =URO!Q216+ADJ!AP216 -> 0 | R216: =URO!R216+ADJ!AT216 -> 0 | S216: =URO!S216+ADJ!AX216 -> 0 | T216: =URO!T216+ADJ!BB216 -> 0
A217: 97 | H217: B1.3 | I217: =SUBTOTAL(9,I215:I216) -> 0 | J217: 0 | K217: 0 | L217: 0 | M217: 0 | N217: 0 | O217: 0 | P217: 0 | Q217: 0 | R217: 0 | S217: 0 | T217: 0
A218: 98
A219: 99 | C219: Total Sales to Ultimate Customers | I219: =SUBTOTAL(9,I192:I217) -> 4692501071 | J219: =SUBTOTAL(9,J192:J217) -> 103758076.9 | K219: 1265741623 | L219: 343273558.4 | M219: 0 | N219: 560992668.4 | O219: 1988560506 | P219: 285019106.8 | Q219: 133859693.7 | R219: 0 | S219: 11295837.82 | T219: 0
A220: 100 | C220: =$C$187 -> 13-Month Average | I220: ELECTRIC REVENUES
A221: 101 | C221: FERC | I221: NORMALIZED RESULTS
A222: 102 | C222: ACCT | E222: DESCRIPTION | G222: FACTOR | I222: TOTAL | J222: CALIFORNIA | K222: OREGON | L222: WASHINGTON | M222: MONTANA | N222: WY-PPL | O222: UTAH | P222: Idaho | Q222: WY-UPL | R222: FERC | S222: OTHER | T222: NON-UTILITY
A223: 103 | C223: 447 | D223: Sales for Resale-Non NPC
A224: 104 | G224: =UTCR!H224 -> S | I224: =SUM(J224:T224) -> 6751432.97 | J224: =+URO!J224+ADJ!N224 -> 0 | K224: =URO!K224+ADJ!R224 -> 1094275.15 | L224: =URO!L224+ADJ!V224 -> 0 | M224: =URO!M224+ADJ!Z224 -> 0 | N224: =URO!N224+ADJ!AD224 -> 0 | O224: =URO!O224+ADJ!AH224 -> 0 | P224: =URO!P224+ADJ!AL224 -> 0 | Q224: =URO!Q224+ADJ!AP224 -> 0 | R224: =URO!R224+ADJ!AT224 -> 5657157.82 | S224: =URO!S224+ADJ!AX224 -> 0 | T224: =URO!T224+ADJ!BB224 -> 0
A225: 105 | I225: =SUBTOTAL(9,I224:I224) -> 6751432.97 | J225: =SUBTOTAL(9,J224:J224) -> 0 | K225: 1094275.15 | L225: 0 | M225: 0 | N225: 0 | O225: 0 | P225: 0 | Q225: 0 | R225: 5657157.82 | S225: 0 | T225: 0
A226: 106
A227: 107 | C227: 447NPC | D227: Sales for Resale-NPC
A228: 108 | G228: =UTCR!H228 -> SG | I228: =SUM(J228:T228) -> 263082188.7 | J228: =+URO!J228+ADJ!N228 -> 3985823.456 | K228: =URO!K228+ADJ!R228 -> 67898088.79 | L228: =URO!L228+ADJ!V228 -> 21004403.3 | M228: =URO!M228+ADJ!Z228 -> 0 | N228: =URO!N228+ADJ!AD228 -> 32594614.49 | O228: =URO!O228+ADJ!AH228 -> 115082019.4 | P228: =URO!P228+ADJ!AL228 -> 15005067.92 | Q228: =URO!Q228+ADJ!AP228 -> 7067253.79 | R228: =URO!R228+ADJ!AT228 -> 444917.6018 | S228: =URO!S228+ADJ!AX228 -> 0 | T228: =URO!T228+ADJ!BB228 -> 0
A229: 109 | G229: =UTCR!H229 -> SE | I229: =SUM(J229:T229) -> 0 | J229: =+URO!J229+ADJ!N229 -> 0 | K229: =URO!K229+ADJ!R229 -> 0 | L229: =URO!L229+ADJ!V229 -> 0 | M229: =URO!M229+ADJ!Z229 -> 0 | N229: =URO!N229+ADJ!AD229 -> 0 | O229: =URO!O229+ADJ!AH229 -> 0 | P229: =URO!P229+ADJ!AL229 -> 0 | Q229: =URO!Q229+ADJ!AP229 -> 0 | R229: =URO!R229+ADJ!AT229 -> 0 | S229: =URO!S229+ADJ!AX229 -> 0 | T229: =URO!T229+ADJ!BB229 -> 0
A230: 110 | G230: =UTCR!H230 -> SG | I230: =SUM(J230:T230) -> 0 | J230: =+URO!J230+ADJ!N230 -> 0 | K230: =URO!K230+ADJ!R230 -> 0 | L230: =URO!L230+ADJ!V230 -> 0 | M230: =URO!M230+ADJ!Z230 -> 0 | N230: =URO!N230+ADJ!AD230 -> 0 | O230: =URO!O230+ADJ!AH230 -> 0 | P230: =URO!P230+ADJ!AL230 -> 0 | Q230: =URO!Q230+ADJ!AP230 -> 0 | R230: =URO!R230+ADJ!AT230 -> 0 | S230: =URO!S230+ADJ!AX230 -> 0 | T230: =URO!T230+ADJ!BB230 -> 0
A231: 111 | I231: =SUBTOTAL(9,I228:I230) -> 263082188.7 | J231: =SUBTOTAL(9,J228:J230) -> 3985823.456 | K231: 67898088.79 | L231: 21004403.3 | M231: 0 | N231: 32594614.49 | O231: 115082019.4 | P231: 15005067.92 | Q231: 7067253.79 | R231: 444917.6018 | S231: 0 | T231: 0
A232: 112
A233: 113 | D233: Total Sales for Resale | H233: B1.3 | I233: =SUBTOTAL(9,I224:I231) -> 269833621.7 | J233: =SUBTOTAL(9,J224:J231) -> 3985823.456 | K233: 68992363.94 | L233: 21004403.3 | M233: 0 | N233: 32594614.49 | O233: 115082019.4 | P233: 15005067.92 | Q233: 7067253.79 | R233: 6102075.422 | S233: 0 | T233: 0
A234: 114
A235: 115 | C235: 449 | D235: Provision for Rate Refund
A236: 116 | G236: =UTCR!H236 -> S | I236: =SUM(J236:T236) -> 0.1 | J236: =+URO!J236+ADJ!N236 -> 0 | K236: =URO!K236+ADJ!R236 -> 0 | L236: =URO!L236+ADJ!V236 -> 0 | M236: =URO!M236+ADJ!Z236 -> 0 | N236: =URO!N236+ADJ!AD236 -> 0 | O236: =URO!O236+ADJ!AH236 -> 0.1 | P236: =URO!P236+ADJ!AL236 -> 0 | Q236: =URO!Q236+ADJ!AP236 -> 0 | R236: =URO!R236+ADJ!AT236 -> 0 | S236: =URO!S236+ADJ!AX236 -> 0 | T236: =URO!T236+ADJ!BB236 -> 0
A237: 117 | G237: =UTCR!H237 -> SG | I237: =SUM(J237:T237) -> 0 | J237: =+URO!J237+ADJ!N237 -> 0 | K237: =URO!K237+ADJ!R237 -> 0 | L237: =URO!L237+ADJ!V237 -> 0 | M237: =URO!M237+ADJ!Z237 -> 0 | N237: =URO!N237+ADJ!AD237 -> 0 | O237: =URO!O237+ADJ!AH237 -> 0 | P237: =URO!P237+ADJ!AL237 -> 0 | Q237: =URO!Q237+ADJ!AP237 -> 0 | R237: =URO!R237+ADJ!AT237 -> 0 | S237: =URO!S237+ADJ!AX237 -> 0 | T237: =URO!T237+ADJ!BB237 -> 0
A238: 118
A239: 119
A240: 120 | H240: B1.3 | I240: =SUBTOTAL(9,I236:I237) -> 0.1 | J240: =SUBTOTAL(9,J236:J237) -> 0 | K240: 0 | L240: 0 | M240: 0 | N240: 0 | O240: 0.1 | P240: 0 | Q240: 0 | R240: 0 | S240: 0 | T240: 0
A241: 121
A242: 122 | C242: Total Sales from Electricity | I242: =SUBTOTAL(9,I224:I240)+I219 -> 4962334693 | J242: =SUBTOTAL(9,J224:J240)+J219 -> 107743900.4 | K242: 1334733987 | L242: 364277961.7 | M242: 0 | N242: 593587282.9 | O242: 2103642525 | P242: 300024174.8 | Q242: 140926947.5 | R242: 6102075.422 | S242: 11295837.82 | T242: 0
A243: 123 | C243: 450 | D243: Forfeited Discounts & Interest
A244: 124 | G244: =UTCR!H244 -> S | I244: =SUM(J244:T244) -> 9141276.38 | J244: =+URO!J244+ADJ!N244 -> 248699.94 | K244: =URO!K244+ADJ!R244 -> 3666595.39 | L244: =URO!L244+ADJ!V244 -> 630324.82 | M244: =URO!M244+ADJ!Z244 -> 0 | N244: =URO!N244+ADJ!AD244 -> 642843.92 | O244: =URO!O244+ADJ!AH244 -> 3479500.68 | P244: =URO!P244+ADJ!AL244 -> 407949.63 | Q244: =URO!Q244+ADJ!AP244 -> 65362 | R244: =URO!R244+ADJ!AT244 -> 0 | S244: =URO!S244+ADJ!AX244 -> 0 | T244: =URO!T244+ADJ!BB244 -> 0
A245: 125 | G245: =UTCR!H245 -> SO | I245: =SUM(J245:T245) -> 0 | J245: =+URO!J245+ADJ!N245 -> 0 | K245: =URO!K245+ADJ!R245 -> 0 | L245: =URO!L245+ADJ!V245 -> 0 | M245: =URO!M245+ADJ!Z245 -> 0 | N245: =URO!N245+ADJ!AD245 -> 0 | O245: =URO!O245+ADJ!AH245 -> 0 | P245: =URO!P245+ADJ!AL245 -> 0 | Q245: =URO!Q245+ADJ!AP245 -> 0 | R245: =URO!R245+ADJ!AT245 -> 0 | S245: =URO!S245+ADJ!AX245 -> 0 | T245: =URO!T245+ADJ!BB245 -> 0
A246: 126 | H246: B1.4 | I246: =SUBTOTAL(9,I244:I245) -> 9141276.38 | J246: =SUBTOTAL(9,J244:J245) -> 248699.94 | K246: 3666595.39 | L246: 630324.82 | M246: 0 | N246: 642843.92 | O246: 3479500.68 | P246: 407949.63 | Q246: 65362 | R246: 0 | S246: 0 | T246: 0
A247: 127
A248: 128 | C248: 451 | D248: Misc Electric Revenue
A249: 129 | G249: =UTCR!H249 -> S | I249: =SUM(J249:T249) -> 5521840.14 | J249: =+URO!J249+ADJ!N249 -> 88071.14 | K249: =URO!K249+ADJ!R249 -> 1242203.2 | L249: =URO!L249+ADJ!V249 -> 179935.89 | M249: =URO!M249+ADJ!Z249 -> 0 | N249: =URO!N249+ADJ!AD249 -> 297721.79 | O249: =URO!O249+ADJ!AH249 -> 3596319.8 | P249: =URO!P249+ADJ!AL249 -> 88600.11 | Q249: =URO!Q249+ADJ!AP249 -> 28988.21 | R249: =URO!R249+ADJ!AT249 -> 0 | S249: =URO!S249+ADJ!AX249 -> 0 | T249: =URO!T249+ADJ!BB249 -> 0
A250: 130 | G250: =UTCR!H250 -> SG | I250: =SUM(J250:T250) -> 0 | J250: =+URO!J250+ADJ!N250 -> 0 | K250: =URO!K250+ADJ!R250 -> 0 | L250: =URO!L250+ADJ!V250 -> 0 | M250: =URO!M250+ADJ!Z250 -> 0 | N250: =URO!N250+ADJ!AD250 -> 0 | O250: =URO!O250+ADJ!AH250 -> 0 | P250: =URO!P250+ADJ!AL250 -> 0 | Q250: =URO!Q250+ADJ!AP250 -> 0 | R250: =URO!R250+ADJ!AT250 -> 0 | S250: =URO!S250+ADJ!AX250 -> 0 | T250: =URO!T250+ADJ!BB250 -> 0
A251: 131 | G251: =UTCR!H251 -> SO | I251: =SUM(J251:T251) -> 9407.46 | J251: =+URO!J251+ADJ!N251 -> 203.5436176 | K251: =URO!K251+ADJ!R251 -> 2547.290978 | L251: =URO!L251+ADJ!V251 -> 732.262172 | M251: =URO!M251+ADJ!Z251 -> 0 | N251: =URO!N251+ADJ!AD251 -> 1084.840829 | O251: =URO!O251+ADJ!AH251 -> 4070.87401 | P251: =URO!P251+ADJ!AL251 -> 524.2332196 | Q251: =URO!Q251+ADJ!AP251 -> 232.877039 | R251: =URO!R251+ADJ!AT251 -> 11.53813525 | S251: =URO!S251+ADJ!AX251 -> 0 | T251: =URO!T251+ADJ!BB251 -> 0
A252: 132 | H252: B1.5 | I252: =SUBTOTAL(9,I249:I251) -> 5531247.6 | J252: =SUBTOTAL(9,J249:J251) -> 88274.68362 | K252: 1244750.491 | L252: 180668.1522 | M252: 0 | N252: 298806.6308 | O252: 3600390.674 | P252: 89124.34322 | Q252: 29221.08704 | R252: 11.53813525 | S252: 0 | T252: 0
A253: 133
A254: 134 | C254: 453 | D254: Water Sales
A255: 135 | G255: =UTCR!H255 -> SG | I255: =SUM(J255:T255) -> 0 | J255: =+URO!J255+ADJ!N255 -> 0 | K255: =URO!K255+ADJ!R255 -> 0 | L255: =URO!L255+ADJ!V255 -> 0 | M255: =URO!M255+ADJ!Z255 -> 0 | N255: =URO!N255+ADJ!AD255 -> 0 | O255: =URO!O255+ADJ!AH255 -> 0 | P255: =URO!P255+ADJ!AL255 -> 0 | Q255: =URO!Q255+ADJ!AP255 -> 0 | R255: =URO!R255+ADJ!AT255 -> 0 | S255: =URO!S255+ADJ!AX255 -> 0 | T255: =URO!T255+ADJ!BB255 -> 0
A256: 136 | I256: =SUBTOTAL(9,I255) -> 0 | J256: =SUBTOTAL(9,J255) -> 0 | K256: 0 | L256: 0 | M256: 0 | N256: 0 | O256: 0 | P256: 0 | Q256: 0 | R256: 0 | S256: 0 | T256: 0
A257: 137
A258: 138 | C258: 454 | D258: Rent of Electric Property
A259: 139 | G259: =UTCR!H259 -> S | I259: =SUM(J259:T259) -> 8419459.48 | J259: =+URO!J259+ADJ!N259 -> 543079.62 | K259: =URO!K259+ADJ!R259 -> 3528124.19 | L259: =URO!L259+ADJ!V259 -> 854438.79 | M259: =URO!M259+ADJ!Z259 -> 0 | N259: =URO!N259+ADJ!AD259 -> 353371.12 | O259: =URO!O259+ADJ!AH259 -> 2963721.24 | P259: =URO!P259+ADJ!AL259 -> 158411.32 | Q259: =URO!Q259+ADJ!AP259 -> 18313.2 | R259: =URO!R259+ADJ!AT259 -> 0 | S259: =URO!S259+ADJ!AX259 -> 0 | T259: =URO!T259+ADJ!BB259 -> 0
A260: 140 | G260: =UTCR!H260 -> SG | I260: =SUM(J260:T260) -> 6178199.38 | J260: =+URO!J260+ADJ!N260 -> 93602.73353 | K260: =URO!K260+ADJ!R260 -> 1594512.848 | L260: =URO!L260+ADJ!V260 -> 493265.5915 | M260: =URO!M260+ADJ!Z260 -> 0 | N260: =URO!N260+ADJ!AD260 -> 765449.1094 | O260: =URO!O260+ADJ!AH260 -> 2702576.196 | P260: =URO!P260+ADJ!AL260 -> 352377.7181 | Q260: =URO!Q260+ADJ!AP260 -> 165966.7771 | R260: =URO!R260+ADJ!AT260 -> 10448.4065 | S260: =URO!S260+ADJ!AX260 -> 0 | T260: =URO!T260+ADJ!BB260 -> 0
A261: 141 | G261: =UTCR!H261 -> SG | I261: =SUM(J261:T261) -> 18000 | J261: =+URO!J261+ADJ!N261 -> 272.7087781 | K261: =URO!K261+ADJ!R261 -> 4645.565723 | L261: =URO!L261+ADJ!V261 -> 1437.114619 | M261: =URO!M261+ADJ!Z261 -> 0 | N261: =URO!N261+ADJ!AD261 -> 2230.113197 | O261: =URO!O261+ADJ!AH261 -> 7873.875304 | P261: =URO!P261+ADJ!AL261 -> 1026.641993 | Q261: =URO!Q261+ADJ!AP261 -> 483.5392652 | R261: =URO!R261+ADJ!AT261 -> 30.44112136 | S261: =URO!S261+ADJ!AX261 -> 0 | T261: =URO!T261+ADJ!BB261 -> 0
A262: 142 | G262: =UTCR!H262 -> SO | I262: =SUM(J262:T262) -> 4455589.4 | J262: =+URO!J262+ADJ!N262 -> 96402.93821 | K262: =URO!K262+ADJ!R262 -> 1206455.588 | L262: =URO!L262+ADJ!V262 -> 346816.2045 | M262: =URO!M262+ADJ!Z262 -> 0 | N262: =URO!N262+ADJ!AD262 -> 513805.5646 | O262: =URO!O262+ADJ!AH262 -> 1928059.549 | P262: =URO!P262+ADJ!AL262 -> 248288.9086 | Q262: =URO!Q262+ADJ!AP262 -> 110295.9212 | R262: =URO!R262+ADJ!AT262 -> 5464.726199 | S262: =URO!S262+ADJ!AX262 -> 0 | T262: =URO!T262+ADJ!BB262 -> 0
A263: 143 | H263: B1.7 | I263: =SUBTOTAL(9,I259:I262) -> 19071248.26 | J263: =SUBTOTAL(9,J259:J262) -> 733358.0005 | K263: 6333738.192 | L263: 1695957.701 | M263: 0 | N263: 1634855.907 | O263: 7602230.86 | P263: 760104.5888 | Q263: 295059.4376 | R263: 15943.57383 | S263: 0 | T263: 0
A264: 144 | C264: =$C$187 -> 13-Month Average | I264: ELECTRIC REVENUES
A265: 145 | C265: FERC | I265: NORMALIZED RESULTS
A266: 146 | C266: ACCT | E266: DESCRIPTION | G266: FACTOR | I266: TOTAL | J266: CALIFORNIA | K266: OREGON | L266: WASHINGTON | M266: MONTANA | N266: WY-PPL | O266: UTAH | P266: Idaho | Q266: WY-UPL | R266: FERC | S266: OTHER | T266: NON-UTILITY
A267: 147 | C267: 456 | D267: Other Electric Revenue
A268: 148 | G268: =UTCR!H268 -> S | I268: =SUM(J268:T268) -> -8135291.615 | J268: =+URO!J268+ADJ!N268 -> -88406.20667 | K268: =URO!K268+ADJ!R268 -> -1488294.421 | L268: =URO!L268+ADJ!V268 -> -156871.5562 | M268: =URO!M268+ADJ!Z268 -> 0 | N268: =URO!N268+ADJ!AD268 -> 314576.43 | O268: =URO!O268+ADJ!AH268 -> -1838779.113 | P268: =URO!P268+ADJ!AL268 -> -1687.66 | Q268: =URO!Q268+ADJ!AP268 -> 0 | R268: =URO!R268+ADJ!AT268 -> 0 | S268: =URO!S268+ADJ!AX268 -> -4875829.089 | T268: =URO!T268+ADJ!BB268 -> 0
A269: 149 | G269: =UTCR!H269 -> CN | I269: =SUM(J269:T269) -> 0 | J269: =+URO!J269+ADJ!N269 -> 0 | K269: =URO!K269+ADJ!R269 -> 0 | L269: =URO!L269+ADJ!V269 -> 0 | M269: =URO!M269+ADJ!Z269 -> 0 | N269: =URO!N269+ADJ!AD269 -> 0 | O269: =URO!O269+ADJ!AH269 -> 0 | P269: =URO!P269+ADJ!AL269 -> 0 | Q269: =URO!Q269+ADJ!AP269 -> 0 | R269: =URO!R269+ADJ!AT269 -> 0 | S269: =URO!S269+ADJ!AX269 -> 0 | T269: =URO!T269+ADJ!BB269 -> 0
A270: 150 | G270: =UTCR!H270 -> SE | I270: =SUM(J270:T270) -> 8324825.69 | J270: =+URO!J270+ADJ!N270 -> 124799.9013 | K270: =URO!K270+ADJ!R270 -> 2064116.125 | L270: =URO!L270+ADJ!V270 -> 637568.2528 | M270: =URO!M270+ADJ!Z270 -> 0 | N270: =URO!N270+ADJ!AD270 -> 1135075.627 | O270: =URO!O270+ADJ!AH270 -> 3575969.778 | P270: =URO!P270+ADJ!AL270 -> 518090.6959 | Q270: =URO!Q270+ADJ!AP270 -> 254612.2872 | R270: =URO!R270+ADJ!AT270 -> 14593.02339 | S270: =URO!S270+ADJ!AX270 -> 0 | T270: =URO!T270+ADJ!BB270 -> 0
A271: 151 | G271: =UTCR!H271 -> SO | I271: =SUM(J271:T271) -> 1473932.06 | J271: =+URO!J271+ADJ!N271 -> 31890.59147 | K271: =URO!K271+ADJ!R271 -> 399101.7596 | L271: =URO!L271+ADJ!V271 -> 114728.5975 | M271: =URO!M271+ADJ!Z271 -> 0 | N271: =URO!N271+ADJ!AD271 -> 169969.543 | O271: =URO!O271+ADJ!AH271 -> 637812.089 | P271: =URO!P271+ADJ!AL271 -> 82135.25748 | Q271: =URO!Q271+ADJ!AP271 -> 36486.46222 | R271: =URO!R271+ADJ!AT271 -> 1807.759742 | S271: =URO!S271+ADJ!AX271 -> 0 | T271: =URO!T271+ADJ!BB271 -> 0
A272: 152 | G272: =UTCR!H272 -> SG | I272: =SUM(J272:T272) -> 118657324.2 | J272: =+URO!J272+ADJ!N272 -> 1797716.327 | K272: =URO!K272+ADJ!R272 -> 30623911 | L272: =URO!L272+ADJ!V272 -> 9473565.288 | M272: =URO!M272+ADJ!Z272 -> 0 | N272: =URO!N272+ADJ!AD272 -> 14701070.25 | O272: =URO!O272+ADJ!AH272 -> 51905165.24 | P272: =URO!P272+ADJ!AL272 -> 6767699.544 | Q272: =URO!Q272+ADJ!AP272 -> 3187526.408 | R272: =URO!R272+ADJ!AT272 -> 200670.1114 | S272: =URO!S272+ADJ!AX272 -> 0 | T272: =URO!T272+ADJ!BB272 -> 0
A273: 153
A274: 154
A275: 155 | H275: B1.7 | I275: =SUBTOTAL(9,I268:I274) -> 120320790.3 | J275: =SUBTOTAL(9,J268:J274) -> 1866000.613 | K275: 31598834.46 | L275: 10068990.58 | M275: 0 | N275: 16320691.85 | O275: 54280168 | P275: 7366237.838 | Q275: 3478625.157 | R275: 217070.8945 | S275: -4875829.089 | T275: 0
A276: 156
